Workbook

Sheet 02-01-01
A1: =Source!B1 -> Smeta.RU Flash (495) 974-1589
A2: Наименование программного продукта | F2: Программа для ЭВМ «Программа: «Smeta.RU Flash» версия 12»
A4: Наименование редакции сметных нормативов | F4: =IF(Source!CQ12 <> "", Source!CQ12, "") -> Приказ Минстроя России от 30.12.2021 г. № 1046/пр; Приказ Минстроя России от 04.08.2020 г. № 421/пр; Приказ Минстроя России от 21.12.2020 г. № 812/пр; Приказ Минстроя России от 11.12.2020 г. № 774/пр | CO4: =IF(Source!CQ12 <> "", Source!CQ12, "") -> Приказ Минстроя России от 30.12.2021 г. № 1046/пр; Приказ Минстроя России от 04.08.2020 г. № 421/пр; Приказ Минстроя России от 21.12.2020 г. № 812/пр; Приказ Минстроя России от 11.12.2020 г. № 774/пр
A6: Реквизиты приказа Минстроя России об утверждении дополнений и изменений к сметным нормативам | F6: =IF(Source!CV12 <> "", Source!CV12, "") -> Приказ Минстроя России от 18.05.2022 г. № 378/пр; Приказ Минстроя России от 26.08.2022 г. № 703/пр; Приказ Минстроя России от 26.10.2022 г. № 905/пр; Приказ Минстроя России от 27.12.2022 г. № 1133/пр; Приказ Минстроя России от 10.02.2023 г. № 84/пр; Приказ Минстроя России от 11.05.2023 г. № 335/пр; Приказ Минстроя России от 02.08.2023 г. № 551/пр; Приказ Минстроя России от 14.11.2023 г. № 817/пр; Приказ Минстроя России от 16.02.2024 г. № 102/пр; Приказ Минстроя России от 13.05.2024 г. № 323/пр; Приказ Минстроя России от 09.08.2024 г. № 524/пр; Приказ Минстроя России от 07.11.2024 г. № 747/пр; Приказ Минстроя России от 07.02.2025 г. № 69/пр; Приказ Минстроя России от 19.05.2025 г. № 299/пр; Приказ Минстроя России от 14.08.2025 г. № 490/пр; Приказ Минстроя России от 12.11.2025 г. № 696/пр; Приказ Минстроя России от 17.02.2026 г. № 91/пр; Приказ Минстроя России от 07.07.2022 г. № 557/пр; Приказ Минстроя России от 30.01.2024 г. № 55/пр; Приказ Минстроя России от 23.01.2025 г. № 30/пр; Приказ Минстроя России от 02.09.2021 г. № 636/пр; Приказ Минстроя России от 26.07.2022 г. № 611/пр; Приказ Минстроя России от 22.04.2022 г. № 317/пр | CO6: =IF(Source!CV12 <> "", Source!CV12, "") -> Приказ Минстроя России от 18.05.2022 г. № 378/пр; Приказ Минстроя России от 26.08.2022 г. № 703/пр; Приказ Минстроя России от 26.10.2022 г. № 905/пр; Приказ Минстроя России от 27.12.2022 г. № 1133/пр; Приказ Минстроя России от 10.02.2023 г. № 84/пр; Приказ Минстроя России от 11.05.2023 г. № 335/пр; Приказ Минстроя России от 02.08.2023 г. № 551/пр; Приказ Минстроя России от 14.11.2023 г. № 817/пр; Приказ Минстроя России от 16.02.2024 г. № 102/пр; Приказ Минстроя России от 13.05.2024 г. № 323/пр; Приказ Минстроя России от 09.08.2024 г. № 524/пр; Приказ Минстроя России от 07.11.2024 г. № 747/пр; Приказ Минстроя России от 07.02.2025 г. № 69/пр; Приказ Минстроя России от 19.05.2025 г. № 299/пр; Приказ Минстроя России от 14.08.2025 г. № 490/пр; Приказ Минстроя России от 12.11.2025 г. № 696/пр; Приказ Минстроя России от 17.02.2026 г. № 91/пр; Приказ Минстроя России от 07.07.2022 г. № 557/пр; Приказ Минстроя России от 30.01.2024 г. № 55/пр; Приказ Минстроя России от 23.01.2025 г. № 30/пр; Приказ Минстроя России от 02.09.2021 г. № 636/пр; Приказ Минстроя России от 26.07.2022 г. № 611/пр; Приказ Минстроя России от 22.04.2022 г. № 317/пр
A8: Реквизиты письма Минстроя России об индексах изменения сметной стоимости строительства, включаемые в федеральный реестр сметных нормативов и размещаемые в федеральной государственной информационной системе ценообразования в строительстве, подготовленного в соответствии с пунктом 85 Методики расчета индексов изменения сметной стоимости строительства, утвержденной приказом Министерства строительства и жилищно-коммунального хозяйства Российской Федерации от 5 июня 2019 г. N 326/пр | F8: Письмо Минстроя России от 25.02.2026 № 9859-ИФ/09
A10: Реквизиты нормативного правового акта об утверждении оплаты труда, утверждаемый в соответствии с пунктом 22(1) Правилами мониторинга цен, утвержденными постановлением Правительства Российской Федерации от 23 декабря 2016 г. N 1452 | F10: Приказ ПАО 'РОССЕТИ' от 26.12.2024 № 612
A12: Обоснование принятых текущих цен на строительные ресурсы | F12: ФГИС ЦС, конъюнктурный анализ
A14: Наименование субъекта Российской Федерации | F14: =IF(Source!CZ12 <> "", Source!CZ12, "") -> 
A16: Наименование зоны субъекта Российской Федерации | F16: =IF(Source!DA12 <> "", Source!DA12, "") -> 
A20: (наименование стройки)
A22: 355838_Талантбеков_(ДОТ)
A23: (наименование объекта капитального строительства)
A25: =CONCATENATE( "ЛОКАЛЬНАЯ СМЕТА № ", Source!L20, " ",Source!CM20) -> ЛОКАЛЬНАЯ СМЕТА № 02-01-01
A27: =IF(Source!G20<>"Новая локальная смета", Source!G20, "") -> Строительство ВЛИ-0,4 кВ
A28: (наименование работ и затрат)
A31: Составлен | C31: Ресурсно-индексным | D31: методом
A33: Основание
C34: (проектная и (или) иная техническая документация)
A36: Составлен(а) в текущем уровне цен на апрель 2026 года
A38: Сметная стоимость | C38: =C41+C42+C43+C44 -> 99.06 | E38: тыс. руб.
G39: Средства на оплату труда рабочих | K39: =ROUND(SUM(AR52:AR535)/1000, 2) -> 26.07 | L39: тыс. руб.
B40: в том числе: | G40: Средства на оплату труда машинистов | K40: =ROUND(SUM(AT52:AT535)/1000, 2) -> 1.44 | L40: тыс. руб.
B41: строительных работ | C41: =ROUND((Source!F518)/1000, 2) -> 51.88 | E41: тыс. руб. | G41: Нормативные затраты труда рабочих | K41: =Source!F523 -> 33.571776 | L41: чел.-ч.
B42: монтажных работ | C42: =ROUND((Source!F519)/1000, 2) -> 47.18 | E42: тыс. руб. | G42: Нормативные затраты труда машинистов | K42: =Source!F524 -> 1.6946664 | L42: чел.-ч.
B43: оборудования | C43: =ROUND((Source!F510)/1000, 2) -> 0 | E43: тыс. руб.
B44: прочих затрат | C44: =ROUND((Source!F520)/1000, 2) -> 0 | E44: тыс. руб.
A46: № п/п | B46: Обоснование | C46: Наименование работ и затрат | D46: Единица измерения | E46: Количество | H46: Сметная стоимость, руб.
E50: на единицу измерения | F50: коэффициенты | G50: всего с учетом коэффициентов | H50: на единицу измерения в базисном уровне цен | I50: индекс | J50: на единицу измерения в текущем уровне цен | K50: коэффициенты | L50: всего в текущем уровне цен
A51: 1 | B51: 2 | C51: 3 | D51: 4 | E51: 5 | F51: 6 | G51: 7 | H51: 8 | I51: 9 | J51: 10 | K51: 11 | L51: 12
A53: Раздел: СМР
A54: 6 | B54: ГЭСНм 08-02-409-03 | C54: =Source!G160 -> Труба винипластовая по установленным конструкциям, по стенам и колоннам с креплением скобами, диаметр: до 63 мм (Применяется труба d75 мм) | D54: =Source!H160 -> 100 м | E54: =Source!K160 -> 0.04 | G54: =Source!I160 -> 0.04
B55: 421/пр_2020_прил.10_т.1_п.4_гр.5 | C55: ЭМ *1,20; ЗТ *1,20; ЗТм *1,20
B56: 1 | C56: ОТ (ЗТ) | D56: чел.-ч. | G56: =Source!U160 -> 1.50144 | L56: =SUM(L57:L57)-SUMIF(CE57:CE57, 1, L57:L57) -> 1191.56
B57: 1-100-38 | C57: Средний разряд работы 3,8 | D57: чел.-ч. | E57: 31.28 | F57: =ROUND((0.2+1),7) -> 1.2 | G57: =SmtRes!CX253 -> 1.50144 | J57: =SmtRes!CZ253 -> 793.61 | L57: =SmtRes!DI253 -> 1191.56
B58: 2 | C58: ЭМ | L58: =SUM(L59:L64)-SUMIF(CE59:CE64, 1, L59:L64) -> 41.69
C59: ОТм(ЗТм) | D59: чел.-ч. | G59: =Source!V160 -> 0.0336 | L59: =SUMIF(CE60:CE64, 1, L60:L64) -> 31.96 | CE59: 1
B60: 91.05.05-015 | C60: Краны на автомобильном ходу, грузоподъемность 16 т | D60: маш.-ч | E60: 0.35 | F60: =ROUND((0.2+1),7) -> 1.2 | G60: =SmtRes!CX255 -> 0.0168 | J60: =SmtRes!CZ255 -> 1626.29 | L60: =SmtRes!DG255 -> 27.32
B61: 4-100-060 | C61: ОТм(ЗТм) Средний разряд машинистов 6 | D61: чел.-ч. | E61: =SmtRes!DO255*SmtRes!AT255 -> 0.35 | F61: =ROUND((0.2+1),7) -> 1.2 | G61: =ROUND(E61*F61*G54, 7) -> 0.0168 | J61: =ROUND(SmtRes!AG255/SmtRes!DO255, 2) -> 1090.46 | L61: =SmtRes!DH255 -> 18.32 | CE61: 1
B62: 91.14.02-001 | C62: Автомобили бортовые, грузоподъемность до 5 т | D62: маш.-ч | E62: 0.35 | F62: =ROUND((0.2+1),7) -> 1.2 | G62: =SmtRes!CX256 -> 0.0168 | J62: =SmtRes!CZ256 -> 641.7 | L62: =SmtRes!DG256 -> 10.78
B63: 4-100-040 | C63: ОТм(ЗТм) Средний разряд машинистов 4 | D63: чел.-ч. | E63: =SmtRes!DO256*SmtRes!AT256 -> 0.35 | F63: =ROUND((0.2+1),7) -> 1.2 | G63: =ROUND(E63*F63*G54, 7) -> 0.0168 | J63: =ROUND(SmtRes!AG256/SmtRes!DO256, 2) -> 811.79 | L63: =SmtRes!DH256 -> 13.64 | CE63: 1
B64: 91.17.04-233 | C64: Аппараты сварочные для ручной дуговой сварки, сварочный ток до 350 А | D64: маш.-ч | E64: 2.16 | F64: =ROUND((0.2+1),7) -> 1.2 | G64: =SmtRes!CX257 -> 0.10368 | J64: =SmtRes!CZ257 -> 34.61 | L64: =SmtRes!DG257 -> 3.59
B65: 4 | C65: М | L65: =SUM(L66:L68)-SUMIF(CE66:CE68, 1, L66:L68) -> 10.35
B66: 01.7.03.04-0001 | C66: Электроэнергия | D66: КВТ-Ч | E66: 1.1488 | G66: =SmtRes!CX258 -> 0.045952 | J66: =SmtRes!CZ258 -> 7.32 | L66: =SmtRes!DF258 -> 0.34
B67: 01.7.11.07-0227 | C67: Электроды сварочные для сварки низколегированных и углеродистых сталей УОНИ 13/45, Э42А, диаметр 4-5 мм | D67: кг | E67: 0.96 | G67: =SmtRes!CX259 -> 0.0384 | H67: =SmtRes!CZ259 -> 155.63 | I67: =SmtRes!AI259 -> 0.78 | J67: =ROUND(H67*I67, 2) -> 121.39 | L67: =SmtRes!DF259 -> 4.66
B68: 14.1.02.01-0002 | C68: Клей, марка БМК-5к | D68: кг | E68: 0.55 | G68: =SmtRes!CX260 -> 0.022 | H68: =SmtRes!CZ260 -> 160.07 | I68: =SmtRes!AI260 -> 1.52 | J68: =ROUND(H68*I68, 2) -> 243.31 | L68: =SmtRes!DF260 -> 5.35
C69: Итого прямые затраты | L69: =L56+L58+L59+L65 -> 1275.56
A70: 6.1 | B70: =Source!F163 -> 421/пр_2020_п.75_пп.а | C70: =Source!G163 -> Сметная стоимость вспомогательных ненормируемых материальных ресурсов, не учтенная в сметной норме, 2% | D70: =Source!H163 -> % | E70: =SmtRes!AT261 -> 2 | G70: =Source!I163 -> 2 | L70: =Source!P163 -> 19.86 | AD70: =ROUND((Source!AT163/100)*((ROUND(0*Source!I163, 2)+ROUND(0*Source!I163, 2))), 2) -> 0 | AE70: =ROUND((Source!AU163/100)*((ROUND(0*Source!I163, 2)+ROUND(0*Source!I163, 2))), 2) -> 0 | AN70: =L70 -> 19.86 | AW70: =L70 -> 19.86 | AZ70: =Source!X163 -> 0 | BA70: =Source!Y163 -> 0 | CD70: 2
C71: ФОТ | L71: =SUM(AR54:AR74)+SUM(AS54:AS74)+SUM(AT54:AT74)+SUM(AU54:AU74)+SUM(AV54:AV74) -> 1223.52
B72: Пр/812-049.3-1 | C72: НР Электротехнические установки: на других объектах | D72: % | E72: =Source!BZ160 -> 97 | G72: =Source!AT160 -> 97 | L72: =SUM(AZ54:AZ74) -> 1186.81
B73: Пр/774-049.3 | C73: СП Электротехнические установки: на других объектах | D73: % | E73: =Source!CA160 -> 51 | G73: =Source!AU160 -> 51 | L73: =SUM(BA54:BA74) -> 624
C74: Всего по позиции | I74: =IF(E54<>0,K74/E54, 0) -> 77655.75 | K74: =L56+L58+L65+L72+L73+L59+SUM(L70:L70) -> 3106.23 | AD74: =ROUND((Source!AT160/100)*((ROUND(SUMIF(SmtRes!AQ253:'SmtRes'!AQ261,"=1",SmtRes!AD253:'SmtRes'!AD261)*Source!I160, 2)+ROUND(SUMIF(SmtRes!AQ253:'SmtRes'!AQ261,"=1",SmtRes!AC253:'SmtRes'!AC261)*Source!I160, 2))), 2) -> 104.6 | AE74: =ROUND((Source!AU160/100)*((ROUND(SUMIF(SmtRes!AQ253:'SmtRes'!AQ261,"=1",SmtRes!AD253:'SmtRes'!AD261)*Source!I160, 2)+ROUND(SUMIF(SmtRes!AQ253:'SmtRes'!AQ261,"=1",SmtRes!AC253:'SmtRes'!AC261)*Source!I160, 2))), 2) -> 54.99 | AN74: =L56+L58+L65+L72+L73+L59 -> 3086.37 | AO74: =L58 -> 41.69 | AQ74: = | AR74: =L56 -> 1191.56 | AT74: =L59 -> 31.96 | AV74: = | AW74: =L65 -> 10.35 | AZ74: =Source!X160 -> 1186.81 | BA74: =Source!Y160 -> 624 | CD74: 2
A75: 7 | B75: ГЭСНм 08-02-412-06 | C75: =Source!G165 -> Затягивание провода в проложенные трубы и металлические рукава первого одножильного или многожильного в общей оплетке, суммарное сечение: до 120 мм2 | D75: =Source!H165 -> 100 м | E75: =Source!K165 -> 0.04 | G75: =Source!I165 -> 0.04
B76: 421/пр_2020_прил.10_т.1_п.4_гр.5 | C76: ЭМ *1,20; ЗТ *1,20; ЗТм *1,20
B77: 1 | C77: ОТ (ЗТ) | D77: чел.-ч. | G77: =Source!U165 -> 0.6912 | L77: =SUM(L78:L78)-SUMIF(CE78:CE78, 1, L78:L78) -> 548.54
B78: 1-100-38 | C78: Средний разряд работы 3,8 | D78: чел.-ч. | E78: 14.4 | F78: =ROUND((0.2+1),7) -> 1.2 | G78: =SmtRes!CX271 -> 0.6912 | J78: =SmtRes!CZ271 -> 793.61 | L78: =SmtRes!DI271 -> 548.54
B79: 2 | C79: ЭМ | L79: =SUM(L80:L84)-SUMIF(CE80:CE84, 1, L80:L84) -> 21.77
C80: ОТм(ЗТм) | D80: чел.-ч. | G80: =Source!V165 -> 0.0192 | L80: =SUMIF(CE81:CE84, 1, L81:L84) -> 18.26 | CE80: 1
B81: 91.05.05-015 | C81: Краны на автомобильном ходу, грузоподъемность 16 т | D81: маш.-ч | E81: 0.2 | F81: =ROUND((0.2+1),7) -> 1.2 | G81: =SmtRes!CX273 -> 0.0096 | J81: =SmtRes!CZ273 -> 1626.29 | L81: =SmtRes!DG273 -> 15.61
B82: 4-100-060 | C82: ОТм(ЗТм) Средний разряд машинистов 6 | D82: чел.-ч. | E82: =SmtRes!DO273*SmtRes!AT273 -> 0.2 | F82: =ROUND((0.2+1),7) -> 1.2 | G82: =ROUND(E82*F82*G75, 7) -> 0.0096 | J82: =ROUND(SmtRes!AG273/SmtRes!DO273, 2) -> 1090.46 | L82: =SmtRes!DH273 -> 10.47 | CE82: 1
B83: 91.14.02-001 | C83: Автомобили бортовые, грузоподъемность до 5 т | D83: маш.-ч | E83: 0.2 | F83: =ROUND((0.2+1),7) -> 1.2 | G83: =SmtRes!CX274 -> 0.0096 | J83: =SmtRes!CZ274 -> 641.7 | L83: =SmtRes!DG274 -> 6.16
B84: 4-100-040 | C84: ОТм(ЗТм) Средний разряд машинистов 4 | D84: чел.-ч. | E84: =SmtRes!DO274*SmtRes!AT274 -> 0.2 | F84: =ROUND((0.2+1),7) -> 1.2 | G84: =ROUND(E84*F84*G75, 7) -> 0.0096 | J84: =ROUND(SmtRes!AG274/SmtRes!DO274, 2) -> 811.79 | L84: =SmtRes!DH274 -> 7.79 | CE84: 1
B85: 4 | C85: М | L85: =SUM(L86:L90)-SUMIF(CE86:CE90, 1, L86:L90) -> 42.8
B86: 01.7.06.05-0041 | C86: Ленты изоляционные хлопчатобумажные прорезиненные для электромонтажных и ремонтных работ, цвет черный, ширина 20 мм, толщина 0,35 мм | D86: м | E86: 33.33 | G86: =SmtRes!CX275 -> 1.3332 | H86: =SmtRes!CZ275 -> 5.87 | I86: =SmtRes!AI275 -> 0.88 | J86: =ROUND(H86*I86, 2) -> 5.17 | L86: =SmtRes!DF275 -> 6.89
B87: 01.7.07.20-0002 | C87: Тальк молотый, сорт I | D87: т | E87: 0.00137 | G87: =SmtRes!CX276 -> 5.48e-05 | H87: =SmtRes!CZ276 -> 43821.53 | I87: =SmtRes!AI276 -> 1.32 | J87: =ROUND(H87*I87, 2) -> 57844.42 | L87: =SmtRes!DF276 -> 3.17
B88: 14.4.02.04-0142 | C88: Краска масляная МА-0115, мумия, сурик железный | D88: кг | E88: 0.02 | G88: =SmtRes!CX277 -> 0.0008 | H88: =SmtRes!CZ277 -> 79.88 | I88: =SmtRes!AI277 -> 1.44 | J88: =ROUND(H88*I88, 2) -> 115.03 | L88: =SmtRes!DF277 -> 0.09
B89: 20.2.01.05-0011 | C89: Гильзы кабельные медные 120 мм | D89: 100 ШТ | E89: 0.05 | G89: =SmtRes!CX278 -> 0.002 | H89: =SmtRes!CZ278 -> 11574.95 | I89: =SmtRes!AI278 -> 1.23 | J89: =ROUND(H89*I89, 2) -> 14237.19 | L89: =SmtRes!DF278 -> 28.47
B90: 20.2.02.01-0016 | C90: Втулки полипропиленовые, диаметр 69 мм | D90: 1000 ШТ | E90: 0.0122 | G90: =SmtRes!CX279 -> 0.000488 | H90: =SmtRes!CZ279 -> 6904.76 | I90: =SmtRes!AI279 -> 1.24 | J90: =ROUND(H90*I90, 2) -> 8561.9 | L90: =SmtRes!DF279 -> 4.18
C91: Итого прямые затраты | L91: =L77+L79+L80+L85 -> 631.37
A92: 7.1 | B92: =Source!F168 -> 421/пр_2020_п.75_пп.а | C92: =Source!G168 -> Сметная стоимость вспомогательных ненормируемых материальных ресурсов, не учтенная в сметной норме, 2% | D92: =Source!H168 -> % | E92: =SmtRes!AT280 -> 2 | G92: =Source!I168 -> 2 | L92: =Source!P168 -> 9.14 | AD92: =ROUND((Source!AT168/100)*((ROUND(0*Source!I168, 2)+ROUND(0*Source!I168, 2))), 2) -> 0 | AE92: =ROUND((Source!AU168/100)*((ROUND(0*Source!I168, 2)+ROUND(0*Source!I168, 2))), 2) -> 0 | AN92: =L92 -> 9.14 | AW92: =L92 -> 9.14 | AZ92: =Source!X168 -> 0 | BA92: =Source!Y168 -> 0 | CD92: 2
C93: ФОТ | L93: =SUM(AR75:AR96)+SUM(AS75:AS96)+SUM(AT75:AT96)+SUM(AU75:AU96)+SUM(AV75:AV96) -> 566.8
B94: Пр/812-049.3-1 | C94: НР Электротехнические установки: на других объектах | D94: % | E94: =Source!BZ165 -> 97 | G94: =Source!AT165 -> 97 | L94: =SUM(AZ75:AZ96) -> 549.8
B95: Пр/774-049.3 | C95: СП Электротехнические установки: на других объектах | D95: % | E95: =Source!CA165 -> 51 | G95: =Source!AU165 -> 51 | L95: =SUM(BA75:BA96) -> 289.07
C96: Всего по позиции | I96: =IF(E75<>0,K96/E75, 0) -> 36984.5 | K96: =L77+L79+L85+L94+L95+L80+SUM(L92:L92) -> 1479.38 | AD96: =ROUND((Source!AT165/100)*((ROUND(SUMIF(SmtRes!AQ271:'SmtRes'!AQ280,"=1",SmtRes!AD271:'SmtRes'!AD280)*Source!I165, 2)+ROUND(SUMIF(SmtRes!AQ271:'SmtRes'!AQ280,"=1",SmtRes!AC271:'SmtRes'!AC280)*Source!I165, 2))), 2) -> 104.6 | AE96: =ROUND((Source!AU165/100)*((ROUND(SUMIF(SmtRes!AQ271:'SmtRes'!AQ280,"=1",SmtRes!AD271:'SmtRes'!AD280)*Source!I165, 2)+ROUND(SUMIF(SmtRes!AQ271:'SmtRes'!AQ280,"=1",SmtRes!AC271:'SmtRes'!AC280)*Source!I165, 2))), 2) -> 54.99 | AN96: =L77+L79+L85+L94+L95+L80 -> 1470.24 | AO96: =L79 -> 21.77 | AQ96: = | AR96: =L77 -> 548.54 | AT96: =L80 -> 18.26 | AV96: = | AW96: =L85 -> 42.8 | AZ96: =Source!X165 -> 549.8 | BA96: =Source!Y165 -> 289.07 | CD96: 2
A97: 8 | B97: ГЭСНм 08-02-405-04 | C97: =Source!G170 -> Провод по установленным стальным конструкциям и панелям, сечение: до 120 мм2 | D97: =Source!H170 -> 100 м | E97: =Source!K170 -> 0.03 | G97: =Source!I170 -> 0.03
B98: 421/пр_2020_прил.10_т.1_п.4_гр.5 | C98: ЭМ *1,20; ЗТ *1,20; ЗТм *1,20
B99: 1 | C99: ОТ (ЗТ) | D99: чел.-ч. | G99: =Source!U170 -> 1.48032 | L99: =SUM(L100:L100)-SUMIF(CE100:CE100, 1, L100:L100) -> 1174.8
B100: 1-100-38 | C100: Средний разряд работы 3,8 | D100: чел.-ч. | E100: 41.12 | F100: =ROUND((0.2+1),7) -> 1.2 | G100: =SmtRes!CX291 -> 1.48032 | J100: =SmtRes!CZ291 -> 793.61 | L100: =SmtRes!DI291 -> 1174.8
B101: 2 | C101: ЭМ | L101: =SUM(L102:L107)-SUMIF(CE102:CE107, 1, L102:L107) -> 69.03
C102: ОТм(ЗТм) | D102: чел.-ч. | G102: =Source!V170 -> 0.05544 | L102: =SUMIF(CE103:CE107, 1, L103:L107) -> 52.73 | CE102: 1
B103: 91.05.05-015 | C103: Краны на автомобильном ходу, грузоподъемность 16 т | D103: маш.-ч | E103: 0.77 | F103: =ROUND((0.2+1),7) -> 1.2 | G103: =SmtRes!CX293 -> 0.02772 | J103: =SmtRes!CZ293 -> 1626.29 | L103: =SmtRes!DG293 -> 45.08
B104: 4-100-060 | C104: ОТм(ЗТм) Средний разряд машинистов 6 | D104: чел.-ч. | E104: =SmtRes!DO293*SmtRes!AT293 -> 0.77 | F104: =ROUND((0.2+1),7) -> 1.2 | G104: =ROUND(E104*F104*G97, 7) -> 0.02772 | J104: =ROUND(SmtRes!AG293/SmtRes!DO293, 2) -> 1090.46 | L104: =SmtRes!DH293 -> 30.23 | CE104: 1
B105: 91.14.02-001 | C105: Автомобили бортовые, грузоподъемность до 5 т | D105: маш.-ч | E105: 0.77 | F105: =ROUND((0.2+1),7) -> 1.2 | G105: =SmtRes!CX294 -> 0.02772 | J105: =SmtRes!CZ294 -> 641.7 | L105: =SmtRes!DG294 -> 17.79
B106: 4-100-040 | C106: ОТм(ЗТм) Средний разряд машинистов 4 | D106: чел.-ч. | E106: =SmtRes!DO294*SmtRes!AT294 -> 0.77 | F106: =ROUND((0.2+1),7) -> 1.2 | G106: =ROUND(E106*F106*G97, 7) -> 0.02772 | J106: =ROUND(SmtRes!AG294/SmtRes!DO294, 2) -> 811.79 | L106: =SmtRes!DH294 -> 22.5 | CE106: 1
B107: 91.17.04-233 | C107: Аппараты сварочные для ручной дуговой сварки, сварочный ток до 350 А | D107: маш.-ч | E107: 4.94 | F107: =ROUND((0.2+1),7) -> 1.2 | G107: =SmtRes!CX295 -> 0.17784 | J107: =SmtRes!CZ295 -> 34.61 | L107: =SmtRes!DG295 -> 6.16
B108: 4 | C108: М | L108: =SUM(L109:L113)-SUMIF(CE109:CE113, 1, L109:L113) -> 27.88
B109: 01.7.02.07-0011 | C109: Прессшпан листовой, марка А | D109: кг | E109: 0.99 | G109: =SmtRes!CX296 -> 0.0297 | H109: =SmtRes!CZ296 -> 206.43 | I109: =SmtRes!AI296 -> 1.37 | J109: =ROUND(H109*I109, 2) -> 282.81 | L109: =SmtRes!DF296 -> 8.4
B110: 01.7.03.04-0001 | C110: Электроэнергия | D110: КВТ-Ч | E110: 2.5428 | G110: =SmtRes!CX297 -> 0.076284 | J110: =SmtRes!CZ297 -> 7.32 | L110: =SmtRes!DF297 -> 0.56
B111: 01.7.11.07-0227 | C111: Электроды сварочные для сварки низколегированных и углеродистых сталей УОНИ 13/45, Э42А, диаметр 4-5 мм | D111: кг | E111: 3 | G111: =SmtRes!CX298 -> 0.09 | H111: =SmtRes!CZ298 -> 155.63 | I111: =SmtRes!AI298 -> 0.78 | J111: =ROUND(H111*I111, 2) -> 121.39 | L111: =SmtRes!DF298 -> 10.93
B112: 01.7.15.04-0011 | C112: Винты стальные с полукруглой головкой, длина 50 мм | D112: т | E112: 0.00155 | G112: =SmtRes!CX299 -> 4.65e-05 | H112: =SmtRes!CZ299 -> 127406 | I112: =SmtRes!AI299 -> 1.29 | J112: =ROUND(H112*I112, 2) -> 164353.74 | L112: =SmtRes!DF299 -> 7.64
B113: 14.4.02.04-0142 | C113: Краска масляная МА-0115, мумия, сурик железный | D113: кг | E113: 0.1 | G113: =SmtRes!CX300 -> 0.003 | H113: =SmtRes!CZ300 -> 79.88 | I113: =SmtRes!AI300 -> 1.44 | J113: =ROUND(H113*I113, 2) -> 115.03 | L113: =SmtRes!DF300 -> 0.35
C114: Итого прямые затраты | L114: =L99+L101+L102+L108 -> 1324.44
A115: 8.1 | B115: =Source!F173 -> 421/пр_2020_п.75_пп.а | C115: =Source!G173 -> Сметная стоимость вспомогательных ненормируемых материальных ресурсов, не учтенная в сметной норме, 2% | D115: =Source!H173 -> % | E115: =SmtRes!AT301 -> 2 | G115: =Source!I173 -> 2 | L115: =Source!P173 -> 19.58 | AD115: =ROUND((Source!AT173/100)*((ROUND(0*Source!I173, 2)+ROUND(0*Source!I173, 2))), 2) -> 0 | AE115: =ROUND((Source!AU173/100)*((ROUND(0*Source!I173, 2)+ROUND(0*Source!I173, 2))), 2) -> 0 | AN115: =L115 -> 19.58 | AW115: =L115 -> 19.58 | AZ115: =Source!X173 -> 0 | BA115: =Source!Y173 -> 0 | CD115: 2
C116: ФОТ | L116: =SUM(AR97:AR119)+SUM(AS97:AS119)+SUM(AT97:AT119)+SUM(AU97:AU119)+SUM(AV97:AV119) -> 1227.53
B117: Пр/812-049.3-1 | C117: НР Электротехнические установки: на других объектах | D117: % | E117: =Source!BZ170 -> 97 | G117: =Source!AT170 -> 97 | L117: =SUM(AZ97:AZ119) -> 1190.7
B118: Пр/774-049.3 | C118: СП Электротехнические установки: на других объектах | D118: % | E118: =Source!CA170 -> 51 | G118: =Source!AU170 -> 51 | L118: =SUM(BA97:BA119) -> 626.04
C119: Всего по позиции | I119: =IF(E97<>0,K119/E97, 0) -> 105358.6667 | K119: =L99+L101+L108+L117+L118+L102+SUM(L115:L115) -> 3160.76 | AD119: =ROUND((Source!AT170/100)*((ROUND(SUMIF(SmtRes!AQ291:'SmtRes'!AQ301,"=1",SmtRes!AD291:'SmtRes'!AD301)*Source!I170, 2)+ROUND(SUMIF(SmtRes!AQ291:'SmtRes'!AQ301,"=1",SmtRes!AC291:'SmtRes'!AC301)*Source!I170, 2))), 2) -> 78.45 | AE119: =ROUND((Source!AU170/100)*((ROUND(SUMIF(SmtRes!AQ291:'SmtRes'!AQ301,"=1",SmtRes!AD291:'SmtRes'!AD301)*Source!I170, 2)+ROUND(SUMIF(SmtRes!AQ291:'SmtRes'!AQ301,"=1",SmtRes!AC291:'SmtRes'!AC301)*Source!I170, 2))), 2) -> 41.25 | AN119: =L99+L101+L108+L117+L118+L102 -> 3141.18 | AO119: =L101 -> 69.03 | AQ119: = | AR119: =L99 -> 1174.8 | AT119: =L102 -> 52.73 | AV119: = | AW119: =L108 -> 27.88 | AZ119: =Source!X170 -> 1190.7 | BA119: =Source!Y170 -> 626.04 | CD119: 2
A120: 9 | B120: ГЭСН 33-04-017-01 | C120: =Source!G175 -> Подвеска провода СИП-2 напряжением от 0,4 кВ до 1 кВ на опорах, при 32 опорах на км линии: с использованием автогидроподъемника | D120: =Source!H175 -> 1000 м | E120: =Source!K175 -> 0.007 | G120: =Source!I175 -> 0.007
B121: 421/пр_2020_прил.10_т.1_п.4_гр.5 | C121: ЭМ *1,20; ЗТ *1,20; ЗТм *1,20
B122: 1 | C122: ОТ (ЗТ) | D122: чел.-ч. | G122: =Source!U175 -> 0.799008 | L122: =SUM(L123:L126)-SUMIF(CE123:CE126, 1, L123:L126) -> 635.13
B123: 2-100-02 | C123: Рабочий 2 разряда | D123: чел.-ч | E123: 0.99 | F123: =ROUND((0.2+1),7) -> 1.2 | G123: =SmtRes!CX313 -> 0.008316 | J123: =SmtRes!CZ313 -> 660.33 | L123: =SmtRes!DI313 -> 5.49
B124: 2-100-03 | C124: Рабочий 3 разряда | D124: чел.-ч | E124: 47.29 | F124: =ROUND((0.2+1),7) -> 1.2 | G124: =SmtRes!CX314 -> 0.397236 | J124: =L124/G124 -> 720.9819855 | L124: =SmtRes!DI314+0.03 -> 286.4
B125: 2-100-04 | C125: Рабочий 4 разряда | D125: чел.-ч | E125: 23.42 | F125: =ROUND((0.2+1),7) -> 1.2 | G125: =SmtRes!CX315 -> 0.196728 | J125: =SmtRes!CZ315 -> 811.79 | L125: =SmtRes!DI315 -> 159.7
B126: 2-100-05 | C126: Рабочий 5 разряда | D126: чел.-ч | E126: 23.42 | F126: =ROUND((0.2+1),7) -> 1.2 | G126: =SmtRes!CX316 -> 0.196728 | J126: =SmtRes!CZ316 -> 932.95 | L126: =SmtRes!DI316 -> 183.54
B127: 2 | C127: ЭМ | L127: =SUM(L128:L137)-SUMIF(CE128:CE137, 1, L128:L137) -> 111.56
C128: ОТм(ЗТм) | D128: чел.-ч. | G128: =Source!V175 -> 0.209076 | L128: =SUMIF(CE129:CE137, 1, L129:L137) -> 171.47 | CE128: 1
B129: 91.05.05-015 | C129: Краны на автомобильном ходу, грузоподъемность 16 т | D129: маш.-ч | E129: 0.75 | F129: =ROUND((0.2+1),7) -> 1.2 | G129: =SmtRes!CX318 -> 0.0063 | J129: =SmtRes!CZ318 -> 1626.29 | L129: =SmtRes!DG318 -> 10.25
B130: 4-100-060 | C130: ОТм(ЗТм) Средний разряд машинистов 6 | D130: чел.-ч. | E130: =SmtRes!DO318*SmtRes!AT318 -> 0.75 | F130: 1.2 | G130: =ROUND(E130*F130*G120, 7) -> 0.0063 | J130: =ROUND(SmtRes!AG318/SmtRes!DO318, 2) -> 1090.46 | L130: =SmtRes!DH318 -> 6.87 | CE130: 1
B131: 91.06.03-055 | C131: Лебедки электрические тяговым усилием 19,62 кН (2 т) | D131: маш.-ч | E131: 0.81 | F131: 1.2 | G131: =SmtRes!CX319 -> 0.006804 | H131: =SmtRes!CZ319 -> 11.45 | I131: =SmtRes!AJ319 -> 1.48 | J131: =ROUND(H131*I131, 2) -> 16.95 | L131: =SmtRes!DG319 -> 0.12
B132: 91.06.06-011 | C132: Автогидроподъемники, высота подъема 12 м | D132: маш.-ч | E132: 22.74 | F132: 1.2 | G132: =SmtRes!CX320 -> 0.191016 | H132: =SmtRes!CZ320 -> 346.73 | I132: =SmtRes!AJ320 -> 1.46 | J132: =ROUND(H132*I132, 2) -> 506.23 | L132: =SmtRes!DG320 -> 96.7
B133: 4-100-040 | C133: ОТм(ЗТм) Средний разряд машинистов 4 | D133: чел.-ч. | E133: =SmtRes!DO320*SmtRes!AT320 -> 22.74 | F133: 1.2 | G133: =ROUND(E133*F133*G120, 7) -> 0.191016 | J133: =ROUND(SmtRes!AG320/SmtRes!DO320, 2) -> 811.79 | L133: =SmtRes!DH320 -> 155.06 | CE133: 1
B134: 91.14.02-001 | C134: Автомобили бортовые, грузоподъемность до 5 т | D134: маш.-ч | E134: 0.59 | F134: 1.2 | G134: =SmtRes!CX321 -> 0.004956 | J134: =SmtRes!CZ321 -> 641.7 | L134: =SmtRes!DG321 -> 3.18
B135: 4-100-040 | C135: ОТм(ЗТм) Средний разряд машинистов 4 | D135: чел.-ч. | E135: =SmtRes!DO321*SmtRes!AT321 -> 0.59 | F135: 1.2 | G135: =ROUND(E135*F135*G120, 7) -> 0.004956 | J135: =ROUND(SmtRes!AG321/SmtRes!DO321, 2) -> 811.79 | L135: =SmtRes!DH321 -> 4.02 | CE135: 1
B136: 91.17.04-544 | C136: Генераторы бензиновые портативные, мощность до 6 кВт | D136: маш.-ч | E136: 0.81 | F136: 1.2 | G136: =SmtRes!CX322 -> 0.006804 | J136: =SmtRes!CZ322 -> 192.86 | L136: =SmtRes!DG322 -> 1.31
B137: 4-100-040 | C137: ОТм(ЗТм) Средний разряд машинистов 4 | D137: чел.-ч. | E137: =SmtRes!DO322*SmtRes!AT322 -> 0.81 | F137: 1.2 | G137: =ROUND(E137*F137*G120, 7) -> 0.006804 | J137: =ROUND(SmtRes!AG322/SmtRes!DO322, 2) -> 811.79 | L137: =SmtRes!DH322 -> 5.52 | CE137: 1
C138: Итого прямые затраты | L138: =L122+L127+L128 -> 918.16
C139: ФОТ | L139: =SUM(AR120:AR142)+SUM(AS120:AS142)+SUM(AT120:AT142)+SUM(AU120:AU142)+SUM(AV120:AV142) -> 806.6
B140: Пр/812-027.0-1 | C140: НР Линии электропередачи | D140: % | E140: =Source!BZ175 -> 103 | G140: =Source!AT175 -> 103 | L140: =SUM(AZ120:AZ142) -> 830.77
B141: Пр/774-027.0 | C141: СП Линии электропередачи | D141: % | E141: =Source!CA175 -> 60 | G141: =Source!AU175 -> 60 | L141: =SUM(BA120:BA142) -> 483.94
C142: Всего по позиции | I142: =IF(E120<>0,K142/E120, 0) -> 318981.4286 | K142: =L122+L127+L140+L141+L128 -> 2232.87 | AD142: =ROUND((Source!AT175/100)*((ROUND(SUMIF(SmtRes!AQ313:'SmtRes'!AQ325,"=1",SmtRes!AD313:'SmtRes'!AD325)*Source!I175, 2)+ROUND(SUMIF(SmtRes!AQ313:'SmtRes'!AQ325,"=1",SmtRes!AC313:'SmtRes'!AC325)*Source!I175, 2))), 2) -> 47.96 | AE142: =ROUND((Source!AU175/100)*((ROUND(SUMIF(SmtRes!AQ313:'SmtRes'!AQ325,"=1",SmtRes!AD313:'SmtRes'!AD325)*Source!I175, 2)+ROUND(SUMIF(SmtRes!AQ313:'SmtRes'!AQ325,"=1",SmtRes!AC313:'SmtRes'!AC325)*Source!I175, 2))), 2) -> 27.94 | AN142: =L122+L127+L140+L141+L128 -> 2232.87 | AO142: =L127 -> 111.56 | AQ142: = | AR142: =L122 -> 635.13 | AT142: =L128 -> 171.47 | AV142: = | AW142: =0 -> 0 | AZ142: =Source!X175 -> 830.77 | BA142: =Source!Y175 -> 483.94 | CD142: 1
A143: 10 | B143: ГЭСН 33-04-017-03 | C143: =Source!G184 -> При изменении количества опор на 1 км ВЛИ добавлять или исключать: к норме 33-04-017-01 | D143: =Source!H184 -> ШТ | E143: =Source!K184 -> 2 | G143: =Source!I184 -> 2
B144: 421/пр_2020_прил.10_т.1_п.4_гр.5 | C144: ЭМ *1,20; ЗТ *1,20; ЗТм *1,20
B145: 1 | C145: ОТ (ЗТ) | D145: чел.-ч. | G145: =Source!U184 -> 4.344 | L145: =SUM(L146:L148)-SUMIF(CE146:CE148, 1, L146:L148) -> 3458.79
B146: 2-100-03 | C146: Рабочий 3 разряда | D146: чел.-ч | E146: 0.91 | F146: =ROUND((0.2+1),7) -> 1.2 | G146: =SmtRes!CX339 -> 2.184 | J146: =SmtRes!CZ339 -> 720.91 | L146: =SmtRes!DI339 -> 1574.47
B147: 2-100-04 | C147: Рабочий 4 разряда | D147: чел.-ч | E147: 0.45 | F147: =ROUND((0.2+1),7) -> 1.2 | G147: =SmtRes!CX340 -> 1.08 | J147: =SmtRes!CZ340 -> 811.79 | L147: =SmtRes!DI340 -> 876.73
B148: 2-100-05 | C148: Рабочий 5 разряда | D148: чел.-ч | E148: 0.45 | F148: =ROUND((0.2+1),7) -> 1.2 | G148: =SmtRes!CX341 -> 1.08 | J148: =SmtRes!CZ341 -> 932.95 | L148: =SmtRes!DI341 -> 1007.59
B149: 2 | C149: ЭМ | L149: =SUM(L150:L152)-SUMIF(CE150:CE152, 1, L150:L152) -> 534.58
C150: ОТм(ЗТм) | D150: чел.-ч. | G150: =Source!V184 -> 1.056 | L150: =SUMIF(CE151:CE152, 1, L151:L152) -> 857.25 | CE150: 1
B151: 91.06.06-011 | C151: Автогидроподъемники, высота подъема 12 м | D151: маш.-ч | E151: 0.44 | F151: =ROUND((0.2+1),7) -> 1.2 | G151: =SmtRes!CX343 -> 1.056 | H151: =SmtRes!CZ343 -> 346.73 | I151: =SmtRes!AJ343 -> 1.46 | J151: =ROUND(H151*I151, 2) -> 506.23 | L151: =SmtRes!DG343 -> 534.58
B152: 4-100-040 | C152: ОТм(ЗТм) Средний разряд машинистов 4 | D152: чел.-ч. | E152: =SmtRes!DO343*SmtRes!AT343 -> 0.44 | F152: =ROUND((0.2+1),7) -> 1.2 | G152: =ROUND(E152*F152*G143, 7) -> 1.056 | J152: =ROUND(SmtRes!AG343/SmtRes!DO343, 2) -> 811.79 | L152: =SmtRes!DH343 -> 857.25 | CE152: 1
C153: Итого прямые затраты | L153: =L145+L149+L150 -> 4850.62
C154: ФОТ | L154: =SUM(AR143:AR157)+SUM(AS143:AS157)+SUM(AT143:AT157)+SUM(AU143:AU157)+SUM(AV143:AV157) -> 4316.04
B155: Пр/812-027.0-1 | C155: НР Линии электропередачи | D155: % | E155: =Source!BZ184 -> 103 | G155: =Source!AT184 -> 103 | L155: =SUM(AZ143:AZ157) -> 4445.52
B156: Пр/774-027.0 | C156: СП Линии электропередачи | D156: % | E156: =Source!CA184 -> 60 | G156: =Source!AU184 -> 60 | L156: =SUM(BA143:BA157) -> 2589.62
C157: Всего по позиции | I157: =IF(E143<>0,K157/E143, 0) -> 5942.88 | K157: =L145+L149+L155+L156+L150 -> 11885.76 | AD157: =ROUND((Source!AT184/100)*((ROUND(SUMIF(SmtRes!AQ339:'SmtRes'!AQ345,"=1",SmtRes!AD339:'SmtRes'!AD345)*Source!I184, 2)+ROUND(SUMIF(SmtRes!AQ339:'SmtRes'!AQ345,"=1",SmtRes!AC339:'SmtRes'!AC345)*Source!I184, 2))), 2) -> 6751.53 | AE157: =ROUND((Source!AU184/100)*((ROUND(SUMIF(SmtRes!AQ339:'SmtRes'!AQ345,"=1",SmtRes!AD339:'SmtRes'!AD345)*Source!I184, 2)+ROUND(SUMIF(SmtRes!AQ339:'SmtRes'!AQ345,"=1",SmtRes!AC339:'SmtRes'!AC345)*Source!I184, 2))), 2) -> 3932.93 | AN157: =L145+L149+L155+L156+L150 -> 11885.76 | AO157: =L149 -> 534.58 | AQ157: = | AR157: =L145 -> 3458.79 | AT157: =L150 -> 857.25 | AV157: = | AW157: =0 -> 0 | AZ157: =Source!X184 -> 4445.52 | BA157: =Source!Y184 -> 2589.62 | CD157: 1
A158: 11 | B158: ГЭСНм 08-01-082-01 | C158: =Source!G191 -> Зажим наборный без кожуха | D158: =Source!H191 -> 100 ШТ | E158: =Source!K191 -> 0.08 | G158: =Source!I191 -> 0.08
B159: 421/пр_2020_прил.10_т.1_п.4_гр.5 | C159: ЭМ *1,20; ЗТ *1,20; ЗТм *1,20
B160: 1 | C160: ОТ (ЗТ) | D160: чел.-ч. | G160: =Source!U191 -> 3.9552 | L160: =SUM(L161:L161)-SUMIF(CE161:CE161, 1, L161:L161) -> 3210.79
B161: 1-100-40 | C161: Средний разряд работы 4,0 | D161: чел.-ч. | E161: 41.2 | F161: =ROUND((0.2+1),7) -> 1.2 | G161: =SmtRes!CX353 -> 3.9552 | J161: =SmtRes!CZ353 -> 811.79 | L161: =SmtRes!DI353 -> 3210.79
B162: 2 | C162: ЭМ | L162: =SUM(L163:L168)-SUMIF(CE163:CE168, 1, L163:L168) -> 22.3
C163: ОТм(ЗТм) | D163: чел.-ч. | G163: =Source!V191 -> 0.0192 | L163: =SUMIF(CE164:CE168, 1, L164:L168) -> 18.26 | CE163: 1
B164: 91.05.05-015 | C164: Краны на автомобильном ходу, грузоподъемность 16 т | D164: маш.-ч | E164: 0.1 | F164: =ROUND((0.2+1),7) -> 1.2 | G164: =SmtRes!CX355 -> 0.0096 | J164: =SmtRes!CZ355 -> 1626.29 | L164: =SmtRes!DG355 -> 15.61
B165: 4-100-060 | C165: ОТм(ЗТм) Средний разряд машинистов 6 | D165: чел.-ч. | E165: =SmtRes!DO355*SmtRes!AT355 -> 0.1 | F165: =ROUND((0.2+1),7) -> 1.2 | G165: =ROUND(E165*F165*G158, 7) -> 0.0096 | J165: =ROUND(SmtRes!AG355/SmtRes!DO355, 2) -> 1090.46 | L165: =SmtRes!DH355 -> 10.47 | CE165: 1
B166: 91.14.02-001 | C166: Автомобили бортовые, грузоподъемность до 5 т | D166: маш.-ч | E166: 0.1 | F166: =ROUND((0.2+1),7) -> 1.2 | G166: =SmtRes!CX356 -> 0.0096 | J166: =SmtRes!CZ356 -> 641.7 | L166: =SmtRes!DG356 -> 6.16
B167: 4-100-040 | C167: ОТм(ЗТм) Средний разряд машинистов 4 | D167: чел.-ч. | E167: =SmtRes!DO356*SmtRes!AT356 -> 0.1 | F167: =ROUND((0.2+1),7) -> 1.2 | G167: =ROUND(E167*F167*G158, 7) -> 0.0096 | J167: =ROUND(SmtRes!AG356/SmtRes!DO356, 2) -> 811.79 | L167: =SmtRes!DH356 -> 7.79 | CE167: 1
B168: 91.17.04-233 | C168: Аппараты сварочные для ручной дуговой сварки, сварочный ток до 350 А | D168: маш.-ч | E168: 0.16 | F168: =ROUND((0.2+1),7) -> 1.2 | G168: =SmtRes!CX357 -> 0.01536 | J168: =SmtRes!CZ357 -> 34.61 | L168: =SmtRes!DG357 -> 0.53
B169: 4 | C169: М | L169: =SUM(L170:L171)-SUMIF(CE170:CE171, 1, L170:L171) -> 19.85
B170: 08.3.07.01-0052 | C170: Прокат стальной горячекатаный полосовой, марки стали Ст3сп, Ст3пс, размеры 50х5 мм | D170: т | E170: 0.003 | G170: =SmtRes!CX358 -> 0.00024 | H170: =SmtRes!CZ358 -> 70310.45 | I170: =SmtRes!AI358 -> 0.74 | J170: =ROUND(H170*I170, 2) -> 52029.73 | L170: =SmtRes!DF358 -> 12.49
B171: 14.4.02.04-0142 | C171: Краска масляная МА-0115, мумия, сурик железный | D171: кг | E171: 0.8 | G171: =SmtRes!CX359 -> 0.064 | H171: =SmtRes!CZ359 -> 79.88 | I171: =SmtRes!AI359 -> 1.44 | J171: =ROUND(H171*I171, 2) -> 115.03 | L171: =SmtRes!DF359 -> 7.36
C172: Итого прямые затраты | L172: =L160+L162+L163+L169 -> 3271.2
A173: 11.1 | B173: =Source!F194 -> 421/пр_2020_п.75_пп.а | C173: =Source!G194 -> Сметная стоимость вспомогательных ненормируемых материальных ресурсов, не учтенная в сметной норме, 2% | D173: =Source!H194 -> % | E173: =SmtRes!AT361 -> 2 | G173: =Source!I194 -> 2 | L173: =Source!P194 -> 53.51 | AD173: =ROUND((Source!AT194/100)*((ROUND(0*Source!I194, 2)+ROUND(0*Source!I194, 2))), 2) -> 0 | AE173: =ROUND((Source!AU194/100)*((ROUND(0*Source!I194, 2)+ROUND(0*Source!I194, 2))), 2) -> 0 | AN173: =L173 -> 53.51 | AW173: =L173 -> 53.51 | AZ173: =Source!X194 -> 0 | BA173: =Source!Y194 -> 0 | CD173: 2
A174: 11.2 | B174: =Source!F196 -> 20.5.04.03-0002 | C174: Исключен Зажимы наборные проходные ЗН24-4П25 | D174: =Source!H196 -> 100 ШТ | E174: =SmtRes!AT360 -> -1.02 | G174: =Source!I196 -> -0.0816 | H174: =Source!AL196+Source!AO196+Source!AM196+Source!AN196 -> 896.51 | I174: =IF(Source!BC196<> 0, Source!BC196, 1) -> 1.14 | J174: =ROUND(H174*I174, 2) -> 1022.02 | L174: =Source!P196 -> -83.4 | AD174: =ROUND((Source!AT196/100)*((ROUND(ROUND(Source!AO196,2)*Source!I196, 2)+ROUND(ROUND(Source!AN196,2)*Source!I196, 2))), 2) -> 0 | AE174: =ROUND((Source!AU196/100)*((ROUND(ROUND(Source!AO196,2)*Source!I196, 2)+ROUND(ROUND(Source!AN196,2)*Source!I196, 2))), 2) -> 0 | AN174: =L174 -> -83.4 | AW174: =L174 -> -83.4 | AZ174: =Source!X196 -> 0 | BA174: =Source!Y196 -> 0 | CD174: 2
C175: ФОТ | L175: =SUM(AR158:AR178)+SUM(AS158:AS178)+SUM(AT158:AT178)+SUM(AU158:AU178)+SUM(AV158:AV178) -> 3229.05
B176: Пр/812-049.3-1 | C176: НР Электротехнические установки: на других объектах | D176: % | E176: =Source!BZ191 -> 97 | G176: =Source!AT191 -> 97 | L176: =SUM(AZ158:AZ178) -> 3132.18
B177: Пр/774-049.3 | C177: СП Электротехнические установки: на других объектах | D177: % | E177: =Source!CA191 -> 51 | G177: =Source!AU191 -> 51 | L177: =SUM(BA158:BA178) -> 1646.82
C178: Всего по позиции | I178: =IF(E158<>0,K178/E158, 0) -> 100253.875 | K178: =L160+L162+L169+L176+L177+L163+SUM(L173:L174) -> 8020.31 | AD178: =ROUND((Source!AT191/100)*((ROUND(SUMIF(SmtRes!AQ353:'SmtRes'!AQ361,"=1",SmtRes!AD353:'SmtRes'!AD361)*Source!I191, 2)+ROUND(SUMIF(SmtRes!AQ353:'SmtRes'!AQ361,"=1",SmtRes!AC353:'SmtRes'!AC361)*Source!I191, 2))), 2) -> 210.61 | AE178: =ROUND((Source!AU191/100)*((ROUND(SUMIF(SmtRes!AQ353:'SmtRes'!AQ361,"=1",SmtRes!AD353:'SmtRes'!AD361)*Source!I191, 2)+ROUND(SUMIF(SmtRes!AQ353:'SmtRes'!AQ361,"=1",SmtRes!AC353:'SmtRes'!AC361)*Source!I191, 2))), 2) -> 110.73 | AN178: =L160+L162+L169+L176+L177+L163 -> 8050.2 | AO178: =L162 -> 22.3 | AQ178: = | AR178: =L160 -> 3210.79 | AT178: =L163 -> 18.26 | AV178: = | AW178: =L169 -> 19.85 | AZ178: =Source!X191 -> 3132.18 | BA178: =Source!Y191 -> 1646.82 | CD178: 2
A179: 12 | B179: ГЭСНм 08-03-574-05 | C179: =Source!G211 -> Разводка по устройствам и подключение жил кабелей или проводов сечением: до 95 мм2 | D179: =Source!H211 -> 100 ШТ | E179: =Source!K211 -> 0.04 | G179: =Source!I211 -> 0.04
B180: 421/пр_2020_прил.10_т.1_п.4_гр.5 | C180: ЭМ *1,20; ЗТ *1,20; ЗТм *1,20
B181: 1 | C181: ОТ (ЗТ) | D181: чел.-ч. | G181: =Source!U211 -> 2.52144 | L181: =SUM(L182:L182)-SUMIF(CE182:CE182, 1, L182:L182) -> 2107.97
B182: 1-100-42 | C182: Средний разряд работы 4,2 | D182: чел.-ч. | E182: 52.53 | F182: =ROUND((0.2+1),7) -> 1.2 | G182: =SmtRes!CX399 -> 2.52144 | J182: =SmtRes!CZ399 -> 836.02 | L182: =SmtRes!DI399 -> 2107.97
B183: 2 | C183: ЭМ | L183: =SUM(L184:L189)-SUMIF(CE184:CE189, 1, L184:L189) -> 16.57
C184: ОТм(ЗТм) | D184: чел.-ч. | G184: =Source!V211 -> 0.00288 | L184: =SUMIF(CE185:CE189, 1, L185:L189) -> 2.74 | CE184: 1
B185: 91.05.05-015 | C185: Краны на автомобильном ходу, грузоподъемность 16 т | D185: маш.-ч | E185: 0.03 | F185: =ROUND((0.2+1),7) -> 1.2 | G185: =SmtRes!CX401 -> 0.00144 | J185: =SmtRes!CZ401 -> 1626.29 | L185: =SmtRes!DG401 -> 2.34
B186: 4-100-060 | C186: ОТм(ЗТм) Средний разряд машинистов 6 | D186: чел.-ч. | E186: =SmtRes!DO401*SmtRes!AT401 -> 0.03 | F186: =ROUND((0.2+1),7) -> 1.2 | G186: =ROUND(E186*F186*G179, 7) -> 0.00144 | J186: =ROUND(SmtRes!AG401/SmtRes!DO401, 2) -> 1090.46 | L186: =SmtRes!DH401 -> 1.57 | CE186: 1
B187: 91.14.02-001 | C187: Автомобили бортовые, грузоподъемность до 5 т | D187: маш.-ч | E187: 0.03 | F187: =ROUND((0.2+1),7) -> 1.2 | G187: =SmtRes!CX402 -> 0.00144 | J187: =SmtRes!CZ402 -> 641.7 | L187: =SmtRes!DG402 -> 0.92
B188: 4-100-040 | C188: ОТм(ЗТм) Средний разряд машинистов 4 | D188: чел.-ч. | E188: =SmtRes!DO402*SmtRes!AT402 -> 0.03 | F188: =ROUND((0.2+1),7) -> 1.2 | G188: =ROUND(E188*F188*G179, 7) -> 0.00144 | J188: =ROUND(SmtRes!AG402/SmtRes!DO402, 2) -> 811.79 | L188: =SmtRes!DH402 -> 1.17 | CE188: 1
B189: 91.21.16-012 | C189: Прессы гидравлические с электроприводом | D189: маш.-ч | E189: 17.5 | F189: =ROUND((0.2+1),7) -> 1.2 | G189: =SmtRes!CX403 -> 0.84 | J189: =SmtRes!CZ403 -> 15.84 | L189: =SmtRes!DG403 -> 13.31
B190: 4 | C190: М | L190: =SUM(L191:L198)-SUMIF(CE191:CE198, 1, L191:L198) -> 117.04
B191: 01.3.01.02-0002 | C191: Вазелин технический | D191: кг | E191: 0.3 | G191: =SmtRes!CX404 -> 0.012 | H191: =SmtRes!CZ404 -> 150.04 | I191: =SmtRes!AI404 -> 1.6 | J191: =ROUND(H191*I191, 2) -> 240.06 | L191: =SmtRes!DF404 -> 2.88
B192: 01.7.02.09-0002 | C192: Шпагат бумажный, диаметр 2,5 мм | D192: кг | E192: 0.1 | G192: =SmtRes!CX405 -> 0.004 | H192: =SmtRes!CZ405 -> 187.38 | I192: =SmtRes!AI405 -> 0.88 | J192: 164.89 | L192: =SmtRes!DF405 -> 0.66
B193: 01.7.06.05-0041 | C193: Ленты изоляционные хлопчатобумажные прорезиненные для электромонтажных и ремонтных работ, цвет черный, ширина 20 мм, толщина 0,35 мм | D193: м | E193: 83.33 | G193: =SmtRes!CX406 -> 3.3332 | H193: =SmtRes!CZ406 -> 5.87 | I193: =SmtRes!AI406 -> 0.88 | J193: 5.17 | L193: =SmtRes!DF406 -> 17.23
B194: 01.7.06.07-0002 | C194: Ленты монтажные из пластмассы для бандажирования проводов, скрепляются пластмассовыми кнопками, ширина 10 мм | D194: 10 м | E194: 1.5 | G194: =SmtRes!CX407 -> 0.06 | H194: =SmtRes!CZ407 -> 37.71 | I194: =SmtRes!AI407 -> 1.53 | J194: 57.7 | L194: =SmtRes!DF407 -> 3.46
B195: 01.7.15.03-0042 | C195: Болты с гайками и шайбами строительные | D195: кг | E195: 7.94 | G195: =SmtRes!CX408 -> 0.3176 | H195: =SmtRes!CZ408 -> 174.93 | I195: =SmtRes!AI408 -> 1.08 | J195: 188.92 | L195: =SmtRes!DF408 -> 60
B196: 01.7.20.04-0005 | C196: Нитки швейные армированные | D196: кг | E196: 0.06 | G196: =SmtRes!CX409 -> 0.0024 | H196: =SmtRes!CZ409 -> 395.65 | I196: =SmtRes!AI409 -> 1.54 | J196: 609.3 | L196: =SmtRes!DF409 -> 1.46
B197: 14.4.03.17-0101 | C197: Лак КФ-965 | D197: т | E197: 0.0004 | G197: =SmtRes!CX410 -> 1.6e-05 | H197: =SmtRes!CZ410 -> 308849.7 | I197: =SmtRes!AI410 -> 1.2 | J197: 370619.64 | L197: =SmtRes!DF410 -> 5.93
B198: 25.2.01.01-0001 | C198: Бирки-оконцеватели маркировочные А671 | D198: 100 ШТ | E198: 1.02 | G198: =SmtRes!CX411 -> 0.0408 | H198: =SmtRes!CZ411 -> 655.9 | I198: =SmtRes!AI411 -> 0.95 | J198: 623.11 | L198: =SmtRes!DF411 -> 25.42
C199: Итого прямые затраты | L199: =L181+L183+L184+L190 -> 2244.32
A200: 12.1 | B200: =Source!F214 -> 421/пр_2020_п.75_пп.а | C200: =Source!G214 -> Сметная стоимость вспомогательных ненормируемых материальных ресурсов, не учтенная в сметной норме, 2% | D200: =Source!H214 -> % | E200: =SmtRes!AT412 -> 2 | G200: =Source!I214 -> 2 | L200: =Source!P214 -> 35.13 | AD200: =ROUND((Source!AT214/100)*((ROUND(0*Source!I214, 2)+ROUND(0*Source!I214, 2))), 2) -> 0 | AE200: =ROUND((Source!AU214/100)*((ROUND(0*Source!I214, 2)+ROUND(0*Source!I214, 2))), 2) -> 0 | AN200: =L200 -> 35.13 | AW200: =L200 -> 35.13 | AZ200: =Source!X214 -> 0 | BA200: =Source!Y214 -> 0 | CD200: 2
C201: ФОТ | L201: =SUM(AR179:AR204)+SUM(AS179:AS204)+SUM(AT179:AT204)+SUM(AU179:AU204)+SUM(AV179:AV204) -> 2110.71
B202: Пр/812-049.3-1 | C202: НР Электротехнические установки: на других объектах | D202: % | E202: =Source!BZ211 -> 97 | G202: =Source!AT211 -> 97 | L202: =SUM(AZ179:AZ204) -> 2047.39
B203: Пр/774-049.3 | C203: СП Электротехнические установки: на других объектах | D203: % | E203: =Source!CA211 -> 51 | G203: =Source!AU211 -> 51 | L203: =SUM(BA179:BA204) -> 1076.46
C204: Всего по позиции | I204: =IF(E179<>0,K204/E179, 0) -> 135082.5 | K204: =L181+L183+L190+L202+L203+L184+SUM(L200:L200) -> 5403.3 | AD204: =ROUND((Source!AT211/100)*((ROUND(SUMIF(SmtRes!AQ399:'SmtRes'!AQ412,"=1",SmtRes!AD399:'SmtRes'!AD412)*Source!I211, 2)+ROUND(SUMIF(SmtRes!AQ399:'SmtRes'!AQ412,"=1",SmtRes!AC399:'SmtRes'!AC412)*Source!I211, 2))), 2) -> 106.24 | AE204: =ROUND((Source!AU211/100)*((ROUND(SUMIF(SmtRes!AQ399:'SmtRes'!AQ412,"=1",SmtRes!AD399:'SmtRes'!AD412)*Source!I211, 2)+ROUND(SUMIF(SmtRes!AQ399:'SmtRes'!AQ412,"=1",SmtRes!AC399:'SmtRes'!AC412)*Source!I211, 2))), 2) -> 55.86 | AN204: =L181+L183+L190+L202+L203+L184 -> 5368.17 | AO204: =L183 -> 16.57 | AQ204: = | AR204: =L181 -> 2107.97 | AT204: =L184 -> 2.74 | AV204: = | AW204: =L190 -> 117.04 | AZ204: =Source!X211 -> 2047.39 | BA204: =Source!Y211 -> 1076.46 | CD204: 2
A205: 13 | B205: ГЭСН 15-04-024-08 | C205: =Source!G246 -> Простая окраска масляными составами по штукатурке и сборным конструкциям: стен, подготовленных под окраску | D205: =Source!H246 -> 100 м2 | E205: =Source!K246 -> 0.0952 | G205: =Source!I246 -> 0.0952
B206: 421/пр_2020_прил.10_т.1_п.4_гр.5 | C206: ЭМ *1,20; ЗТ *1,20; ЗТм *1,20
B207: 1 | C207: ОТ (ЗТ) | D207: чел.-ч. | G207: =Source!U246 -> 2.193408 | L207: =SUM(L208:L208)-SUMIF(CE208:CE208, 1, L208:L208) -> 1621.13
B208: 1-100-32 | C208: Средний разряд работы 3,2 | D208: чел.-ч. | E208: 19.2 | F208: =ROUND((0.2+1),7) -> 1.2 | G208: =SmtRes!CX549 -> 2.193408 | J208: =SmtRes!CZ549 -> 739.09 | L208: =SmtRes!DI549 -> 1621.13
B209: 2 | C209: ЭМ | L209: =SUM(L210:L214)-SUMIF(CE210:CE214, 1, L210:L214) -> 3.74
C210: ОТм(ЗТм) | D210: чел.-ч. | G210: =Source!V246 -> 0.0068544 | L210: =SUMIF(CE211:CE214, 1, L211:L214) -> 5.46 | CE210: 1
B211: 91.06.06-048 | C211: Подъемники одномачтовые, грузоподъемность до 500 кг, высота подъема 45 м | D211: маш.-ч | E211: 0.01 | F211: =ROUND((0.2+1),7) -> 1.2 | G211: =SmtRes!CX551 -> 0.0011424 | H211: =SmtRes!CZ551 -> 37.32 | I211: =SmtRes!AJ551 -> 1.55 | J211: =ROUND(H211*I211, 2) -> 57.85 | L211: =SmtRes!DG551 -> 0.07
B212: 4-100-030 | C212: ОТм(ЗТм) Средний разряд машинистов 3 | D212: чел.-ч. | E212: =SmtRes!DO551*SmtRes!AT551 -> 0.01 | F212: =ROUND((0.2+1),7) -> 1.2 | G212: =ROUND(E212*F212*G205, 7) -> 0.0011424 | J212: =ROUND(SmtRes!AG551/SmtRes!DO551, 2) -> 720.91 | L212: =SmtRes!DH551 -> 0.82 | CE212: 1
B213: 91.14.02-001 | C213: Автомобили бортовые, грузоподъемность до 5 т | D213: маш.-ч | E213: 0.05 | F213: =ROUND((0.2+1),7) -> 1.2 | G213: =SmtRes!CX552 -> 0.005712 | J213: =SmtRes!CZ552 -> 641.7 | L213: =SmtRes!DG552 -> 3.67
B214: 4-100-040 | C214: ОТм(ЗТм) Средний разряд машинистов 4 | D214: чел.-ч. | E214: =SmtRes!DO552*SmtRes!AT552 -> 0.05 | F214: =ROUND((0.2+1),7) -> 1.2 | G214: =ROUND(E214*F214*G205, 7) -> 0.005712 | J214: =ROUND(SmtRes!AG552/SmtRes!DO552, 2) -> 811.79 | L214: =SmtRes!DH552 -> 4.64 | CE214: 1
B215: 4 | C215: М | L215: =SUM(L216:L219)-SUMIF(CE216:CE219, 1, L216:L219) -> 148.16
B216: 01.7.10.17-0141 | C216: Пемза | D216: кг | E216: 0.24 | G216: =SmtRes!CX553 -> 0.022848 | H216: =SmtRes!CZ553 -> 2507.62 | I216: =SmtRes!AI553 -> 1.32 | J216: =ROUND(H216*I216, 2) -> 3310.06 | L216: =SmtRes!DF553 -> 75.63
B217: 01.7.17.11-0011 | C217: Шкурка шлифовальная двухслойная с зернистостью 40-25 | D217: м2 | E217: 0.8 | G217: =SmtRes!CX554 -> 0.07616 | H217: =SmtRes!CZ554 -> 531.44 | I217: =SmtRes!AI554 -> 1.32 | J217: =ROUND(H217*I217, 2) -> 701.5 | L217: =SmtRes!DF554 -> 53.43
B218: 01.7.20.08-0051 | C218: Ветошь хлопчатобумажная цветная | D218: кг | E218: 0.21 | G218: =SmtRes!CX555 -> 0.019992 | H218: =SmtRes!CZ555 -> 56.11 | I218: =SmtRes!AI555 -> 1.54 | J218: =ROUND(H218*I218, 2) -> 86.41 | L218: =SmtRes!DF555 -> 1.73
B219: 14.5.11.01-0003 | C219: Шпатлевка масляно-клеевая | D219: т | E219: 0.005 | G219: =SmtRes!CX558 -> 0.000476 | H219: =SmtRes!CZ558 -> 24995.33 | I219: =SmtRes!AI558 -> 1.46 | J219: =ROUND(H219*I219, 2) -> 36493.18 | L219: =SmtRes!DF558 -> 17.37
C220: Итого прямые затраты | L220: =L207+L209+L210+L215 -> 1778.49
C221: ФОТ | L221: =SUM(AR205:AR224)+SUM(AS205:AS224)+SUM(AT205:AT224)+SUM(AU205:AU224)+SUM(AV205:AV224) -> 1626.59
B222: Пр/812-015.0-1 | C222: НР Отделочные работы | D222: % | E222: =Source!BZ246 -> 100 | G222: =Source!AT246 -> 100 | L222: =SUM(AZ205:AZ224) -> 1626.59
B223: Пр/774-015.0 | C223: СП Отделочные работы | D223: % | E223: =Source!CA246 -> 49 | G223: =Source!AU246 -> 49 | L223: =SUM(BA205:BA224) -> 797.03
... 301 more rows

Sheet 09-01-01
A1: =Source!B1 -> Smeta.RU Flash (495) 974-1589
A2: Наименование программного продукта | F2: Программа для ЭВМ «Программа: «Smeta.RU Flash» версия 12»
A4: Наименование редакции сметных нормативов | F4: =IF(Source!CQ12 <> "", Source!CQ12, "") -> Приказ Минстроя России от 30.12.2021 г. № 1046/пр; Приказ Минстроя России от 04.08.2020 г. № 421/пр; Приказ Минстроя России от 21.12.2020 г. № 812/пр; Приказ Минстроя России от 11.12.2020 г. № 774/пр | CO4: =IF(Source!CQ12 <> "", Source!CQ12, "") -> Приказ Минстроя России от 30.12.2021 г. № 1046/пр; Приказ Минстроя России от 04.08.2020 г. № 421/пр; Приказ Минстроя России от 21.12.2020 г. № 812/пр; Приказ Минстроя России от 11.12.2020 г. № 774/пр
A6: Реквизиты приказа Минстроя России об утверждении дополнений и изменений к сметным нормативам | F6: =IF(Source!CV12 <> "", Source!CV12, "") -> Приказ Минстроя России от 18.05.2022 г. № 378/пр; Приказ Минстроя России от 26.08.2022 г. № 703/пр; Приказ Минстроя России от 26.10.2022 г. № 905/пр; Приказ Минстроя России от 27.12.2022 г. № 1133/пр; Приказ Минстроя России от 10.02.2023 г. № 84/пр; Приказ Минстроя России от 11.05.2023 г. № 335/пр; Приказ Минстроя России от 02.08.2023 г. № 551/пр; Приказ Минстроя России от 14.11.2023 г. № 817/пр; Приказ Минстроя России от 16.02.2024 г. № 102/пр; Приказ Минстроя России от 13.05.2024 г. № 323/пр; Приказ Минстроя России от 09.08.2024 г. № 524/пр; Приказ Минстроя России от 07.11.2024 г. № 747/пр; Приказ Минстроя России от 07.02.2025 г. № 69/пр; Приказ Минстроя России от 19.05.2025 г. № 299/пр; Приказ Минстроя России от 14.08.2025 г. № 490/пр; Приказ Минстроя России от 12.11.2025 г. № 696/пр; Приказ Минстроя России от 17.02.2026 г. № 91/пр; Приказ Минстроя России от 07.07.2022 г. № 557/пр; Приказ Минстроя России от 30.01.2024 г. № 55/пр; Приказ Минстроя России от 23.01.2025 г. № 30/пр; Приказ Минстроя России от 02.09.2021 г. № 636/пр; Приказ Минстроя России от 26.07.2022 г. № 611/пр; Приказ Минстроя России от 22.04.2022 г. № 317/пр | CO6: =IF(Source!CV12 <> "", Source!CV12, "") -> Приказ Минстроя России от 18.05.2022 г. № 378/пр; Приказ Минстроя России от 26.08.2022 г. № 703/пр; Приказ Минстроя России от 26.10.2022 г. № 905/пр; Приказ Минстроя России от 27.12.2022 г. № 1133/пр; Приказ Минстроя России от 10.02.2023 г. № 84/пр; Приказ Минстроя России от 11.05.2023 г. № 335/пр; Приказ Минстроя России от 02.08.2023 г. № 551/пр; Приказ Минстроя России от 14.11.2023 г. № 817/пр; Приказ Минстроя России от 16.02.2024 г. № 102/пр; Приказ Минстроя России от 13.05.2024 г. № 323/пр; Приказ Минстроя России от 09.08.2024 г. № 524/пр; Приказ Минстроя России от 07.11.2024 г. № 747/пр; Приказ Минстроя России от 07.02.2025 г. № 69/пр; Приказ Минстроя России от 19.05.2025 г. № 299/пр; Приказ Минстроя России от 14.08.2025 г. № 490/пр; Приказ Минстроя России от 12.11.2025 г. № 696/пр; Приказ Минстроя России от 17.02.2026 г. № 91/пр; Приказ Минстроя России от 07.07.2022 г. № 557/пр; Приказ Минстроя России от 30.01.2024 г. № 55/пр; Приказ Минстроя России от 23.01.2025 г. № 30/пр; Приказ Минстроя России от 02.09.2021 г. № 636/пр; Приказ Минстроя России от 26.07.2022 г. № 611/пр; Приказ Минстроя России от 22.04.2022 г. № 317/пр
A8: Реквизиты письма Минстроя России об индексах изменения сметной стоимости строительства, включаемые в федеральный реестр сметных нормативов и размещаемые в федеральной государственной информационной системе ценообразования в строительстве, подготовленного в соответствии с пунктом 85 Методики расчета индексов изменения сметной стоимости строительства, утвержденной приказом Министерства строительства и жилищно-коммунального хозяйства Российской Федерации от 5 июня 2019 г. N 326/пр | F8: Письмо Минстроя России от 25.02.2026 № 9859-ИФ/09
A10: Реквизиты нормативного правового акта об утверждении оплаты труда, утверждаемый в соответствии с пунктом 22(1) Правилами мониторинга цен, утвержденными постановлением Правительства Российской Федерации от 23 декабря 2016 г. N 1452 | F10: Приказ ПАО 'РОССЕТИ' от 26.12.2024 № 612
A12: Обоснование принятых текущих цен на строительные ресурсы | F12: ФГИС ЦС, конъюнктурный анализ
A14: Наименование субъекта Российской Федерации | F14: =IF(Source!CZ12 <> "", Source!CZ12, "") -> 
A16: Наименование зоны субъекта Российской Федерации | F16: =IF(Source!DA12 <> "", Source!DA12, "") -> 
A20: (наименование стройки)
A22: 355838_Талантбеков_(ДОТ)
A23: (наименование объекта капитального строительства)
A25: =CONCATENATE( "ЛОКАЛЬНАЯ СМЕТА № ", Source!L534, " ",Source!CM534) -> ЛОКАЛЬНАЯ СМЕТА № 09-01-01
A27: =IF(Source!G534<>"Новая локальная смета", Source!G534, "") -> ПНР ВЛИ-0,4 кВ
A28: (наименование работ и затрат)
A31: Составлен | C31: Ресурсно-индексным | D31: методом
A33: Основание
C34: (проектная и (или) иная техническая документация)
A36: Составлен(а) в текущем уровне цен на апрель 2026 года
A38: Сметная стоимость | C38: =C41+C42+C43+C44 -> 32.76 | E38: тыс. руб.
G39: Средства на оплату труда рабочих | K39: =ROUND(SUM(AR52:AR249)/1000, 2) -> 15.6 | L39: тыс. руб.
B40: в том числе: | G40: Средства на оплату труда машинистов | K40: =ROUND(SUM(AT52:AT249)/1000, 2) -> 0 | L40: тыс. руб.
B41: строительных работ | C41: =ROUND((Source!F614)/1000, 2) -> 0 | E41: тыс. руб. | G41: Нормативные затраты труда рабочих | K41: =Source!F619 -> 14.46816 | L41: чел.-ч.
B42: монтажных работ | C42: =ROUND((Source!F615)/1000, 2) -> 0 | E42: тыс. руб. | G42: Нормативные затраты труда машинистов | K42: =Source!F620 -> 0 | L42: чел.-ч.
B43: оборудования | C43: =ROUND((Source!F606)/1000, 2) -> 0 | E43: тыс. руб.
B44: прочих затрат | C44: =ROUND((Source!F616)/1000, 2) -> 32.76 | E44: тыс. руб.
A46: № п/п | B46: Обоснование | C46: Наименование работ и затрат | D46: Единица измерения | E46: Количество | H46: Сметная стоимость, руб.
E50: на единицу измерения | F50: коэффициенты | G50: всего с учетом коэффициентов | H50: на единицу измерения в базисном уровне цен | I50: индекс | J50: на единицу измерения в текущем уровне цен | K50: коэффициенты | L50: всего в текущем уровне цен
A51: 1 | B51: 2 | C51: 3 | D51: 4 | E51: 5 | F51: 6 | G51: 7 | H51: 8 | I51: 9 | J51: 10 | K51: 11 | L51: 12
A53: Раздел: ПНР
A54: 1 | B54: ГЭСНп 01-11-010-01 | C54: =Source!G542 -> Измерение сопротивления растеканию тока: заземлителя | D54: =Source!H542 -> измерение | E54: =Source!K542 -> 4 | G54: =Source!I542 -> 4
B55: 421/пр_2020_прил.10_т.1_п.4_гр.3 | C55: ЭМ *1,20; ЗТ *1,20; ЗТм *1,20
B56: 1 | C56: ОТ (ЗТ) | D56: чел.-ч. | G56: =Source!U542 -> 4.8 | L56: =SUM(L57:L58)-SUMIF(CE57:CE58, 1, L57:L58) -> 5176.05
B57: 2-100-06 | C57: Рабочий 6 разряда | D57: чел.-ч | E57: 0.5 | F57: =ROUND((0.2+1),7) -> 1.2 | G57: =SmtRes!CX641 -> 2.4 | J57: =SmtRes!CZ641 -> 1090.46 | L57: =SmtRes!DI641 -> 2617.1
B58: 3-200-03 | C58: Инженер III категории | D58: чел.-ч | E58: 0.5 | F58: =ROUND((0.2+1),7) -> 1.2 | G58: =SmtRes!CX642 -> 2.4 | J58: =SmtRes!CZ642 -> 1066.23 | L58: =SmtRes!DI642 -> 2558.95
C59: Итого прямые затраты | L59: =L56 -> 5176.05
C60: ФОТ | L60: =SUM(AR54:AR63)+SUM(AS54:AS63)+SUM(AT54:AT63)+SUM(AU54:AU63)+SUM(AV54:AV63) -> 5176.05
B61: Пр/812-083.0-1 | C61: НР Пусконаладочные работы | D61: % | E61: =Source!BZ542 -> 74 | G61: =Source!AT542 -> 74 | L61: =SUM(AZ54:AZ63) -> 3830.28
B62: Пр/774-083.0 | C62: СП Пусконаладочные работы | D62: % | E62: =Source!CA542 -> 36 | G62: =Source!AU542 -> 36 | L62: =SUM(BA54:BA63) -> 1863.38
C63: Всего по позиции | I63: =IF(E54<>0,K63/E54, 0) -> 2717.4275 | K63: =L56+L61+L62 -> 10869.71 | AD63: =ROUND((Source!AT542/100)*((ROUND(SUMIF(SmtRes!AQ641:'SmtRes'!AQ642,"=1",SmtRes!AD641:'SmtRes'!AD642)*Source!I542, 2)+ROUND(SUMIF(SmtRes!AQ641:'SmtRes'!AQ642,"=1",SmtRes!AC641:'SmtRes'!AC642)*Source!I542, 2))), 2) -> 6383.8 | AE63: =ROUND((Source!AU542/100)*((ROUND(SUMIF(SmtRes!AQ641:'SmtRes'!AQ642,"=1",SmtRes!AD641:'SmtRes'!AD642)*Source!I542, 2)+ROUND(SUMIF(SmtRes!AQ641:'SmtRes'!AQ642,"=1",SmtRes!AC641:'SmtRes'!AC642)*Source!I542, 2))), 2) -> 3105.63 | AN63: =L56+L61+L62 -> 10869.71 | AO63: =0 -> 0 | AQ63: = | AR63: =L56 -> 5176.05 | AT63: =0 -> 0 | AV63: = | AW63: =0 -> 0 | AZ63: =Source!X542 -> 3830.28 | BA63: =Source!Y542 -> 1863.38 | BT63: =K63 -> 10869.71 | BW63: =ROUND(K63*80/100, 2) -> 8695.77 | BX63: =K63-BW63 -> 2173.94 | CB63: =Source!BM542 -> 200001 | CC63: =Source!E542 -> 1 | CD63: 4
A64: 2 | B64: ГЭСНп 01-11-011-01 | C64: =Source!G545 -> Проверка наличия цепи между заземлителями и заземленными элементами | D64: =Source!H545 -> 100 измерений | E64: =Source!K545 -> 0.08 | G64: =Source!I545 -> 0.08
B65: 421/пр_2020_прил.10_т.1_п.4_гр.3 | C65: ЭМ *1,20; ЗТ *1,20; ЗТм *1,20
B66: 1 | C66: ОТ (ЗТ) | D66: чел.-ч. | G66: =Source!U545 -> 1.24416 | L66: =SUM(L67:L68)-SUMIF(CE67:CE68, 1, L67:L68) -> 1341.63
B67: 2-100-06 | C67: Рабочий 6 разряда | D67: чел.-ч | E67: 6.48 | F67: =ROUND((0.2+1),7) -> 1.2 | G67: =SmtRes!CX645 -> 0.62208 | J67: =SmtRes!CZ645 -> 1090.46 | L67: =SmtRes!DI645 -> 678.35
B68: 3-200-03 | C68: Инженер III категории | D68: чел.-ч | E68: 6.48 | F68: =ROUND((0.2+1),7) -> 1.2 | G68: =SmtRes!CX646 -> 0.62208 | J68: =SmtRes!CZ646 -> 1066.23 | L68: =SmtRes!DI646 -> 663.28
C69: Итого прямые затраты | L69: =L66 -> 1341.63
C70: ФОТ | L70: =SUM(AR64:AR73)+SUM(AS64:AS73)+SUM(AT64:AT73)+SUM(AU64:AU73)+SUM(AV64:AV73) -> 1341.63
B71: Пр/812-083.0-1 | C71: НР Пусконаладочные работы | D71: % | E71: =Source!BZ545 -> 74 | G71: =Source!AT545 -> 74 | L71: =SUM(AZ64:AZ73) -> 992.81
B72: Пр/774-083.0 | C72: СП Пусконаладочные работы | D72: % | E72: =Source!CA545 -> 36 | G72: =Source!AU545 -> 36 | L72: =SUM(BA64:BA73) -> 482.99
C73: Всего по позиции | I73: =IF(E64<>0,K73/E64, 0) -> 35217.875 | K73: =L66+L71+L72 -> 2817.43 | AD73: =ROUND((Source!AT545/100)*((ROUND(SUMIF(SmtRes!AQ645:'SmtRes'!AQ646,"=1",SmtRes!AD645:'SmtRes'!AD646)*Source!I545, 2)+ROUND(SUMIF(SmtRes!AQ645:'SmtRes'!AQ646,"=1",SmtRes!AC645:'SmtRes'!AC646)*Source!I545, 2))), 2) -> 127.68 | AE73: =ROUND((Source!AU545/100)*((ROUND(SUMIF(SmtRes!AQ645:'SmtRes'!AQ646,"=1",SmtRes!AD645:'SmtRes'!AD646)*Source!I545, 2)+ROUND(SUMIF(SmtRes!AQ645:'SmtRes'!AQ646,"=1",SmtRes!AC645:'SmtRes'!AC646)*Source!I545, 2))), 2) -> 62.11 | AN73: =L66+L71+L72 -> 2817.43 | AO73: =0 -> 0 | AQ73: = | AR73: =L66 -> 1341.63 | AT73: =0 -> 0 | AV73: = | AW73: =0 -> 0 | AZ73: =Source!X545 -> 992.81 | BA73: =Source!Y545 -> 482.99 | BT73: =K73 -> 2817.43 | BW73: =ROUND(K73*80/100, 2) -> 2253.94 | BX73: =K73-BW73 -> 563.49 | CB73: =Source!BM545 -> 200001 | CC73: =Source!E545 -> 2 | CD73: 4
A74: 3 | B74: ГЭСНп 01-11-024-01 | C74: =Source!G548 -> Фазировка электрической линии или трансформатора с сетью напряжением: до 1 кВ | D74: =Source!H548 -> ШТ | E74: =Source!K548 -> 3 | G74: =Source!I548 -> 3
B75: 421/пр_2020_прил.10_т.1_п.4_гр.3 | C75: ЭМ *1,20; ЗТ *1,20; ЗТм *1,20
B76: 1 | C76: ОТ (ЗТ) | D76: чел.-ч. | G76: =Source!U548 -> 2.952 | L76: =SUM(L77:L78)-SUMIF(CE77:CE78, 1, L77:L78) -> 3183.28
B77: 2-100-06 | C77: Рабочий 6 разряда | D77: чел.-ч | E77: 0.41 | F77: =ROUND((0.2+1),7) -> 1.2 | G77: =SmtRes!CX649 -> 1.476 | J77: =SmtRes!CZ649 -> 1090.46 | L77: =SmtRes!DI649 -> 1609.52
B78: 3-200-03 | C78: Инженер III категории | D78: чел.-ч | E78: 0.41 | F78: =ROUND((0.2+1),7) -> 1.2 | G78: =SmtRes!CX650 -> 1.476 | J78: =SmtRes!CZ650 -> 1066.23 | L78: =SmtRes!DI650 -> 1573.76
C79: Итого прямые затраты | L79: =L76 -> 3183.28
C80: ФОТ | L80: =SUM(AR74:AR83)+SUM(AS74:AS83)+SUM(AT74:AT83)+SUM(AU74:AU83)+SUM(AV74:AV83) -> 3183.28
B81: Пр/812-083.0-1 | C81: НР Пусконаладочные работы | D81: % | E81: =Source!BZ548 -> 74 | G81: =Source!AT548 -> 74 | L81: =SUM(AZ74:AZ83) -> 2355.63
B82: Пр/774-083.0 | C82: СП Пусконаладочные работы | D82: % | E82: =Source!CA548 -> 36 | G82: =Source!AU548 -> 36 | L82: =SUM(BA74:BA83) -> 1145.98
C83: Всего по позиции | I83: =IF(E74<>0,K83/E74, 0) -> 2228.296667 | K83: =L76+L81+L82 -> 6684.89 | AD83: =ROUND((Source!AT548/100)*((ROUND(SUMIF(SmtRes!AQ649:'SmtRes'!AQ650,"=1",SmtRes!AD649:'SmtRes'!AD650)*Source!I548, 2)+ROUND(SUMIF(SmtRes!AQ649:'SmtRes'!AQ650,"=1",SmtRes!AC649:'SmtRes'!AC650)*Source!I548, 2))), 2) -> 4787.85 | AE83: =ROUND((Source!AU548/100)*((ROUND(SUMIF(SmtRes!AQ649:'SmtRes'!AQ650,"=1",SmtRes!AD649:'SmtRes'!AD650)*Source!I548, 2)+ROUND(SUMIF(SmtRes!AQ649:'SmtRes'!AQ650,"=1",SmtRes!AC649:'SmtRes'!AC650)*Source!I548, 2))), 2) -> 2329.23 | AN83: =L76+L81+L82 -> 6684.89 | AO83: =0 -> 0 | AQ83: = | AR83: =L76 -> 3183.28 | AT83: =0 -> 0 | AV83: = | AW83: =0 -> 0 | AZ83: =Source!X548 -> 2355.63 | BA83: =Source!Y548 -> 1145.98 | BT83: =K83 -> 6684.89 | BW83: =ROUND(K83*80/100, 2) -> 5347.91 | BX83: =K83-BW83 -> 1336.98 | CB83: =Source!BM548 -> 200001 | CC83: =Source!E548 -> 3 | CD83: 4
A84: 4 | B84: ГЭСНп 01-11-012-01 | C84: =Source!G551 -> Определение удельного сопротивления грунта | D84: =Source!H551 -> измерение | E84: =Source!K551 -> 1 | G84: =Source!I551 -> 1
B85: 421/пр_2020_прил.10_т.1_п.4_гр.3 | C85: ЭМ *1,20; ЗТ *1,20; ЗТм *1,20
B86: 1 | C86: ОТ (ЗТ) | D86: чел.-ч. | G86: =Source!U551 -> 3.888 | L86: =SUM(L87:L88)-SUMIF(CE87:CE88, 1, L87:L88) -> 4192.6
B87: 2-100-06 | C87: Рабочий 6 разряда | D87: чел.-ч | E87: 1.62 | F87: =ROUND((0.2+1),7) -> 1.2 | G87: =SmtRes!CX653 -> 1.944 | J87: =SmtRes!CZ653 -> 1090.46 | L87: =SmtRes!DI653 -> 2119.85
B88: 3-200-03 | C88: Инженер III категории | D88: чел.-ч | E88: 1.62 | F88: =ROUND((0.2+1),7) -> 1.2 | G88: =SmtRes!CX654 -> 1.944 | J88: =SmtRes!CZ654 -> 1066.23 | L88: =SmtRes!DI654 -> 2072.75
C89: Итого прямые затраты | L89: =L86 -> 4192.6
C90: ФОТ | L90: =SUM(AR84:AR93)+SUM(AS84:AS93)+SUM(AT84:AT93)+SUM(AU84:AU93)+SUM(AV84:AV93) -> 4192.6
B91: Пр/812-083.0-1 | C91: НР Пусконаладочные работы | D91: % | E91: =Source!BZ551 -> 74 | G91: =Source!AT551 -> 74 | L91: =SUM(AZ84:AZ93) -> 3102.52
B92: Пр/774-083.0 | C92: СП Пусконаладочные работы | D92: % | E92: =Source!CA551 -> 36 | G92: =Source!AU551 -> 36 | L92: =SUM(BA84:BA93) -> 1509.34
C93: Всего по позиции | I93: =IF(E84<>0,K93/E84, 0) -> 8804.46 | K93: =L86+L91+L92 -> 8804.46 | AD93: =ROUND((Source!AT551/100)*((ROUND(SUMIF(SmtRes!AQ653:'SmtRes'!AQ654,"=1",SmtRes!AD653:'SmtRes'!AD654)*Source!I551, 2)+ROUND(SUMIF(SmtRes!AQ653:'SmtRes'!AQ654,"=1",SmtRes!AC653:'SmtRes'!AC654)*Source!I551, 2))), 2) -> 1595.95 | AE93: =ROUND((Source!AU551/100)*((ROUND(SUMIF(SmtRes!AQ653:'SmtRes'!AQ654,"=1",SmtRes!AD653:'SmtRes'!AD654)*Source!I551, 2)+ROUND(SUMIF(SmtRes!AQ653:'SmtRes'!AQ654,"=1",SmtRes!AC653:'SmtRes'!AC654)*Source!I551, 2))), 2) -> 776.41 | AN93: =L86+L91+L92 -> 8804.46 | AO93: =0 -> 0 | AQ93: = | AR93: =L86 -> 4192.6 | AT93: =0 -> 0 | AV93: = | AW93: =0 -> 0 | AZ93: =Source!X551 -> 3102.52 | BA93: =Source!Y551 -> 1509.34 | BT93: =K93 -> 8804.46 | BW93: =ROUND(K93*80/100, 2) -> 7043.57 | BX93: =K93-BW93 -> 1760.89 | CB93: =Source!BM551 -> 200001 | CC93: =Source!E551 -> 4 | CD93: 4
A94: 5 | B94: ГЭСНп 01-11-013-01 | C94: =Source!G557 -> Замер полного сопротивления цепи "фаза-нуль" | D94: =Source!H557 -> ШТ | E94: =Source!K557 -> 1 | G94: =Source!I557 -> 1
B95: 421/пр_2020_прил.10_т.1_п.4_гр.3 | C95: ЭМ *1,20; ЗТ *1,20; ЗТм *1,20
B96: 1 | C96: ОТ (ЗТ) | D96: чел.-ч. | G96: =Source!U557 -> 1.2 | L96: =SUM(L97:L98)-SUMIF(CE97:CE98, 1, L97:L98) -> 1294.02
B97: 2-100-06 | C97: Рабочий 6 разряда | D97: чел.-ч | E97: 0.5 | F97: =ROUND((0.2+1),7) -> 1.2 | G97: =SmtRes!CX661 -> 0.6 | J97: =SmtRes!CZ661 -> 1090.46 | L97: =SmtRes!DI661 -> 654.28
B98: 3-200-03 | C98: Инженер III категории | D98: чел.-ч | E98: 0.5 | F98: =ROUND((0.2+1),7) -> 1.2 | G98: =SmtRes!CX662 -> 0.6 | J98: =SmtRes!CZ662 -> 1066.23 | L98: =SmtRes!DI662 -> 639.74
C99: Итого прямые затраты | L99: =L96 -> 1294.02
C100: ФОТ | L100: =SUM(AR94:AR103)+SUM(AS94:AS103)+SUM(AT94:AT103)+SUM(AU94:AU103)+SUM(AV94:AV103) -> 1294.02
B101: Пр/812-083.0-1 | C101: НР Пусконаладочные работы | D101: % | E101: =Source!BZ557 -> 74 | G101: =Source!AT557 -> 74 | L101: =SUM(AZ94:AZ103) -> 957.57
B102: Пр/774-083.0 | C102: СП Пусконаладочные работы | D102: % | E102: =Source!CA557 -> 36 | G102: =Source!AU557 -> 36 | L102: =SUM(BA94:BA103) -> 465.85
C103: Всего по позиции | I103: =IF(E94<>0,K103/E94, 0) -> 2717.44 | K103: =L96+L101+L102 -> 2717.44 | AD103: =ROUND((Source!AT557/100)*((ROUND(SUMIF(SmtRes!AQ661:'SmtRes'!AQ662,"=1",SmtRes!AD661:'SmtRes'!AD662)*Source!I557, 2)+ROUND(SUMIF(SmtRes!AQ661:'SmtRes'!AQ662,"=1",SmtRes!AC661:'SmtRes'!AC662)*Source!I557, 2))), 2) -> 1595.95 | AE103: =ROUND((Source!AU557/100)*((ROUND(SUMIF(SmtRes!AQ661:'SmtRes'!AQ662,"=1",SmtRes!AD661:'SmtRes'!AD662)*Source!I557, 2)+ROUND(SUMIF(SmtRes!AQ661:'SmtRes'!AQ662,"=1",SmtRes!AC661:'SmtRes'!AC662)*Source!I557, 2))), 2) -> 776.41 | AN103: =L96+L101+L102 -> 2717.44 | AO103: =0 -> 0 | AQ103: = | AR103: =L96 -> 1294.02 | AT103: =0 -> 0 | AV103: = | AW103: =0 -> 0 | AZ103: =Source!X557 -> 957.57 | BA103: =Source!Y557 -> 465.85 | BT103: =K103 -> 2717.44 | BW103: =ROUND(K103*80/100, 2) -> 2173.95 | BX103: =K103-BW103 -> 543.49 | CB103: =Source!BM557 -> 200001 | CC103: =Source!E557 -> 5 | CD103: 4
A104: 6 | B104: ГЭСНп 01-11-028-01 | C104: =Source!G560 -> Измерение сопротивления изоляции (на линию) мегаомметром кабельных и других линий напряжением до 1 кВ, предназначенных для передачи электроэнергии к распределительным устройствам, щитам, шкафам, коммутационным аппаратам и электропотребителям | D104: =Source!H560 -> ШТ | E104: =Source!K560 -> 1 | G104: =Source!I560 -> 1
B105: 421/пр_2020_прил.10_т.7_п.3_гр.3 | C105: ЭМ *1,2; ЗТ *1,2; ЗТм *1,2
B106: 1 | C106: ОТ (ЗТ) | D106: чел.-ч. | G106: =Source!U560 -> 0.384 | L106: =SUM(L107:L108)-SUMIF(CE107:CE108, 1, L107:L108) -> 414.09
B107: 2-100-06 | C107: Рабочий 6 разряда | D107: чел.-ч | E107: 0.16 | F107: =ROUND((0.2+1),7) -> 1.2 | G107: =SmtRes!CX665 -> 0.192 | J107: =SmtRes!CZ665 -> 1090.46 | L107: =SmtRes!DI665 -> 209.37
B108: 3-200-03 | C108: Инженер III категории | D108: чел.-ч | E108: 0.16 | F108: =ROUND((0.2+1),7) -> 1.2 | G108: =SmtRes!CX666 -> 0.192 | J108: =SmtRes!CZ666 -> 1066.23 | L108: =SmtRes!DI666 -> 204.72
C109: Итого прямые затраты | L109: =L106 -> 414.09
C110: ФОТ | L110: =SUM(AR104:AR113)+SUM(AS104:AS113)+SUM(AT104:AT113)+SUM(AU104:AU113)+SUM(AV104:AV113) -> 414.09
B111: Пр/812-083.0-1 | C111: НР Пусконаладочные работы | D111: % | E111: =Source!BZ560 -> 74 | G111: =Source!AT560 -> 74 | L111: =SUM(AZ104:AZ113) -> 306.43
B112: Пр/774-083.0 | C112: СП Пусконаладочные работы | D112: % | E112: =Source!CA560 -> 36 | G112: =Source!AU560 -> 36 | L112: =SUM(BA104:BA113) -> 149.07
C113: Всего по позиции | I113: =IF(E104<>0,K113/E104, 0) -> 869.59 | K113: =L106+L111+L112 -> 869.59 | AD113: =ROUND((Source!AT560/100)*((ROUND(SUMIF(SmtRes!AQ665:'SmtRes'!AQ666,"=1",SmtRes!AD665:'SmtRes'!AD666)*Source!I560, 2)+ROUND(SUMIF(SmtRes!AQ665:'SmtRes'!AQ666,"=1",SmtRes!AC665:'SmtRes'!AC666)*Source!I560, 2))), 2) -> 1595.95 | AE113: =ROUND((Source!AU560/100)*((ROUND(SUMIF(SmtRes!AQ665:'SmtRes'!AQ666,"=1",SmtRes!AD665:'SmtRes'!AD666)*Source!I560, 2)+ROUND(SUMIF(SmtRes!AQ665:'SmtRes'!AQ666,"=1",SmtRes!AC665:'SmtRes'!AC666)*Source!I560, 2))), 2) -> 776.41 | AN113: =L106+L111+L112 -> 869.59 | AO113: =0 -> 0 | AQ113: = | AR113: =L106 -> 414.09 | AT113: =0 -> 0 | AV113: = | AW113: =0 -> 0 | AZ113: =Source!X560 -> 306.43 | BA113: =Source!Y560 -> 149.07 | BT113: =K113 -> 869.59 | BW113: =ROUND(K113*80/100, 2) -> 695.67 | BX113: =K113-BW113 -> 173.92 | CB113: =Source!BM560 -> 200001 | CC113: =Source!E560 -> 6 | CD113: 4
C115: Итого прямые затраты по разделу | L115: =L117+L118+L124+L128 -> 15601.67
C116: в том числе
C117: оплата труда | L117: =SUM(AR53:AR113) -> 15601.67
C118: эксплуатация машин и механизмов | L118: =L120+L123+L122 -> 0
C119: в том числе
C120: эксплуатация машин и механизмов | L120: =SUM(AO53:AO113) -> 0
C121: в том числе
C122: оплата труда машинистов (ОТм) | L122: =SUM(AT53:AT113) -> 0
C123: доплаты к оплате труда машинистов | L123: =SUM(AV53:AV113) -> 0
C124: материальные ресурсы | L124: =L126+L127 -> 0
C125: в том числе
C126: материальные ресурсы без учета дополнительной перевозки | L126: =SUM(AW53:AW113)-SUM(BK53:BK113) -> 0
C127: дополнительная перевозка материальных ресурсов | L127: =SUM(BC53:BC113) -> 0
C128: перевозка | L128: =SUM(BB53:BB113) -> 0
C129: Всего ФОТ (справочно) | L129: =SUM(AR53:AR113)+SUM(AT53:AT113)+SUM(AV53:AV113) -> 15601.67
C130: Всего накладные расходы | L130: =SUM(AZ53:AZ113) -> 11545.24
C131: Всего сметная прибыль | L131: =SUM(BA53:BA113) -> 5616.61
C132: Итого оборудование | L132: =L134+L135 -> 0
C133: в том числе
C134: оборудование без учета дополнительной перевозки | L134: =SUM(BK53:BK113) -> 0
C135: дополнительная перевозка оборудования | L135: =SUM(BD53:BD113) -> 0
C136: Итого прочие затраты
C137: Итого прочие затраты | L137: =SUM(BQ53:BQ113) -> 0
C138: Итого хозяйственный инвентарь | L138: =SUM(BO53:BO113) -> 0
C139: Итого по разделу | L139: =L115+L130+L131+L132+L137+L138 -> 32763.52
C140: Справочно
C141: материальные ресурсы, отсутствующие в ФРСН | L141: =SUM(AX53:AX113) -> 0
C142: оборудование, отсутствующие в ФРСН | L142: =SUM(AY53:AY113) -> 0
C143: затраты труда рабочих | G143: =Source!F589 -> 14.46816
C144: затраты труда машинистов | G144: =Source!F590 -> 0
C147: ИТОГИ ПО СМЕТЕ
C149: ВСЕГО строительные работы | L149: =L151+L166+L167 -> 0
C150: в том числе
C151: Всего прямые затраты | L151: =L153+L154+L160+L164 -> 0
C152: в том числе
C153: оплата труда (ОТ) | L153: =SUMIF(CD52:CD145, 1, AR52:AR145) -> 0
C154: эксплуатация машин и механизмов | L154: =L156+L159+L158 -> 0
C155: в том числе
C156: эксплуатация машин и механизмов | L156: =SUMIF(CD52:CD145, 1, AO52:AO145) -> 0
C157: в том числе
C158: оплата труда машинистов (ОТм) | L158: =SUMIF(CD52:CD145, 1, AT52:AT145) -> 0
C159: доплаты к оплате труда машинистов | L159: =SUMIF(CD52:CD145, 1, AV52:AV145) -> 0
C160: материальные ресурсы | L160: =L162+L163 -> 0
C161: в том числе
C162: материальные ресурсы без учета дополнительной перевозки | L162: =SUMIF(CD52:CD145, 1, AW52:AW145)-SUMIF(CD52:CD145, 1, BK52:BK145) -> 0
C163: дополнительная перевозка материальных ресурсов | L163: =SUMIF(CD52:CD145, 1, BC52:BC145) -> 0
C164: перевозка | L164: =SUMIF(CD52:CD145, 1, BB52:BB145) -> 0
C165: ФОТ (справочно) | L165: =SUMIF(CD52:CD145, 1, AR52:AR145)+SUMIF(CD52:CD145, 1, AT52:AT145)+SUMIF(CD52:CD145, 1, AV52:AV145) -> 0
C166: накладные расходы | L166: =SUMIF(CD52:CD145, 1, AZ52:AZ145) -> 0
C167: сметная прибыль | L167: =SUMIF(CD52:CD145, 1, BA52:BA145) -> 0
C169: ВСЕГО монтажные работы | L169: =L171+L186+L187 -> 0
C170: в том числе
C171: Всего прямые затраты | L171: =L173+L174+L180+L184 -> 0
C172: в том числе
C173: оплата труда (ОТ) | L173: =SUMIF(CD52:CD167, 2, AR52:AR167) -> 0
C174: эксплуатация машин и механизмов | L174: =L176+L179+L178 -> 0
C175: в том числе
C176: эксплуатация машин и механизмов | L176: =SUMIF(CD52:CD167, 2, AO52:AO167) -> 0
C177: в том числе
C178: оплата труда машинистов (ОТм) | L178: =SUMIF(CD52:CD167, 2, AT52:AT167) -> 0
C179: доплаты к оплате труда машинистов | L179: =SUMIF(CD52:CD167, 2, AV52:AV167) -> 0
C180: материальные ресурсы | L180: =L182+L183 -> 0
C181: в том числе
C182: материальные ресурсы без учета дополнительной перевозки | L182: =SUMIF(CD52:CD167, 2, AW52:AW167)-SUMIF(CD52:CD167, 2, BK52:BK167) -> 0
C183: дополнительная перевозка материальных ресурсов | L183: =SUMIF(CD52:CD167, 2, BC52:BC167) -> 0
C184: перевозка | L184: =SUMIF(CD52:CD167, 2, BB52:BB167) -> 0
C185: ФОТ (справочно) | L185: =SUMIF(CD52:CD167, 2, AR52:AR167)+SUMIF(CD52:CD167, 2, AT52:AT167)+SUMIF(CD52:CD167, 2, AV52:AV167) -> 0
C186: накладные расходы | L186: =SUMIF(CD52:CD167, 2, AZ52:AZ167) -> 0
C187: сметная прибыль | L187: =SUMIF(CD52:CD167, 2, BA52:BA167) -> 0
C189: ВСЕГО оборудование | L189: =L191+L192 -> 0
C190: в том числе
C191: оборудование без учета дополнительной перевозки | L191: =SUMIF(CD52:CD187, 3, BK52:BK187) -> 0
C192: дополнительная перевозка оборудования | L192: =SUMIF(CD52:CD187, 3, BD52:BD187) -> 0
C194: ВСЕГО прочие затраты | L194: =L202+L217+L218+L196+L197+L198+L199 -> 32763.52
C195: в том числе
C196: прочие затраты
C197: прочие затраты | L197: =SUM(BQ52:BQ192) -> 0
C198: прочие перевозки | L198: =SUMIF(CD52:CD192, 4, BB52:BB192)+SUMIF(CD52:CD192, 4, BC52:BC192)+SUMIF(CD52:CD192, 4, BD52:BD192) -> 0
C199: Хозяйственный инвентарь | L199: =SUM(BO52:BO192) -> 0
C200: Пусконаладочные работы | L200: =L202+L217+L218 -> 32763.52
C201: в том числе
C202: Всего прямые затраты | L202: =L204+L205+L211+L215 -> 15601.67
C203: в том числе
C204: оплата труда (ОТ) | L204: =SUMIF(CD52:CD192, 4, AR52:AR192) -> 15601.67
C205: эксплуатация машин и механизмов | L205: =L207+L210+L209 -> 0
C206: в том числе
C207: эксплуатация машин и механизмов | L207: =SUMIF(CD52:CD192, 4, AO52:AO192) -> 0
C208: в том числе
C209: оплата труда машинистов (ОТм) | L209: =SUMIF(CD52:CD192, 4, AT52:AT192) -> 0
C210: доплаты к оплате труда машинистов | L210: =SUMIF(CD52:CD192, 4, AV52:AV192) -> 0
C211: материальные ресурсы | L211: =L213+L214 -> 0
C212: в том числе
C213: материальные ресурсы без учета дополнительной перевозки | L213: =SUMIF(CD52:CD192, 4, AW52:AW192)-SUMIF(CD52:CD192, 4, BK52:BK192) -> 0
C214: дополнительная перевозка материальных ресурсов | L214: =SUMIF(CD52:CD192, 4, BC52:BC192) -> 0
C215: перевозка | L215: =SUMIF(CD52:CD192, 4, BB52:BB192) -> 0
C216: ФОТ (справочно) | L216: =SUMIF(CD52:CD192, 4, AR52:AR192)+SUMIF(CD52:CD192, 4, AT52:AT192)+SUMIF(CD52:CD192, 4, AV52:AV192) -> 15601.67
C217: накладные расходы | L217: =SUMIF(CD52:CD192, 4, AZ52:AZ192) -> 11545.24
C218: сметная прибыль | L218: =SUMIF(CD52:CD192, 4, BA52:BA192) -> 5616.61
C220: ВСЕГО по смете | L220: =L149+L169+L189+L194 -> 32763.52
C221: в том числе
C222: Всего прямые затраты | L222: =L224+L225+L231+L235 -> 15601.67
C223: в том числе
C224: оплата труда (ОТ) | L224: =SUM(AR52:AR218) -> 15601.67
C225: эксплуатация машин и механизмов | L225: =L227+L230+L229 -> 0
C226: в том числе
C227: эксплуатация машин и механизмов | L227: =SUM(AO52:AO218) -> 0
C228: в том числе
C229: оплата труда машинистов (ОТм) | L229: =SUM(AT52:AT218) -> 0
C230: доплаты к оплате труда машинистов | L230: =SUM(AV52:AV218) -> 0
C231: материальные ресурсы | L231: =L233+L234 -> 0
... 21 more rows

Sheet Source
A1: 0 | B1: Smeta.RU Flash (495) 974-1589 | D1: _PS_ | F1: 0 | G1: 0 | H1: 0 | I1: Smeta.RU Flash | K1: 1 | L1: 68757 | M1: 10 | N1: 12 | O1: 0 | P1: 0 | Q1: 3
A12: 1 | B12: 692 | C12: 0 | D12: =ROW(A627) -> 627 | E12: 0 | F12: Новый объект | G12: 355838_Талантбеков_ВЛИ_Катасонова_РАЗБИВКА_ПС_С | I12: 0 | K12: 0 | L12: 0 | M12: 523 | O12: 0 | P12: 0 | Q12: 7 | R12: 0 | S12: 0 | T12: 4 | V12: 0 | AB12: Чайкин А.В. | BB12: 0 | BH12: Сметные нормы списания | BI12: Коды ценников | BJ12: 1 | BK12: 1 | BL12: 0 | BM12: 0 | BN12: 1 | BO12: 0 | BP12: 2 | BQ12: 2 | BR12: 1 | BS12: 0 | BT12: 0 | BU12: 0 | BV12: 1 | BW12: 0 | BX12: 0 | BY12: ФСНБ-2022_И17 | BZ12: Версия 1.17.0 для ФСНБ-2022 И17 | CA12: ФСНБ-2022 - Изменения И17 | CB12: ФСНБ-2022 - Изменения И17 | CC12: ФСНБ-2022 - Изменения И17 | CD12: ФСНБ-2022 - Изменения И17 | CE12: Поправки для ФСНБ-2022 от 25.02.2026 г И17 (55/пр) Строительство | CF12: 0 | CG12: 0 | CH12: 487096330 | CK12: 17 | CQ12: Приказ Минстроя России от 30.12.2021 г. № 1046/пр; Приказ Минстроя России от 04.08.2020 г. № 421/пр; Приказ Минстроя России от 21.12.2020 г. № 812/пр; Приказ Минстроя России от 11.12.2020 г. № 774/пр | CR12: ГСН | CS12: 46073 | CT12: 540 | CU12: 17 | CV12: Приказ Минстроя России от 18.05.2022 г. № 378/пр; Приказ Минстроя России от 26.08.2022 г. № 703/пр; Приказ Минстроя России от 26.10.2022 г. № 905/пр; Приказ Минстроя России от 27.12.2022 г. № 1133/пр; Приказ Минстроя России от 10.02.2023 г. № 84/пр; Приказ Минстроя России от 11.05.2023 г. № 335/пр; Приказ Минстроя России от 02.08.2023 г. № 551/пр; Приказ Минстроя России от 14.11.2023 г. № 817/пр; Приказ Минстроя России от 16.02.2024 г. № 102/пр; Приказ Минстроя России от 13.05.2024 г. № 323/пр; Приказ Минстроя России от 09.08.2024 г. № 524/пр; Приказ Минстроя России от 07.11.2024 г. № 747/пр; Приказ Минстроя России от 07.02.2025 г. № 69/пр; Приказ Минстроя России от 19.05.2025 г. № 299/пр; Приказ Минстроя России от 14.08.2025 г. № 490/пр; Приказ Минстроя России от 12.11.2025 г. № 696/пр; Приказ Минстроя России от 17.02.2026 г. № 91/пр; Приказ Минстроя России от 07.07.2022 г. № 557/пр; Приказ Минстроя России от 30.01.2024 г. № 55/пр; Приказ Минстроя России от 23.01.2025 г. № 30/пр; Приказ Минстроя России от 02.09.2021 г. № 636/пр; Приказ Минстроя России от 26.07.2022 г. № 611/пр; Приказ Минстроя России от 22.04.2022 г. № 317/пр | CY12: 0 | EC12: 0
A15: 85315509 | B15: 1 | C15: 2026 | D15: 6 | F15: Июнь, 2026 г. | G15: Июнь, 2026 г. | M15: 523 | Q15: 7 | T15: 4 | AB15: Чайкин А.В. | BB15: 0 | BH15: Сметные нормы списания | BI15: Сметные нормы списания | BJ15: 1 | BK15: 1 | BL15: 0 | BM15: 0 | BN15: 1 | BO15: 0 | BP15: 2 | BQ15: 2 | BR15: 1 | BS15: 0 | BT15: 0 | BU15: 0 | BV15: 1 | BW15: 0 | BX15: 0 | BY15: ФСНБ-2022_И17 | BZ15: Версия 1.17.0 для ФСНБ-2022 И17 | CA15: ФСНБ-2022 - Изменения И17 | CB15: ФСНБ-2022 - Изменения И17 | CC15: ФСНБ-2022 - Изменения И17 | CD15: ФСНБ-2022 - Изменения И17 | CE15: Поправки для ФСНБ-2022 от 25.02.2026 г И17 (55/пр) Строительство | CF15: 0 | CH15: 487096330 | CK15: 0 | CL15: 0 | CM15: 0 | CS15: 0 | CU15: 0 | CV15: 46174 | CW15: 46203 | CX15: 0 | EC15: 0
A18: 52 | B18: =B627 -> 692 | C18: 1 | D18: 12 | E18: 0 | F18: Новый объект | G18: 355838_Талантбеков_ВЛИ_Катасонова_РАЗБИВКА_ПС_С | O18: =O627 -> 73718.16 | P18: 29388.89 | Q18: 1217.03 | R18: 1436.26 | S18: 41675.98 | T18: 0 | U18: 48.039936 | V18: 1.6946664 | W18: 0 | X18: 38354.1 | Y18: 19755.74 | Z18: 0 | AA18: 0 | AB18: 0 | AC18: 0 | AD18: 0 | AE18: 0 | AF18: 0 | AG18: 0 | AH18: 0 | AI18: 0 | AJ18: 0 | AK18: 0 | AL18: 0 | AM18: 0 | AN18: 0 | AO18: 0 | AP18: 0 | AQ18: 0 | AR18: 131828 | AS18: 51884.9 | AT18: 47179.58 | AU18: =AU627 -> 32763.52 | AV18: 29388.89 | AW18: 29388.89 | AX18: 0 | AY18: 29388.89 | AZ18: 0 | BA18: 0 | BB18: 0 | BC18: 0 | BD18: 0 | BE18: 0 | BF18: 0 | BG18: 0 | BH18: 0 | BI18: 0 | BJ18: 0 | BK18: 0 | BL18: 0 | BM18: 0 | BN18: 0 | BO18: 0 | BP18: 0 | BQ18: 0 | BR18: 0 | BS18: 0 | BT18: 0 | BU18: 0 | BV18: 0 | BW18: 0 | BX18: 0 | BY18: 0 | BZ18: 0 | CA18: =CA627 -> 0 | CB18: 0 | CC18: 0 | CD18: 0 | CE18: 0 | CF18: 0 | CG18: 0 | CH18: 0 | CI18: 0 | CJ18: 0 | CK18: 0 | CL18: 0 | CM18: 0 | CN18: 0 | CO18: 0 | CP18: 0 | CQ18: 0 | CR18: 0 | CS18: 0 | CT18: 0 | CU18: 0 | CV18: 0 | CW18: 0 | CX18: 0 | CY18: 0 | CZ18: 0 | DA18: 0 | DB18: 0 | DC18: 0 | DD18: 0 | DE18: 0 | DF18: 0 | DG18: =DG627 -> 73718.16 | DH18: 29388.89 | DI18: 1217.03 | DJ18: 1436.26 | DK18: 41675.98 | DL18: 0 | DM18: 48.039936 | DN18: 1.6946664 | DO18: 0 | DP18: 38354.1 | DQ18: 19755.74 | DR18: 0 | DS18: 0 | DT18: 0 | DU18: 0 | DV18: 0 | DW18: 0 | DX18: 0 | DY18: 0 | DZ18: 0 | EA18: 0 | EB18: 0 | EC18: 0 | ED18: 0 | EE18: 0 | EF18: 0 | EG18: 0 | EH18: 0 | EI18: 0 | EJ18: 131828 | EK18: 51884.9 | EL18: 47179.58 | EM18: =EM627 -> 32763.52 | EN18: 29388.89 | EO18: 29388.89 | EP18: 0 | EQ18: 29388.89 | ER18: 0 | ES18: 0 | ET18: 0 | EU18: 0 | EV18: 0 | EW18: 0 | EX18: 0 | EY18: 0 | EZ18: 0 | FA18: 0 | FB18: 0 | FC18: 0 | FD18: 0 | FE18: 0 | FF18: 0 | FG18: 0 | FH18: 0 | FI18: 0 | FJ18: 0 | FK18: 0 | FL18: 0 | FM18: 0 | FN18: 0 | FO18: 0 | FP18: 0 | FQ18: 0 | FR18: 0 | FS18: =FS627 -> 0 | FT18: 0 | FU18: 0 | FV18: 0 | FW18: 0 | FX18: 0 | FY18: 0 | FZ18: 0 | GA18: 0 | GB18: 0 | GC18: 0 | GD18: 0 | GE18: 0 | GF18: 0 | GG18: 0 | GH18: 0 | GI18: 0 | GJ18: 0 | GK18: 0 | GL18: 0 | GM18: 0 | GN18: 0 | GO18: 0 | GP18: 0 | GQ18: 0 | GR18: 0 | GS18: 0 | GT18: 0 | GU18: 0 | GV18: 0 | GW18: 0 | GX18: 0
A20: 3 | B20: 1 | D20: =ROW(A501) -> 501 | F20: 02-01-01 | G20: Строительство ВЛИ-0,4 кВ | I20: 0 | K20: -1 | L20: 02-01-01 | S20: 0 | T20: 0 | V20: 0 | BX20: 0 | CF20: 0 | CG20: 0
A22: 52 | B22: =B501 -> 1 | C22: 3 | D22: 20 | E22: 0 | F22: 02-01-01 | G22: Строительство ВЛИ-0,4 кВ | O22: =O501 -> 58116.49 | P22: 29388.89 | Q22: 1217.03 | R22: 1436.26 | S22: 26074.31 | T22: 0 | U22: 33.571776 | V22: 1.6946664 | W22: 0 | X22: 26808.86 | Y22: 14139.13 | Z22: 0 | AA22: 0 | AB22: 0 | AC22: 0 | AD22: 0 | AE22: 0 | AF22: 0 | AG22: 0 | AH22: 0 | AI22: 0 | AJ22: 0 | AK22: 0 | AL22: 0 | AM22: 0 | AN22: 0 | AO22: 0 | AP22: 0 | AQ22: 0 | AR22: 99064.48 | AS22: 51884.9 | AT22: 47179.58 | AU22: =AU501 -> 0 | AV22: 29388.89 | AW22: 29388.89 | AX22: 0 | AY22: 29388.89 | AZ22: 0 | BA22: 0 | BB22: 0 | BC22: 0 | BD22: 0 | BE22: 0 | BF22: 0 | BG22: 0 | BH22: 0 | BI22: 0 | BJ22: 0 | BK22: 0 | BL22: 0 | BM22: 0 | BN22: 0 | BO22: 0 | BP22: 0 | BQ22: 0 | BR22: 0 | BS22: 0 | BT22: 0 | BU22: 0 | BV22: 0 | BW22: 0 | BX22: 0 | BY22: 0 | BZ22: 0 | CA22: =CA501 -> 0 | CB22: 0 | CC22: 0 | CD22: 0 | CE22: 0 | CF22: 0 | CG22: 0 | CH22: 0 | CI22: 0 | CJ22: 0 | CK22: 0 | CL22: 0 | CM22: 0 | CN22: 0 | CO22: 0 | CP22: 0 | CQ22: 0 | CR22: 0 | CS22: 0 | CT22: 0 | CU22: 0 | CV22: 0 | CW22: 0 | CX22: 0 | CY22: 0 | CZ22: 0 | DA22: 0 | DB22: 0 | DC22: 0 | DD22: 0 | DE22: 0 | DF22: 0 | DG22: =DG501 -> 58116.49 | DH22: 29388.89 | DI22: 1217.03 | DJ22: 1436.26 | DK22: 26074.31 | DL22: 0 | DM22: 33.571776 | DN22: 1.6946664 | DO22: 0 | DP22: 26808.86 | DQ22: 14139.13 | DR22: 0 | DS22: 0 | DT22: 0 | DU22: 0 | DV22: 0 | DW22: 0 | DX22: 0 | DY22: 0 | DZ22: 0 | EA22: 0 | EB22: 0 | EC22: 0 | ED22: 0 | EE22: 0 | EF22: 0 | EG22: 0 | EH22: 0 | EI22: 0 | EJ22: 99064.48 | EK22: 51884.9 | EL22: 47179.58 | EM22: =EM501 -> 0 | EN22: 29388.89 | EO22: 29388.89 | EP22: 0 | EQ22: 29388.89 | ER22: 0 | ES22: 0 | ET22: 0 | EU22: 0 | EV22: 0 | EW22: 0 | EX22: 0 | EY22: 0 | EZ22: 0 | FA22: 0 | FB22: 0 | FC22: 0 | FD22: 0 | FE22: 0 | FF22: 0 | FG22: 0 | FH22: 0 | FI22: 0 | FJ22: 0 | FK22: 0 | FL22: 0 | FM22: 0 | FN22: 0 | FO22: 0 | FP22: 0 | FQ22: 0 | FR22: 0 | FS22: =FS501 -> 0 | FT22: 0 | FU22: 0 | FV22: 0 | FW22: 0 | FX22: 0 | FY22: 0 | FZ22: 0 | GA22: 0 | GB22: 0 | GC22: 0 | GD22: 0 | GE22: 0 | GF22: 0 | GG22: 0 | GH22: 0 | GI22: 0 | GJ22: 0 | GK22: 0 | GL22: 0 | GM22: 0 | GN22: 0 | GO22: 0 | GP22: 0 | GQ22: 0 | GR22: 0 | GS22: 0 | GT22: 0 | GU22: 0 | GV22: 0 | GW22: 0 | GX22: 0
A24: 4 | B24: 1 | D24: =ROW(A254) -> 254 | F24: Новый раздел | G24: СМР | I24: 0 | K24: 0 | S24: 0 | T24: 0 | V24: 0 | BX24: 0 | CJ24: 0
A26: 52 | B26: =B254 -> 1 | C26: 4 | D26: 24 | E26: 0 | F26: Новый раздел | G26: СМР | O26: =O254 -> 16347.95 | P26: 419.9 | Q26: 821.24 | R26: 1158.13 | S26: 13948.68 | T26: 0 | U26: 17.486016 | V26: 1.4022504 | W26: 0 | X26: 15009.76 | Y26: 8132.98 | Z26: 0 | AA26: 0 | AB26: 16347.95 | AC26: 419.9 | AD26: 821.24 | AE26: 1158.13 | AF26: 13948.68 | AG26: 0 | AH26: 17.486016 | AI26: 1.4022504 | AJ26: 0 | AK26: 15009.76 | AL26: 8132.98 | AM26: 0 | AN26: 0 | AO26: 0 | AP26: 0 | AQ26: 0 | AR26: 39490.69 | AS26: 18320.71 | AT26: 21169.98 | AU26: =AU254 -> 0 | AV26: 419.9 | AW26: 419.9 | AX26: 0 | AY26: 419.9 | AZ26: 0 | BA26: 0 | BB26: 0 | BC26: 0 | BD26: 0 | BE26: 0 | BF26: 0 | BG26: 0 | BH26: 0 | BI26: 0 | BJ26: 0 | BK26: 0 | BL26: 0 | BM26: 0 | BN26: 0 | BO26: 0 | BP26: 0 | BQ26: 0 | BR26: 0 | BS26: 0 | BT26: 0 | BU26: 0 | BV26: 0 | BW26: 0 | BX26: 0 | BY26: 0 | BZ26: 0 | CA26: =CA254 -> 39490.69 | CB26: 18320.71 | CC26: 21169.98 | CD26: 0 | CE26: 419.9 | CF26: 419.9 | CG26: 0 | CH26: 419.9 | CI26: 0 | CJ26: 0 | CK26: 0 | CL26: 0 | CM26: 0 | CN26: 0 | CO26: 0 | CP26: 0 | CQ26: 0 | CR26: 0 | CS26: 0 | CT26: 0 | CU26: 0 | CV26: 0 | CW26: 0 | CX26: 0 | CY26: 0 | CZ26: 0 | DA26: 0 | DB26: 0 | DC26: 0 | DD26: 0 | DE26: 0 | DF26: 0 | DG26: =DG254 -> 16347.95 | DH26: 419.9 | DI26: 821.24 | DJ26: 1158.13 | DK26: 13948.68 | DL26: 0 | DM26: 17.486016 | DN26: 1.4022504 | DO26: 0 | DP26: 15009.76 | DQ26: 8132.98 | DR26: 0 | DS26: 0 | DT26: 16347.95 | DU26: 419.9 | DV26: 821.24 | DW26: 1158.13 | DX26: 13948.68 | DY26: 0 | DZ26: 17.486016 | EA26: 1.4022504 | EB26: 0 | EC26: 15009.76 | ED26: 8132.98 | EE26: 0 | EF26: 0 | EG26: 0 | EH26: 0 | EI26: 0 | EJ26: 39490.69 | EK26: 18320.71 | EL26: 21169.98 | EM26: =EM254 -> 0 | EN26: 419.9 | EO26: 419.9 | EP26: 0 | EQ26: 419.9 | ER26: 0 | ES26: 0 | ET26: 0 | EU26: 0 | EV26: 0 | EW26: 0 | EX26: 0 | EY26: 0 | EZ26: 0 | FA26: 0 | FB26: 0 | FC26: 0 | FD26: 0 | FE26: 0 | FF26: 0 | FG26: 0 | FH26: 0 | FI26: 0 | FJ26: 0 | FK26: 0 | FL26: 0 | FM26: 0 | FN26: 0 | FO26: 0 | FP26: 0 | FQ26: 0 | FR26: 0 | FS26: =FS254 -> 39490.69 | FT26: 18320.71 | FU26: 21169.98 | FV26: 0 | FW26: 419.9 | FX26: 419.9 | FY26: 0 | FZ26: 419.9 | GA26: 0 | GB26: 0 | GC26: 0 | GD26: 0 | GE26: 0 | GF26: 0 | GG26: 0 | GH26: 0 | GI26: 0 | GJ26: 0 | GK26: 0 | GL26: 0 | GM26: 0 | GN26: 0 | GO26: 0 | GP26: 0 | GQ26: 0 | GR26: 0 | GS26: 0 | GT26: 0 | GU26: 0 | GV26: 0 | GW26: 0 | GX26: 0
A28: 17 | B28: 1 | C28: =ROW(SmtRes!A3) -> 3 | D28: =ROW(EtalonRes!A3) -> 3 | F28: 47-01-001-03 | G28: Разбивка участка | H28: 100 м2 | I28: 0 | J28: 0 | K28: 0 | L28: 1.61 | M28: 1.61 | N28: =ROUND(L28-M28,4) -> 0 | O28: =ROUND(CP28,2) -> 0 | P28: =SUMIF(SmtRes!AQ1:'SmtRes'!AQ3,"=1",SmtRes!DF1:'SmtRes'!DF3) -> 0 | Q28: =SUMIF(SmtRes!AQ1:'SmtRes'!AQ3,"=1",SmtRes!DG1:'SmtRes'!DG3) -> 0 | R28: =SUMIF(SmtRes!AQ1:'SmtRes'!AQ3,"=1",SmtRes!DH1:'SmtRes'!DH3) -> 0 | S28: =SUMIF(SmtRes!AQ1:'SmtRes'!AQ3,"=1",SmtRes!DI1:'SmtRes'!DI3) -> 0 | T28: =ROUND(CU28*I28,2) -> 0 | U28: =SUMIF(SmtRes!AQ1:'SmtRes'!AQ3,"=1",SmtRes!CV1:'SmtRes'!CV3) -> 0 | V28: =SUMIF(SmtRes!AQ1:'SmtRes'!AQ3,"=1",SmtRes!CW1:'SmtRes'!CW3) -> 0 | W28: =ROUND(CX28*I28,2) -> 0 | X28: =ROUND(CY28,2) -> 0 | Y28: =ROUND(CZ28,2) -> 0 | AA28: -1 | AB28: =ROUND((AC28+AD28+AF28),2) -> 5594.46 | AC28: =ROUND((SUM(SmtRes!BQ1:'SmtRes'!BQ3)),2) -> 50.45 | AD28: =ROUND((((0)-(0))+AE28),2) -> 0 | AE28: =ROUND((0),2) -> 0 | AF28: =ROUND((SUM(SmtRes!BT1:'SmtRes'!BT3)),2) -> 5544.01 | AG28: =ROUND((AP28),2) -> 0 | AH28: =(SUM(SmtRes!BU1:'SmtRes'!BU3)) -> 7.41 | AI28: =(0) -> 0 | AJ28: =(AS28) -> 0 | AK28: 5594.4628 | AL28: 50.449 | AM28: 0 | AN28: 0 | AO28: 5544.0138 | AP28: 0 | AQ28: 7.41 | AR28: 0 | AS28: 0 | AT28: 103 | AU28: 72 | AV28: 1 | AW28: 1 | AZ28: 1 | BA28: 1 | BB28: 1 | BC28: 1 | BH28: 0 | BI28: 1 | BJ28: ГЭСН-2022, 47-01-001-03, приказ Минстроя России от 18.05.2022 г. № 378/пр | BM28: 47001 | BN28: 0 | BP28: 0 | BQ28: 2 | BR28: 0 | BS28: 1 | BT28: 1 | BU28: 1 | BV28: 1 | BW28: 1 | BX28: 1 | BZ28: 103 | CA28: 72 | CE28: 0 | CF28: 0 | CG28: 0 | CH28: 0 | CI28: 0 | CJ28: 0 | CK28: 0 | CL28: 0 | CM28: 0 | CO28: 0 | CP28: =(P28+Q28+S28+R28) -> 0 | CQ28: =SUMIF(SmtRes!AQ1:'SmtRes'!AQ3,"=1",SmtRes!AA1:'SmtRes'!AA3) -> 12342.73 | CR28: =SUMIF(SmtRes!AQ1:'SmtRes'!AQ3,"=1",SmtRes!AB1:'SmtRes'!AB3) -> 0 | CS28: =SUMIF(SmtRes!AQ1:'SmtRes'!AQ3,"=1",SmtRes!AC1:'SmtRes'!AC3) -> 0 | CT28: =SUMIF(SmtRes!AQ1:'SmtRes'!AQ3,"=1",SmtRes!AD1:'SmtRes'!AD3) -> 748.18 | CU28: =AG28 -> 0 | CV28: =SUMIF(SmtRes!AQ1:'SmtRes'!AQ3,"=1",SmtRes!BU1:'SmtRes'!BU3) -> 7.41 | CW28: =SUMIF(SmtRes!AQ1:'SmtRes'!AQ3,"=1",SmtRes!BV1:'SmtRes'!BV3) -> 0 | CX28: =AJ28 -> 0 | CY28: =(((S28+R28)*AT28)/100) -> 0 | CZ28: =(((S28+R28)*AU28)/100) -> 0 | DN28: 0 | DO28: 0 | DP28: 1 | DQ28: 1 | DU28: 1005 | DV28: 100 м2 | DW28: 100 м2 | DX28: 100 | EE28: 83666893 | EF28: 2 | EG28: Общестроительные работы | EH28: 41 | EI28: Озеленение. Защитные лесонасаждения | EJ28: 1 | EK28: 47001 | EL28: Озеленение. Защитные лесонасаждения | EM28: ФЕР-47 | EQ28: 132096 | ER28: 0 | ES28: 0 | ET28: 0 | EU28: 0 | EV28: 0 | EW28: 7.41 | EX28: 0 | EY28: 0 | FQ28: 0 | FR28: 0 | FS28: 0 | FX28: 103 | FY28: 72 | GD28: 1 | GF28: 1323717432 | GG28: 2 | GH28: 1 | GI28: -2 | GJ28: 0 | GK28: 0 | GL28: =ROUND(IF(AND(BH28=3,BI28=3,FS28<>0),P28,0),2) -> 0 | GM28: =ROUND(O28+X28+Y28,2)+GX28 -> 0 | GN28: =IF(OR(BI28=0,BI28=1),GM28-GX28,0) -> 0 | GO28: =IF(BI28=2,GM28-GX28,0) -> 0 | GP28: =IF(BI28=4,GM28-GX28,0) -> 0 | GR28: 0 | GS28: 3 | GT28: 0 | GV28: =ROUND((GT28),2) -> 0 | GW28: 1 | GX28: =ROUND(HC28*I28,2) -> 0 | HA28: 0 | HB28: 0 | HC28: =GV28*GW28 -> 0 | HN28: Пр/812-041.0-1 | HO28: Пр/774-041.0 | HP28: Озеленение. Защитные лесонасаждения | HQ28: Озеленение. Защитные лесонасаждения | HS28: 0 | IK28: 0
A29: 17 | B29: 1 | C29: =ROW(SmtRes!A6) -> 6 | D29: =ROW(EtalonRes!A6) -> 6 | F29: 47-01-001-03 | G29: Разбивка участка | H29: 100 м2 | I29: 0 | J29: 0 | K29: 0 | L29: 1.61 | M29: 1.61 | N29: =ROUND(L29-M29,4) -> 0 | O29: =ROUND(CP29,2) -> 0 | P29: =SUMIF(SmtRes!AQ4:'SmtRes'!AQ6,"=1",SmtRes!DF4:'SmtRes'!DF6) -> 0 | Q29: =SUMIF(SmtRes!AQ4:'SmtRes'!AQ6,"=1",SmtRes!DG4:'SmtRes'!DG6) -> 0 | R29: =SUMIF(SmtRes!AQ4:'SmtRes'!AQ6,"=1",SmtRes!DH4:'SmtRes'!DH6) -> 0 | S29: =SUMIF(SmtRes!AQ4:'SmtRes'!AQ6,"=1",SmtRes!DI4:'SmtRes'!DI6) -> 0 | T29: =ROUND(CU29*I29,2) -> 0 | U29: =SUMIF(SmtRes!AQ4:'SmtRes'!AQ6,"=1",SmtRes!CV4:'SmtRes'!CV6) -> 0 | V29: =SUMIF(SmtRes!AQ4:'SmtRes'!AQ6,"=1",SmtRes!CW4:'SmtRes'!CW6) -> 0 | W29: =ROUND(CX29*I29,2) -> 0 | X29: =ROUND(CY29,2) -> 0 | Y29: =ROUND(CZ29,2) -> 0 | AA29: -1 | AB29: =ROUND((AC29+AD29+AF29),2) -> 5594.46 | AC29: =ROUND((SUM(SmtRes!BQ4:'SmtRes'!BQ6)),2) -> 50.45 | AD29: =ROUND((((0)-(0))+AE29),2) -> 0 | AE29: =ROUND((0),2) -> 0 | AF29: =ROUND((SUM(SmtRes!BT4:'SmtRes'!BT6)),2) -> 5544.01 | AG29: =ROUND((AP29),2) -> 0 | AH29: =(SUM(SmtRes!BU4:'SmtRes'!BU6)) -> 7.41 | AI29: =(0) -> 0 | AJ29: =(AS29) -> 0 | AK29: 5594.4628 | AL29: 50.449 | AM29: 0 | AN29: 0 | AO29: 5544.0138 | AP29: 0 | AQ29: 7.41 | AR29: 0 | AS29: 0 | AT29: 103 | AU29: 72 | AV29: 1 | AW29: 1 | AZ29: 1 | BA29: 1 | BB29: 1 | BC29: 1 | BH29: 0 | BI29: 1 | BJ29: ГЭСН-2022, 47-01-001-03, приказ Минстроя России от 18.05.2022 г. № 378/пр | BM29: 47001 | BN29: 0 | BP29: 0 | BQ29: 2 | BR29: 0 | BS29: 1 | BT29: 1 | BU29: 1 | BV29: 1 | BW29: 1 | BX29: 1 | BZ29: 103 | CA29: 72 | CE29: 0 | CF29: 0 | CG29: 0 | CH29: 0 | CI29: 0 | CJ29: 0 | CK29: 0 | CL29: 0 | CM29: 0 | CO29: 0 | CP29: =(P29+Q29+S29+R29) -> 0 | CQ29: =SUMIF(SmtRes!AQ4:'SmtRes'!AQ6,"=1",SmtRes!AA4:'SmtRes'!AA6) -> 12342.73 | CR29: =SUMIF(SmtRes!AQ4:'SmtRes'!AQ6,"=1",SmtRes!AB4:'SmtRes'!AB6) -> 0 | CS29: =SUMIF(SmtRes!AQ4:'SmtRes'!AQ6,"=1",SmtRes!AC4:'SmtRes'!AC6) -> 0 | CT29: =SUMIF(SmtRes!AQ4:'SmtRes'!AQ6,"=1",SmtRes!AD4:'SmtRes'!AD6) -> 748.18 | CU29: =AG29 -> 0 | CV29: =SUMIF(SmtRes!AQ4:'SmtRes'!AQ6,"=1",SmtRes!BU4:'SmtRes'!BU6) -> 7.41 | CW29: =SUMIF(SmtRes!AQ4:'SmtRes'!AQ6,"=1",SmtRes!BV4:'SmtRes'!BV6) -> 0 | CX29: =AJ29 -> 0 | CY29: =(((S29+R29)*AT29)/100) -> 0 | CZ29: =(((S29+R29)*AU29)/100) -> 0 | DN29: 0 | DO29: 0 | DP29: 1 | DQ29: 1 | DU29: 1005 | DV29: 100 м2 | DW29: 100 м2 | DX29: 100 | EE29: 83666893 | EF29: 2 | EG29: Общестроительные работы | EH29: 41 | EI29: Озеленение. Защитные лесонасаждения | EJ29: 1 | EK29: 47001 | EL29: Озеленение. Защитные лесонасаждения | EM29: ФЕР-47 | EQ29: 132096 | ER29: 0 | ES29: 0 | ET29: 0 | EU29: 0 | EV29: 0 | EW29: 7.41 | EX29: 0 | EY29: 0 | FQ29: 0 | FR29: 0 | FS29: 0 | FX29: 103 | FY29: 72 | GD29: 1 | GF29: 1323717432 | GG29: 2 | GH29: 1 | GI29: -2 | GJ29: 0 | GK29: 0 | GL29: =ROUND(IF(AND(BH29=3,BI29=3,FS29<>0),P29,0),2) -> 0 | GM29: =ROUND(O29+X29+Y29,2)+GX29 -> 0 | GN29: =IF(OR(BI29=0,BI29=1),GM29-GX29,0) -> 0 | GO29: =IF(BI29=2,GM29-GX29,0) -> 0 | GP29: =IF(BI29=4,GM29-GX29,0) -> 0 | GR29: 0 | GS29: 3 | GT29: 0 | GV29: =ROUND((GT29),2) -> 0 | GW29: 1 | GX29: =ROUND(HC29*I29,2) -> 0 | HA29: 0 | HB29: 0 | HC29: =GV29*GW29 -> 0 | HN29: Пр/812-041.0-1 | HO29: Пр/774-041.0 | HP29: Озеленение. Защитные лесонасаждения | HQ29: Озеленение. Защитные лесонасаждения | HS29: 0 | IK29: 0
A30: 19 | B30: 1 | G30: По ВОР "Разбивка трассы" | AA30: 1 | IK30: 0
A31: 17 | B31: 1 | C31: =ROW(SmtRes!A9) -> 9 | D31: =ROW(EtalonRes!A9) -> 9 | F31: 01-02-027-02 | G31: Планировка площадей: механизированным способом, группа грунтов 2 | H31: 1000 м2 | I31: 0 | J31: 0 | K31: 0 | L31: 0.001 | M31: 0.001 | N31: =ROUND(L31-M31,4) -> 0 | O31: =ROUND(CP31,2) -> 0 | P31: =SUMIF(SmtRes!AQ7:'SmtRes'!AQ9,"=1",SmtRes!DF7:'SmtRes'!DF9) -> 0 | Q31: =SUMIF(SmtRes!AQ7:'SmtRes'!AQ9,"=1",SmtRes!DG7:'SmtRes'!DG9) -> 0 | R31: =SUMIF(SmtRes!AQ7:'SmtRes'!AQ9,"=1",SmtRes!DH7:'SmtRes'!DH9) -> 0 | S31: =SUMIF(SmtRes!AQ7:'SmtRes'!AQ9,"=1",SmtRes!DI7:'SmtRes'!DI9) -> 0 | T31: =ROUND(CU31*I31,2) -> 0 | U31: =SUMIF(SmtRes!AQ7:'SmtRes'!AQ9,"=1",SmtRes!CV7:'SmtRes'!CV9) -> 0 | V31: =SUMIF(SmtRes!AQ7:'SmtRes'!AQ9,"=1",SmtRes!CW7:'SmtRes'!CW9) -> 0 | W31: =ROUND(CX31*I31,2) -> 0 | X31: =ROUND(CY31,2) -> 0 | Y31: =ROUND(CZ31,2) -> 0 | AA31: -1 | AB31: =ROUND((AC31+AD31+AF31),2) -> 1275.94 | AC31: =ROUND((0),2) -> 0 | AD31: =ROUND((((SUM(SmtRes!BR7:'SmtRes'!BR9))-(SUM(SmtRes!BS7:'SmtRes'!BS9)))+AE31),2) -> 1275.94 | AE31: =ROUND((SUM(SmtRes!BS7:'SmtRes'!BS9)),2) -> 1079.56 | AF31: =ROUND((0),2) -> 0 | AG31: =ROUND((AP31),2) -> 0 | AH31: =(0) -> 0 | AI31: =(SUM(SmtRes!BV7:'SmtRes'!BV9)) -> 0.99 | AJ31: =(AS31) -> 0 | AK31: 2355.4948 | AL31: 0 | AM31: 1275.9394 | AN31: 1079.5554 | AO31: 0 | AP31: 0 | AQ31: 0 | AR31: 0.99 | AS31: 0 | AT31: 89 | AU31: 41 | AV31: 1 | AW31: 1 | AZ31: 1 | BA31: 1 | BB31: 1 | BC31: 1 | BH31: 0 | BI31: 1 | BJ31: ГЭСН-2022, 01-02-027-02, приказ Минстроя России от 18.05.2022 г. № 378/пр | BM31: 1006 | BN31: 0 | BP31: 0 | BQ31: 2 | BR31: 0 | BS31: 1 | BT31: 1 | BU31: 1 | BV31: 1 | BW31: 1 | BX31: 1 | BZ31: 89 | CA31: 41 | CE31: 0 | CF31: 0 | CG31: 0 | CH31: 0 | CI31: 0 | CJ31: 0 | CK31: 0 | CL31: 0 | CM31: 0 | CO31: 0 | CP31: =(P31+Q31+S31+R31) -> 0 | CQ31: =SUMIF(SmtRes!AQ7:'SmtRes'!AQ9,"=1",SmtRes!AA7:'SmtRes'!AA9) -> 0 | CR31: =SUMIF(SmtRes!AQ7:'SmtRes'!AQ9,"=1",SmtRes!AB7:'SmtRes'!AB9) -> 3835.93 | CS31: =SUMIF(SmtRes!AQ7:'SmtRes'!AQ9,"=1",SmtRes!AC7:'SmtRes'!AC9) -> 2180.92 | CT31: =SUMIF(SmtRes!AQ7:'SmtRes'!AQ9,"=1",SmtRes!AD7:'SmtRes'!AD9) -> 0 | CU31: =AG31 -> 0 | CV31: =SUMIF(SmtRes!AQ7:'SmtRes'!AQ9,"=1",SmtRes!BU7:'SmtRes'!BU9) -> 0 | CW31: =SUMIF(SmtRes!AQ7:'SmtRes'!AQ9,"=1",SmtRes!BV7:'SmtRes'!BV9) -> 0.99 | CX31: =AJ31 -> 0 | CY31: =(((S31+R31)*AT31)/100) -> 0 | CZ31: =(((S31+R31)*AU31)/100) -> 0 | DN31: 0 | DO31: 0 | DP31: 1 | DQ31: 1 | DU31: 1005 | DV31: 1000 м2 | DW31: 1000 м2 | DX31: 1000 | EE31: 83666803 | EF31: 2 | EG31: Общестроительные работы | EH31: 1 | EI31: Земляные работы | EJ31: 1 | EK31: 1006 | EL31: Земляные работы, выполняемые: по другим видам работ ( подготовительные, сопутствующие, укрепительные ) | EM31: ФЕР-01 | EQ31: 132096 | ER31: 0 | ES31: 0 | ET31: 0 | EU31: 0 | EV31: 0 | EW31: 0 | EX31: 0.99 | EY31: 0 | FQ31: 0 | FR31: 0 | FS31: 0 | FX31: 89 | FY31: 41 | GD31: 1 | GF31: 778139628 | GG31: 2 | GH31: 1 | GI31: -2 | GJ31: 0 | GK31: 0 | GL31: =ROUND(IF(AND(BH31=3,BI31=3,FS31<>0),P31,0),2) -> 0 | GM31: =ROUND(O31+X31+Y31,2)+GX31 -> 0 | GN31: =IF(OR(BI31=0,BI31=1),GM31-GX31,0) -> 0 | GO31: =IF(BI31=2,GM31-GX31,0) -> 0 | GP31: =IF(BI31=4,GM31-GX31,0) -> 0 | GR31: 0 | GS31: 0 | GT31: 0 | GV31: =ROUND((GT31),2) -> 0 | GW31: 1 | GX31: =ROUND(HC31*I31,2) -> 0 | HA31: 0 | HB31: 0 | HC31: =GV31*GW31 -> 0 | HN31: Пр/812-001.4-1 | HO31: Пр/774-001.4 | HP31: Земляные работы, выполняемые: по другим видам работ (подготовительные, сопутствующие, укрепительные) | HQ31: Земляные работы, выполняемые: по другим видам работ (подготовительные, сопутствующие, укрепительные) | HS31: 0 | IK31: 0
A32: 17 | B32: 1 | C32: =ROW(SmtRes!A12) -> 12 | D32: =ROW(EtalonRes!A12) -> 12 | F32: 01-02-027-02 | G32: Планировка площадей: механизированным способом, группа грунтов 2 | H32: 1000 м2 | I32: 0 | J32: 0 | K32: 0 | L32: 0.001 | M32: 0.001 | N32: =ROUND(L32-M32,4) -> 0 | O32: =ROUND(CP32,2) -> 0 | P32: =SUMIF(SmtRes!AQ10:'SmtRes'!AQ12,"=1",SmtRes!DF10:'SmtRes'!DF12) -> 0 | Q32: =SUMIF(SmtRes!AQ10:'SmtRes'!AQ12,"=1",SmtRes!DG10:'SmtRes'!DG12) -> 0 | R32: =SUMIF(SmtRes!AQ10:'SmtRes'!AQ12,"=1",SmtRes!DH10:'SmtRes'!DH12) -> 0 | S32: =SUMIF(SmtRes!AQ10:'SmtRes'!AQ12,"=1",SmtRes!DI10:'SmtRes'!DI12) -> 0 | T32: =ROUND(CU32*I32,2) -> 0 | U32: =SUMIF(SmtRes!AQ10:'SmtRes'!AQ12,"=1",SmtRes!CV10:'SmtRes'!CV12) -> 0 | V32: =SUMIF(SmtRes!AQ10:'SmtRes'!AQ12,"=1",SmtRes!CW10:'SmtRes'!CW12) -> 0 | W32: =ROUND(CX32*I32,2) -> 0 | X32: =ROUND(CY32,2) -> 0 | Y32: =ROUND(CZ32,2) -> 0 | AA32: -1 | AB32: =ROUND((AC32+AD32+AF32),2) -> 1275.94 | AC32: =ROUND((0),2) -> 0 | AD32: =ROUND((((SUM(SmtRes!BR10:'SmtRes'!BR12))-(SUM(SmtRes!BS10:'SmtRes'!BS12)))+AE32),2) -> 1275.94 | AE32: =ROUND((SUM(SmtRes!BS10:'SmtRes'!BS12)),2) -> 1079.56 | AF32: =ROUND((0),2) -> 0 | AG32: =ROUND((AP32),2) -> 0 | AH32: =(0) -> 0 | AI32: =(SUM(SmtRes!BV10:'SmtRes'!BV12)) -> 0.99 | AJ32: =(AS32) -> 0 | AK32: 2355.4948 | AL32: 0 | AM32: 1275.9394 | AN32: 1079.5554 | AO32: 0 | AP32: 0 | AQ32: 0 | AR32: 0.99 | AS32: 0 | AT32: 89 | AU32: 41 | AV32: 1 | AW32: 1 | AZ32: 1 | BA32: 1 | BB32: 1 | BC32: 1 | BH32: 0 | BI32: 1 | BJ32: ГЭСН-2022, 01-02-027-02, приказ Минстроя России от 18.05.2022 г. № 378/пр | BM32: 1006 | BN32: 0 | BP32: 0 | BQ32: 2 | BR32: 0 | BS32: 1 | BT32: 1 | BU32: 1 | BV32: 1 | BW32: 1 | BX32: 1 | BZ32: 89 | CA32: 41 | CE32: 0 | CF32: 0 | CG32: 0 | CH32: 0 | CI32: 0 | CJ32: 0 | CK32: 0 | CL32: 0 | CM32: 0 | CO32: 0 | CP32: =(P32+Q32+S32+R32) -> 0 | CQ32: =SUMIF(SmtRes!AQ10:'SmtRes'!AQ12,"=1",SmtRes!AA10:'SmtRes'!AA12) -> 0 | CR32: =SUMIF(SmtRes!AQ10:'SmtRes'!AQ12,"=1",SmtRes!AB10:'SmtRes'!AB12) -> 3835.93 | CS32: =SUMIF(SmtRes!AQ10:'SmtRes'!AQ12,"=1",SmtRes!AC10:'SmtRes'!AC12) -> 2180.92 | CT32: =SUMIF(SmtRes!AQ10:'SmtRes'!AQ12,"=1",SmtRes!AD10:'SmtRes'!AD12) -> 0 | CU32: =AG32 -> 0 | CV32: =SUMIF(SmtRes!AQ10:'SmtRes'!AQ12,"=1",SmtRes!BU10:'SmtRes'!BU12) -> 0 | CW32: =SUMIF(SmtRes!AQ10:'SmtRes'!AQ12,"=1",SmtRes!BV10:'SmtRes'!BV12) -> 0.99 | CX32: =AJ32 -> 0 | CY32: =(((S32+R32)*AT32)/100) -> 0 | CZ32: =(((S32+R32)*AU32)/100) -> 0 | DN32: 0 | DO32: 0 | DP32: 1 | DQ32: 1 | DU32: 1005 | DV32: 1000 м2 | DW32: 1000 м2 | DX32: 1000 | EE32: 83666803 | EF32: 2 | EG32: Общестроительные работы | EH32: 1 | EI32: Земляные работы | EJ32: 1 | EK32: 1006 | EL32: Земляные работы, выполняемые: по другим видам работ ( подготовительные, сопутствующие, укрепительные ) | EM32: ФЕР-01 | EQ32: 132096 | ER32: 0 | ES32: 0 | ET32: 0 | EU32: 0 | EV32: 0 | EW32: 0 | EX32: 0.99 | EY32: 0 | FQ32: 0 | FR32: 0 | FS32: 0 | FX32: 89 | FY32: 41 | GD32: 1 | GF32: 778139628 | GG32: 2 | GH32: 1 | GI32: -2 | GJ32: 0 | GK32: 0 | GL32: =ROUND(IF(AND(BH32=3,BI32=3,FS32<>0),P32,0),2) -> 0 | GM32: =ROUND(O32+X32+Y32,2)+GX32 -> 0 | GN32: =IF(OR(BI32=0,BI32=1),GM32-GX32,0) -> 0 | GO32: =IF(BI32=2,GM32-GX32,0) -> 0 | GP32: =IF(BI32=4,GM32-GX32,0) -> 0 | GR32: 0 | GS32: 0 | GT32: 0 | GV32: =ROUND((GT32),2) -> 0 | GW32: 1 | GX32: =ROUND(HC32*I32,2) -> 0 | HA32: 0 | HB32: 0 | HC32: =GV32*GW32 -> 0 | HN32: Пр/812-001.4-1 | HO32: Пр/774-001.4 | HP32: Земляные работы, выполняемые: по другим видам работ (подготовительные, сопутствующие, укрепительные) | HQ32: Земляные работы, выполняемые: по другим видам работ (подготовительные, сопутствующие, укрепительные) | HS32: 0 | IK32: 0
A33: 19 | B33: 1 | G33: По ВОР "Планировка площадей" | AA33: 1 | IK33: 0
A34: 17 | B34: 1 | C34: =ROW(SmtRes!A15) -> 15 | D34: =ROW(EtalonRes!A15) -> 15 | F34: 47-01-109-02 | G34: Обрезка крон деревьев под естественный вид: с автогидроподъемника | H34: ШТ | I34: 0 | J34: 0 | K34: 0 | L34: 1 | M34: 1 | N34: =ROUND(L34-M34,4) -> 0 | O34: =ROUND(CP34,2) -> 0 | P34: =SUMIF(SmtRes!AQ13:'SmtRes'!AQ15,"=1",SmtRes!DF13:'SmtRes'!DF15) -> 0 | Q34: =SUMIF(SmtRes!AQ13:'SmtRes'!AQ15,"=1",SmtRes!DG13:'SmtRes'!DG15) -> 0 | R34: =SUMIF(SmtRes!AQ13:'SmtRes'!AQ15,"=1",SmtRes!DH13:'SmtRes'!DH15) -> 0 | S34: =SUMIF(SmtRes!AQ13:'SmtRes'!AQ15,"=1",SmtRes!DI13:'SmtRes'!DI15) -> 0 | T34: =ROUND(CU34*I34,2) -> 0 | U34: =SUMIF(SmtRes!AQ13:'SmtRes'!AQ15,"=1",SmtRes!CV13:'SmtRes'!CV15) -> 0 | V34: =SUMIF(SmtRes!AQ13:'SmtRes'!AQ15,"=1",SmtRes!CW13:'SmtRes'!CW15) -> 0 | W34: =ROUND(CX34*I34,2) -> 0 | X34: =ROUND(CY34,2) -> 0 | Y34: =ROUND(CZ34,2) -> 0 | AA34: -1 | AB34: =ROUND((AC34+AD34+AF34),2) -> 900.43 | AC34: =ROUND((0),2) -> 0 | AD34: =ROUND((((SUM(SmtRes!BR13:'SmtRes'!BR15))-(SUM(SmtRes!BS13:'SmtRes'!BS15)))+AE34),2) -> 307.22 | AE34: =ROUND((SUM(SmtRes!BS13:'SmtRes'!BS15)),2) -> 307.87 | AF34: =ROUND((SUM(SmtRes!BT13:'SmtRes'!BT15)),2) -> 593.21 | AG34: =ROUND((AP34),2) -> 0 | AH34: =(SUM(SmtRes!BU13:'SmtRes'!BU15)) -> 0.68 | AI34: =(SUM(SmtRes!BV13:'SmtRes'!BV15)) -> 0.33 | AJ34: =(AS34) -> 0 | AK34: 1208.3118 | AL34: 0 | AM34: 307.2267 | AN34: 307.8735 | AO34: 593.2116 | AP34: 0 | AQ34: 0.68 | AR34: 0.33 | AS34: 0 | AT34: 103 | AU34: 72 | AV34: 1 | AW34: 1 | AZ34: 1 | BA34: 1 | BB34: 1 | BC34: 1 | BH34: 0 | BI34: 1 | BJ34: ГЭСН-2022, 47-01-109-02, приказ Минстроя России от 18.05.2022 г. № 378/пр | BM34: 47001 | BN34: 0 | BP34: 0 | BQ34: 2 | BR34: 0 | BS34: 1 | BT34: 1 | BU34: 1 | BV34: 1 | BW34: 1 | BX34: 1 | BZ34: 103 | CA34: 72 | CE34: 0 | CF34: 0 | CG34: 0 | CH34: 0 | CI34: 0 | CJ34: 0 | CK34: 0 | CL34: 0 | CM34: 0 | CO34: 0 | CP34: =(P34+Q34+S34+R34) -> 0 | CQ34: =SUMIF(SmtRes!AQ13:'SmtRes'!AQ15,"=1",SmtRes!AA13:'SmtRes'!AA15) -> 0 | CR34: =SUMIF(SmtRes!AQ13:'SmtRes'!AQ15,"=1",SmtRes!AB13:'SmtRes'!AB15) -> 930.99 | CS34: =SUMIF(SmtRes!AQ13:'SmtRes'!AQ15,"=1",SmtRes!AC13:'SmtRes'!AC15) -> 932.95 | CT34: =SUMIF(SmtRes!AQ13:'SmtRes'!AQ15,"=1",SmtRes!AD13:'SmtRes'!AD15) -> 872.37 | CU34: =AG34 -> 0 | CV34: =SUMIF(SmtRes!AQ13:'SmtRes'!AQ15,"=1",SmtRes!BU13:'SmtRes'!BU15) -> 0.68 | CW34: =SUMIF(SmtRes!AQ13:'SmtRes'!AQ15,"=1",SmtRes!BV13:'SmtRes'!BV15) -> 0.33 | CX34: =AJ34 -> 0 | CY34: =(((S34+R34)*AT34)/100) -> 0 | CZ34: =(((S34+R34)*AU34)/100) -> 0 | DN34: 0 | DO34: 0 | DP34: 1 | DQ34: 1 | DU34: 1013 | DV34: ШТ | DW34: ШТ | DX34: 1 | EE34: 83666893 | EF34: 2 | EG34: Общестроительные работы | EH34: 41 | EI34: Озеленение. Защитные лесонасаждения | EJ34: 1 | EK34: 47001 | EL34: Озеленение. Защитные лесонасаждения | EM34: ФЕР-47 | EQ34: 132096 | ER34: 0 | ES34: 0 | ET34: 0 | EU34: 0 | EV34: 0 | EW34: 0.68 | EX34: 0.33 | EY34: 0 | FQ34: 0 | FR34: 0 | FS34: 0 | FX34: 103 | FY34: 72 | GD34: 1 | GF34: -1710942875 | GG34: 2 | GH34: 1 | GI34: -2 | GJ34: 0 | GK34: 0 | GL34: =ROUND(IF(AND(BH34=3,BI34=3,FS34<>0),P34,0),2) -> 0 | GM34: =ROUND(O34+X34+Y34,2)+GX34 -> 0 | GN34: =IF(OR(BI34=0,BI34=1),GM34-GX34,0) -> 0 | GO34: =IF(BI34=2,GM34-GX34,0) -> 0 | GP34: =IF(BI34=4,GM34-GX34,0) -> 0 | GR34: 0 | GS34: 0 | GT34: 0 | GV34: =ROUND((GT34),2) -> 0 | GW34: 1 | GX34: =ROUND(HC34*I34,2) -> 0 | HA34: 0 | HB34: 0 | HC34: =GV34*GW34 -> 0 | HN34: Пр/812-041.0-1 | HO34: Пр/774-041.0 | HP34: Озеленение. Защитные лесонасаждения | HQ34: Озеленение. Защитные лесонасаждения | HS34: 0 | IK34: 0
A35: 17 | B35: 1 | C35: =ROW(SmtRes!A18) -> 18 | D35: =ROW(EtalonRes!A18) -> 18 | F35: 47-01-109-02 | G35: Обрезка крон деревьев под естественный вид: с автогидроподъемника | H35: ШТ | I35: 0 | J35: 0 | K35: 0 | L35: 1 | M35: 1 | N35: =ROUND(L35-M35,4) -> 0 | O35: =ROUND(CP35,2) -> 0 | P35: =SUMIF(SmtRes!AQ16:'SmtRes'!AQ18,"=1",SmtRes!DF16:'SmtRes'!DF18) -> 0 | Q35: =SUMIF(SmtRes!AQ16:'SmtRes'!AQ18,"=1",SmtRes!DG16:'SmtRes'!DG18) -> 0 | R35: =SUMIF(SmtRes!AQ16:'SmtRes'!AQ18,"=1",SmtRes!DH16:'SmtRes'!DH18) -> 0 | S35: =SUMIF(SmtRes!AQ16:'SmtRes'!AQ18,"=1",SmtRes!DI16:'SmtRes'!DI18) -> 0 | T35: =ROUND(CU35*I35,2) -> 0 | U35: =SUMIF(SmtRes!AQ16:'SmtRes'!AQ18,"=1",SmtRes!CV16:'SmtRes'!CV18) -> 0 | V35: =SUMIF(SmtRes!AQ16:'SmtRes'!AQ18,"=1",SmtRes!CW16:'SmtRes'!CW18) -> 0 | W35: =ROUND(CX35*I35,2) -> 0 | X35: =ROUND(CY35,2) -> 0 | Y35: =ROUND(CZ35,2) -> 0 | AA35: -1 | AB35: =ROUND((AC35+AD35+AF35),2) -> 900.43 | AC35: =ROUND((0),2) -> 0 | AD35: =ROUND((((SUM(SmtRes!BR16:'SmtRes'!BR18))-(SUM(SmtRes!BS16:'SmtRes'!BS18)))+AE35),2) -> 307.22 | AE35: =ROUND((SUM(SmtRes!BS16:'SmtRes'!BS18)),2) -> 307.87 | AF35: =ROUND((SUM(SmtRes!BT16:'SmtRes'!BT18)),2) -> 593.21 | AG35: =ROUND((AP35),2) -> 0 | AH35: =(SUM(SmtRes!BU16:'SmtRes'!BU18)) -> 0.68 | AI35: =(SUM(SmtRes!BV16:'SmtRes'!BV18)) -> 0.33 | AJ35: =(AS35) -> 0 | AK35: 1208.3118 | AL35: 0 | AM35: 307.2267 | AN35: 307.8735 | AO35: 593.2116 | AP35: 0 | AQ35: 0.68 | AR35: 0.33 | AS35: 0 | AT35: 103 | AU35: 72 | AV35: 1 | AW35: 1 | AZ35: 1 | BA35: 1 | BB35: 1 | BC35: 1 | BH35: 0 | BI35: 1 | BJ35: ГЭСН-2022, 47-01-109-02, приказ Минстроя России от 18.05.2022 г. № 378/пр | BM35: 47001 | BN35: 0 | BP35: 0 | BQ35: 2 | BR35: 0 | BS35: 1 | BT35: 1 | BU35: 1 | BV35: 1 | BW35: 1 | BX35: 1 | BZ35: 103 | CA35: 72 | CE35: 0 | CF35: 0 | CG35: 0 | CH35: 0 | CI35: 0 | CJ35: 0 | CK35: 0 | CL35: 0 | CM35: 0 | CO35: 0 | CP35: =(P35+Q35+S35+R35) -> 0 | CQ35: =SUMIF(SmtRes!AQ16:'SmtRes'!AQ18,"=1",SmtRes!AA16:'SmtRes'!AA18) -> 0 | CR35: =SUMIF(SmtRes!AQ16:'SmtRes'!AQ18,"=1",SmtRes!AB16:'SmtRes'!AB18) -> 930.99 | CS35: =SUMIF(SmtRes!AQ16:'SmtRes'!AQ18,"=1",SmtRes!AC16:'SmtRes'!AC18) -> 932.95 | CT35: =SUMIF(SmtRes!AQ16:'SmtRes'!AQ18,"=1",SmtRes!AD16:'SmtRes'!AD18) -> 872.37 | CU35: =AG35 -> 0 | CV35: =SUMIF(SmtRes!AQ16:'SmtRes'!AQ18,"=1",SmtRes!BU16:'SmtRes'!BU18) -> 0.68 | CW35: =SUMIF(SmtRes!AQ16:'SmtRes'!AQ18,"=1",SmtRes!BV16:'SmtRes'!BV18) -> 0.33 | CX35: =AJ35 -> 0 | CY35: =(((S35+R35)*AT35)/100) -> 0 | CZ35: =(((S35+R35)*AU35)/100) -> 0 | DN35: 0 | DO35: 0 | DP35: 1 | DQ35: 1 | DU35: 1013 | DV35: ШТ | DW35: ШТ | DX35: 1 | EE35: 83666893 | EF35: 2 | EG35: Общестроительные работы | EH35: 41 | EI35: Озеленение. Защитные лесонасаждения | EJ35: 1 | EK35: 47001 | EL35: Озеленение. Защитные лесонасаждения | EM35: ФЕР-47 | EQ35: 132096 | ER35: 0 | ES35: 0 | ET35: 0 | EU35: 0 | EV35: 0 | EW35: 0.68 | EX35: 0.33 | EY35: 0 | FQ35: 0 | FR35: 0 | FS35: 0 | FX35: 103 | FY35: 72 | GD35: 1 | GF35: -1710942875 | GG35: 2 | GH35: 1 | GI35: -2 | GJ35: 0 | GK35: 0 | GL35: =ROUND(IF(AND(BH35=3,BI35=3,FS35<>0),P35,0),2) -> 0 | GM35: =ROUND(O35+X35+Y35,2)+GX35 -> 0 | GN35: =IF(OR(BI35=0,BI35=1),GM35-GX35,0) -> 0 | GO35: =IF(BI35=2,GM35-GX35,0) -> 0 | GP35: =IF(BI35=4,GM35-GX35,0) -> 0 | GR35: 0 | GS35: 0 | GT35: 0 | GV35: =ROUND((GT35),2) -> 0 | GW35: 1 | GX35: =ROUND(HC35*I35,2) -> 0 | HA35: 0 | HB35: 0 | HC35: =GV35*GW35 -> 0 | HN35: Пр/812-041.0-1 | HO35: Пр/774-041.0 | HP35: Озеленение. Защитные лесонасаждения | HQ35: Озеленение. Защитные лесонасаждения | HS35: 0 | IK35: 0
A36: 19 | B36: 1 | G36: По ВОР "Опиловка деревьев выше 5м" | AA36: 1 | IK36: 0
A37: 17 | B37: 1 | C37: =ROW(SmtRes!A19) -> 19 | D37: =ROW(EtalonRes!A19) -> 19 | F37: 68-01-005-03 | G37: Вырезка сухих ветвей деревьев лиственных пород диаметром: до 350 мм при количестве срезанных ветвей до 15 | H37: ШТ | I37: 0 | J37: 0 | K37: 0 | L37: 1 | M37: 1 | N37: =ROUND(L37-M37,4) -> 0 | O37: =ROUND(CP37,2) -> 0 | P37: =SUMIF(SmtRes!AQ19:'SmtRes'!AQ19,"=1",SmtRes!DF19:'SmtRes'!DF19) -> 0 | Q37: =SUMIF(SmtRes!AQ19:'SmtRes'!AQ19,"=1",SmtRes!DG19:'SmtRes'!DG19) -> 0 | R37: =SUMIF(SmtRes!AQ19:'SmtRes'!AQ19,"=1",SmtRes!DH19:'SmtRes'!DH19) -> 0 | S37: =SUMIF(SmtRes!AQ19:'SmtRes'!AQ19,"=1",SmtRes!DI19:'SmtRes'!DI19) -> 0 | T37: =ROUND(CU37*I37,2) -> 0 | U37: =SUMIF(SmtRes!AQ19:'SmtRes'!AQ19,"=1",SmtRes!CV19:'SmtRes'!CV19) -> 0 | V37: =SUMIF(SmtRes!AQ19:'SmtRes'!AQ19,"=1",SmtRes!CW19:'SmtRes'!CW19) -> 0 | W37: =ROUND(CX37*I37,2) -> 0 | X37: =ROUND(CY37,2) -> 0 | Y37: =ROUND(CZ37,2) -> 0 | AA37: -1 | AB37: =ROUND((AC37+AD37+AF37),2) -> 700.56 | AC37: =ROUND((0),2) -> 0 | AD37: =ROUND((((0)-(0))+AE37),2) -> 0 | AE37: =ROUND((0),2) -> 0 | AF37: =ROUND((SUM(SmtRes!BT19:'SmtRes'!BT19)),2) -> 700.56 | AG37: =ROUND((AP37),2) -> 0 | AH37: =(SUM(SmtRes!BU19:'SmtRes'!BU19)) -> 0.98 | AI37: =(0) -> 0 | AJ37: =(AS37) -> 0 | AK37: 700.5628 | AL37: 0 | AM37: 0 | AN37: 0 | AO37: 700.5628 | AP37: 0 | AQ37: 0.98 | AR37: 0 | AS37: 0 | AT37: 102 | AU37: 54 | AV37: 1 | AW37: 1 | AZ37: 1 | BA37: 1 | BB37: 1 | BC37: 1 | BH37: 0 | BI37: 1 | BJ37: ГЭСНр-2022, 68-01-005-03, приказ Минстроя России от 18.05.2022 г. № 378/пр | BM37: 68001 | BN37: 0 | BP37: 0 | BQ37: 6 | BR37: 0 | BS37: 1 | BT37: 1 | BU37: 1 | BV37: 1 | BW37: 1 | BX37: 1 | BZ37: 102 | CA37: 54 | CE37: 0 | CF37: 0 | CG37: 0 | CH37: 0 | CI37: 0 | CJ37: 0 | CK37: 0 | CL37: 0 | CM37: 0 | CO37: 0 | CP37: =(P37+Q37+S37+R37) -> 0 | CQ37: =SUMIF(SmtRes!AQ19:'SmtRes'!AQ19,"=1",SmtRes!AA19:'SmtRes'!AA19) -> 0 | CR37: =SUMIF(SmtRes!AQ19:'SmtRes'!AQ19,"=1",SmtRes!AB19:'SmtRes'!AB19) -> 0 | CS37: =SUMIF(SmtRes!AQ19:'SmtRes'!AQ19,"=1",SmtRes!AC19:'SmtRes'!AC19) -> 0 | CT37: =SUMIF(SmtRes!AQ19:'SmtRes'!AQ19,"=1",SmtRes!AD19:'SmtRes'!AD19) -> 714.86 | CU37: =AG37 -> 0 | CV37: =SUMIF(SmtRes!AQ19:'SmtRes'!AQ19,"=1",SmtRes!BU19:'SmtRes'!BU19) -> 0.98 | CW37: =SUMIF(SmtRes!AQ19:'SmtRes'!AQ19,"=1",SmtRes!BV19:'SmtRes'!BV19) -> 0 | CX37: =AJ37 -> 0 | CY37: =(((S37+R37)*AT37)/100) -> 0 | CZ37: =(((S37+R37)*AU37)/100) -> 0 | DN37: 0 | DO37: 0 | DP37: 1 | DQ37: 1 | DU37: 1013 | DV37: ШТ | DW37: ШТ | DX37: 1 | EE37: 83666950 | EF37: 6 | EG37: Ремонтно-строительные работы | EH37: 102 | EI37: Благоустройство | EJ37: 1 | EK37: 68001 | EL37: Благоустройство | EM37: рФЕР-68 | EQ37: 132096 | ER37: 0 | ES37: 0 | ET37: 0 | EU37: 0 | EV37: 0 | EW37: 0.98 | EX37: 0 | EY37: 0 | FQ37: 0 | FR37: 0 | FS37: 0 | FX37: 102 | FY37: 54 | GD37: 1 | GF37: -420139828 | GG37: 2 | GH37: 1 | GI37: -2 | GJ37: 0 | GK37: 0 | GL37: =ROUND(IF(AND(BH37=3,BI37=3,FS37<>0),P37,0),2) -> 0 | GM37: =ROUND(O37+X37+Y37,2)+GX37 -> 0 | GN37: =IF(OR(BI37=0,BI37=1),GM37-GX37,0) -> 0 | GO37: =IF(BI37=2,GM37-GX37,0) -> 0 | GP37: =IF(BI37=4,GM37-GX37,0) -> 0 | GR37: 0 | GS37: 0 | GT37: 0 | GV37: =ROUND((GT37),2) -> 0 | GW37: 1 | GX37: =ROUND(HC37*I37,2) -> 0 | HA37: 0 | HB37: 0 | HC37: =GV37*GW37 -> 0 | HN37: Пр/812-102.0-1 | HO37: Пр/774-102.0 | HP37: Благоустройство | HQ37: Благоустройство | HS37: 0 | IK37: 0
A38: 17 | B38: 1 | C38: =ROW(SmtRes!A20) -> 20 | D38: =ROW(EtalonRes!A20) -> 20 | F38: 68-01-005-03 | G38: Вырезка сухих ветвей деревьев лиственных пород диаметром: до 350 мм при количестве срезанных ветвей до 15 | H38: ШТ | I38: 0 | J38: 0 | K38: 0 | L38: 1 | M38: 1 | N38: =ROUND(L38-M38,4) -> 0 | O38: =ROUND(CP38,2) -> 0 | P38: =SUMIF(SmtRes!AQ20:'SmtRes'!AQ20,"=1",SmtRes!DF20:'SmtRes'!DF20) -> 0 | Q38: =SUMIF(SmtRes!AQ20:'SmtRes'!AQ20,"=1",SmtRes!DG20:'SmtRes'!DG20) -> 0 | R38: =SUMIF(SmtRes!AQ20:'SmtRes'!AQ20,"=1",SmtRes!DH20:'SmtRes'!DH20) -> 0 | S38: =SUMIF(SmtRes!AQ20:'SmtRes'!AQ20,"=1",SmtRes!DI20:'SmtRes'!DI20) -> 0 | T38: =ROUND(CU38*I38,2) -> 0 | U38: =SUMIF(SmtRes!AQ20:'SmtRes'!AQ20,"=1",SmtRes!CV20:'SmtRes'!CV20) -> 0 | V38: =SUMIF(SmtRes!AQ20:'SmtRes'!AQ20,"=1",SmtRes!CW20:'SmtRes'!CW20) -> 0 | W38: =ROUND(CX38*I38,2) -> 0 | X38: =ROUND(CY38,2) -> 0 | Y38: =ROUND(CZ38,2) -> 0 | AA38: -1 | AB38: =ROUND((AC38+AD38+AF38),2) -> 700.56 | AC38: =ROUND((0),2) -> 0 | AD38: =ROUND((((0)-(0))+AE38),2) -> 0 | AE38: =ROUND((0),2) -> 0 | AF38: =ROUND((SUM(SmtRes!BT20:'SmtRes'!BT20)),2) -> 700.56 | AG38: =ROUND((AP38),2) -> 0 | AH38: =(SUM(SmtRes!BU20:'SmtRes'!BU20)) -> 0.98 | AI38: =(0) -> 0 | AJ38: =(AS38) -> 0 | AK38: 700.5628 | AL38: 0 | AM38: 0 | AN38: 0 | AO38: 700.5628 | AP38: 0 | AQ38: 0.98 | AR38: 0 | AS38: 0 | AT38: 102 | AU38: 54 | AV38: 1 | AW38: 1 | AZ38: 1 | BA38: 1 | BB38: 1 | BC38: 1 | BH38: 0 | BI38: 1 | BJ38: ГЭСНр-2022, 68-01-005-03, приказ Минстроя России от 18.05.2022 г. № 378/пр | BM38: 68001 | BN38: 0 | BP38: 0 | BQ38: 6 | BR38: 0 | BS38: 1 | BT38: 1 | BU38: 1 | BV38: 1 | BW38: 1 | BX38: 1 | BZ38: 102 | CA38: 54 | CE38: 0 | CF38: 0 | CG38: 0 | CH38: 0 | CI38: 0 | CJ38: 0 | CK38: 0 | CL38: 0 | CM38: 0 | CO38: 0 | CP38: =(P38+Q38+S38+R38) -> 0 | CQ38: =SUMIF(SmtRes!AQ20:'SmtRes'!AQ20,"=1",SmtRes!AA20:'SmtRes'!AA20) -> 0 | CR38: =SUMIF(SmtRes!AQ20:'SmtRes'!AQ20,"=1",SmtRes!AB20:'SmtRes'!AB20) -> 0 | CS38: =SUMIF(SmtRes!AQ20:'SmtRes'!AQ20,"=1",SmtRes!AC20:'SmtRes'!AC20) -> 0 | CT38: =SUMIF(SmtRes!AQ20:'SmtRes'!AQ20,"=1",SmtRes!AD20:'SmtRes'!AD20) -> 714.86 | CU38: =AG38 -> 0 | CV38: =SUMIF(SmtRes!AQ20:'SmtRes'!AQ20,"=1",SmtRes!BU20:'SmtRes'!BU20) -> 0.98 | CW38: =SUMIF(SmtRes!AQ20:'SmtRes'!AQ20,"=1",SmtRes!BV20:'SmtRes'!BV20) -> 0 | CX38: =AJ38 -> 0 | CY38: =(((S38+R38)*AT38)/100) -> 0 | CZ38: =(((S38+R38)*AU38)/100) -> 0 | DN38: 0 | DO38: 0 | DP38: 1 | DQ38: 1 | DU38: 1013 | DV38: ШТ | DW38: ШТ | DX38: 1 | EE38: 83666950 | EF38: 6 | EG38: Ремонтно-строительные работы | EH38: 102 | EI38: Благоустройство | EJ38: 1 | EK38: 68001 | EL38: Благоустройство | EM38: рФЕР-68 | EQ38: 132096 | ER38: 0 | ES38: 0 | ET38: 0 | EU38: 0 | EV38: 0 | EW38: 0.98 | EX38: 0 | EY38: 0 | FQ38: 0 | FR38: 0 | FS38: 0 | FX38: 102 | FY38: 54 | GD38: 1 | GF38: -420139828 | GG38: 2 | GH38: 1 | GI38: -2 | GJ38: 0 | GK38: 0 | GL38: =ROUND(IF(AND(BH38=3,BI38=3,FS38<>0),P38,0),2) -> 0 | GM38: =ROUND(O38+X38+Y38,2)+GX38 -> 0 | GN38: =IF(OR(BI38=0,BI38=1),GM38-GX38,0) -> 0 | GO38: =IF(BI38=2,GM38-GX38,0) -> 0 | GP38: =IF(BI38=4,GM38-GX38,0) -> 0 | GR38: 0 | GS38: 0 | GT38: 0 | GV38: =ROUND((GT38),2) -> 0 | GW38: 1 | GX38: =ROUND(HC38*I38,2) -> 0 | HA38: 0 | HB38: 0 | HC38: =GV38*GW38 -> 0 | HN38: Пр/812-102.0-1 | HO38: Пр/774-102.0 | HP38: Благоустройство | HQ38: Благоустройство | HS38: 0 | IK38: 0
A39: 19 | B39: 1 | G39: По ВОР "Формовочная обрезка деревьев высотой более 5м" | AA39: 1 | IK39: 0
A40: 17 | B40: 1 | C40: =ROW(SmtRes!A25) -> 25 | D40: =ROW(EtalonRes!A25) -> 25 | E40: 1 | F40: 33-04-016-02 | G40: Развозка конструкций и материалов опор ВЛ 0,38-10 кВ по трассе: одностоечных железобетонных опор | H40: ШТ | I40: 0 | J40: 0 | K40: 0 | L40: 11 | M40: 11 | N40: =ROUND(L40-M40,4) -> 0 | O40: =ROUND(CP40,2) -> 0 | P40: =SUMIF(SmtRes!AQ21:'SmtRes'!AQ25,"=1",SmtRes!DF21:'SmtRes'!DF25) -> 0 | Q40: =SUMIF(SmtRes!AQ21:'SmtRes'!AQ25,"=1",SmtRes!DG21:'SmtRes'!DG25) -> 0 | R40: =SUMIF(SmtRes!AQ21:'SmtRes'!AQ25,"=1",SmtRes!DH21:'SmtRes'!DH25) -> 0 | S40: =SUMIF(SmtRes!AQ21:'SmtRes'!AQ25,"=1",SmtRes!DI21:'SmtRes'!DI25) -> 0 | T40: =ROUND(CU40*I40,2) -> 0 | U40: =SUMIF(SmtRes!AQ21:'SmtRes'!AQ25,"=1",SmtRes!CV21:'SmtRes'!CV25) -> 0 | V40: =SUMIF(SmtRes!AQ21:'SmtRes'!AQ25,"=1",SmtRes!CW21:'SmtRes'!CW25) -> 0 | W40: =ROUND(CX40*I40,2) -> 0 | X40: =ROUND(CY40,2) -> 0 | Y40: =ROUND(CZ40,2) -> 0 | AA40: 85312357 | AB40: =ROUND((AC40+AD40+AF40),2) -> 977.54 | AC40: =ROUND((0),2) -> 0 | AD40: =ROUND((((SUM(SmtRes!BR21:'SmtRes'!BR25))-(SUM(SmtRes!BS21:'SmtRes'!BS25)))+AE40),2) -> 612.89 | AE40: =ROUND((SUM(SmtRes!BS21:'SmtRes'!BS25)),2) -> 547.85 | AF40: =ROUND((SUM(SmtRes!BT21:'SmtRes'!BT25)),2) -> 364.65 | AG40: =ROUND((AP40),2) -> 0 | AH40: =(SUM(SmtRes!BU21:'SmtRes'!BU25)) -> 0.528 | AI40: =(SUM(SmtRes!BV21:'SmtRes'!BV25)) -> 0.576 | AJ40: =(AS40) -> 0 | AK40: 1271.1544 | AL40: 0 | AM40: 510.7416 | AN40: 456.54 | AO40: 303.8728 | AP40: 0 | AQ40: 0.44 | AR40: 0.48 | AS40: 0 | AT40: 103 | AU40: 60 | AV40: 1 | AW40: 1 | AZ40: 1 | BA40: 1 | BB40: 1 | BC40: 1 | BH40: 0 | BI40: 1 | BJ40: ГЭСН-2022, 33-04-016-02, приказ Минстроя России от 18.05.2022 г. № 378/пр | BM40: 33001 | BN40: 0 | BP40: 0 | BQ40: 2 | BR40: 0 | BS40: 1 | BT40: 1 | BU40: 1 | BV40: 1 | BW40: 1 | BX40: 1 | BZ40: 103 | CA40: 60 | CE40: 0 | CF40: 0 | CG40: 0 | CH40: 1 | CI40: 0 | CJ40: 0 | CK40: 0 | CL40: 0 | CM40: 0 | CN40: Поправка: 421/пр_2020_прил.10_т.1_п.4_гр.5 Наименование: Производство работ осуществляется в охранной зоне действующей воздушной линии электропередачи, вблизи объектов, находящихся под напряжением, внутри объектов капитального строительства, внутренняя проводка в которых не обесточена, если это приведет к ограничению действий рабочих в соответствии с требованиями техники безопасности | CO40: 0 | CP40: =(P40+Q40+S40+R40) -> 0 | CQ40: =SUMIF(SmtRes!AQ21:'SmtRes'!AQ25,"=1",SmtRes!AA21:'SmtRes'!AA25) -> 0 | CR40: =SUMIF(SmtRes!AQ21:'SmtRes'!AQ25,"=1",SmtRes!AB21:'SmtRes'!AB25) -> 2274.47 | CS40: =SUMIF(SmtRes!AQ21:'SmtRes'!AQ25,"=1",SmtRes!AC21:'SmtRes'!AC25) -> 1902.25 | CT40: =SUMIF(SmtRes!AQ21:'SmtRes'!AQ25,"=1",SmtRes!AD21:'SmtRes'!AD25) -> 690.62 | CU40: =AG40 -> 0 | CV40: =SUMIF(SmtRes!AQ21:'SmtRes'!AQ25,"=1",SmtRes!BU21:'SmtRes'!BU25) -> 0.528 | CW40: =SUMIF(SmtRes!AQ21:'SmtRes'!AQ25,"=1",SmtRes!BV21:'SmtRes'!BV25) -> 0.576 | CX40: =AJ40 -> 0 | CY40: =(((S40+R40)*AT40)/100) -> 0 | CZ40: =(((S40+R40)*AU40)/100) -> 0 | DB40: 1 | DE40: *(0,2+1) | DF40: *(0,2+1) | DG40: *(0,2+1) | DI40: *(0,2+1) | DJ40: *(0,2+1) | DN40: 0 | DO40: 0 | DP40: 1 | DQ40: 1 | DU40: 1013 | DV40: ШТ | DW40: ШТ | DX40: 1 | EE40: 83666879 | EF40: 2 | EG40: Общестроительные работы | EH40: 27 | EI40: Линии электропередачи | EJ40: 1 | EK40: 33001 | EL40: Линии электропередачи | EM40: ФЕР-33 | EO40: Поправка: 421/пр_2020_прил.10_т.1_п.4_гр.5 | EQ40: 131072 | ER40: 0 | ES40: 0 | ET40: 0 | EU40: 0 | EV40: 0 | EW40: 0.44 | EX40: 0.48 | EY40: 0 | FQ40: 0 | FR40: 0 | FS40: 0 | FX40: 103 | FY40: 60 | GD40: 1 | GF40: 1316594094 | GG40: 2 | GH40: 1 | GI40: -2 | GJ40: 0 | GK40: 0 | GL40: =ROUND(IF(AND(BH40=3,BI40=3,FS40<>0),P40,0),2) -> 0 | GM40: =ROUND(O40+X40+Y40,2)+GX40 -> 0 | GN40: =IF(OR(BI40=0,BI40=1),GM40-GX40,0) -> 0 | GO40: =IF(BI40=2,GM40-GX40,0) -> 0 | GP40: =IF(BI40=4,GM40-GX40,0) -> 0 | GR40: 0 | GS40: 3 | GT40: 0 | GV40: =ROUND((GT40),2) -> 0 | GW40: 1 | GX40: =ROUND(HC40*I40,2) -> 0 | HA40: 0 | HB40: 0 | HC40: =GV40*GW40 -> 0 | HN40: Пр/812-027.0-1 | HO40: Пр/774-027.0 | HP40: Линии электропередачи | HQ40: Линии электропередачи | HS40: 0 | IK40: 0
A41: 17 | B41: 1 | C41: =ROW(SmtRes!A30) -> 30 | D41: =ROW(EtalonRes!A30) -> 30 | E41: 1 | F41: 33-04-016-02 | G41: Развозка конструкций и материалов опор ВЛ 0,38-10 кВ по трассе: одностоечных железобетонных опор | H41: ШТ | I41: 0 | J41: 0 | K41: 0 | L41: 11 | M41: 11 | N41: =ROUND(L41-M41,4) -> 0 | O41: =ROUND(CP41,2) -> 0 | P41: =SUMIF(SmtRes!AQ26:'SmtRes'!AQ30,"=1",SmtRes!DF26:'SmtRes'!DF30) -> 0 | Q41: =SUMIF(SmtRes!AQ26:'SmtRes'!AQ30,"=1",SmtRes!DG26:'SmtRes'!DG30) -> 0 | R41: =SUMIF(SmtRes!AQ26:'SmtRes'!AQ30,"=1",SmtRes!DH26:'SmtRes'!DH30) -> 0 | S41: =SUMIF(SmtRes!AQ26:'SmtRes'!AQ30,"=1",SmtRes!DI26:'SmtRes'!DI30) -> 0 | T41: =ROUND(CU41*I41,2) -> 0 | U41: =SUMIF(SmtRes!AQ26:'SmtRes'!AQ30,"=1",SmtRes!CV26:'SmtRes'!CV30) -> 0 | V41: =SUMIF(SmtRes!AQ26:'SmtRes'!AQ30,"=1",SmtRes!CW26:'SmtRes'!CW30) -> 0 | W41: =ROUND(CX41*I41,2) -> 0 | X41: =ROUND(CY41,2) -> 0 | Y41: =ROUND(CZ41,2) -> 0 | AA41: 85312298 | AB41: =ROUND((AC41+AD41+AF41),2) -> 977.54 | AC41: =ROUND((0),2) -> 0 | AD41: =ROUND((((SUM(SmtRes!BR26:'SmtRes'!BR30))-(SUM(SmtRes!BS26:'SmtRes'!BS30)))+AE41),2) -> 612.89 | AE41: =ROUND((SUM(SmtRes!BS26:'SmtRes'!BS30)),2) -> 547.85 | AF41: =ROUND((SUM(SmtRes!BT26:'SmtRes'!BT30)),2) -> 364.65 | AG41: =ROUND((AP41),2) -> 0 | AH41: =(SUM(SmtRes!BU26:'SmtRes'!BU30)) -> 0.528 | AI41: =(SUM(SmtRes!BV26:'SmtRes'!BV30)) -> 0.576 | AJ41: =(AS41) -> 0 | AK41: 1271.1544 | AL41: 0 | AM41: 510.7416 | AN41: 456.54 | AO41: 303.8728 | AP41: 0 | AQ41: 0.44 | AR41: 0.48 | AS41: 0 | AT41: 103 | AU41: 60 | AV41: 1 | AW41: 1 | AZ41: 1 | BA41: 1 | BB41: 1 | BC41: 1 | BH41: 0 | BI41: 1 | BJ41: ГЭСН-2022, 33-04-016-02, приказ Минстроя России от 18.05.2022 г. № 378/пр | BM41: 33001 | BN41: 0 | BP41: 0 | BQ41: 2 | BR41: 0 | BS41: 1 | BT41: 1 | BU41: 1 | BV41: 1 | BW41: 1 | BX41: 1 | BZ41: 103 | CA41: 60 | CE41: 0 | CF41: 0 | CG41: 0 | CH41: 1 | CI41: 0 | CJ41: 0 | CK41: 0 | CL41: 0 | CM41: 0 | CN41: Поправка: 421/пр_2020_прил.10_т.1_п.4_гр.5 Наименование: Производство работ осуществляется в охранной зоне действующей воздушной линии электропередачи, вблизи объектов, находящихся под напряжением, внутри объектов капитального строительства, внутренняя проводка в которых не обесточена, если это приведет к ограничению действий рабочих в соответствии с требованиями техники безопасности | CO41: 0 | CP41: =(P41+Q41+S41+R41) -> 0 | CQ41: =SUMIF(SmtRes!AQ26:'SmtRes'!AQ30,"=1",SmtRes!AA26:'SmtRes'!AA30) -> 0 | CR41: =SUMIF(SmtRes!AQ26:'SmtRes'!AQ30,"=1",SmtRes!AB26:'SmtRes'!AB30) -> 2274.47 | CS41: =SUMIF(SmtRes!AQ26:'SmtRes'!AQ30,"=1",SmtRes!AC26:'SmtRes'!AC30) -> 1902.25 | CT41: =SUMIF(SmtRes!AQ26:'SmtRes'!AQ30,"=1",SmtRes!AD26:'SmtRes'!AD30) -> 690.62 | CU41: =AG41 -> 0 | CV41: =SUMIF(SmtRes!AQ26:'SmtRes'!AQ30,"=1",SmtRes!BU26:'SmtRes'!BU30) -> 0.528 | CW41: =SUMIF(SmtRes!AQ26:'SmtRes'!AQ30,"=1",SmtRes!BV26:'SmtRes'!BV30) -> 0.576 | CX41: =AJ41 -> 0 | CY41: =(((S41+R41)*AT41)/100) -> 0 | CZ41: =(((S41+R41)*AU41)/100) -> 0 | DB41: 2 | DE41: *(0,2+1) | DF41: *(0,2+1) | DG41: *(0,2+1) | DI41: *(0,2+1) | DJ41: *(0,2+1) | DN41: 0 | DO41: 0 | DP41: 1 | DQ41: 1 | DU41: 1013 | DV41: ШТ | DW41: ШТ | DX41: 1 | EE41: 83666879 | EF41: 2 | EG41: Общестроительные работы | EH41: 27 | EI41: Линии электропередачи | EJ41: 1 | EK41: 33001 | EL41: Линии электропередачи | EM41: ФЕР-33 | EO41: Поправка: 421/пр_2020_прил.10_т.1_п.4_гр.5 | EQ41: 131072 | ER41: 0 | ES41: 0 | ET41: 0 | EU41: 0 | EV41: 0 | EW41: 0.44 | EX41: 0.48 | EY41: 0 | FQ41: 0 | FR41: 0 | FS41: 0 | FX41: 103 | FY41: 60 | GD41: 1 | GF41: 1316594094 | GG41: 2 | GH41: 1 | GI41: -2 | GJ41: 0 | GK41: 0 | GL41: =ROUND(IF(AND(BH41=3,BI41=3,FS41<>0),P41,0),2) -> 0 | GM41: =ROUND(O41+X41+Y41,2)+GX41 -> 0 | GN41: =IF(OR(BI41=0,BI41=1),GM41-GX41,0) -> 0 | GO41: =IF(BI41=2,GM41-GX41,0) -> 0 | GP41: =IF(BI41=4,GM41-GX41,0) -> 0 | GR41: 0 | GS41: 3 | GT41: 0 | GV41: =ROUND((GT41),2) -> 0 | GW41: 1 | GX41: =ROUND(HC41*I41,2) -> 0 | HA41: 0 | HB41: 0 | HC41: =GV41*GW41 -> 0 | HN41: Пр/812-027.0-1 | HO41: Пр/774-027.0 | HP41: Линии электропередачи | HQ41: Линии электропередачи | HS41: 0 | IK41: 0
A42: 19 | B42: 1 | G42: По ВОР "Развозка по трассе железобетонных стоек" | AA42: 1 | IK42: 0
A43: 17 | B43: 1 | C43: =ROW(SmtRes!A35) -> 35 | D43: =ROW(EtalonRes!A35) -> 35 | F43: 33-04-016-04 | G43: Развозка конструкций и материалов опор ВЛ 0,38-10 кВ по трассе: приставок железобетонных | H43: ШТ | I43: 0 | J43: 0 | K43: 0 | L43: 1 | M43: 1 | N43: =ROUND(L43-M43,4) -> 0 | O43: =ROUND(CP43,2) -> 0 | P43: =SUMIF(SmtRes!AQ31:'SmtRes'!AQ35,"=1",SmtRes!DF31:'SmtRes'!DF35) -> 0 | Q43: =SUMIF(SmtRes!AQ31:'SmtRes'!AQ35,"=1",SmtRes!DG31:'SmtRes'!DG35) -> 0 | R43: =SUMIF(SmtRes!AQ31:'SmtRes'!AQ35,"=1",SmtRes!DH31:'SmtRes'!DH35) -> 0 | S43: =SUMIF(SmtRes!AQ31:'SmtRes'!AQ35,"=1",SmtRes!DI31:'SmtRes'!DI35) -> 0 | T43: =ROUND(CU43*I43,2) -> 0 | U43: =SUMIF(SmtRes!AQ31:'SmtRes'!AQ35,"=1",SmtRes!CV31:'SmtRes'!CV35) -> 0 | V43: =SUMIF(SmtRes!AQ31:'SmtRes'!AQ35,"=1",SmtRes!CW31:'SmtRes'!CW35) -> 0 | W43: =ROUND(CX43*I43,2) -> 0 | X43: =ROUND(CY43,2) -> 0 | Y43: =ROUND(CZ43,2) -> 0 | AA43: -1 | AB43: =ROUND((AC43+AD43+AF43),2) -> 751.33 | AC43: =ROUND((0),2) -> 0 | AD43: =ROUND((((SUM(SmtRes!BR31:'SmtRes'!BR35))-(SUM(SmtRes!BS31:'SmtRes'!BS35)))+AE43),2) -> 468.18 | AE43: =ROUND((SUM(SmtRes!BS31:'SmtRes'!BS35)),2) -> 418.5 | AF43: =ROUND((SUM(SmtRes!BT31:'SmtRes'!BT35)),2) -> 283.15 | AG43: =ROUND((AP43),2) -> 0 | AH43: =(SUM(SmtRes!BU31:'SmtRes'!BU35)) -> 0.41 | AI43: =(SUM(SmtRes!BV31:'SmtRes'!BV35)) -> 0.44 | AJ43: =(AS43) -> 0 | AK43: 1169.829 | AL43: 0 | AM43: 468.1798 | AN43: 418.495 | AO43: 283.1542 | AP43: 0 | AQ43: 0.41 | AR43: 0.44 | AS43: 0 | AT43: 103 | AU43: 60 | AV43: 1 | AW43: 1 | AZ43: 1 | BA43: 1 | BB43: 1 | BC43: 1 | BH43: 0 | BI43: 1 | BJ43: ГЭСН-2022, 33-04-016-04, приказ Минстроя России от 18.05.2022 г. № 378/пр | BM43: 33001 | BN43: 0 | BP43: 0 | BQ43: 2 | BR43: 0 | BS43: 1 | BT43: 1 | BU43: 1 | BV43: 1 | BW43: 1 | BX43: 1 | BZ43: 103 | CA43: 60 | CE43: 0 | CF43: 0 | CG43: 0 | CH43: 0 | CI43: 0 | CJ43: 0 | CK43: 0 | CL43: 0 | CM43: 0 | CO43: 0 | CP43: =(P43+Q43+S43+R43) -> 0 | CQ43: =SUMIF(SmtRes!AQ31:'SmtRes'!AQ35,"=1",SmtRes!AA31:'SmtRes'!AA35) -> 0 | CR43: =SUMIF(SmtRes!AQ31:'SmtRes'!AQ35,"=1",SmtRes!AB31:'SmtRes'!AB35) -> 2274.47 | CS43: =SUMIF(SmtRes!AQ31:'SmtRes'!AQ35,"=1",SmtRes!AC31:'SmtRes'!AC35) -> 1902.25 | CT43: =SUMIF(SmtRes!AQ31:'SmtRes'!AQ35,"=1",SmtRes!AD31:'SmtRes'!AD35) -> 690.62 | CU43: =AG43 -> 0 | CV43: =SUMIF(SmtRes!AQ31:'SmtRes'!AQ35,"=1",SmtRes!BU31:'SmtRes'!BU35) -> 0.41 | CW43: =SUMIF(SmtRes!AQ31:'SmtRes'!AQ35,"=1",SmtRes!BV31:'SmtRes'!BV35) -> 0.44 | CX43: =AJ43 -> 0 | CY43: =(((S43+R43)*AT43)/100) -> 0 | CZ43: =(((S43+R43)*AU43)/100) -> 0 | DN43: 0 | DO43: 0 | DP43: 1 | DQ43: 1 | DU43: 1013 | DV43: ШТ | DW43: ШТ | DX43: 1 | EE43: 83666879 | EF43: 2 | EG43: Общестроительные работы | EH43: 27 | EI43: Линии электропередачи | EJ43: 1 | EK43: 33001 | EL43: Линии электропередачи | EM43: ФЕР-33 | EQ43: 132096 | ER43: 0 | ES43: 0 | ET43: 0 | EU43: 0 | EV43: 0 | EW43: 0.41 | EX43: 0.44 | EY43: 0 | FQ43: 0 | FR43: 0 | FS43: 0 | FX43: 103 | FY43: 60 | GD43: 1 | GF43: 116903011 | GG43: 2 | GH43: 1 | GI43: -2 | GJ43: 0 | GK43: 0 | GL43: =ROUND(IF(AND(BH43=3,BI43=3,FS43<>0),P43,0),2) -> 0 | GM43: =ROUND(O43+X43+Y43,2)+GX43 -> 0 | GN43: =IF(OR(BI43=0,BI43=1),GM43-GX43,0) -> 0 | GO43: =IF(BI43=2,GM43-GX43,0) -> 0 | GP43: =IF(BI43=4,GM43-GX43,0) -> 0 | GR43: 0 | GS43: 0 | GT43: 0 | GV43: =ROUND((GT43),2) -> 0 | GW43: 1 | GX43: =ROUND(HC43*I43,2) -> 0 | HA43: 0 | HB43: 0 | HC43: =GV43*GW43 -> 0 | HN43: Пр/812-027.0-1 | HO43: Пр/774-027.0 | HP43: Линии электропередачи | HQ43: Линии электропередачи | HS43: 0 | IK43: 0
A44: 17 | B44: 1 | C44: =ROW(SmtRes!A40) -> 40 | D44: =ROW(EtalonRes!A40) -> 40 | F44: 33-04-016-04 | G44: Развозка конструкций и материалов опор ВЛ 0,38-10 кВ по трассе: приставок железобетонных | H44: ШТ | I44: 0 | J44: 0 | K44: 0 | L44: 1 | M44: 1 | N44: =ROUND(L44-M44,4) -> 0 | O44: =ROUND(CP44,2) -> 0 | P44: =SUMIF(SmtRes!AQ36:'SmtRes'!AQ40,"=1",SmtRes!DF36:'SmtRes'!DF40) -> 0 | Q44: =SUMIF(SmtRes!AQ36:'SmtRes'!AQ40,"=1",SmtRes!DG36:'SmtRes'!DG40) -> 0 | R44: =SUMIF(SmtRes!AQ36:'SmtRes'!AQ40,"=1",SmtRes!DH36:'SmtRes'!DH40) -> 0 | S44: =SUMIF(SmtRes!AQ36:'SmtRes'!AQ40,"=1",SmtRes!DI36:'SmtRes'!DI40) -> 0 | T44: =ROUND(CU44*I44,2) -> 0 | U44: =SUMIF(SmtRes!AQ36:'SmtRes'!AQ40,"=1",SmtRes!CV36:'SmtRes'!CV40) -> 0 | V44: =SUMIF(SmtRes!AQ36:'SmtRes'!AQ40,"=1",SmtRes!CW36:'SmtRes'!CW40) -> 0 | W44: =ROUND(CX44*I44,2) -> 0 | X44: =ROUND(CY44,2) -> 0 | Y44: =ROUND(CZ44,2) -> 0 | AA44: -1 | AB44: =ROUND((AC44+AD44+AF44),2) -> 751.33 | AC44: =ROUND((0),2) -> 0 | AD44: =ROUND((((SUM(SmtRes!BR36:'SmtRes'!BR40))-(SUM(SmtRes!BS36:'SmtRes'!BS40)))+AE44),2) -> 468.18 | AE44: =ROUND((SUM(SmtRes!BS36:'SmtRes'!BS40)),2) -> 418.5 | AF44: =ROUND((SUM(SmtRes!BT36:'SmtRes'!BT40)),2) -> 283.15 | AG44: =ROUND((AP44),2) -> 0 | AH44: =(SUM(SmtRes!BU36:'SmtRes'!BU40)) -> 0.41 | AI44: =(SUM(SmtRes!BV36:'SmtRes'!BV40)) -> 0.44 | AJ44: =(AS44) -> 0 | AK44: 1169.829 | AL44: 0 | AM44: 468.1798 | AN44: 418.495 | AO44: 283.1542 | AP44: 0 | AQ44: 0.41 | AR44: 0.44 | AS44: 0 | AT44: 103 | AU44: 60 | AV44: 1 | AW44: 1 | AZ44: 1 | BA44: 1 | BB44: 1 | BC44: 1 | BH44: 0 | BI44: 1 | BJ44: ГЭСН-2022, 33-04-016-04, приказ Минстроя России от 18.05.2022 г. № 378/пр | BM44: 33001 | BN44: 0 | BP44: 0 | BQ44: 2 | BR44: 0 | BS44: 1 | BT44: 1 | BU44: 1 | BV44: 1 | BW44: 1 | BX44: 1 | BZ44: 103 | CA44: 60 | CE44: 0 | CF44: 0 | CG44: 0 | CH44: 0 | CI44: 0 | CJ44: 0 | CK44: 0 | CL44: 0 | CM44: 0 | CO44: 0 | CP44: =(P44+Q44+S44+R44) -> 0 | CQ44: =SUMIF(SmtRes!AQ36:'SmtRes'!AQ40,"=1",SmtRes!AA36:'SmtRes'!AA40) -> 0 | CR44: =SUMIF(SmtRes!AQ36:'SmtRes'!AQ40,"=1",SmtRes!AB36:'SmtRes'!AB40) -> 2274.47 | CS44: =SUMIF(SmtRes!AQ36:'SmtRes'!AQ40,"=1",SmtRes!AC36:'SmtRes'!AC40) -> 1902.25 | CT44: =SUMIF(SmtRes!AQ36:'SmtRes'!AQ40,"=1",SmtRes!AD36:'SmtRes'!AD40) -> 690.62 | CU44: =AG44 -> 0 | CV44: =SUMIF(SmtRes!AQ36:'SmtRes'!AQ40,"=1",SmtRes!BU36:'SmtRes'!BU40) -> 0.41 | CW44: =SUMIF(SmtRes!AQ36:'SmtRes'!AQ40,"=1",SmtRes!BV36:'SmtRes'!BV40) -> 0.44 | CX44: =AJ44 -> 0 | CY44: =(((S44+R44)*AT44)/100) -> 0 | CZ44: =(((S44+R44)*AU44)/100) -> 0 | DN44: 0 | DO44: 0 | DP44: 1 | DQ44: 1 | DU44: 1013 | DV44: ШТ | DW44: ШТ | DX44: 1 | EE44: 83666879 | EF44: 2 | EG44: Общестроительные работы | EH44: 27 | EI44: Линии электропередачи | EJ44: 1 | EK44: 33001 | EL44: Линии электропередачи | EM44: ФЕР-33 | EQ44: 132096 | ER44: 0 | ES44: 0 | ET44: 0 | EU44: 0 | EV44: 0 | EW44: 0.41 | EX44: 0.44 | EY44: 0 | FQ44: 0 | FR44: 0 | FS44: 0 | FX44: 103 | FY44: 60 | GD44: 1 | GF44: 116903011 | GG44: 2 | GH44: 1 | GI44: -2 | GJ44: 0 | GK44: 0 | GL44: =ROUND(IF(AND(BH44=3,BI44=3,FS44<>0),P44,0),2) -> 0 | GM44: =ROUND(O44+X44+Y44,2)+GX44 -> 0 | GN44: =IF(OR(BI44=0,BI44=1),GM44-GX44,0) -> 0 | GO44: =IF(BI44=2,GM44-GX44,0) -> 0 | GP44: =IF(BI44=4,GM44-GX44,0) -> 0 | GR44: 0 | GS44: 0 | GT44: 0 | GV44: =ROUND((GT44),2) -> 0 | GW44: 1 | GX44: =ROUND(HC44*I44,2) -> 0 | HA44: 0 | HB44: 0 | HC44: =GV44*GW44 -> 0 | HN44: Пр/812-027.0-1 | HO44: Пр/774-027.0 | HP44: Линии электропередачи | HQ44: Линии электропередачи | HS44: 0 | IK44: 0
A45: 19 | B45: 1 | G45: По ВОР "Развозка по трассе железобетонных приставок" | AA45: 1 | IK45: 0
A46: 17 | B46: 1 | C46: =ROW(SmtRes!A44) -> 44 | D46: =ROW(EtalonRes!A44) -> 44 | E46: 2 | F46: 33-04-016-05 | G46: Развозка конструкций и материалов опор ВЛ 0,38-10 кВ по трассе: материалов оснастки одностоечных опор | H46: ШТ | I46: 0 | J46: 0 | K46: 0 | L46: 3 | M46: 3 | N46: =ROUND(L46-M46,4) -> 0 | O46: =ROUND(CP46,2) -> 0 | P46: =SUMIF(SmtRes!AQ41:'SmtRes'!AQ44,"=1",SmtRes!DF41:'SmtRes'!DF44) -> 0 | Q46: =SUMIF(SmtRes!AQ41:'SmtRes'!AQ44,"=1",SmtRes!DG41:'SmtRes'!DG44) -> 0 | R46: =SUMIF(SmtRes!AQ41:'SmtRes'!AQ44,"=1",SmtRes!DH41:'SmtRes'!DH44) -> 0 | S46: =SUMIF(SmtRes!AQ41:'SmtRes'!AQ44,"=1",SmtRes!DI41:'SmtRes'!DI44) -> 0 | T46: =ROUND(CU46*I46,2) -> 0 | U46: =SUMIF(SmtRes!AQ41:'SmtRes'!AQ44,"=1",SmtRes!CV41:'SmtRes'!CV44) -> 0 | V46: =SUMIF(SmtRes!AQ41:'SmtRes'!AQ44,"=1",SmtRes!CW41:'SmtRes'!CW44) -> 0 | W46: =ROUND(CX46*I46,2) -> 0 | X46: =ROUND(CY46,2) -> 0 | Y46: =ROUND(CZ46,2) -> 0 | AA46: 85312357 | AB46: =ROUND((AC46+AD46+AF46),2) -> 291.49 | AC46: =ROUND((0),2) -> 0 | AD46: =ROUND((((SUM(SmtRes!BR41:'SmtRes'!BR44))-(SUM(SmtRes!BS41:'SmtRes'!BS44)))+AE46),2) -> 84.3 | AE46: =ROUND((SUM(SmtRes!BS41:'SmtRes'!BS44)),2) -> 136.38 | AF46: =ROUND((SUM(SmtRes!BT41:'SmtRes'!BT44)),2) -> 207.19 | AG46: =ROUND((AP46),2) -> 0 | AH46: =(SUM(SmtRes!BU41:'SmtRes'!BU44)) -> 0.3 | AI46: =(SUM(SmtRes!BV41:'SmtRes'!BV44)) -> 0.168 | AJ46: =(AS46) -> 0 | AK46: 356.5576 | AL46: 0 | AM46: 70.252 | AN46: 113.6506 | AO46: 172.655 | AP46: 0 | AQ46: 0.25 | AR46: 0.14 | AS46: 0 | AT46: 103 | AU46: 60 | AV46: 1 | AW46: 1 | AZ46: 1 | BA46: 1 | BB46: 1 | BC46: 1 | BH46: 0 | BI46: 1 | BJ46: ГЭСН-2022, 33-04-016-05, приказ Минстроя России от 18.05.2022 г. № 378/пр | BM46: 33001 | BN46: 0 | BP46: 0 | BQ46: 2 | BR46: 0 | BS46: 1 | BT46: 1 | BU46: 1 | BV46: 1 | BW46: 1 | BX46: 1 | BZ46: 103 | CA46: 60 | CE46: 0 | CF46: 0 | CG46: 0 | CH46: 2 | CI46: 0 | CJ46: 0 | CK46: 0 | CL46: 0 | CM46: 0 | CN46: Поправка: 421/пр_2020_прил.10_т.1_п.4_гр.5 Наименование: Производство работ осуществляется в охранной зоне действующей воздушной линии электропередачи, вблизи объектов, находящихся под напряжением, внутри объектов капитального строительства, внутренняя проводка в которых не обесточена, если это приведет к ограничению действий рабочих в соответствии с требованиями техники безопасности | CO46: 0 | CP46: =(P46+Q46+S46+R46) -> 0 | CQ46: =SUMIF(SmtRes!AQ41:'SmtRes'!AQ44,"=1",SmtRes!AA41:'SmtRes'!AA44) -> 0 | CR46: =SUMIF(SmtRes!AQ41:'SmtRes'!AQ44,"=1",SmtRes!AB41:'SmtRes'!AB44) -> 648.18 | CS46: =SUMIF(SmtRes!AQ41:'SmtRes'!AQ44,"=1",SmtRes!AC41:'SmtRes'!AC44) -> 811.79 | CT46: =SUMIF(SmtRes!AQ41:'SmtRes'!AQ44,"=1",SmtRes!AD41:'SmtRes'!AD44) -> 690.62 | CU46: =AG46 -> 0 | CV46: =SUMIF(SmtRes!AQ41:'SmtRes'!AQ44,"=1",SmtRes!BU41:'SmtRes'!BU44) -> 0.3 | CW46: =SUMIF(SmtRes!AQ41:'SmtRes'!AQ44,"=1",SmtRes!BV41:'SmtRes'!BV44) -> 0.168 | CX46: =AJ46 -> 0 | CY46: =(((S46+R46)*AT46)/100) -> 0 | CZ46: =(((S46+R46)*AU46)/100) -> 0 | DB46: 3 | DE46: *(0,2+1) | DF46: *(0,2+1) | DG46: *(0,2+1) | DI46: *(0,2+1) | DJ46: *(0,2+1) | DN46: 0 | DO46: 0 | DP46: 1 | DQ46: 1 | DU46: 1013 | DV46: ШТ | DW46: ШТ | DX46: 1 | EE46: 83666879 | EF46: 2 | EG46: Общестроительные работы | EH46: 27 | EI46: Линии электропередачи | EJ46: 1 | EK46: 33001 | EL46: Линии электропередачи | EM46: ФЕР-33 | EO46: Поправка: 421/пр_2020_прил.10_т.1_п.4_гр.5 | EQ46: 131072 | ER46: 0 | ES46: 0 | ET46: 0 | EU46: 0 | EV46: 0 | EW46: 0.25 | EX46: 0.14 | EY46: 0 | FQ46: 0 | FR46: 0 | FS46: 0 | FX46: 103 | FY46: 60 | GD46: 1 | GF46: -718096970 | GG46: 2 | GH46: 1 | GI46: -2 | GJ46: 0 | GK46: 0 | GL46: =ROUND(IF(AND(BH46=3,BI46=3,FS46<>0),P46,0),2) -> 0 | GM46: =ROUND(O46+X46+Y46,2)+GX46 -> 0 | GN46: =IF(OR(BI46=0,BI46=1),GM46-GX46,0) -> 0 | GO46: =IF(BI46=2,GM46-GX46,0) -> 0 | GP46: =IF(BI46=4,GM46-GX46,0) -> 0 | GR46: 0 | GS46: 3 | GT46: 0 | GV46: =ROUND((GT46),2) -> 0 | GW46: 1 | GX46: =ROUND(HC46*I46,2) -> 0 | HA46: 0 | HB46: 0 | HC46: =GV46*GW46 -> 0 | HN46: Пр/812-027.0-1 | HO46: Пр/774-027.0 | HP46: Линии электропередачи | HQ46: Линии электропередачи | HS46: 0 | IK46: 0
A47: 17 | B47: 1 | C47: =ROW(SmtRes!A48) -> 48 | D47: =ROW(EtalonRes!A48) -> 48 | E47: 2 | F47: 33-04-016-05 | G47: Развозка конструкций и материалов опор ВЛ 0,38-10 кВ по трассе: материалов оснастки одностоечных опор | H47: ШТ | I47: 0 | J47: 0 | K47: 0 | L47: 3 | M47: 3 | N47: =ROUND(L47-M47,4) -> 0 | O47: =ROUND(CP47,2) -> 0 | P47: =SUMIF(SmtRes!AQ45:'SmtRes'!AQ48,"=1",SmtRes!DF45:'SmtRes'!DF48) -> 0 | Q47: =SUMIF(SmtRes!AQ45:'SmtRes'!AQ48,"=1",SmtRes!DG45:'SmtRes'!DG48) -> 0 | R47: =SUMIF(SmtRes!AQ45:'SmtRes'!AQ48,"=1",SmtRes!DH45:'SmtRes'!DH48) -> 0 | S47: =SUMIF(SmtRes!AQ45:'SmtRes'!AQ48,"=1",SmtRes!DI45:'SmtRes'!DI48) -> 0 | T47: =ROUND(CU47*I47,2) -> 0 | U47: =SUMIF(SmtRes!AQ45:'SmtRes'!AQ48,"=1",SmtRes!CV45:'SmtRes'!CV48) -> 0 | V47: =SUMIF(SmtRes!AQ45:'SmtRes'!AQ48,"=1",SmtRes!CW45:'SmtRes'!CW48) -> 0 | W47: =ROUND(CX47*I47,2) -> 0 | X47: =ROUND(CY47,2) -> 0 | Y47: =ROUND(CZ47,2) -> 0 | AA47: 85312298 | AB47: =ROUND((AC47+AD47+AF47),2) -> 291.49 | AC47: =ROUND((0),2) -> 0 | AD47: =ROUND((((SUM(SmtRes!BR45:'SmtRes'!BR48))-(SUM(SmtRes!BS45:'SmtRes'!BS48)))+AE47),2) -> 84.3 | AE47: =ROUND((SUM(SmtRes!BS45:'SmtRes'!BS48)),2) -> 136.38 | AF47: =ROUND((SUM(SmtRes!BT45:'SmtRes'!BT48)),2) -> 207.19 | AG47: =ROUND((AP47),2) -> 0 | AH47: =(SUM(SmtRes!BU45:'SmtRes'!BU48)) -> 0.3 | AI47: =(SUM(SmtRes!BV45:'SmtRes'!BV48)) -> 0.168 | AJ47: =(AS47) -> 0 | AK47: 356.5576 | AL47: 0 | AM47: 70.252 | AN47: 113.6506 | AO47: 172.655 | AP47: 0 | AQ47: 0.25 | AR47: 0.14 | AS47: 0 | AT47: 103 | AU47: 60 | AV47: 1 | AW47: 1 | AZ47: 1 | BA47: 1 | BB47: 1 | BC47: 1 | BH47: 0 | BI47: 1 | BJ47: ГЭСН-2022, 33-04-016-05, приказ Минстроя России от 18.05.2022 г. № 378/пр | BM47: 33001 | BN47: 0 | BP47: 0 | BQ47: 2 | BR47: 0 | BS47: 1 | BT47: 1 | BU47: 1 | BV47: 1 | BW47: 1 | BX47: 1 | BZ47: 103 | CA47: 60 | CE47: 0 | CF47: 0 | CG47: 0 | CH47: 2 | CI47: 0 | CJ47: 0 | CK47: 0 | CL47: 0 | CM47: 0 | CN47: Поправка: 421/пр_2020_прил.10_т.1_п.4_гр.5 Наименование: Производство работ осуществляется в охранной зоне действующей воздушной линии электропередачи, вблизи объектов, находящихся под напряжением, внутри объектов капитального строительства, внутренняя проводка в которых не обесточена, если это приведет к ограничению действий рабочих в соответствии с требованиями техники безопасности | CO47: 0 | CP47: =(P47+Q47+S47+R47) -> 0 | CQ47: =SUMIF(SmtRes!AQ45:'SmtRes'!AQ48,"=1",SmtRes!AA45:'SmtRes'!AA48) -> 0 | CR47: =SUMIF(SmtRes!AQ45:'SmtRes'!AQ48,"=1",SmtRes!AB45:'SmtRes'!AB48) -> 648.18 | CS47: =SUMIF(SmtRes!AQ45:'SmtRes'!AQ48,"=1",SmtRes!AC45:'SmtRes'!AC48) -> 811.79 | CT47: =SUMIF(SmtRes!AQ45:'SmtRes'!AQ48,"=1",SmtRes!AD45:'SmtRes'!AD48) -> 690.62 | CU47: =AG47 -> 0 | CV47: =SUMIF(SmtRes!AQ45:'SmtRes'!AQ48,"=1",SmtRes!BU45:'SmtRes'!BU48) -> 0.3 | CW47: =SUMIF(SmtRes!AQ45:'SmtRes'!AQ48,"=1",SmtRes!BV45:'SmtRes'!BV48) -> 0.168 | CX47: =AJ47 -> 0 | CY47: =(((S47+R47)*AT47)/100) -> 0 | CZ47: =(((S47+R47)*AU47)/100) -> 0 | DB47: 4 | DE47: *(0,2+1) | DF47: *(0,2+1) | DG47: *(0,2+1) | DI47: *(0,2+1) | DJ47: *(0,2+1) | DN47: 0 | DO47: 0 | DP47: 1 | DQ47: 1 | DU47: 1013 | DV47: ШТ | DW47: ШТ | DX47: 1 | EE47: 83666879 | EF47: 2 | EG47: Общестроительные работы | EH47: 27 | EI47: Линии электропередачи | EJ47: 1 | EK47: 33001 | EL47: Линии электропередачи | EM47: ФЕР-33 | EO47: Поправка: 421/пр_2020_прил.10_т.1_п.4_гр.5 | EQ47: 131072 | ER47: 0 | ES47: 0 | ET47: 0 | EU47: 0 | EV47: 0 | EW47: 0.25 | EX47: 0.14 | EY47: 0 | FQ47: 0 | FR47: 0 | FS47: 0 | FX47: 103 | FY47: 60 | GD47: 1 | GF47: -718096970 | GG47: 2 | GH47: 1 | GI47: -2 | GJ47: 0 | GK47: 0 | GL47: =ROUND(IF(AND(BH47=3,BI47=3,FS47<>0),P47,0),2) -> 0 | GM47: =ROUND(O47+X47+Y47,2)+GX47 -> 0 | GN47: =IF(OR(BI47=0,BI47=1),GM47-GX47,0) -> 0 | GO47: =IF(BI47=2,GM47-GX47,0) -> 0 | GP47: =IF(BI47=4,GM47-GX47,0) -> 0 | GR47: 0 | GS47: 3 | GT47: 0 | GV47: =ROUND((GT47),2) -> 0 | GW47: 1 | GX47: =ROUND(HC47*I47,2) -> 0 | HA47: 0 | HB47: 0 | HC47: =GV47*GW47 -> 0 | HN47: Пр/812-027.0-1 | HO47: Пр/774-027.0 | HP47: Линии электропередачи | HQ47: Линии электропередачи | HS47: 0 | IK47: 0
A48: 19 | B48: 1 | G48: По ВОР "Развозка по трассе конструкций и материалов оснастки одностоечных опор" | AA48: 1 | IK48: 0
A49: 17 | B49: 1 | C49: =ROW(SmtRes!A52) -> 52 | D49: =ROW(EtalonRes!A52) -> 52 | E49: 3 | F49: 33-04-016-06 | G49: Развозка конструкций и материалов опор ВЛ 0,38-10 кВ по трассе: материалов оснастки сложных опор | H49: ШТ | I49: 0 | J49: 0 | K49: 0 | L49: 4 | M49: 4 | N49: =ROUND(L49-M49,4) -> 0 | O49: =ROUND(CP49,2) -> 0 | P49: =SUMIF(SmtRes!AQ49:'SmtRes'!AQ52,"=1",SmtRes!DF49:'SmtRes'!DF52) -> 0 | Q49: =SUMIF(SmtRes!AQ49:'SmtRes'!AQ52,"=1",SmtRes!DG49:'SmtRes'!DG52) -> 0 | R49: =SUMIF(SmtRes!AQ49:'SmtRes'!AQ52,"=1",SmtRes!DH49:'SmtRes'!DH52) -> 0 | S49: =SUMIF(SmtRes!AQ49:'SmtRes'!AQ52,"=1",SmtRes!DI49:'SmtRes'!DI52) -> 0 | T49: =ROUND(CU49*I49,2) -> 0 | U49: =SUMIF(SmtRes!AQ49:'SmtRes'!AQ52,"=1",SmtRes!CV49:'SmtRes'!CV52) -> 0 | V49: =SUMIF(SmtRes!AQ49:'SmtRes'!AQ52,"=1",SmtRes!CW49:'SmtRes'!CW52) -> 0 | W49: =ROUND(CX49*I49,2) -> 0 | X49: =ROUND(CY49,2) -> 0 | Y49: =ROUND(CZ49,2) -> 0 | AA49: 85312357 | AB49: =ROUND((AC49+AD49+AF49),2) -> 344.96 | AC49: =ROUND((0),2) -> 0 | AD49: =ROUND((((SUM(SmtRes!BR49:'SmtRes'!BR52))-(SUM(SmtRes!BS49:'SmtRes'!BS52)))+AE49),2) -> 96.34 | AE49: =ROUND((SUM(SmtRes!BS49:'SmtRes'!BS52)),2) -> 155.86 | AF49: =ROUND((SUM(SmtRes!BT49:'SmtRes'!BT52)),2) -> 248.62 | AG49: =ROUND((AP49),2) -> 0 | AH49: =(SUM(SmtRes!BU49:'SmtRes'!BU52)) -> 0.36 | AI49: =(SUM(SmtRes!BV49:'SmtRes'!BV52)) -> 0.192 | AJ49: =(AS49) -> 0 | AK49: 417.3604 | AL49: 0 | AM49: 80.288 | AN49: 129.8864 | AO49: 207.186 | AP49: 0 | AQ49: 0.3 | AR49: 0.16 | AS49: 0 | AT49: 103 | AU49: 60 | AV49: 1 | AW49: 1 | AZ49: 1 | BA49: 1 | BB49: 1 | BC49: 1 | BH49: 0 | BI49: 1 | BJ49: ГЭСН-2022, 33-04-016-06, приказ Минстроя России от 18.05.2022 г. № 378/пр | BM49: 33001 | BN49: 0 | BP49: 0 | BQ49: 2 | BR49: 0 | BS49: 1 | BT49: 1 | BU49: 1 | BV49: 1 | BW49: 1 | BX49: 1 | BZ49: 103 | CA49: 60 | CE49: 0 | CF49: 0 | CG49: 0 | CH49: 3 | CI49: 0 | CJ49: 0 | CK49: 0 | CL49: 0 | CM49: 0 | CN49: Поправка: 421/пр_2020_прил.10_т.1_п.4_гр.5 Наименование: Производство работ осуществляется в охранной зоне действующей воздушной линии электропередачи, вблизи объектов, находящихся под напряжением, внутри объектов капитального строительства, внутренняя проводка в которых не обесточена, если это приведет к ограничению действий рабочих в соответствии с требованиями техники безопасности | CO49: 0 | CP49: =(P49+Q49+S49+R49) -> 0 | CQ49: =SUMIF(SmtRes!AQ49:'SmtRes'!AQ52,"=1",SmtRes!AA49:'SmtRes'!AA52) -> 0 | CR49: =SUMIF(SmtRes!AQ49:'SmtRes'!AQ52,"=1",SmtRes!AB49:'SmtRes'!AB52) -> 648.18 | CS49: =SUMIF(SmtRes!AQ49:'SmtRes'!AQ52,"=1",SmtRes!AC49:'SmtRes'!AC52) -> 811.79 | CT49: =SUMIF(SmtRes!AQ49:'SmtRes'!AQ52,"=1",SmtRes!AD49:'SmtRes'!AD52) -> 690.62 | CU49: =AG49 -> 0 | CV49: =SUMIF(SmtRes!AQ49:'SmtRes'!AQ52,"=1",SmtRes!BU49:'SmtRes'!BU52) -> 0.36 | CW49: =SUMIF(SmtRes!AQ49:'SmtRes'!AQ52,"=1",SmtRes!BV49:'SmtRes'!BV52) -> 0.192 | CX49: =AJ49 -> 0 | CY49: =(((S49+R49)*AT49)/100) -> 0 | CZ49: =(((S49+R49)*AU49)/100) -> 0 | DB49: 5 | DE49: *(0,2+1) | DF49: *(0,2+1) | DG49: *(0,2+1) | DI49: *(0,2+1) | DJ49: *(0,2+1) | DN49: 0 | DO49: 0 | DP49: 1 | DQ49: 1 | DU49: 1013 | DV49: ШТ | DW49: ШТ | DX49: 1 | EE49: 83666879 | EF49: 2 | EG49: Общестроительные работы | EH49: 27 | EI49: Линии электропередачи | EJ49: 1 | EK49: 33001 | EL49: Линии электропередачи | EM49: ФЕР-33 | EO49: Поправка: 421/пр_2020_прил.10_т.1_п.4_гр.5 | EQ49: 131072 | ER49: 0 | ES49: 0 | ET49: 0 | EU49: 0 | EV49: 0 | EW49: 0.3 | EX49: 0.16 | EY49: 0 | FQ49: 0 | FR49: 0 | FS49: 0 | FX49: 103 | FY49: 60 | GD49: 1 | GF49: -859650132 | GG49: 2 | GH49: 1 | GI49: -2 | GJ49: 0 | GK49: 0 | GL49: =ROUND(IF(AND(BH49=3,BI49=3,FS49<>0),P49,0),2) -> 0 | GM49: =ROUND(O49+X49+Y49,2)+GX49 -> 0 | GN49: =IF(OR(BI49=0,BI49=1),GM49-GX49,0) -> 0 | GO49: =IF(BI49=2,GM49-GX49,0) -> 0 | GP49: =IF(BI49=4,GM49-GX49,0) -> 0 | GR49: 0 | GS49: 3 | GT49: 0 | GV49: =ROUND((GT49),2) -> 0 | GW49: 1 | GX49: =ROUND(HC49*I49,2) -> 0 | HA49: 0 | HB49: 0 | HC49: =GV49*GW49 -> 0 | HN49: Пр/812-027.0-1 | HO49: Пр/774-027.0 | HP49: Линии электропередачи | HQ49: Линии электропередачи | HS49: 0 | IK49: 0
A50: 17 | B50: 1 | C50: =ROW(SmtRes!A56) -> 56 | D50: =ROW(EtalonRes!A56) -> 56 | E50: 3 | F50: 33-04-016-06 | G50: Развозка конструкций и материалов опор ВЛ 0,38-10 кВ по трассе: материалов оснастки сложных опор | H50: ШТ | I50: 0 | J50: 0 | K50: 0 | L50: 4 | M50: 4 | N50: =ROUND(L50-M50,4) -> 0 | O50: =ROUND(CP50,2) -> 0 | P50: =SUMIF(SmtRes!AQ53:'SmtRes'!AQ56,"=1",SmtRes!DF53:'SmtRes'!DF56) -> 0 | Q50: =SUMIF(SmtRes!AQ53:'SmtRes'!AQ56,"=1",SmtRes!DG53:'SmtRes'!DG56) -> 0 | R50: =SUMIF(SmtRes!AQ53:'SmtRes'!AQ56,"=1",SmtRes!DH53:'SmtRes'!DH56) -> 0 | S50: =SUMIF(SmtRes!AQ53:'SmtRes'!AQ56,"=1",SmtRes!DI53:'SmtRes'!DI56) -> 0 | T50: =ROUND(CU50*I50,2) -> 0 | U50: =SUMIF(SmtRes!AQ53:'SmtRes'!AQ56,"=1",SmtRes!CV53:'SmtRes'!CV56) -> 0 | V50: =SUMIF(SmtRes!AQ53:'SmtRes'!AQ56,"=1",SmtRes!CW53:'SmtRes'!CW56) -> 0 | W50: =ROUND(CX50*I50,2) -> 0 | X50: =ROUND(CY50,2) -> 0 | Y50: =ROUND(CZ50,2) -> 0 | AA50: 85312298 | AB50: =ROUND((AC50+AD50+AF50),2) -> 344.96 | AC50: =ROUND((0),2) -> 0 | AD50: =ROUND((((SUM(SmtRes!BR53:'SmtRes'!BR56))-(SUM(SmtRes!BS53:'SmtRes'!BS56)))+AE50),2) -> 96.34 | AE50: =ROUND((SUM(SmtRes!BS53:'SmtRes'!BS56)),2) -> 155.86 | AF50: =ROUND((SUM(SmtRes!BT53:'SmtRes'!BT56)),2) -> 248.62 | AG50: =ROUND((AP50),2) -> 0 | AH50: =(SUM(SmtRes!BU53:'SmtRes'!BU56)) -> 0.36 | AI50: =(SUM(SmtRes!BV53:'SmtRes'!BV56)) -> 0.192 | AJ50: =(AS50) -> 0 | AK50: 417.3604 | AL50: 0 | AM50: 80.288 | AN50: 129.8864 | AO50: 207.186 | AP50: 0 | AQ50: 0.3 | AR50: 0.16 | AS50: 0 | AT50: 103 | AU50: 60 | AV50: 1 | AW50: 1 | AZ50: 1 | BA50: 1 | BB50: 1 | BC50: 1 | BH50: 0 | BI50: 1 | BJ50: ГЭСН-2022, 33-04-016-06, приказ Минстроя России от 18.05.2022 г. № 378/пр | BM50: 33001 | BN50: 0 | BP50: 0 | BQ50: 2 | BR50: 0 | BS50: 1 | BT50: 1 | BU50: 1 | BV50: 1 | BW50: 1 | BX50: 1 | BZ50: 103 | CA50: 60 | CE50: 0 | CF50: 0 | CG50: 0 | CH50: 3 | CI50: 0 | CJ50: 0 | CK50: 0 | CL50: 0 | CM50: 0 | CN50: Поправка: 421/пр_2020_прил.10_т.1_п.4_гр.5 Наименование: Производство работ осуществляется в охранной зоне действующей воздушной линии электропередачи, вблизи объектов, находящихся под напряжением, внутри объектов капитального строительства, внутренняя проводка в которых не обесточена, если это приведет к ограничению действий рабочих в соответствии с требованиями техники безопасности | CO50: 0 | CP50: =(P50+Q50+S50+R50) -> 0 | CQ50: =SUMIF(SmtRes!AQ53:'SmtRes'!AQ56,"=1",SmtRes!AA53:'SmtRes'!AA56) -> 0 | CR50: =SUMIF(SmtRes!AQ53:'SmtRes'!AQ56,"=1",SmtRes!AB53:'SmtRes'!AB56) -> 648.18 | CS50: =SUMIF(SmtRes!AQ53:'SmtRes'!AQ56,"=1",SmtRes!AC53:'SmtRes'!AC56) -> 811.79 | CT50: =SUMIF(SmtRes!AQ53:'SmtRes'!AQ56,"=1",SmtRes!AD53:'SmtRes'!AD56) -> 690.62 | CU50: =AG50 -> 0 | CV50: =SUMIF(SmtRes!AQ53:'SmtRes'!AQ56,"=1",SmtRes!BU53:'SmtRes'!BU56) -> 0.36 | CW50: =SUMIF(SmtRes!AQ53:'SmtRes'!AQ56,"=1",SmtRes!BV53:'SmtRes'!BV56) -> 0.192 | CX50: =AJ50 -> 0 | CY50: =(((S50+R50)*AT50)/100) -> 0 | CZ50: =(((S50+R50)*AU50)/100) -> 0 | DB50: 6 | DE50: *(0,2+1) | DF50: *(0,2+1) | DG50: *(0,2+1) | DI50: *(0,2+1) | DJ50: *(0,2+1) | DN50: 0 | DO50: 0 | DP50: 1 | DQ50: 1 | DU50: 1013 | DV50: ШТ | DW50: ШТ | DX50: 1 | EE50: 83666879 | EF50: 2 | EG50: Общестроительные работы | EH50: 27 | EI50: Линии электропередачи | EJ50: 1 | EK50: 33001 | EL50: Линии электропередачи | EM50: ФЕР-33 | EO50: Поправка: 421/пр_2020_прил.10_т.1_п.4_гр.5 | EQ50: 131072 | ER50: 0 | ES50: 0 | ET50: 0 | EU50: 0 | EV50: 0 | EW50: 0.3 | EX50: 0.16 | EY50: 0 | FQ50: 0 | FR50: 0 | FS50: 0 | FX50: 103 | FY50: 60 | GD50: 1 | GF50: -859650132 | GG50: 2 | GH50: 1 | GI50: -2 | GJ50: 0 | GK50: 0 | GL50: =ROUND(IF(AND(BH50=3,BI50=3,FS50<>0),P50,0),2) -> 0 | GM50: =ROUND(O50+X50+Y50,2)+GX50 -> 0 | GN50: =IF(OR(BI50=0,BI50=1),GM50-GX50,0) -> 0 | GO50: =IF(BI50=2,GM50-GX50,0) -> 0 | GP50: =IF(BI50=4,GM50-GX50,0) -> 0 | GR50: 0 | GS50: 3 | GT50: 0 | GV50: =ROUND((GT50),2) -> 0 | GW50: 1 | GX50: =ROUND(HC50*I50,2) -> 0 | HA50: 0 | HB50: 0 | HC50: =GV50*GW50 -> 0 | HN50: Пр/812-027.0-1 | HO50: Пр/774-027.0 | HP50: Линии электропередачи | HQ50: Линии электропередачи | HS50: 0 | IK50: 0
A51: 19 | B51: 1 | G51: По ВОР "Развозка по трассе конструкций и материалов оснастки сложных опор" | AA51: 1 | IK51: 0
A52: 17 | B52: 1 | C52: =ROW(SmtRes!A74) -> 74 | D52: =ROW(EtalonRes!A74) -> 74 | E52: 4 | F52: 33-04-003-01 | G52: Установка железобетонных опор ВЛ 0,38; 6-10 кВ с траверсами без приставок: одностоечных | H52: ШТ | I52: 0 | J52: 0 | K52: 0 | L52: 3 | M52: 3 | N52: =ROUND(L52-M52,4) -> 0 | O52: =ROUND(CP52,2) -> 0 | P52: =SUMIF(SmtRes!AQ57:'SmtRes'!AQ74,"=1",SmtRes!DF57:'SmtRes'!DF74) -> 0 | Q52: =SUMIF(SmtRes!AQ57:'SmtRes'!AQ74,"=1",SmtRes!DG57:'SmtRes'!DG74) -> 0 | R52: =SUMIF(SmtRes!AQ57:'SmtRes'!AQ74,"=1",SmtRes!DH57:'SmtRes'!DH74) -> 0 | S52: =SUMIF(SmtRes!AQ57:'SmtRes'!AQ74,"=1",SmtRes!DI57:'SmtRes'!DI74) -> 0 | T52: =ROUND(CU52*I52,2) -> 0 | U52: =SUMIF(SmtRes!AQ57:'SmtRes'!AQ74,"=1",SmtRes!CV57:'SmtRes'!CV74) -> 0 | V52: =SUMIF(SmtRes!AQ57:'SmtRes'!AQ74,"=1",SmtRes!CW57:'SmtRes'!CW74) -> 0 | W52: =ROUND(CX52*I52,2) -> 0 | X52: =ROUND(CY52,2) -> 0 | Y52: =ROUND(CZ52,2) -> 0 | AA52: 85312357 | AB52: =ROUND((AC52+AD52+AF52),2) -> 4713.91 | AC52: =ROUND((SUM(SmtRes!BQ57:'SmtRes'!BQ74)),2) -> 115.84 | AD52: =ROUND((((SUM(SmtRes!BR57:'SmtRes'!BR74))-(SUM(SmtRes!BS57:'SmtRes'!BS74)))+AE52),2) -> 1850.75 | AE52: =ROUND((SUM(SmtRes!BS57:'SmtRes'!BS74)),2) -> 946.38 | AF52: =ROUND((SUM(SmtRes!BT57:'SmtRes'!BT74)),2) -> 2747.32 | AG52: =ROUND((AP52),2) -> 0 | AH52: =(SUM(SmtRes!BU57:'SmtRes'!BU74)) -> 3.672 | AI52: =(SUM(SmtRes!BV57:'SmtRes'!BV74)) -> 1.044 | AJ52: =(AS52) -> 0 | AK52: 4736.202498 | AL52: 115.838998 | AM52: 1542.2866 | AN52: 788.6461 | AO52: 2289.4308 | AP52: 0 | AQ52: 3.06 | AR52: 0.87 | AS52: 0 | AT52: 103 | AU52: 60 | AV52: 1 | AW52: 1 | AZ52: 1 | BA52: 1 | BB52: 1 | BC52: 1 | BH52: 0 | BI52: 1 | BJ52: ГЭСН-2022 доп.17, 33-04-003-01, приказ Минстроя России от 17.02.2026 г. № 91/пр | BM52: 33001 | BN52: 0 | BP52: 0 | BQ52: 2 | BR52: 0 | BS52: 1 | BT52: 1 | BU52: 1 | BV52: 1 | BW52: 1 | BX52: 1 | BZ52: 103 | CA52: 60 | CE52: 0 | CF52: 0 | CG52: 0 | CH52: 4 | CI52: 0 | CJ52: 0 | CK52: 0 | CL52: 0 | CM52: 0 | CN52: Поправка: 421/пр_2020_прил.10_т.1_п.4_гр.5 Наименование: Производство работ осуществляется в охранной зоне действующей воздушной линии электропередачи, вблизи объектов, находящихся под напряжением, внутри объектов капитального строительства, внутренняя проводка в которых не обесточена, если это приведет к ограничению действий рабочих в соответствии с требованиями техники безопасности | CO52: 0 | CP52: =(P52+Q52+S52+R52) -> 0 | CQ52: =SUMIF(SmtRes!AQ57:'SmtRes'!AQ74,"=1",SmtRes!AA57:'SmtRes'!AA74) -> 105143.62 | CR52: =SUMIF(SmtRes!AQ57:'SmtRes'!AQ74,"=1",SmtRes!AB57:'SmtRes'!AB74) -> 3377.99 | CS52: =SUMIF(SmtRes!AQ57:'SmtRes'!AQ74,"=1",SmtRes!AC57:'SmtRes'!AC74) -> 1744.74 | CT52: =SUMIF(SmtRes!AQ57:'SmtRes'!AQ74,"=1",SmtRes!AD57:'SmtRes'!AD74) -> 748.18 | CU52: =AG52 -> 0 | CV52: =SUMIF(SmtRes!AQ57:'SmtRes'!AQ74,"=1",SmtRes!BU57:'SmtRes'!BU74) -> 3.672 | CW52: =SUMIF(SmtRes!AQ57:'SmtRes'!AQ74,"=1",SmtRes!BV57:'SmtRes'!BV74) -> 1.044 | CX52: =AJ52 -> 0 | CY52: =(((S52+R52)*AT52)/100) -> 0 | CZ52: =(((S52+R52)*AU52)/100) -> 0 | DB52: 7 | DE52: *(0,2+1) | DF52: *(0,2+1) | DG52: *(0,2+1) | DI52: *(0,2+1) | DJ52: *(0,2+1) | DN52: 0 | DO52: 0 | DP52: 1 | DQ52: 1 | DU52: 1013 | DV52: ШТ | DW52: ШТ | DX52: 1 | EE52: 83666879 | EF52: 2 | EG52: Общестроительные работы | EH52: 27 | EI52: Линии электропередачи | EJ52: 1 | EK52: 33001 | EL52: Линии электропередачи | EM52: ФЕР-33 | EO52: Поправка: 421/пр_2020_прил.10_т.1_п.4_гр.5 | EQ52: 131072 | ER52: 0 | ES52: 0 | ET52: 0 | EU52: 0 | EV52: 0 | EW52: 3.06 | EX52: 0.87 | EY52: 0 | FQ52: 0 | FR52: 0 | FS52: 0 | FX52: 103 | FY52: 60 | GD52: 1 | GF52: -343713442 | GG52: 2 | GH52: 1 | GI52: -2 | GJ52: 0 | GK52: 0 | GL52: =ROUND(IF(AND(BH52=3,BI52=3,FS52<>0),P52,0),2) -> 0 | GM52: =ROUND(O52+X52+Y52,2)+GX52 -> 0 | GN52: =IF(OR(BI52=0,BI52=1),GM52-GX52,0) -> 0 | GO52: =IF(BI52=2,GM52-GX52,0) -> 0 | GP52: =IF(BI52=4,GM52-GX52,0) -> 0 | GR52: 0 | GS52: 3 | GT52: 0 | GV52: =ROUND((GT52),2) -> 0 | GW52: 1 | GX52: =ROUND(HC52*I52,2) -> 0 | HA52: 0 | HB52: 0 | HC52: =GV52*GW52 -> 0 | HN52: Пр/812-027.0-1 | HO52: Пр/774-027.0 | HP52: Линии электропередачи | HQ52: Линии электропередачи | HS52: 0 | IK52: 0
A53: 17 | B53: 1 | C53: =ROW(SmtRes!A92) -> 92 | D53: =ROW(EtalonRes!A92) -> 92 | E53: 4 | F53: 33-04-003-01 | G53: Установка железобетонных опор ВЛ 0,38; 6-10 кВ с траверсами без приставок: одностоечных | H53: ШТ | I53: 0 | J53: 0 | K53: 0 | L53: 3 | M53: 3 | N53: =ROUND(L53-M53,4) -> 0 | O53: =ROUND(CP53,2) -> 0 | P53: =SUMIF(SmtRes!AQ75:'SmtRes'!AQ92,"=1",SmtRes!DF75:'SmtRes'!DF92) -> 0 | Q53: =SUMIF(SmtRes!AQ75:'SmtRes'!AQ92,"=1",SmtRes!DG75:'SmtRes'!DG92) -> 0 | R53: =SUMIF(SmtRes!AQ75:'SmtRes'!AQ92,"=1",SmtRes!DH75:'SmtRes'!DH92) -> 0 | S53: =SUMIF(SmtRes!AQ75:'SmtRes'!AQ92,"=1",SmtRes!DI75:'SmtRes'!DI92) -> 0 | T53: =ROUND(CU53*I53,2) -> 0 | U53: =SUMIF(SmtRes!AQ75:'SmtRes'!AQ92,"=1",SmtRes!CV75:'SmtRes'!CV92) -> 0 | V53: =SUMIF(SmtRes!AQ75:'SmtRes'!AQ92,"=1",SmtRes!CW75:'SmtRes'!CW92) -> 0 | W53: =ROUND(CX53*I53,2) -> 0 | X53: =ROUND(CY53,2) -> 0 | Y53: =ROUND(CZ53,2) -> 0 | AA53: 85312298 | AB53: =ROUND((AC53+AD53+AF53),2) -> 4713.91 | AC53: =ROUND((SUM(SmtRes!BQ75:'SmtRes'!BQ92)),2) -> 115.84 | AD53: =ROUND((((SUM(SmtRes!BR75:'SmtRes'!BR92))-(SUM(SmtRes!BS75:'SmtRes'!BS92)))+AE53),2) -> 1850.75 | AE53: =ROUND((SUM(SmtRes!BS75:'SmtRes'!BS92)),2) -> 946.38 | AF53: =ROUND((SUM(SmtRes!BT75:'SmtRes'!BT92)),2) -> 2747.32 | AG53: =ROUND((AP53),2) -> 0 | AH53: =(SUM(SmtRes!BU75:'SmtRes'!BU92)) -> 3.672 | AI53: =(SUM(SmtRes!BV75:'SmtRes'!BV92)) -> 1.044 | AJ53: =(AS53) -> 0 | AK53: 4736.202498 | AL53: 115.838998 | AM53: 1542.2866 | AN53: 788.6461 | AO53: 2289.4308 | AP53: 0 | AQ53: 3.06 | AR53: 0.87 | AS53: 0 | AT53: 103 | AU53: 60 | AV53: 1 | AW53: 1 | AZ53: 1 | BA53: 1 | BB53: 1 | BC53: 1 | BH53: 0 | BI53: 1 | BJ53: ГЭСН-2022 доп.17, 33-04-003-01, приказ Минстроя России от 17.02.2026 г. № 91/пр | BM53: 33001 | BN53: 0 | BP53: 0 | BQ53: 2 | BR53: 0 | BS53: 1 | BT53: 1 | BU53: 1 | BV53: 1 | BW53: 1 | BX53: 1 | BZ53: 103 | CA53: 60 | CE53: 0 | CF53: 0 | CG53: 0 | CH53: 4 | CI53: 0 | CJ53: 0 | CK53: 0 | CL53: 0 | CM53: 0 | CN53: Поправка: 421/пр_2020_прил.10_т.1_п.4_гр.5 Наименование: Производство работ осуществляется в охранной зоне действующей воздушной линии электропередачи, вблизи объектов, находящихся под напряжением, внутри объектов капитального строительства, внутренняя проводка в которых не обесточена, если это приведет к ограничению действий рабочих в соответствии с требованиями техники безопасности | CO53: 0 | CP53: =(P53+Q53+S53+R53) -> 0 | CQ53: =SUMIF(SmtRes!AQ75:'SmtRes'!AQ92,"=1",SmtRes!AA75:'SmtRes'!AA92) -> 105143.62 | CR53: =SUMIF(SmtRes!AQ75:'SmtRes'!AQ92,"=1",SmtRes!AB75:'SmtRes'!AB92) -> 3377.99 | CS53: =SUMIF(SmtRes!AQ75:'SmtRes'!AQ92,"=1",SmtRes!AC75:'SmtRes'!AC92) -> 1744.74 | CT53: =SUMIF(SmtRes!AQ75:'SmtRes'!AQ92,"=1",SmtRes!AD75:'SmtRes'!AD92) -> 748.18 | CU53: =AG53 -> 0 | CV53: =SUMIF(SmtRes!AQ75:'SmtRes'!AQ92,"=1",SmtRes!BU75:'SmtRes'!BU92) -> 3.672 | CW53: =SUMIF(SmtRes!AQ75:'SmtRes'!AQ92,"=1",SmtRes!BV75:'SmtRes'!BV92) -> 1.044 | CX53: =AJ53 -> 0 | CY53: =(((S53+R53)*AT53)/100) -> 0 | CZ53: =(((S53+R53)*AU53)/100) -> 0 | DB53: 8 | DE53: *(0,2+1) | DF53: *(0,2+1) | DG53: *(0,2+1) | DI53: *(0,2+1) | DJ53: *(0,2+1) | DN53: 0 | DO53: 0 | DP53: 1 | DQ53: 1 | DU53: 1013 | DV53: ШТ | DW53: ШТ | DX53: 1 | EE53: 83666879 | EF53: 2 | EG53: Общестроительные работы | EH53: 27 | EI53: Линии электропередачи | EJ53: 1 | EK53: 33001 | EL53: Линии электропередачи | EM53: ФЕР-33 | EO53: Поправка: 421/пр_2020_прил.10_т.1_п.4_гр.5 | EQ53: 131072 | ER53: 0 | ES53: 0 | ET53: 0 | EU53: 0 | EV53: 0 | EW53: 3.06 | EX53: 0.87 | EY53: 0 | FQ53: 0 | FR53: 0 | FS53: 0 | FX53: 103 | FY53: 60 | GD53: 1 | GF53: -343713442 | GG53: 2 | GH53: 1 | GI53: -2 | GJ53: 0 | GK53: 0 | GL53: =ROUND(IF(AND(BH53=3,BI53=3,FS53<>0),P53,0),2) -> 0 | GM53: =ROUND(O53+X53+Y53,2)+GX53 -> 0 | GN53: =IF(OR(BI53=0,BI53=1),GM53-GX53,0) -> 0 | GO53: =IF(BI53=2,GM53-GX53,0) -> 0 | GP53: =IF(BI53=4,GM53-GX53,0) -> 0 | GR53: 0 | GS53: 3 | GT53: 0 | GV53: =ROUND((GT53),2) -> 0 | GW53: 1 | GX53: =ROUND(HC53*I53,2) -> 0 | HA53: 0 | HB53: 0 | HC53: =GV53*GW53 -> 0 | HN53: Пр/812-027.0-1 | HO53: Пр/774-027.0 | HP53: Линии электропередачи | HQ53: Линии электропередачи | HS53: 0 | IK53: 0
A54: 19 | B54: 1 | G54: По ВОР "Установка ЖБ опор без приставок одностоечных" | AA54: 1 | IK54: 0
A55: 18 | B55: 1 | C55: 63 | E55: 4,1 | F55: 01.7.15.03-0042 | G55: Болты с гайками и шайбами строительные | H55: кг | I55: =I52*J55 -> 0 | J55: 0 | K55: 0 | L55: 0 | M55: 0 | N55: =ROUND(L55-M55,4) -> 0 | O55: =ROUND(CP55,2) -> 0 | P55: =ROUND(CQ55*I55,2) -> 0 | Q55: =ROUND(CR55*I55,2) -> 0 | R55: =ROUND(CS55*I55,2) -> 0 | S55: =ROUND(CT55*I55,2) -> 0 | T55: =ROUND(CU55*I55,2) -> 0 | U55: =ROUND(CV55*I55,7) -> 0 | V55: =ROUND(CW55*I55,7) -> 0 | W55: =ROUND(CX55*I55,2) -> 0 | X55: =ROUND(CY55,2) -> 0 | Y55: =ROUND(CZ55,2) -> 0 | AA55: 85312357 | AB55: =ROUND((AC55+AD55+AF55),2) -> 174.93 | AC55: =ROUND((ES55),2) -> 174.93 | AD55: =ROUND((((ET55)-(EU55))+AE55),2) -> 0 | AE55: =ROUND((EU55),2) -> 0 | AF55: =ROUND((EV55),2) -> 0 | AG55: =ROUND((AP55),2) -> 0 | AH55: =(EW55) -> 0 | AI55: =(EX55) -> 0 | AJ55: =(AS55) -> 0 | AK55: 174.93 | AL55: 174.93 | AM55: 0 | AN55: 0 | AO55: 0 | AP55: 0 | AQ55: 0 | AR55: 0 | AS55: 0 | AT55: 103 | AU55: 60 | AV55: 1 | AW55: 1 | AZ55: 1 | BA55: 1 | BB55: 1 | BC55: 1.08 | BH55: 3 | BI55: 1 | BJ55: ФСБЦ-2022, 01.7.15.03-0042, приказ Минстроя России от 18.05.2022 г. № 378/пр | BM55: 33001 | BN55: 0 | BO55: 01.7.15.03-0042 | BP55: 1 | BQ55: 2 | BR55: 0 | BS55: 1 | BT55: 1 | BU55: 1 | BV55: 1 | BW55: 1 | BX55: 1 | BZ55: 103 | CA55: 60 | CE55: 0 | CF55: 0 | CG55: 0 | CH55: 4 | CI55: 1 | CJ55: 0 | CK55: 0 | CL55: 0 | CM55: 0 | CO55: 0 | CP55: =(P55+Q55+S55+R55) -> 0 | CQ55: =ROUND(AL55*BC55,2) -> 188.92 | CR55: =ROUND(AM55*BB55,2) -> 0 | CS55: =ROUND(AN55*BS55,2) -> 0 | CT55: =ROUND(AO55*BA55,2) -> 0 | CU55: =AG55 -> 0 | CV55: =AH55 -> 0 | CW55: =AI55 -> 0 | CX55: =AJ55 -> 0 | CY55: =(((S55+R55)*AT55)/100) -> 0 | CZ55: =(((S55+R55)*AU55)/100) -> 0 | DN55: 0 | DO55: 0 | DP55: 1 | DQ55: 1 | DU55: 1009 | DV55: кг | DW55: кг | DX55: 1 | EE55: 83666879 | EF55: 2 | EG55: Общестроительные работы | EH55: 27 | EI55: Линии электропередачи | EJ55: 1 | EK55: 33001 | EL55: Линии электропередачи | EM55: ФЕР-33 | EQ55: 0 | ER55: 174.93 | ES55: 174.93 | ET55: 0 | EU55: 0 | EV55: 0 | EW55: 0 | EX55: 0 | FQ55: 0 | FR55: 0 | FS55: 0 | FX55: 103 | FY55: 60 | GD55: 1 | GF55: -1131385474 | GG55: 2 | GH55: 1 | GI55: 2 | GJ55: 0 | GK55: 0 | GL55: =ROUND(IF(AND(BH55=3,BI55=3,FS55<>0),P55,0),2) -> 0 | GM55: =ROUND(O55+X55+Y55,2)+GX55 -> 0 | GN55: =IF(OR(BI55=0,BI55=1),GM55-GX55,0) -> 0 | GO55: =IF(BI55=2,GM55-GX55,0) -> 0 | GP55: =IF(BI55=4,GM55-GX55,0) -> 0 | GR55: 0 | GS55: 3 | GT55: 0 | GV55: =ROUND((GT55),2) -> 0 | GW55: 1 | GX55: =ROUND(HC55*I55,2) -> 0 | HA55: 0 | HB55: 0 | HC55: =GV55*GW55 -> 0 | HN55: Пр/812-027.0-1 | HO55: Пр/774-027.0 | HP55: Линии электропередачи | HQ55: Линии электропередачи | HS55: 0 | IK55: 0
A56: 18 | B56: 1 | C56: 81 | E56: 4,1 | F56: 01.7.15.03-0042 | G56: Болты с гайками и шайбами строительные | H56: кг | I56: =I53*J56 -> 0 | J56: 0 | K56: 0 | L56: 0 | M56: 0 | N56: 0 | O56: 0 | P56: 0 | Q56: 0 | R56: 0 | S56: 0 | T56: 0 | U56: 0 | V56: 0 | W56: 0 | X56: 0 | Y56: 0 | AA56: 85312298 | AB56: 174.93 | AC56: 174.93 | AD56: 0 | AE56: 0 | AF56: 0 | AG56: 0 | AH56: 0 | AI56: 0 | AJ56: 0 | AK56: 174.93 | AL56: 174.93 | AM56: 0 | AN56: 0 | AO56: 0 | AP56: 0 | AQ56: 0 | AR56: 0 | AS56: 0 | AT56: 103 | AU56: 60 | AV56: 1 | AW56: 1 | AZ56: 1 | BA56: 1 | BB56: 1 | BC56: 1.08 | BH56: 3 | BI56: 1 | BJ56: ФСБЦ-2022, 01.7.15.03-0042, приказ Минстроя России от 18.05.2022 г. № 378/пр | BM56: 33001 | BN56: 0 | BO56: 01.7.15.03-0042 | BP56: 1 | BQ56: 2 | BR56: 0 | BS56: 1 | BT56: 1 | BU56: 1 | BV56: 1 | BW56: 1 | BX56: 1 | BZ56: 103 | CA56: 60 | CE56: 0 | CF56: 0 | CG56: 0 | CH56: 4 | CI56: 1 | CJ56: 0 | CK56: 0 | CL56: 0 | CM56: 0 | CO56: 0 | CP56: 0 | CQ56: 188.92 | CR56: 0 | CS56: 0 | CT56: 0 | CU56: 0 | CV56: 0 | CW56: 0 | CX56: 0 | CY56: 0 | CZ56: 0 | DN56: 0 | DO56: 0 | DP56: 1 | DQ56: 1 | DU56: 1009 | DV56: кг | DW56: кг | DX56: 1 | EE56: 83666879 | EF56: 2 | EG56: Общестроительные работы | EH56: 27 | EI56: Линии электропередачи | EJ56: 1 | EK56: 33001 | EL56: Линии электропередачи | EM56: ФЕР-33 | EQ56: 0 | ER56: 174.93 | ES56: 174.93 | ET56: 0 | EU56: 0 | EV56: 0 | EW56: 0 | EX56: 0 | FQ56: 0 | FR56: 0 | FS56: 0 | FX56: 103 | FY56: 60 | GD56: 1 | GF56: -1131385474 | GG56: 2 | GH56: 1 | GI56: 2 | GJ56: 0 | GK56: 0 | GL56: 0 | GM56: 0 | GN56: 0 | GO56: 0 | GP56: 0 | GR56: 0 | GS56: 3 | GT56: 0 | GV56: 0 | GW56: 1 | GX56: 0 | HA56: 0 | HB56: 0 | HC56: 0 | HN56: Пр/812-027.0-1 | HO56: Пр/774-027.0 | HP56: Линии электропередачи | HQ56: Линии электропередачи | HS56: 0 | IK56: 0
A57: 18 | B57: 1 | C57: 65 | E57: 4,2 | F57: 05.1.02.07 | G57: Стойка железобетонная вибрированная для опор | H57: ШТ | I57: =I52*J57 -> 0 | J57: 0 | K57: 0 | L57: 0 | M57: 0 | N57: 0 | O57: 0 | P57: 0 | Q57: 0 | R57: 0 | S57: 0 | T57: 0 | U57: 0 | V57: 0 | W57: 0 | X57: 0 | Y57: 0 | AA57: 85312357 | AB57: 0 | AC57: 0 | AD57: 0 | AE57: 0 | AF57: 0 | AG57: 0 | AH57: 0 | AI57: 0 | AJ57: 0 | AK57: 0 | AL57: 0 | AM57: 0 | AN57: 0 | AO57: 0 | AP57: 0 | AQ57: 0 | AR57: 0 | AS57: 0 | AT57: 103 | AU57: 60 | AV57: 1 | AW57: 1 | AZ57: 1 | BA57: 1 | BB57: 1 | BC57: 1 | BH57: 3 | BI57: 1 | BM57: 33001 | BN57: 0 | BP57: 0 | BQ57: 2 | BR57: 0 | BS57: 1 | BT57: 1 | BU57: 1 | BV57: 1 | BW57: 1 | BX57: 1 | BZ57: 103 | CA57: 60 | CE57: 0 | CF57: 0 | CG57: 0 | CH57: 4 | CI57: 2 | CJ57: 0 | CK57: 0 | CL57: 0 | CM57: 0 | CO57: 0 | CP57: 0 | CQ57: 0 | CR57: 0 | CS57: 0 | CT57: 0 | CU57: 0 | CV57: 0 | CW57: 0 | CX57: 0 | CY57: 0 | CZ57: 0 | DN57: 0 | DO57: 0 | DP57: 1 | DQ57: 1 | DU57: 1013 | DV57: ШТ | DW57: ШТ | DX57: 1 | EE57: 83666879 | EF57: 2 | EG57: Общестроительные работы | EH57: 27 | EI57: Линии электропередачи | EJ57: 1 | EK57: 33001 | EL57: Линии электропередачи | EM57: ФЕР-33 | EQ57: 0 | ER57: 0 | ES57: 0 | ET57: 0 | EU57: 0 | EV57: 0 | EW57: 0 | EX57: 0 | FQ57: 0 | FR57: 0 | FS57: 0 | FX57: 103 | FY57: 60 | GD57: 1 | GF57: 457934895 | GG57: 2 | GH57: 1 | GI57: -2 | GJ57: 0 | GK57: 0 | GL57: 0 | GM57: 0 | GN57: 0 | GO57: 0 | GP57: 0 | GR57: 0 | GS57: 3 | GT57: 0 | GV57: 0 | GW57: 1 | GX57: 0 | HA57: 0 | HB57: 0 | HC57: 0 | HN57: Пр/812-027.0-1 | HO57: Пр/774-027.0 | HP57: Линии электропередачи | HQ57: Линии электропередачи | HS57: 0 | IK57: 0
A58: 18 | B58: 1 | C58: 83 | E58: 4,2 | F58: 05.1.02.07 | G58: Стойка железобетонная вибрированная для опор | H58: ШТ | I58: =I53*J58 -> 0 | J58: 0 | K58: 0 | L58: 0 | M58: 0 | N58: 0 | O58: 0 | P58: 0 | Q58: 0 | R58: 0 | S58: 0 | T58: 0 | U58: 0 | V58: 0 | W58: 0 | X58: 0 | Y58: 0 | AA58: 85312298 | AB58: 0 | AC58: 0 | AD58: 0 | AE58: 0 | AF58: 0 | AG58: 0 | AH58: 0 | AI58: 0 | AJ58: 0 | AK58: 0 | AL58: 0 | AM58: 0 | AN58: 0 | AO58: 0 | AP58: 0 | AQ58: 0 | AR58: 0 | AS58: 0 | AT58: 103 | AU58: 60 | AV58: 1 | AW58: 1 | AZ58: 1 | BA58: 1 | BB58: 1 | BC58: 1 | BH58: 3 | BI58: 1 | BM58: 33001 | BN58: 0 | BP58: 0 | BQ58: 2 | BR58: 0 | BS58: 1 | BT58: 1 | BU58: 1 | BV58: 1 | BW58: 1 | BX58: 1 | BZ58: 103 | CA58: 60 | CE58: 0 | CF58: 0 | CG58: 0 | CH58: 4 | CI58: 2 | CJ58: 0 | CK58: 0 | CL58: 0 | CM58: 0 | CO58: 0 | CP58: 0 | CQ58: 0 | CR58: 0 | CS58: 0 | CT58: 0 | CU58: 0 | CV58: 0 | CW58: 0 | CX58: 0 | CY58: 0 | CZ58: 0 | DN58: 0 | DO58: 0 | DP58: 1 | DQ58: 1 | DU58: 1013 | DV58: ШТ | DW58: ШТ | DX58: 1 | EE58: 83666879 | EF58: 2 | EG58: Общестроительные работы | EH58: 27 | EI58: Линии электропередачи | EJ58: 1 | EK58: 33001 | EL58: Линии электропередачи | EM58: ФЕР-33 | EQ58: 0 | ER58: 0 | ES58: 0 | ET58: 0 | EU58: 0 | EV58: 0 | EW58: 0 | EX58: 0 | FQ58: 0 | FR58: 0 | FS58: 0 | FX58: 103 | FY58: 60 | GD58: 1 | GF58: 457934895 | GG58: 2 | GH58: 1 | GI58: -2 | GJ58: 0 | GK58: 0 | GL58: 0 | GM58: 0 | GN58: 0 | GO58: 0 | GP58: 0 | GR58: 0 | GS58: 3 | GT58: 0 | GV58: 0 | GW58: 1 | GX58: 0 | HA58: 0 | HB58: 0 | HC58: 0 | HN58: Пр/812-027.0-1 | HO58: Пр/774-027.0 | HP58: Линии электропередачи | HQ58: Линии электропередачи | HS58: 0 | IK58: 0
A59: 18 | B59: 1 | C59: 66 | E59: 4,3 | F59: 07.2.02.05 | G59: Траверсы стальные | H59: т | I59: =I52*J59 -> 0 | J59: 0 | K59: 0 | L59: 0 | M59: 0 | N59: 0 | O59: 0 | P59: 0 | Q59: 0 | R59: 0 | S59: 0 | T59: 0 | U59: 0 | V59: 0 | W59: 0 | X59: 0 | Y59: 0 | AA59: 85312357 | AB59: 0 | AC59: 0 | AD59: 0 | AE59: 0 | AF59: 0 | AG59: 0 | AH59: 0 | AI59: 0 | AJ59: 0 | AK59: 0 | AL59: 0 | AM59: 0 | AN59: 0 | AO59: 0 | AP59: 0 | AQ59: 0 | AR59: 0 | AS59: 0 | AT59: 103 | AU59: 60 | AV59: 1 | AW59: 1 | AZ59: 1 | BA59: 1 | BB59: 1 | BC59: 1 | BH59: 3 | BI59: 1 | BM59: 33001 | BN59: 0 | BP59: 0 | BQ59: 2 | BR59: 0 | BS59: 1 | BT59: 1 | BU59: 1 | BV59: 1 | BW59: 1 | BX59: 1 | BZ59: 103 | CA59: 60 | CE59: 0 | CF59: 0 | CG59: 0 | CH59: 4 | CI59: 3 | CJ59: 0 | CK59: 0 | CL59: 0 | CM59: 0 | CO59: 0 | CP59: 0 | CQ59: 0 | CR59: 0 | CS59: 0 | CT59: 0 | CU59: 0 | CV59: 0 | CW59: 0 | CX59: 0 | CY59: 0 | CZ59: 0 | DN59: 0 | DO59: 0 | DP59: 1 | DQ59: 1 | DU59: 1009 | DV59: т | DW59: т | DX59: 1000 | EE59: 83666879 | EF59: 2 | EG59: Общестроительные работы | EH59: 27 | EI59: Линии электропередачи | EJ59: 1 | EK59: 33001 | EL59: Линии электропередачи | EM59: ФЕР-33 | EQ59: 0 | ER59: 0 | ES59: 0 | ET59: 0 | EU59: 0 | EV59: 0 | EW59: 0 | EX59: 0 | FQ59: 0 | FR59: 0 | FS59: 0 | FX59: 103 | FY59: 60 | GD59: 1 | GF59: 1602794472 | GG59: 2 | GH59: 1 | GI59: -2 | GJ59: 0 | GK59: 0 | GL59: 0 | GM59: 0 | GN59: 0 | GO59: 0 | GP59: 0 | GR59: 0 | GS59: 3 | GT59: 0 | GV59: 0 | GW59: 1 | GX59: 0 | HA59: 0 | HB59: 0 | HC59: 0 | HN59: Пр/812-027.0-1 | HO59: Пр/774-027.0 | HP59: Линии электропередачи | HQ59: Линии электропередачи | HS59: 0 | IK59: 0
A60: 18 | B60: 1 | C60: 84 | E60: 4,3 | F60: 07.2.02.05 | G60: Траверсы стальные | H60: т | I60: =I53*J60 -> 0 | J60: 0 | K60: 0 | L60: 0 | M60: 0 | N60: 0 | O60: 0 | P60: 0 | Q60: 0 | R60: 0 | S60: 0 | T60: 0 | U60: 0 | V60: 0 | W60: 0 | X60: 0 | Y60: 0 | AA60: 85312298 | AB60: 0 | AC60: 0 | AD60: 0 | AE60: 0 | AF60: 0 | AG60: 0 | AH60: 0 | AI60: 0 | AJ60: 0 | AK60: 0 | AL60: 0 | AM60: 0 | AN60: 0 | AO60: 0 | AP60: 0 | AQ60: 0 | AR60: 0 | AS60: 0 | AT60: 103 | AU60: 60 | AV60: 1 | AW60: 1 | AZ60: 1 | BA60: 1 | BB60: 1 | BC60: 1 | BH60: 3 | BI60: 1 | BM60: 33001 | BN60: 0 | BP60: 0 | BQ60: 2 | BR60: 0 | BS60: 1 | BT60: 1 | BU60: 1 | BV60: 1 | BW60: 1 | BX60: 1 | BZ60: 103 | CA60: 60 | CE60: 0 | CF60: 0 | CG60: 0 | CH60: 4 | CI60: 3 | CJ60: 0 | CK60: 0 | CL60: 0 | CM60: 0 | CO60: 0 | CP60: 0 | CQ60: 0 | CR60: 0 | CS60: 0 | CT60: 0 | CU60: 0 | CV60: 0 | CW60: 0 | CX60: 0 | CY60: 0 | CZ60: 0 | DN60: 0 | DO60: 0 | DP60: 1 | DQ60: 1 | DU60: 1009 | DV60: т | DW60: т | DX60: 1000 | EE60: 83666879 | EF60: 2 | EG60: Общестроительные работы | EH60: 27 | EI60: Линии электропередачи | EJ60: 1 | EK60: 33001 | EL60: Линии электропередачи | EM60: ФЕР-33 | EQ60: 0 | ER60: 0 | ES60: 0 | ET60: 0 | EU60: 0 | EV60: 0 | EW60: 0 | EX60: 0 | FQ60: 0 | FR60: 0 | FS60: 0 | FX60: 103 | FY60: 60 | GD60: 1 | GF60: 1602794472 | GG60: 2 | GH60: 1 | GI60: -2 | GJ60: 0 | GK60: 0 | GL60: 0 | GM60: 0 | GN60: 0 | GO60: 0 | GP60: 0 | GR60: 0 | GS60: 3 | GT60: 0 | GV60: 0 | GW60: 1 | GX60: 0 | HA60: 0 | HB60: 0 | HC60: 0 | HN60: Пр/812-027.0-1 | HO60: Пр/774-027.0 | HP60: Линии электропередачи | HQ60: Линии электропередачи | HS60: 0 | IK60: 0
A61: 18 | B61: 1 | C61: 67 | E61: 4,4 | F61: 07.2.07.13 | G61: Хомуты стальные | H61: кг | I61: =I52*J61 -> 0 | J61: 0 | K61: 0 | L61: 0 | M61: 0 | N61: 0 | O61: 0 | P61: 0 | Q61: 0 | R61: 0 | S61: 0 | T61: 0 | U61: 0 | V61: 0 | W61: 0 | X61: 0 | Y61: 0 | AA61: 85312357 | AB61: 0 | AC61: 0 | AD61: 0 | AE61: 0 | AF61: 0 | AG61: 0 | AH61: 0 | AI61: 0 | AJ61: 0 | AK61: 0 | AL61: 0 | AM61: 0 | AN61: 0 | AO61: 0 | AP61: 0 | AQ61: 0 | AR61: 0 | AS61: 0 | AT61: 103 | AU61: 60 | AV61: 1 | AW61: 1 | AZ61: 1 | BA61: 1 | BB61: 1 | BC61: 1 | BH61: 3 | BI61: 1 | BM61: 33001 | BN61: 0 | BP61: 0 | BQ61: 2 | BR61: 0 | BS61: 1 | BT61: 1 | BU61: 1 | BV61: 1 | BW61: 1 | BX61: 1 | BZ61: 103 | CA61: 60 | CE61: 0 | CF61: 0 | CG61: 0 | CH61: 4 | CI61: 4 | CJ61: 0 | CK61: 0 | CL61: 0 | CM61: 0 | CO61: 0 | CP61: 0 | CQ61: 0 | CR61: 0 | CS61: 0 | CT61: 0 | CU61: 0 | CV61: 0 | CW61: 0 | CX61: 0 | CY61: 0 | CZ61: 0 | DN61: 0 | DO61: 0 | DP61: 1 | DQ61: 1 | DU61: 1009 | DV61: кг | DW61: кг | DX61: 1 | EE61: 83666879 | EF61: 2 | EG61: Общестроительные работы | EH61: 27 | EI61: Линии электропередачи | EJ61: 1 | EK61: 33001 | EL61: Линии электропередачи | EM61: ФЕР-33 | EQ61: 0 | ER61: 0 | ES61: 0 | ET61: 0 | EU61: 0 | EV61: 0 | EW61: 0 | EX61: 0 | FQ61: 0 | FR61: 0 | FS61: 0 | FX61: 103 | FY61: 60 | GD61: 1 | GF61: -1111733769 | GG61: 2 | GH61: 1 | GI61: -2 | GJ61: 0 | GK61: 0 | GL61: 0 | GM61: 0 | GN61: 0 | GO61: 0 | GP61: 0 | GR61: 0 | GS61: 3 | GT61: 0 | GV61: 0 | GW61: 1 | GX61: 0 | HA61: 0 | HB61: 0 | HC61: 0 | HN61: Пр/812-027.0-1 | HO61: Пр/774-027.0 | HP61: Линии электропередачи | HQ61: Линии электропередачи | HS61: 0 | IK61: 0
A62: 18 | B62: 1 | C62: 85 | E62: 4,4 | F62: 07.2.07.13 | G62: Хомуты стальные | H62: кг | I62: =I53*J62 -> 0 | J62: 0 | K62: 0 | L62: 0 | M62: 0 | N62: 0 | O62: 0 | P62: 0 | Q62: 0 | R62: 0 | S62: 0 | T62: 0 | U62: 0 | V62: 0 | W62: 0 | X62: 0 | Y62: 0 | AA62: 85312298 | AB62: 0 | AC62: 0 | AD62: 0 | AE62: 0 | AF62: 0 | AG62: 0 | AH62: 0 | AI62: 0 | AJ62: 0 | AK62: 0 | AL62: 0 | AM62: 0 | AN62: 0 | AO62: 0 | AP62: 0 | AQ62: 0 | AR62: 0 | AS62: 0 | AT62: 103 | AU62: 60 | AV62: 1 | AW62: 1 | AZ62: 1 | BA62: 1 | BB62: 1 | BC62: 1 | BH62: 3 | BI62: 1 | BM62: 33001 | BN62: 0 | BP62: 0 | BQ62: 2 | BR62: 0 | BS62: 1 | BT62: 1 | BU62: 1 | BV62: 1 | BW62: 1 | BX62: 1 | BZ62: 103 | CA62: 60 | CE62: 0 | CF62: 0 | CG62: 0 | CH62: 4 | CI62: 4 | CJ62: 0 | CK62: 0 | CL62: 0 | CM62: 0 | CO62: 0 | CP62: 0 | CQ62: 0 | CR62: 0 | CS62: 0 | CT62: 0 | CU62: 0 | CV62: 0 | CW62: 0 | CX62: 0 | CY62: 0 | CZ62: 0 | DN62: 0 | DO62: 0 | DP62: 1 | DQ62: 1 | DU62: 1009 | DV62: кг | DW62: кг | DX62: 1 | EE62: 83666879 | EF62: 2 | EG62: Общестроительные работы | EH62: 27 | EI62: Линии электропередачи | EJ62: 1 | EK62: 33001 | EL62: Линии электропередачи | EM62: ФЕР-33 | EQ62: 0 | ER62: 0 | ES62: 0 | ET62: 0 | EU62: 0 | EV62: 0 | EW62: 0 | EX62: 0 | FQ62: 0 | FR62: 0 | FS62: 0 | FX62: 103 | FY62: 60 | GD62: 1 | GF62: -1111733769 | GG62: 2 | GH62: 1 | GI62: -2 | GJ62: 0 | GK62: 0 | GL62: 0 | GM62: 0 | GN62: 0 | GO62: 0 | GP62: 0 | GR62: 0 | GS62: 3 | GT62: 0 | GV62: 0 | GW62: 1 | GX62: 0 | HA62: 0 | HB62: 0 | HC62: 0 | HN62: Пр/812-027.0-1 | HO62: Пр/774-027.0 | HP62: Линии электропередачи | HQ62: Линии электропередачи | HS62: 0 | IK62: 0
A63: 18 | B63: 1 | C63: 68 | E63: 4,5 | F63: 08.3.04.02 | G63: Сталь стержневая диаметром до 10 мм | H63: т | I63: =I52*J63 -> 0 | J63: 0 | K63: 0 | L63: 0 | M63: 0 | N63: 0 | O63: 0 | P63: 0 | Q63: 0 | R63: 0 | S63: 0 | T63: 0 | U63: 0 | V63: 0 | W63: 0 | X63: 0 | Y63: 0 | AA63: 85312357 | AB63: 0 | AC63: 0 | AD63: 0 | AE63: 0 | AF63: 0 | AG63: 0 | AH63: 0 | AI63: 0 | AJ63: 0 | AK63: 0 | AL63: 0 | AM63: 0 | AN63: 0 | AO63: 0 | AP63: 0 | AQ63: 0 | AR63: 0 | AS63: 0 | AT63: 103 | AU63: 60 | AV63: 1 | AW63: 1 | AZ63: 1 | BA63: 1 | BB63: 1 | BC63: 1 | BH63: 3 | BI63: 1 | BM63: 33001 | BN63: 0 | BP63: 0 | BQ63: 2 | BR63: 0 | BS63: 1 | BT63: 1 | BU63: 1 | BV63: 1 | BW63: 1 | BX63: 1 | BZ63: 103 | CA63: 60 | CE63: 0 | CF63: 0 | CG63: 0 | CH63: 4 | CI63: 5 | CJ63: 0 | CK63: 0 | CL63: 0 | CM63: 0 | CO63: 0 | CP63: 0 | CQ63: 0 | CR63: 0 | CS63: 0 | CT63: 0 | CU63: 0 | CV63: 0 | CW63: 0 | CX63: 0 | CY63: 0 | CZ63: 0 | DN63: 0 | DO63: 0 | DP63: 1 | DQ63: 1 | DU63: 1009 | DV63: т | DW63: т | DX63: 1000 | EE63: 83666879 | EF63: 2 | EG63: Общестроительные работы | EH63: 27 | EI63: Линии электропередачи | EJ63: 1 | EK63: 33001 | EL63: Линии электропередачи | EM63: ФЕР-33 | EQ63: 0 | ER63: 0 | ES63: 0 | ET63: 0 | EU63: 0 | EV63: 0 | EW63: 0 | EX63: 0 | FQ63: 0 | FR63: 0 | FS63: 0 | FX63: 103 | FY63: 60 | GD63: 1 | GF63: 1613753229 | GG63: 2 | GH63: 1 | GI63: -2 | GJ63: 0 | GK63: 0 | GL63: 0 | GM63: 0 | GN63: 0 | GO63: 0 | GP63: 0 | GR63: 0 | GS63: 3 | GT63: 0 | GV63: 0 | GW63: 1 | GX63: 0 | HA63: 0 | HB63: 0 | HC63: 0 | HN63: Пр/812-027.0-1 | HO63: Пр/774-027.0 | HP63: Линии электропередачи | HQ63: Линии электропередачи | HS63: 0 | IK63: 0
A64: 18 | B64: 1 | C64: 86 | E64: 4,5 | F64: 08.3.04.02 | G64: Сталь стержневая диаметром до 10 мм | H64: т | I64: =I53*J64 -> 0 | J64: 0 | K64: 0 | L64: 0 | M64: 0 | N64: 0 | O64: 0 | P64: 0 | Q64: 0 | R64: 0 | S64: 0 | T64: 0 | U64: 0 | V64: 0 | W64: 0 | X64: 0 | Y64: 0 | AA64: 85312298 | AB64: 0 | AC64: 0 | AD64: 0 | AE64: 0 | AF64: 0 | AG64: 0 | AH64: 0 | AI64: 0 | AJ64: 0 | AK64: 0 | AL64: 0 | AM64: 0 | AN64: 0 | AO64: 0 | AP64: 0 | AQ64: 0 | AR64: 0 | AS64: 0 | AT64: 103 | AU64: 60 | AV64: 1 | AW64: 1 | AZ64: 1 | BA64: 1 | BB64: 1 | BC64: 1 | BH64: 3 | BI64: 1 | BM64: 33001 | BN64: 0 | BP64: 0 | BQ64: 2 | BR64: 0 | BS64: 1 | BT64: 1 | BU64: 1 | BV64: 1 | BW64: 1 | BX64: 1 | BZ64: 103 | CA64: 60 | CE64: 0 | CF64: 0 | CG64: 0 | CH64: 4 | CI64: 5 | CJ64: 0 | CK64: 0 | CL64: 0 | CM64: 0 | CO64: 0 | CP64: 0 | CQ64: 0 | CR64: 0 | CS64: 0 | CT64: 0 | CU64: 0 | CV64: 0 | CW64: 0 | CX64: 0 | CY64: 0 | CZ64: 0 | DN64: 0 | DO64: 0 | DP64: 1 | DQ64: 1 | DU64: 1009 | DV64: т | DW64: т | DX64: 1000 | EE64: 83666879 | EF64: 2 | EG64: Общестроительные работы | EH64: 27 | EI64: Линии электропередачи | EJ64: 1 | EK64: 33001 | EL64: Линии электропередачи | EM64: ФЕР-33 | EQ64: 0 | ER64: 0 | ES64: 0 | ET64: 0 | EU64: 0 | EV64: 0 | EW64: 0 | EX64: 0 | FQ64: 0 | FR64: 0 | FS64: 0 | FX64: 103 | FY64: 60 | GD64: 1 | GF64: 1613753229 | GG64: 2 | GH64: 1 | GI64: -2 | GJ64: 0 | GK64: 0 | GL64: 0 | GM64: 0 | GN64: 0 | GO64: 0 | GP64: 0 | GR64: 0 | GS64: 3 | GT64: 0 | GV64: 0 | GW64: 1 | GX64: 0 | HA64: 0 | HB64: 0 | HC64: 0 | HN64: Пр/812-027.0-1 | HO64: Пр/774-027.0 | HP64: Линии электропередачи | HQ64: Линии электропередачи | HS64: 0 | IK64: 0
A65: 18 | B65: 1 | C65: 72 | E65: 4,6 | F65: 22.2.01.04 | G65: Изоляторы штыревые | H65: ШТ | I65: =I52*J65 -> 0 | J65: 0 | K65: 0 | L65: 0 | M65: 0 | N65: 0 | O65: 0 | P65: 0 | Q65: 0 | R65: 0 | S65: 0 | T65: 0 | U65: 0 | V65: 0 | W65: 0 | X65: 0 | Y65: 0 | AA65: 85312357 | AB65: 0 | AC65: 0 | AD65: 0 | AE65: 0 | AF65: 0 | AG65: 0 | AH65: 0 | AI65: 0 | AJ65: 0 | AK65: 0 | AL65: 0 | AM65: 0 | AN65: 0 | AO65: 0 | AP65: 0 | AQ65: 0 | AR65: 0 | AS65: 0 | AT65: 103 | AU65: 60 | AV65: 1 | AW65: 1 | AZ65: 1 | BA65: 1 | BB65: 1 | BC65: 1 | BH65: 3 | BI65: 1 | BM65: 33001 | BN65: 0 | BP65: 0 | BQ65: 2 | BR65: 0 | BS65: 1 | BT65: 1 | BU65: 1 | BV65: 1 | BW65: 1 | BX65: 1 | BZ65: 103 | CA65: 60 | CE65: 0 | CF65: 0 | CG65: 0 | CH65: 4 | CI65: 6 | CJ65: 0 | CK65: 0 | CL65: 0 | CM65: 0 | CO65: 0 | CP65: 0 | CQ65: 0 | CR65: 0 | CS65: 0 | CT65: 0 | CU65: 0 | CV65: 0 | CW65: 0 | CX65: 0 | CY65: 0 | CZ65: 0 | DN65: 0 | DO65: 0 | DP65: 1 | DQ65: 1 | DU65: 1013 | DV65: ШТ | DW65: ШТ | DX65: 1 | EE65: 83666879 | EF65: 2 | EG65: Общестроительные работы | EH65: 27 | EI65: Линии электропередачи | EJ65: 1 | EK65: 33001 | EL65: Линии электропередачи | EM65: ФЕР-33 | EQ65: 0 | ER65: 0 | ES65: 0 | ET65: 0 | EU65: 0 | EV65: 0 | EW65: 0 | EX65: 0 | FQ65: 0 | FR65: 0 | FS65: 0 | FX65: 103 | FY65: 60 | GD65: 1 | GF65: -950997571 | GG65: 2 | GH65: 1 | GI65: -2 | GJ65: 0 | GK65: 0 | GL65: 0 | GM65: 0 | GN65: 0 | GO65: 0 | GP65: 0 | GR65: 0 | GS65: 3 | GT65: 0 | GV65: 0 | GW65: 1 | GX65: 0 | HA65: 0 | HB65: 0 | HC65: 0 | HN65: Пр/812-027.0-1 | HO65: Пр/774-027.0 | HP65: Линии электропередачи | HQ65: Линии электропередачи | HS65: 0 | IK65: 0
A66: 18 | B66: 1 | C66: 90 | E66: 4,6 | F66: 22.2.01.04 | G66: Изоляторы штыревые | H66: ШТ | I66: =I53*J66 -> 0 | J66: 0 | K66: 0 | L66: 0 | M66: 0 | N66: 0 | O66: 0 | P66: 0 | Q66: 0 | R66: 0 | S66: 0 | T66: 0 | U66: 0 | V66: 0 | W66: 0 | X66: 0 | Y66: 0 | AA66: 85312298 | AB66: 0 | AC66: 0 | AD66: 0 | AE66: 0 | AF66: 0 | AG66: 0 | AH66: 0 | AI66: 0 | AJ66: 0 | AK66: 0 | AL66: 0 | AM66: 0 | AN66: 0 | AO66: 0 | AP66: 0 | AQ66: 0 | AR66: 0 | AS66: 0 | AT66: 103 | AU66: 60 | AV66: 1 | AW66: 1 | AZ66: 1 | BA66: 1 | BB66: 1 | BC66: 1 | BH66: 3 | BI66: 1 | BM66: 33001 | BN66: 0 | BP66: 0 | BQ66: 2 | BR66: 0 | BS66: 1 | BT66: 1 | BU66: 1 | BV66: 1 | BW66: 1 | BX66: 1 | BZ66: 103 | CA66: 60 | CE66: 0 | CF66: 0 | CG66: 0 | CH66: 4 | CI66: 6 | CJ66: 0 | CK66: 0 | CL66: 0 | CM66: 0 | CO66: 0 | CP66: 0 | CQ66: 0 | CR66: 0 | CS66: 0 | CT66: 0 | CU66: 0 | CV66: 0 | CW66: 0 | CX66: 0 | CY66: 0 | CZ66: 0 | DN66: 0 | DO66: 0 | DP66: 1 | DQ66: 1 | DU66: 1013 | DV66: ШТ | DW66: ШТ | DX66: 1 | EE66: 83666879 | EF66: 2 | EG66: Общестроительные работы | EH66: 27 | EI66: Линии электропередачи | EJ66: 1 | EK66: 33001 | EL66: Линии электропередачи | EM66: ФЕР-33 | EQ66: 0 | ER66: 0 | ES66: 0 | ET66: 0 | EU66: 0 | EV66: 0 | EW66: 0 | EX66: 0 | FQ66: 0 | FR66: 0 | FS66: 0 | FX66: 103 | FY66: 60 | GD66: 1 | GF66: -950997571 | GG66: 2 | GH66: 1 | GI66: -2 | GJ66: 0 | GK66: 0 | GL66: 0 | GM66: 0 | GN66: 0 | GO66: 0 | GP66: 0 | GR66: 0 | GS66: 3 | GT66: 0 | GV66: 0 | GW66: 1 | GX66: 0 | HA66: 0 | HB66: 0 | HC66: 0 | HN66: Пр/812-027.0-1 | HO66: Пр/774-027.0 | HP66: Линии электропередачи | HQ66: Линии электропередачи | HS66: 0 | IK66: 0
A67: 18 | B67: 1 | C67: 73 | E67: 4,7 | F67: 22.2.02.21 | G67: Штыри | H67: ШТ | I67: =I52*J67 -> 0 | J67: 0 | K67: 0 | L67: 0 | M67: 0 | N67: 0 | O67: 0 | P67: 0 | Q67: 0 | R67: 0 | S67: 0 | T67: 0 | U67: 0 | V67: 0 | W67: 0 | X67: 0 | Y67: 0 | AA67: 85312357 | AB67: 0 | AC67: 0 | AD67: 0 | AE67: 0 | AF67: 0 | AG67: 0 | AH67: 0 | AI67: 0 | AJ67: 0 | AK67: 0 | AL67: 0 | AM67: 0 | AN67: 0 | AO67: 0 | AP67: 0 | AQ67: 0 | AR67: 0 | AS67: 0 | AT67: 103 | AU67: 60 | AV67: 1 | AW67: 1 | AZ67: 1 | BA67: 1 | BB67: 1 | BC67: 1 | BH67: 3 | BI67: 1 | BM67: 33001 | BN67: 0 | BP67: 0 | BQ67: 2 | BR67: 0 | BS67: 1 | BT67: 1 | BU67: 1 | BV67: 1 | BW67: 1 | BX67: 1 | BZ67: 103 | CA67: 60 | CE67: 0 | CF67: 0 | CG67: 0 | CH67: 4 | CI67: 7 | CJ67: 0 | CK67: 0 | CL67: 0 | CM67: 0 | CO67: 0 | CP67: 0 | CQ67: 0 | CR67: 0 | CS67: 0 | CT67: 0 | CU67: 0 | CV67: 0 | CW67: 0 | CX67: 0 | CY67: 0 | CZ67: 0 | DN67: 0 | DO67: 0 | DP67: 1 | DQ67: 1 | DU67: 1013 | DV67: ШТ | DW67: ШТ | DX67: 1 | EE67: 83666879 | EF67: 2 | EG67: Общестроительные работы | EH67: 27 | EI67: Линии электропередачи | EJ67: 1 | EK67: 33001 | EL67: Линии электропередачи | EM67: ФЕР-33 | EQ67: 0 | ER67: 0 | ES67: 0 | ET67: 0 | EU67: 0 | EV67: 0 | EW67: 0 | EX67: 0 | FQ67: 0 | FR67: 0 | FS67: 0 | FX67: 103 | FY67: 60 | GD67: 1 | GF67: -320198552 | GG67: 2 | GH67: 1 | GI67: -2 | GJ67: 0 | GK67: 0 | GL67: 0 | GM67: 0 | GN67: 0 | GO67: 0 | GP67: 0 | GR67: 0 | GS67: 3 | GT67: 0 | GV67: 0 | GW67: 1 | GX67: 0 | HA67: 0 | HB67: 0 | HC67: 0 | HN67: Пр/812-027.0-1 | HO67: Пр/774-027.0 | HP67: Линии электропередачи | HQ67: Линии электропередачи | HS67: 0 | IK67: 0
A68: 18 | B68: 1 | C68: 91 | E68: 4,7 | F68: 22.2.02.21 | G68: Штыри | H68: ШТ | I68: =I53*J68 -> 0 | J68: 0 | K68: 0 | L68: 0 | M68: 0 | N68: 0 | O68: 0 | P68: 0 | Q68: 0 | R68: 0 | S68: 0 | T68: 0 | U68: 0 | V68: 0 | W68: 0 | X68: 0 | Y68: 0 | AA68: 85312298 | AB68: 0 | AC68: 0 | AD68: 0 | AE68: 0 | AF68: 0 | AG68: 0 | AH68: 0 | AI68: 0 | AJ68: 0 | AK68: 0 | AL68: 0 | AM68: 0 | AN68: 0 | AO68: 0 | AP68: 0 | AQ68: 0 | AR68: 0 | AS68: 0 | AT68: 103 | AU68: 60 | AV68: 1 | AW68: 1 | AZ68: 1 | BA68: 1 | BB68: 1 | BC68: 1 | BH68: 3 | BI68: 1 | BM68: 33001 | BN68: 0 | BP68: 0 | BQ68: 2 | BR68: 0 | BS68: 1 | BT68: 1 | BU68: 1 | BV68: 1 | BW68: 1 | BX68: 1 | BZ68: 103 | CA68: 60 | CE68: 0 | CF68: 0 | CG68: 0 | CH68: 4 | CI68: 7 | CJ68: 0 | CK68: 0 | CL68: 0 | CM68: 0 | CO68: 0 | CP68: 0 | CQ68: 0 | CR68: 0 | CS68: 0 | CT68: 0 | CU68: 0 | CV68: 0 | CW68: 0 | CX68: 0 | CY68: 0 | CZ68: 0 | DN68: 0 | DO68: 0 | DP68: 1 | DQ68: 1 | DU68: 1013 | DV68: ШТ | DW68: ШТ | DX68: 1 | EE68: 83666879 | EF68: 2 | EG68: Общестроительные работы | EH68: 27 | EI68: Линии электропередачи | EJ68: 1 | EK68: 33001 | EL68: Линии электропередачи | EM68: ФЕР-33 | EQ68: 0 | ER68: 0 | ES68: 0 | ET68: 0 | EU68: 0 | EV68: 0 | EW68: 0 | EX68: 0 | FQ68: 0 | FR68: 0 | FS68: 0 | FX68: 103 | FY68: 60 | GD68: 1 | GF68: -320198552 | GG68: 2 | GH68: 1 | GI68: -2 | GJ68: 0 | GK68: 0 | GL68: 0 | GM68: 0 | GN68: 0 | GO68: 0 | GP68: 0 | GR68: 0 | GS68: 3 | GT68: 0 | GV68: 0 | GW68: 1 | GX68: 0 | HA68: 0 | HB68: 0 | HC68: 0 | HN68: Пр/812-027.0-1 | HO68: Пр/774-027.0 | HP68: Линии электропередачи | HQ68: Линии электропередачи | HS68: 0 | IK68: 0
A69: 18 | B69: 1 | C69: 74 | E69: 4,8 | F69: 22.2.02.23 | G69: Металлические плакаты | H69: ШТ | I69: =I52*J69 -> 0 | J69: 0 | K69: 0 | L69: 0 | M69: 0 | N69: 0 | O69: 0 | P69: 0 | Q69: 0 | R69: 0 | S69: 0 | T69: 0 | U69: 0 | V69: 0 | W69: 0 | X69: 0 | Y69: 0 | AA69: 85312357 | AB69: 0 | AC69: 0 | AD69: 0 | AE69: 0 | AF69: 0 | AG69: 0 | AH69: 0 | AI69: 0 | AJ69: 0 | AK69: 0 | AL69: 0 | AM69: 0 | AN69: 0 | AO69: 0 | AP69: 0 | AQ69: 0 | AR69: 0 | AS69: 0 | AT69: 103 | AU69: 60 | AV69: 1 | AW69: 1 | AZ69: 1 | BA69: 1 | BB69: 1 | BC69: 1 | BH69: 3 | BI69: 1 | BM69: 33001 | BN69: 0 | BP69: 0 | BQ69: 2 | BR69: 0 | BS69: 1 | BT69: 1 | BU69: 1 | BV69: 1 | BW69: 1 | BX69: 1 | BZ69: 103 | CA69: 60 | CE69: 0 | CF69: 0 | CG69: 0 | CH69: 4 | CI69: 8 | CJ69: 0 | CK69: 0 | CL69: 0 | CM69: 0 | CO69: 0 | CP69: 0 | CQ69: 0 | CR69: 0 | CS69: 0 | CT69: 0 | CU69: 0 | CV69: 0 | CW69: 0 | CX69: 0 | CY69: 0 | CZ69: 0 | DN69: 0 | DO69: 0 | DP69: 1 | DQ69: 1 | DU69: 1013 | DV69: ШТ | DW69: ШТ | DX69: 1 | EE69: 83666879 | EF69: 2 | EG69: Общестроительные работы | EH69: 27 | EI69: Линии электропередачи | EJ69: 1 | EK69: 33001 | EL69: Линии электропередачи | EM69: ФЕР-33 | EQ69: 0 | ER69: 0 | ES69: 0 | ET69: 0 | EU69: 0 | EV69: 0 | EW69: 0 | EX69: 0 | FQ69: 0 | FR69: 0 | FS69: 0 | FX69: 103 | FY69: 60 | GD69: 1 | GF69: 326010188 | GG69: 2 | GH69: 1 | GI69: -2 | GJ69: 0 | GK69: 0 | GL69: 0 | GM69: 0 | GN69: 0 | GO69: 0 | GP69: 0 | GR69: 0 | GS69: 3 | GT69: 0 | GV69: 0 | GW69: 1 | GX69: 0 | HA69: 0 | HB69: 0 | HC69: 0 | HN69: Пр/812-027.0-1 | HO69: Пр/774-027.0 | HP69: Линии электропередачи | HQ69: Линии электропередачи | HS69: 0 | IK69: 0
A70: 18 | B70: 1 | C70: 92 | E70: 4,8 | F70: 22.2.02.23 | G70: Металлические плакаты | H70: ШТ | I70: =I53*J70 -> 0 | J70: 0 | K70: 0 | L70: 0 | M70: 0 | N70: 0 | O70: 0 | P70: 0 | Q70: 0 | R70: 0 | S70: 0 | T70: 0 | U70: 0 | V70: 0 | W70: 0 | X70: 0 | Y70: 0 | AA70: 85312298 | AB70: 0 | AC70: 0 | AD70: 0 | AE70: 0 | AF70: 0 | AG70: 0 | AH70: 0 | AI70: 0 | AJ70: 0 | AK70: 0 | AL70: 0 | AM70: 0 | AN70: 0 | AO70: 0 | AP70: 0 | AQ70: 0 | AR70: 0 | AS70: 0 | AT70: 103 | AU70: 60 | AV70: 1 | AW70: 1 | AZ70: 1 | BA70: 1 | BB70: 1 | BC70: 1 | BH70: 3 | BI70: 1 | BM70: 33001 | BN70: 0 | BP70: 0 | BQ70: 2 | BR70: 0 | BS70: 1 | BT70: 1 | BU70: 1 | BV70: 1 | BW70: 1 | BX70: 1 | BZ70: 103 | CA70: 60 | CE70: 0 | CF70: 0 | CG70: 0 | CH70: 4 | CI70: 8 | CJ70: 0 | CK70: 0 | CL70: 0 | CM70: 0 | CO70: 0 | CP70: 0 | CQ70: 0 | CR70: 0 | CS70: 0 | CT70: 0 | CU70: 0 | CV70: 0 | CW70: 0 | CX70: 0 | CY70: 0 | CZ70: 0 | DN70: 0 | DO70: 0 | DP70: 1 | DQ70: 1 | DU70: 1013 | DV70: ШТ | DW70: ШТ | DX70: 1 | EE70: 83666879 | EF70: 2 | EG70: Общестроительные работы | EH70: 27 | EI70: Линии электропередачи | EJ70: 1 | EK70: 33001 | EL70: Линии электропередачи | EM70: ФЕР-33 | EQ70: 0 | ER70: 0 | ES70: 0 | ET70: 0 | EU70: 0 | EV70: 0 | EW70: 0 | EX70: 0 | FQ70: 0 | FR70: 0 | FS70: 0 | FX70: 103 | FY70: 60 | GD70: 1 | GF70: 326010188 | GG70: 2 | GH70: 1 | GI70: -2 | GJ70: 0 | GK70: 0 | GL70: 0 | GM70: 0 | GN70: 0 | GO70: 0 | GP70: 0 | GR70: 0 | GS70: 3 | GT70: 0 | GV70: 0 | GW70: 1 | GX70: 0 | HA70: 0 | HB70: 0 | HC70: 0 | HN70: Пр/812-027.0-1 | HO70: Пр/774-027.0 | HP70: Линии электропередачи | HQ70: Линии электропередачи | HS70: 0 | IK70: 0
A71: 17 | B71: 1 | C71: =ROW(SmtRes!A111) -> 111 | D71: =ROW(EtalonRes!A111) -> 111 | F71: 33-04-003-07 | G71: Установка железобетонных опор ВЛ 0,38; 6-10 кВ с траверсами с одинарными приставками: одностоечных | H71: ШТ | I71: 0 | J71: 0 | K71: 0 | L71: 1 | M71: 1 | N71: 0 | O71: 0 | P71: =SUMIF(SmtRes!AQ93:'SmtRes'!AQ111,"=1",SmtRes!DF93:'SmtRes'!DF111) -> 0 | Q71: =SUMIF(SmtRes!AQ93:'SmtRes'!AQ111,"=1",SmtRes!DG93:'SmtRes'!DG111) -> 0 | R71: =SUMIF(SmtRes!AQ93:'SmtRes'!AQ111,"=1",SmtRes!DH93:'SmtRes'!DH111) -> 0 | S71: =SUMIF(SmtRes!AQ93:'SmtRes'!AQ111,"=1",SmtRes!DI93:'SmtRes'!DI111) -> 0 | T71: 0 | U71: =SUMIF(SmtRes!AQ93:'SmtRes'!AQ111,"=1",SmtRes!CV93:'SmtRes'!CV111) -> 0 | V71: =SUMIF(SmtRes!AQ93:'SmtRes'!AQ111,"=1",SmtRes!CW93:'SmtRes'!CW111) -> 0 | W71: 0 | X71: 0 | Y71: 0 | AA71: -1 | AB71: 6144.15 | AC71: =ROUND((SUM(SmtRes!BQ93:'SmtRes'!BQ111)),2) -> 34.71 | AD71: =ROUND((((SUM(SmtRes!BR93:'SmtRes'!BR111))-(SUM(SmtRes!BS93:'SmtRes'!BS111)))+AE71),2) -> 1815.33 | AE71: =ROUND((SUM(SmtRes!BS93:'SmtRes'!BS111)),2) -> 963.12 | AF71: =ROUND((SUM(SmtRes!BT93:'SmtRes'!BT111)),2) -> 4294.11 | AG71: 0 | AH71: =(SUM(SmtRes!BU93:'SmtRes'!BU111)) -> 5.81 | AI71: =(SUM(SmtRes!BV93:'SmtRes'!BV111)) -> 1.07 | AJ71: 0 | AK71: 7107.275798 | AL71: 34.709198 | AM71: 1815.3336 | AN71: 963.1201 | AO71: 4294.1129 | AP71: 0 | AQ71: 5.81 | AR71: 1.07 | AS71: 0 | AT71: 103 | AU71: 60 | AV71: 1 | AW71: 1 | AZ71: 1 | BA71: 1 | BB71: 1 | BC71: 1 | BH71: 0 | BI71: 1 | BJ71: ГЭСН-2022 доп.11, 33-04-003-07, приказ Минстроя России от 09.08.2024 г. № 524/пр | BM71: 33001 | BN71: 0 | BP71: 0 | BQ71: 2 | BR71: 0 | BS71: 1 | BT71: 1 | BU71: 1 | BV71: 1 | BW71: 1 | BX71: 1 | BZ71: 103 | CA71: 60 | CE71: 0 | CF71: 0 | CG71: 0 | CH71: 0 | CI71: 0 | CJ71: 0 | CK71: 0 | CL71: 0 | CM71: 0 | CO71: 0 | CP71: 0 | CQ71: =SUMIF(SmtRes!AQ93:'SmtRes'!AQ111,"=1",SmtRes!AA93:'SmtRes'!AA111) -> 193362.11 | CR71: =SUMIF(SmtRes!AQ93:'SmtRes'!AQ111,"=1",SmtRes!AB93:'SmtRes'!AB111) -> 3377.99 | CS71: =SUMIF(SmtRes!AQ93:'SmtRes'!AQ111,"=1",SmtRes!AC93:'SmtRes'!AC111) -> 1744.74 | CT71: =SUMIF(SmtRes!AQ93:'SmtRes'!AQ111,"=1",SmtRes!AD93:'SmtRes'!AD111) -> 739.09 | CU71: =AG71 -> 0 | CV71: =SUMIF(SmtRes!AQ93:'SmtRes'!AQ111,"=1",SmtRes!BU93:'SmtRes'!BU111) -> 5.81 | CW71: =SUMIF(SmtRes!AQ93:'SmtRes'!AQ111,"=1",SmtRes!BV93:'SmtRes'!BV111) -> 1.07 | CX71: =AJ71 -> 0 | CY71: 0 | CZ71: 0 | DN71: 0 | DO71: 0 | DP71: 1 | DQ71: 1 | DU71: 1013 | DV71: ШТ | DW71: ШТ | DX71: 1 | EE71: 83666879 | EF71: 2 | EG71: Общестроительные работы | EH71: 27 | EI71: Линии электропередачи | EJ71: 1 | EK71: 33001 | EL71: Линии электропередачи | EM71: ФЕР-33 | EQ71: 132096 | ER71: 0 | ES71: 0 | ET71: 0 | EU71: 0 | EV71: 0 | EW71: 5.81 | EX71: 1.07 | EY71: 0 | FQ71: 0 | FR71: 0 | FS71: 0 | FX71: 103 | FY71: 60 | GD71: 1 | GF71: -751358411 | GG71: 2 | GH71: 1 | GI71: -2 | GJ71: 0 | GK71: 0 | GL71: 0 | GM71: 0 | GN71: 0 | GO71: 0 | GP71: 0 | GR71: 0 | GS71: 0 | GT71: 0 | GV71: 0 | GW71: 1 | GX71: 0 | HA71: 0 | HB71: 0 | HC71: 0 | HN71: Пр/812-027.0-1 | HO71: Пр/774-027.0 | HP71: Линии электропередачи | HQ71: Линии электропередачи | HS71: 0 | IK71: 0
A72: 17 | B72: 1 | C72: =ROW(SmtRes!A130) -> 130 | D72: =ROW(EtalonRes!A130) -> 130 | F72: 33-04-003-07 | G72: Установка железобетонных опор ВЛ 0,38; 6-10 кВ с траверсами с одинарными приставками: одностоечных | H72: ШТ | I72: 0 | J72: 0 | K72: 0 | L72: 1 | M72: 1 | N72: 0 | O72: 0 | P72: =SUMIF(SmtRes!AQ112:'SmtRes'!AQ130,"=1",SmtRes!DF112:'SmtRes'!DF130) -> 0 | Q72: =SUMIF(SmtRes!AQ112:'SmtRes'!AQ130,"=1",SmtRes!DG112:'SmtRes'!DG130) -> 0 | R72: =SUMIF(SmtRes!AQ112:'SmtRes'!AQ130,"=1",SmtRes!DH112:'SmtRes'!DH130) -> 0 | S72: =SUMIF(SmtRes!AQ112:'SmtRes'!AQ130,"=1",SmtRes!DI112:'SmtRes'!DI130) -> 0 | T72: 0 | U72: =SUMIF(SmtRes!AQ112:'SmtRes'!AQ130,"=1",SmtRes!CV112:'SmtRes'!CV130) -> 0 | V72: =SUMIF(SmtRes!AQ112:'SmtRes'!AQ130,"=1",SmtRes!CW112:'SmtRes'!CW130) -> 0 | W72: 0 | X72: 0 | Y72: 0 | AA72: -1 | AB72: 6144.15 | AC72: =ROUND((SUM(SmtRes!BQ112:'SmtRes'!BQ130)),2) -> 34.71 | AD72: =ROUND((((SUM(SmtRes!BR112:'SmtRes'!BR130))-(SUM(SmtRes!BS112:'SmtRes'!BS130)))+AE72),2) -> 1815.33 | AE72: =ROUND((SUM(SmtRes!BS112:'SmtRes'!BS130)),2) -> 963.12 | AF72: =ROUND((SUM(SmtRes!BT112:'SmtRes'!BT130)),2) -> 4294.11 | AG72: 0 | AH72: =(SUM(SmtRes!BU112:'SmtRes'!BU130)) -> 5.81 | AI72: =(SUM(SmtRes!BV112:'SmtRes'!BV130)) -> 1.07 | AJ72: 0 | AK72: 7107.275798 | AL72: 34.709198 | AM72: 1815.3336 | AN72: 963.1201 | AO72: 4294.1129 | AP72: 0 | AQ72: 5.81 | AR72: 1.07 | AS72: 0 | AT72: 103 | AU72: 60 | AV72: 1 | AW72: 1 | AZ72: 1 | BA72: 1 | BB72: 1 | BC72: 1 | BH72: 0 | BI72: 1 | BJ72: ГЭСН-2022 доп.11, 33-04-003-07, приказ Минстроя России от 09.08.2024 г. № 524/пр | BM72: 33001 | BN72: 0 | BP72: 0 | BQ72: 2 | BR72: 0 | BS72: 1 | BT72: 1 | BU72: 1 | BV72: 1 | BW72: 1 | BX72: 1 | BZ72: 103 | CA72: 60 | CE72: 0 | CF72: 0 | CG72: 0 | CH72: 0 | CI72: 0 | CJ72: 0 | CK72: 0 | CL72: 0 | CM72: 0 | CO72: 0 | CP72: 0 | CQ72: =SUMIF(SmtRes!AQ112:'SmtRes'!AQ130,"=1",SmtRes!AA112:'SmtRes'!AA130) -> 193362.11 | CR72: =SUMIF(SmtRes!AQ112:'SmtRes'!AQ130,"=1",SmtRes!AB112:'SmtRes'!AB130) -> 3377.99 | CS72: =SUMIF(SmtRes!AQ112:'SmtRes'!AQ130,"=1",SmtRes!AC112:'SmtRes'!AC130) -> 1744.74 | CT72: =SUMIF(SmtRes!AQ112:'SmtRes'!AQ130,"=1",SmtRes!AD112:'SmtRes'!AD130) -> 739.09 | CU72: =AG72 -> 0 | CV72: =SUMIF(SmtRes!AQ112:'SmtRes'!AQ130,"=1",SmtRes!BU112:'SmtRes'!BU130) -> 5.81 | CW72: =SUMIF(SmtRes!AQ112:'SmtRes'!AQ130,"=1",SmtRes!BV112:'SmtRes'!BV130) -> 1.07 | CX72: =AJ72 -> 0 | CY72: 0 | CZ72: 0 | DN72: 0 | DO72: 0 | DP72: 1 | DQ72: 1 | DU72: 1013 | DV72: ШТ | DW72: ШТ | DX72: 1 | EE72: 83666879 | EF72: 2 | EG72: Общестроительные работы | EH72: 27 | EI72: Линии электропередачи | EJ72: 1 | EK72: 33001 | EL72: Линии электропередачи | EM72: ФЕР-33 | EQ72: 132096 | ER72: 0 | ES72: 0 | ET72: 0 | EU72: 0 | EV72: 0 | EW72: 5.81 | EX72: 1.07 | EY72: 0 | FQ72: 0 | FR72: 0 | FS72: 0 | FX72: 103 | FY72: 60 | GD72: 1 | GF72: -751358411 | GG72: 2 | GH72: 1 | GI72: -2 | GJ72: 0 | GK72: 0 | GL72: 0 | GM72: 0 | GN72: 0 | GO72: 0 | GP72: 0 | GR72: 0 | GS72: 0 | GT72: 0 | GV72: 0 | GW72: 1 | GX72: 0 | HA72: 0 | HB72: 0 | HC72: 0 | HN72: Пр/812-027.0-1 | HO72: Пр/774-027.0 | HP72: Линии электропередачи | HQ72: Линии электропередачи | HS72: 0 | IK72: 0
A73: 19 | B73: 1 | G73: По ВОР "Установка жб опор с приставками одностоечных" | AA73: 1 | IK73: 0
A74: 18 | B74: 1 | C74: 99 | F74: 01.7.15.03-0042 | G74: Болты с гайками и шайбами строительные | H74: кг | I74: =I71*J74 -> 0 | J74: 0 | K74: 0 | L74: 0 | M74: 0 | N74: =ROUND(L74-M74,4) -> 0 | O74: =ROUND(CP74,2) -> 0 | P74: =ROUND(CQ74*I74,2) -> 0 | Q74: =ROUND(CR74*I74,2) -> 0 | R74: =ROUND(CS74*I74,2) -> 0 | S74: =ROUND(CT74*I74,2) -> 0 | T74: =ROUND(CU74*I74,2) -> 0 | U74: =ROUND(CV74*I74,7) -> 0 | V74: =ROUND(CW74*I74,7) -> 0 | W74: =ROUND(CX74*I74,2) -> 0 | X74: =ROUND(CY74,2) -> 0 | Y74: =ROUND(CZ74,2) -> 0 | AA74: -1 | AB74: =ROUND((AC74+AD74+AF74),2) -> 174.93 | AC74: =ROUND((ES74),2) -> 174.93 | AD74: =ROUND((((ET74)-(EU74))+AE74),2) -> 0 | AE74: =ROUND((EU74),2) -> 0 | AF74: =ROUND((EV74),2) -> 0 | AG74: =ROUND((AP74),2) -> 0 | AH74: =(EW74) -> 0 | AI74: =(EX74) -> 0 | AJ74: =(AS74) -> 0 | AK74: 174.93 | AL74: 174.93 | AM74: 0 | AN74: 0 | AO74: 0 | AP74: 0 | AQ74: 0 | AR74: 0 | AS74: 0 | AT74: 103 | AU74: 60 | AV74: 1 | AW74: 1 | AZ74: 1 | BA74: 1 | BB74: 1 | BC74: 1.08 | BH74: 3 | BI74: 1 | BJ74: ФСБЦ-2022, 01.7.15.03-0042, приказ Минстроя России от 18.05.2022 г. № 378/пр | BM74: 33001 | BN74: 0 | BO74: 01.7.15.03-0042 | BP74: 1 | BQ74: 2 | BR74: 0 | BS74: 1 | BT74: 1 | BU74: 1 | BV74: 1 | BW74: 1 | BX74: 1 | BZ74: 103 | CA74: 60 | CE74: 0 | CF74: 0 | CG74: 0 | CH74: 0 | CI74: 0 | CJ74: 0 | CK74: 0 | CL74: 0 | CM74: 0 | CO74: 0 | CP74: =(P74+Q74+S74+R74) -> 0 | CQ74: =ROUND(AL74*BC74,2) -> 188.92 | CR74: =ROUND(AM74*BB74,2) -> 0 | CS74: =ROUND(AN74*BS74,2) -> 0 | CT74: =ROUND(AO74*BA74,2) -> 0 | CU74: =AG74 -> 0 | CV74: =AH74 -> 0 | CW74: =AI74 -> 0 | CX74: =AJ74 -> 0 | CY74: =(((S74+R74)*AT74)/100) -> 0 | CZ74: =(((S74+R74)*AU74)/100) -> 0 | DN74: 0 | DO74: 0 | DP74: 1 | DQ74: 1 | DU74: 1009 | DV74: кг | DW74: кг | DX74: 1 | EE74: 83666879 | EF74: 2 | EG74: Общестроительные работы | EH74: 27 | EI74: Линии электропередачи | EJ74: 1 | EK74: 33001 | EL74: Линии электропередачи | EM74: ФЕР-33 | EQ74: 1024 | ER74: 174.93 | ES74: 174.93 | ET74: 0 | EU74: 0 | EV74: 0 | EW74: 0 | EX74: 0 | FQ74: 0 | FR74: 0 | FS74: 0 | FX74: 103 | FY74: 60 | GD74: 1 | GF74: 1181962216 | GG74: 2 | GH74: 1 | GI74: 2 | GJ74: 0 | GK74: 0 | GL74: =ROUND(IF(AND(BH74=3,BI74=3,FS74<>0),P74,0),2) -> 0 | GM74: =ROUND(O74+X74+Y74,2)+GX74 -> 0 | GN74: =IF(OR(BI74=0,BI74=1),GM74-GX74,0) -> 0 | GO74: =IF(BI74=2,GM74-GX74,0) -> 0 | GP74: =IF(BI74=4,GM74-GX74,0) -> 0 | GR74: 0 | GS74: 0 | GT74: 0 | GV74: =ROUND((GT74),2) -> 0 | GW74: 1 | GX74: =ROUND(HC74*I74,2) -> 0 | HA74: 0 | HB74: 0 | HC74: =GV74*GW74 -> 0 | HN74: Пр/812-027.0-1 | HO74: Пр/774-027.0 | HP74: Линии электропередачи | HQ74: Линии электропередачи | HS74: 0 | IK74: 0
A75: 18 | B75: 1 | C75: 118 | F75: 01.7.15.03-0042 | G75: Болты с гайками и шайбами строительные | H75: кг | I75: =I72*J75 -> 0 | J75: 0 | K75: 0 | L75: 0 | M75: 0 | N75: 0 | O75: 0 | P75: 0 | Q75: 0 | R75: 0 | S75: 0 | T75: 0 | U75: 0 | V75: 0 | W75: 0 | X75: 0 | Y75: 0 | AA75: -1 | AB75: 174.93 | AC75: 174.93 | AD75: 0 | AE75: 0 | AF75: 0 | AG75: 0 | AH75: 0 | AI75: 0 | AJ75: 0 | AK75: 174.93 | AL75: 174.93 | AM75: 0 | AN75: 0 | AO75: 0 | AP75: 0 | AQ75: 0 | AR75: 0 | AS75: 0 | AT75: 103 | AU75: 60 | AV75: 1 | AW75: 1 | AZ75: 1 | BA75: 1 | BB75: 1 | BC75: 1.08 | BH75: 3 | BI75: 1 | BJ75: ФСБЦ-2022, 01.7.15.03-0042, приказ Минстроя России от 18.05.2022 г. № 378/пр | BM75: 33001 | BN75: 0 | BO75: 01.7.15.03-0042 | BP75: 1 | BQ75: 2 | BR75: 0 | BS75: 1 | BT75: 1 | BU75: 1 | BV75: 1 | BW75: 1 | BX75: 1 | BZ75: 103 | CA75: 60 | CE75: 0 | CF75: 0 | CG75: 0 | CH75: 0 | CI75: 0 | CJ75: 0 | CK75: 0 | CL75: 0 | CM75: 0 | CO75: 0 | CP75: 0 | CQ75: 188.92 | CR75: 0 | CS75: 0 | CT75: 0 | CU75: 0 | CV75: 0 | CW75: 0 | CX75: 0 | CY75: 0 | CZ75: 0 | DN75: 0 | DO75: 0 | DP75: 1 | DQ75: 1 | DU75: 1009 | DV75: кг | DW75: кг | DX75: 1 | EE75: 83666879 | EF75: 2 | EG75: Общестроительные работы | EH75: 27 | EI75: Линии электропередачи | EJ75: 1 | EK75: 33001 | EL75: Линии электропередачи | EM75: ФЕР-33 | EQ75: 1024 | ER75: 174.93 | ES75: 174.93 | ET75: 0 | EU75: 0 | EV75: 0 | EW75: 0 | EX75: 0 | FQ75: 0 | FR75: 0 | FS75: 0 | FX75: 103 | FY75: 60 | GD75: 1 | GF75: 1181962216 | GG75: 2 | GH75: 1 | GI75: 2 | GJ75: 0 | GK75: 0 | GL75: 0 | GM75: 0 | GN75: 0 | GO75: 0 | GP75: 0 | GR75: 0 | GS75: 0 | GT75: 0 | GV75: 0 | GW75: 1 | GX75: 0 | HA75: 0 | HB75: 0 | HC75: 0 | HN75: Пр/812-027.0-1 | HO75: Пр/774-027.0 | HP75: Линии электропередачи | HQ75: Линии электропередачи | HS75: 0 | IK75: 0
A76: 18 | B76: 1 | C76: 101 | F76: 05.1.02.06 | G76: Приставки железобетонные | H76: ШТ | I76: =I71*J76 -> 0 | J76: 0 | K76: 0 | L76: 0 | M76: 0 | N76: 0 | O76: 0 | P76: 0 | Q76: 0 | R76: 0 | S76: 0 | T76: 0 | U76: 0 | V76: 0 | W76: 0 | X76: 0 | Y76: 0 | AA76: -1 | AB76: 0 | AC76: 0 | AD76: 0 | AE76: 0 | AF76: 0 | AG76: 0 | AH76: 0 | AI76: 0 | AJ76: 0 | AK76: 0 | AL76: 0 | AM76: 0 | AN76: 0 | AO76: 0 | AP76: 0 | AQ76: 0 | AR76: 0 | AS76: 0 | AT76: 103 | AU76: 60 | AV76: 1 | AW76: 1 | AZ76: 1 | BA76: 1 | BB76: 1 | BC76: 1 | BH76: 3 | BI76: 1 | BM76: 33001 | BN76: 0 | BP76: 0 | BQ76: 2 | BR76: 0 | BS76: 1 | BT76: 1 | BU76: 1 | BV76: 1 | BW76: 1 | BX76: 1 | BZ76: 103 | CA76: 60 | CE76: 0 | CF76: 0 | CG76: 0 | CH76: 0 | CI76: 0 | CJ76: 0 | CK76: 0 | CL76: 0 | CM76: 0 | CO76: 0 | CP76: 0 | CQ76: 0 | CR76: 0 | CS76: 0 | CT76: 0 | CU76: 0 | CV76: 0 | CW76: 0 | CX76: 0 | CY76: 0 | CZ76: 0 | DN76: 0 | DO76: 0 | DP76: 1 | DQ76: 1 | DU76: 1013 | DV76: ШТ | DW76: ШТ | DX76: 1 | EE76: 83666879 | EF76: 2 | EG76: Общестроительные работы | EH76: 27 | EI76: Линии электропередачи | EJ76: 1 | EK76: 33001 | EL76: Линии электропередачи | EM76: ФЕР-33 | EQ76: 1024 | ER76: 0 | ES76: 0 | ET76: 0 | EU76: 0 | EV76: 0 | EW76: 0 | EX76: 0 | FQ76: 0 | FR76: 0 | FS76: 0 | FX76: 103 | FY76: 60 | GD76: 1 | GF76: -1729700736 | GG76: 2 | GH76: 1 | GI76: -2 | GJ76: 0 | GK76: 0 | GL76: 0 | GM76: 0 | GN76: 0 | GO76: 0 | GP76: 0 | GR76: 0 | GS76: 0 | GT76: 0 | GV76: 0 | GW76: 1 | GX76: 0 | HA76: 0 | HB76: 0 | HC76: 0 | HN76: Пр/812-027.0-1 | HO76: Пр/774-027.0 | HP76: Линии электропередачи | HQ76: Линии электропередачи | HS76: 0 | IK76: 0
A77: 18 | B77: 1 | C77: 120 | F77: 05.1.02.06 | G77: Приставки железобетонные | H77: ШТ | I77: =I72*J77 -> 0 | J77: 0 | K77: 0 | L77: 0 | M77: 0 | N77: 0 | O77: 0 | P77: 0 | Q77: 0 | R77: 0 | S77: 0 | T77: 0 | U77: 0 | V77: 0 | W77: 0 | X77: 0 | Y77: 0 | AA77: -1 | AB77: 0 | AC77: 0 | AD77: 0 | AE77: 0 | AF77: 0 | AG77: 0 | AH77: 0 | AI77: 0 | AJ77: 0 | AK77: 0 | AL77: 0 | AM77: 0 | AN77: 0 | AO77: 0 | AP77: 0 | AQ77: 0 | AR77: 0 | AS77: 0 | AT77: 103 | AU77: 60 | AV77: 1 | AW77: 1 | AZ77: 1 | BA77: 1 | BB77: 1 | BC77: 1 | BH77: 3 | BI77: 1 | BM77: 33001 | BN77: 0 | BP77: 0 | BQ77: 2 | BR77: 0 | BS77: 1 | BT77: 1 | BU77: 1 | BV77: 1 | BW77: 1 | BX77: 1 | BZ77: 103 | CA77: 60 | CE77: 0 | CF77: 0 | CG77: 0 | CH77: 0 | CI77: 0 | CJ77: 0 | CK77: 0 | CL77: 0 | CM77: 0 | CO77: 0 | CP77: 0 | CQ77: 0 | CR77: 0 | CS77: 0 | CT77: 0 | CU77: 0 | CV77: 0 | CW77: 0 | CX77: 0 | CY77: 0 | CZ77: 0 | DN77: 0 | DO77: 0 | DP77: 1 | DQ77: 1 | DU77: 1013 | DV77: ШТ | DW77: ШТ | DX77: 1 | EE77: 83666879 | EF77: 2 | EG77: Общестроительные работы | EH77: 27 | EI77: Линии электропередачи | EJ77: 1 | EK77: 33001 | EL77: Линии электропередачи | EM77: ФЕР-33 | EQ77: 1024 | ER77: 0 | ES77: 0 | ET77: 0 | EU77: 0 | EV77: 0 | EW77: 0 | EX77: 0 | FQ77: 0 | FR77: 0 | FS77: 0 | FX77: 103 | FY77: 60 | GD77: 1 | GF77: -1729700736 | GG77: 2 | GH77: 1 | GI77: -2 | GJ77: 0 | GK77: 0 | GL77: 0 | GM77: 0 | GN77: 0 | GO77: 0 | GP77: 0 | GR77: 0 | GS77: 0 | GT77: 0 | GV77: 0 | GW77: 1 | GX77: 0 | HA77: 0 | HB77: 0 | HC77: 0 | HN77: Пр/812-027.0-1 | HO77: Пр/774-027.0 | HP77: Линии электропередачи | HQ77: Линии электропередачи | HS77: 0 | IK77: 0
A78: 18 | B78: 1 | C78: 102 | F78: 05.1.02.07 | G78: Стойка железобетонная вибрированная для опор | H78: ШТ | I78: =I71*J78 -> 0 | J78: 0 | K78: 0 | L78: 0 | M78: 0 | N78: 0 | O78: 0 | P78: 0 | Q78: 0 | R78: 0 | S78: 0 | T78: 0 | U78: 0 | V78: 0 | W78: 0 | X78: 0 | Y78: 0 | AA78: -1 | AB78: 0 | AC78: 0 | AD78: 0 | AE78: 0 | AF78: 0 | AG78: 0 | AH78: 0 | AI78: 0 | AJ78: 0 | AK78: 0 | AL78: 0 | AM78: 0 | AN78: 0 | AO78: 0 | AP78: 0 | AQ78: 0 | AR78: 0 | AS78: 0 | AT78: 103 | AU78: 60 | AV78: 1 | AW78: 1 | AZ78: 1 | BA78: 1 | BB78: 1 | BC78: 1 | BH78: 3 | BI78: 1 | BM78: 33001 | BN78: 0 | BP78: 0 | BQ78: 2 | BR78: 0 | BS78: 1 | BT78: 1 | BU78: 1 | BV78: 1 | BW78: 1 | BX78: 1 | BZ78: 103 | CA78: 60 | CE78: 0 | CF78: 0 | CG78: 0 | CH78: 0 | CI78: 0 | CJ78: 0 | CK78: 0 | CL78: 0 | CM78: 0 | CO78: 0 | CP78: 0 | CQ78: 0 | CR78: 0 | CS78: 0 | CT78: 0 | CU78: 0 | CV78: 0 | CW78: 0 | CX78: 0 | CY78: 0 | CZ78: 0 | DN78: 0 | DO78: 0 | DP78: 1 | DQ78: 1 | DU78: 1013 | DV78: ШТ | DW78: ШТ | DX78: 1 | EE78: 83666879 | EF78: 2 | EG78: Общестроительные работы | EH78: 27 | EI78: Линии электропередачи | EJ78: 1 | EK78: 33001 | EL78: Линии электропередачи | EM78: ФЕР-33 | EQ78: 1024 | ER78: 0 | ES78: 0 | ET78: 0 | EU78: 0 | EV78: 0 | EW78: 0 | EX78: 0 | FQ78: 0 | FR78: 0 | FS78: 0 | FX78: 103 | FY78: 60 | GD78: 1 | GF78: 457934895 | GG78: 2 | GH78: 1 | GI78: -2 | GJ78: 0 | GK78: 0 | GL78: 0 | GM78: 0 | GN78: 0 | GO78: 0 | GP78: 0 | GR78: 0 | GS78: 0 | GT78: 0 | GV78: 0 | GW78: 1 | GX78: 0 | HA78: 0 | HB78: 0 | HC78: 0 | HN78: Пр/812-027.0-1 | HO78: Пр/774-027.0 | HP78: Линии электропередачи | HQ78: Линии электропередачи | HS78: 0 | IK78: 0
A79: 18 | B79: 1 | C79: 121 | F79: 05.1.02.07 | G79: Стойка железобетонная вибрированная для опор | H79: ШТ | I79: =I72*J79 -> 0 | J79: 0 | K79: 0 | L79: 0 | M79: 0 | N79: 0 | O79: 0 | P79: 0 | Q79: 0 | R79: 0 | S79: 0 | T79: 0 | U79: 0 | V79: 0 | W79: 0 | X79: 0 | Y79: 0 | AA79: -1 | AB79: 0 | AC79: 0 | AD79: 0 | AE79: 0 | AF79: 0 | AG79: 0 | AH79: 0 | AI79: 0 | AJ79: 0 | AK79: 0 | AL79: 0 | AM79: 0 | AN79: 0 | AO79: 0 | AP79: 0 | AQ79: 0 | AR79: 0 | AS79: 0 | AT79: 103 | AU79: 60 | AV79: 1 | AW79: 1 | AZ79: 1 | BA79: 1 | BB79: 1 | BC79: 1 | BH79: 3 | BI79: 1 | BM79: 33001 | BN79: 0 | BP79: 0 | BQ79: 2 | BR79: 0 | BS79: 1 | BT79: 1 | BU79: 1 | BV79: 1 | BW79: 1 | BX79: 1 | BZ79: 103 | CA79: 60 | CE79: 0 | CF79: 0 | CG79: 0 | CH79: 0 | CI79: 0 | CJ79: 0 | CK79: 0 | CL79: 0 | CM79: 0 | CO79: 0 | CP79: 0 | CQ79: 0 | CR79: 0 | CS79: 0 | CT79: 0 | CU79: 0 | CV79: 0 | CW79: 0 | CX79: 0 | CY79: 0 | CZ79: 0 | DN79: 0 | DO79: 0 | DP79: 1 | DQ79: 1 | DU79: 1013 | DV79: ШТ | DW79: ШТ | DX79: 1 | EE79: 83666879 | EF79: 2 | EG79: Общестроительные работы | EH79: 27 | EI79: Линии электропередачи | EJ79: 1 | EK79: 33001 | EL79: Линии электропередачи | EM79: ФЕР-33 | EQ79: 1024 | ER79: 0 | ES79: 0 | ET79: 0 | EU79: 0 | EV79: 0 | EW79: 0 | EX79: 0 | FQ79: 0 | FR79: 0 | FS79: 0 | FX79: 103 | FY79: 60 | GD79: 1 | GF79: 457934895 | GG79: 2 | GH79: 1 | GI79: -2 | GJ79: 0 | GK79: 0 | GL79: 0 | GM79: 0 | GN79: 0 | GO79: 0 | GP79: 0 | GR79: 0 | GS79: 0 | GT79: 0 | GV79: 0 | GW79: 1 | GX79: 0 | HA79: 0 | HB79: 0 | HC79: 0 | HN79: Пр/812-027.0-1 | HO79: Пр/774-027.0 | HP79: Линии электропередачи | HQ79: Линии электропередачи | HS79: 0 | IK79: 0
A80: 18 | B80: 1 | C80: 103 | F80: 07.2.02.05 | G80: Траверсы стальные | H80: т | I80: =I71*J80 -> 0 | J80: 0 | K80: 0 | L80: 0 | M80: 0 | N80: 0 | O80: 0 | P80: 0 | Q80: 0 | R80: 0 | S80: 0 | T80: 0 | U80: 0 | V80: 0 | W80: 0 | X80: 0 | Y80: 0 | AA80: -1 | AB80: 0 | AC80: 0 | AD80: 0 | AE80: 0 | AF80: 0 | AG80: 0 | AH80: 0 | AI80: 0 | AJ80: 0 | AK80: 0 | AL80: 0 | AM80: 0 | AN80: 0 | AO80: 0 | AP80: 0 | AQ80: 0 | AR80: 0 | AS80: 0 | AT80: 103 | AU80: 60 | AV80: 1 | AW80: 1 | AZ80: 1 | BA80: 1 | BB80: 1 | BC80: 1 | BH80: 3 | BI80: 1 | BM80: 33001 | BN80: 0 | BP80: 0 | BQ80: 2 | BR80: 0 | BS80: 1 | BT80: 1 | BU80: 1 | BV80: 1 | BW80: 1 | BX80: 1 | BZ80: 103 | CA80: 60 | CE80: 0 | CF80: 0 | CG80: 0 | CH80: 0 | CI80: 0 | CJ80: 0 | CK80: 0 | CL80: 0 | CM80: 0 | CO80: 0 | CP80: 0 | CQ80: 0 | CR80: 0 | CS80: 0 | CT80: 0 | CU80: 0 | CV80: 0 | CW80: 0 | CX80: 0 | CY80: 0 | CZ80: 0 | DN80: 0 | DO80: 0 | DP80: 1 | DQ80: 1 | DU80: 1009 | DV80: т | DW80: т | DX80: 1000 | EE80: 83666879 | EF80: 2 | EG80: Общестроительные работы | EH80: 27 | EI80: Линии электропередачи | EJ80: 1 | EK80: 33001 | EL80: Линии электропередачи | EM80: ФЕР-33 | EQ80: 1024 | ER80: 0 | ES80: 0 | ET80: 0 | EU80: 0 | EV80: 0 | EW80: 0 | EX80: 0 | FQ80: 0 | FR80: 0 | FS80: 0 | FX80: 103 | FY80: 60 | GD80: 1 | GF80: 1602794472 | GG80: 2 | GH80: 1 | GI80: -2 | GJ80: 0 | GK80: 0 | GL80: 0 | GM80: 0 | GN80: 0 | GO80: 0 | GP80: 0 | GR80: 0 | GS80: 0 | GT80: 0 | GV80: 0 | GW80: 1 | GX80: 0 | HA80: 0 | HB80: 0 | HC80: 0 | HN80: Пр/812-027.0-1 | HO80: Пр/774-027.0 | HP80: Линии электропередачи | HQ80: Линии электропередачи | HS80: 0 | IK80: 0
A81: 18 | B81: 1 | C81: 122 | F81: 07.2.02.05 | G81: Траверсы стальные | H81: т | I81: =I72*J81 -> 0 | J81: 0 | K81: 0 | L81: 0 | M81: 0 | N81: 0 | O81: 0 | P81: 0 | Q81: 0 | R81: 0 | S81: 0 | T81: 0 | U81: 0 | V81: 0 | W81: 0 | X81: 0 | Y81: 0 | AA81: -1 | AB81: 0 | AC81: 0 | AD81: 0 | AE81: 0 | AF81: 0 | AG81: 0 | AH81: 0 | AI81: 0 | AJ81: 0 | AK81: 0 | AL81: 0 | AM81: 0 | AN81: 0 | AO81: 0 | AP81: 0 | AQ81: 0 | AR81: 0 | AS81: 0 | AT81: 103 | AU81: 60 | AV81: 1 | AW81: 1 | AZ81: 1 | BA81: 1 | BB81: 1 | BC81: 1 | BH81: 3 | BI81: 1 | BM81: 33001 | BN81: 0 | BP81: 0 | BQ81: 2 | BR81: 0 | BS81: 1 | BT81: 1 | BU81: 1 | BV81: 1 | BW81: 1 | BX81: 1 | BZ81: 103 | CA81: 60 | CE81: 0 | CF81: 0 | CG81: 0 | CH81: 0 | CI81: 0 | CJ81: 0 | CK81: 0 | CL81: 0 | CM81: 0 | CO81: 0 | CP81: 0 | CQ81: 0 | CR81: 0 | CS81: 0 | CT81: 0 | CU81: 0 | CV81: 0 | CW81: 0 | CX81: 0 | CY81: 0 | CZ81: 0 | DN81: 0 | DO81: 0 | DP81: 1 | DQ81: 1 | DU81: 1009 | DV81: т | DW81: т | DX81: 1000 | EE81: 83666879 | EF81: 2 | EG81: Общестроительные работы | EH81: 27 | EI81: Линии электропередачи | EJ81: 1 | EK81: 33001 | EL81: Линии электропередачи | EM81: ФЕР-33 | EQ81: 1024 | ER81: 0 | ES81: 0 | ET81: 0 | EU81: 0 | EV81: 0 | EW81: 0 | EX81: 0 | FQ81: 0 | FR81: 0 | FS81: 0 | FX81: 103 | FY81: 60 | GD81: 1 | GF81: 1602794472 | GG81: 2 | GH81: 1 | GI81: -2 | GJ81: 0 | GK81: 0 | GL81: 0 | GM81: 0 | GN81: 0 | GO81: 0 | GP81: 0 | GR81: 0 | GS81: 0 | GT81: 0 | GV81: 0 | GW81: 1 | GX81: 0 | HA81: 0 | HB81: 0 | HC81: 0 | HN81: Пр/812-027.0-1 | HO81: Пр/774-027.0 | HP81: Линии электропередачи | HQ81: Линии электропередачи | HS81: 0 | IK81: 0
A82: 18 | B82: 1 | C82: 104 | F82: 07.2.07.13 | G82: Хомуты стальные | H82: кг | I82: =I71*J82 -> 0 | J82: 0 | K82: 0 | L82: 0 | M82: 0 | N82: 0 | O82: 0 | P82: 0 | Q82: 0 | R82: 0 | S82: 0 | T82: 0 | U82: 0 | V82: 0 | W82: 0 | X82: 0 | Y82: 0 | AA82: -1 | AB82: 0 | AC82: 0 | AD82: 0 | AE82: 0 | AF82: 0 | AG82: 0 | AH82: 0 | AI82: 0 | AJ82: 0 | AK82: 0 | AL82: 0 | AM82: 0 | AN82: 0 | AO82: 0 | AP82: 0 | AQ82: 0 | AR82: 0 | AS82: 0 | AT82: 103 | AU82: 60 | AV82: 1 | AW82: 1 | AZ82: 1 | BA82: 1 | BB82: 1 | BC82: 1 | BH82: 3 | BI82: 1 | BM82: 33001 | BN82: 0 | BP82: 0 | BQ82: 2 | BR82: 0 | BS82: 1 | BT82: 1 | BU82: 1 | BV82: 1 | BW82: 1 | BX82: 1 | BZ82: 103 | CA82: 60 | CE82: 0 | CF82: 0 | CG82: 0 | CH82: 0 | CI82: 0 | CJ82: 0 | CK82: 0 | CL82: 0 | CM82: 0 | CO82: 0 | CP82: 0 | CQ82: 0 | CR82: 0 | CS82: 0 | CT82: 0 | CU82: 0 | CV82: 0 | CW82: 0 | CX82: 0 | CY82: 0 | CZ82: 0 | DN82: 0 | DO82: 0 | DP82: 1 | DQ82: 1 | DU82: 1009 | DV82: кг | DW82: кг | DX82: 1 | EE82: 83666879 | EF82: 2 | EG82: Общестроительные работы | EH82: 27 | EI82: Линии электропередачи | EJ82: 1 | EK82: 33001 | EL82: Линии электропередачи | EM82: ФЕР-33 | EQ82: 1024 | ER82: 0 | ES82: 0 | ET82: 0 | EU82: 0 | EV82: 0 | EW82: 0 | EX82: 0 | FQ82: 0 | FR82: 0 | FS82: 0 | FX82: 103 | FY82: 60 | GD82: 1 | GF82: -1111733769 | GG82: 2 | GH82: 1 | GI82: -2 | GJ82: 0 | GK82: 0 | GL82: 0 | GM82: 0 | GN82: 0 | GO82: 0 | GP82: 0 | GR82: 0 | GS82: 0 | GT82: 0 | GV82: 0 | GW82: 1 | GX82: 0 | HA82: 0 | HB82: 0 | HC82: 0 | HN82: Пр/812-027.0-1 | HO82: Пр/774-027.0 | HP82: Линии электропередачи | HQ82: Линии электропередачи | HS82: 0 | IK82: 0
A83: 18 | B83: 1 | C83: 123 | F83: 07.2.07.13 | G83: Хомуты стальные | H83: кг | I83: =I72*J83 -> 0 | J83: 0 | K83: 0 | L83: 0 | M83: 0 | N83: 0 | O83: 0 | P83: 0 | Q83: 0 | R83: 0 | S83: 0 | T83: 0 | U83: 0 | V83: 0 | W83: 0 | X83: 0 | Y83: 0 | AA83: -1 | AB83: 0 | AC83: 0 | AD83: 0 | AE83: 0 | AF83: 0 | AG83: 0 | AH83: 0 | AI83: 0 | AJ83: 0 | AK83: 0 | AL83: 0 | AM83: 0 | AN83: 0 | AO83: 0 | AP83: 0 | AQ83: 0 | AR83: 0 | AS83: 0 | AT83: 103 | AU83: 60 | AV83: 1 | AW83: 1 | AZ83: 1 | BA83: 1 | BB83: 1 | BC83: 1 | BH83: 3 | BI83: 1 | BM83: 33001 | BN83: 0 | BP83: 0 | BQ83: 2 | BR83: 0 | BS83: 1 | BT83: 1 | BU83: 1 | BV83: 1 | BW83: 1 | BX83: 1 | BZ83: 103 | CA83: 60 | CE83: 0 | CF83: 0 | CG83: 0 | CH83: 0 | CI83: 0 | CJ83: 0 | CK83: 0 | CL83: 0 | CM83: 0 | CO83: 0 | CP83: 0 | CQ83: 0 | CR83: 0 | CS83: 0 | CT83: 0 | CU83: 0 | CV83: 0 | CW83: 0 | CX83: 0 | CY83: 0 | CZ83: 0 | DN83: 0 | DO83: 0 | DP83: 1 | DQ83: 1 | DU83: 1009 | DV83: кг | DW83: кг | DX83: 1 | EE83: 83666879 | EF83: 2 | EG83: Общестроительные работы | EH83: 27 | EI83: Линии электропередачи | EJ83: 1 | EK83: 33001 | EL83: Линии электропередачи | EM83: ФЕР-33 | EQ83: 1024 | ER83: 0 | ES83: 0 | ET83: 0 | EU83: 0 | EV83: 0 | EW83: 0 | EX83: 0 | FQ83: 0 | FR83: 0 | FS83: 0 | FX83: 103 | FY83: 60 | GD83: 1 | GF83: -1111733769 | GG83: 2 | GH83: 1 | GI83: -2 | GJ83: 0 | GK83: 0 | GL83: 0 | GM83: 0 | GN83: 0 | GO83: 0 | GP83: 0 | GR83: 0 | GS83: 0 | GT83: 0 | GV83: 0 | GW83: 1 | GX83: 0 | HA83: 0 | HB83: 0 | HC83: 0 | HN83: Пр/812-027.0-1 | HO83: Пр/774-027.0 | HP83: Линии электропередачи | HQ83: Линии электропередачи | HS83: 0 | IK83: 0
A84: 18 | B84: 1 | C84: 105 | F84: 08.3.04.02 | G84: Сталь стержневая диаметром до 10 мм | H84: т | I84: =I71*J84 -> 0 | J84: 0 | K84: 0 | L84: 0 | M84: 0 | N84: 0 | O84: 0 | P84: 0 | Q84: 0 | R84: 0 | S84: 0 | T84: 0 | U84: 0 | V84: 0 | W84: 0 | X84: 0 | Y84: 0 | AA84: -1 | AB84: 0 | AC84: 0 | AD84: 0 | AE84: 0 | AF84: 0 | AG84: 0 | AH84: 0 | AI84: 0 | AJ84: 0 | AK84: 0 | AL84: 0 | AM84: 0 | AN84: 0 | AO84: 0 | AP84: 0 | AQ84: 0 | AR84: 0 | AS84: 0 | AT84: 103 | AU84: 60 | AV84: 1 | AW84: 1 | AZ84: 1 | BA84: 1 | BB84: 1 | BC84: 1 | BH84: 3 | BI84: 1 | BM84: 33001 | BN84: 0 | BP84: 0 | BQ84: 2 | BR84: 0 | BS84: 1 | BT84: 1 | BU84: 1 | BV84: 1 | BW84: 1 | BX84: 1 | BZ84: 103 | CA84: 60 | CE84: 0 | CF84: 0 | CG84: 0 | CH84: 0 | CI84: 0 | CJ84: 0 | CK84: 0 | CL84: 0 | CM84: 0 | CO84: 0 | CP84: 0 | CQ84: 0 | CR84: 0 | CS84: 0 | CT84: 0 | CU84: 0 | CV84: 0 | CW84: 0 | CX84: 0 | CY84: 0 | CZ84: 0 | DN84: 0 | DO84: 0 | DP84: 1 | DQ84: 1 | DU84: 1009 | DV84: т | DW84: т | DX84: 1000 | EE84: 83666879 | EF84: 2 | EG84: Общестроительные работы | EH84: 27 | EI84: Линии электропередачи | EJ84: 1 | EK84: 33001 | EL84: Линии электропередачи | EM84: ФЕР-33 | EQ84: 1024 | ER84: 0 | ES84: 0 | ET84: 0 | EU84: 0 | EV84: 0 | EW84: 0 | EX84: 0 | FQ84: 0 | FR84: 0 | FS84: 0 | FX84: 103 | FY84: 60 | GD84: 1 | GF84: 1613753229 | GG84: 2 | GH84: 1 | GI84: -2 | GJ84: 0 | GK84: 0 | GL84: 0 | GM84: 0 | GN84: 0 | GO84: 0 | GP84: 0 | GR84: 0 | GS84: 0 | GT84: 0 | GV84: 0 | GW84: 1 | GX84: 0 | HA84: 0 | HB84: 0 | HC84: 0 | HN84: Пр/812-027.0-1 | HO84: Пр/774-027.0 | HP84: Линии электропередачи | HQ84: Линии электропередачи | HS84: 0 | IK84: 0
A85: 18 | B85: 1 | C85: 124 | F85: 08.3.04.02 | G85: Сталь стержневая диаметром до 10 мм | H85: т | I85: =I72*J85 -> 0 | J85: 0 | K85: 0 | L85: 0 | M85: 0 | N85: 0 | O85: 0 | P85: 0 | Q85: 0 | R85: 0 | S85: 0 | T85: 0 | U85: 0 | V85: 0 | W85: 0 | X85: 0 | Y85: 0 | AA85: -1 | AB85: 0 | AC85: 0 | AD85: 0 | AE85: 0 | AF85: 0 | AG85: 0 | AH85: 0 | AI85: 0 | AJ85: 0 | AK85: 0 | AL85: 0 | AM85: 0 | AN85: 0 | AO85: 0 | AP85: 0 | AQ85: 0 | AR85: 0 | AS85: 0 | AT85: 103 | AU85: 60 | AV85: 1 | AW85: 1 | AZ85: 1 | BA85: 1 | BB85: 1 | BC85: 1 | BH85: 3 | BI85: 1 | BM85: 33001 | BN85: 0 | BP85: 0 | BQ85: 2 | BR85: 0 | BS85: 1 | BT85: 1 | BU85: 1 | BV85: 1 | BW85: 1 | BX85: 1 | BZ85: 103 | CA85: 60 | CE85: 0 | CF85: 0 | CG85: 0 | CH85: 0 | CI85: 0 | CJ85: 0 | CK85: 0 | CL85: 0 | CM85: 0 | CO85: 0 | CP85: 0 | CQ85: 0 | CR85: 0 | CS85: 0 | CT85: 0 | CU85: 0 | CV85: 0 | CW85: 0 | CX85: 0 | CY85: 0 | CZ85: 0 | DN85: 0 | DO85: 0 | DP85: 1 | DQ85: 1 | DU85: 1009 | DV85: т | DW85: т | DX85: 1000 | EE85: 83666879 | EF85: 2 | EG85: Общестроительные работы | EH85: 27 | EI85: Линии электропередачи | EJ85: 1 | EK85: 33001 | EL85: Линии электропередачи | EM85: ФЕР-33 | EQ85: 1024 | ER85: 0 | ES85: 0 | ET85: 0 | EU85: 0 | EV85: 0 | EW85: 0 | EX85: 0 | FQ85: 0 | FR85: 0 | FS85: 0 | FX85: 103 | FY85: 60 | GD85: 1 | GF85: 1613753229 | GG85: 2 | GH85: 1 | GI85: -2 | GJ85: 0 | GK85: 0 | GL85: 0 | GM85: 0 | GN85: 0 | GO85: 0 | GP85: 0 | GR85: 0 | GS85: 0 | GT85: 0 | GV85: 0 | GW85: 1 | GX85: 0 | HA85: 0 | HB85: 0 | HC85: 0 | HN85: Пр/812-027.0-1 | HO85: Пр/774-027.0 | HP85: Линии электропередачи | HQ85: Линии электропередачи | HS85: 0 | IK85: 0
A86: 18 | B86: 1 | C86: 109 | F86: 22.2.01.04 | G86: Изоляторы штыревые | H86: ШТ | I86: =I71*J86 -> 0 | J86: 0 | K86: 0 | L86: 0 | M86: 0 | N86: 0 | O86: 0 | P86: 0 | Q86: 0 | R86: 0 | S86: 0 | T86: 0 | U86: 0 | V86: 0 | W86: 0 | X86: 0 | Y86: 0 | AA86: -1 | AB86: 0 | AC86: 0 | AD86: 0 | AE86: 0 | AF86: 0 | AG86: 0 | AH86: 0 | AI86: 0 | AJ86: 0 | AK86: 0 | AL86: 0 | AM86: 0 | AN86: 0 | AO86: 0 | AP86: 0 | AQ86: 0 | AR86: 0 | AS86: 0 | AT86: 103 | AU86: 60 | AV86: 1 | AW86: 1 | AZ86: 1 | BA86: 1 | BB86: 1 | BC86: 1 | BH86: 3 | BI86: 1 | BM86: 33001 | BN86: 0 | BP86: 0 | BQ86: 2 | BR86: 0 | BS86: 1 | BT86: 1 | BU86: 1 | BV86: 1 | BW86: 1 | BX86: 1 | BZ86: 103 | CA86: 60 | CE86: 0 | CF86: 0 | CG86: 0 | CH86: 0 | CI86: 0 | CJ86: 0 | CK86: 0 | CL86: 0 | CM86: 0 | CO86: 0 | CP86: 0 | CQ86: 0 | CR86: 0 | CS86: 0 | CT86: 0 | CU86: 0 | CV86: 0 | CW86: 0 | CX86: 0 | CY86: 0 | CZ86: 0 | DN86: 0 | DO86: 0 | DP86: 1 | DQ86: 1 | DU86: 1013 | DV86: ШТ | DW86: ШТ | DX86: 1 | EE86: 83666879 | EF86: 2 | EG86: Общестроительные работы | EH86: 27 | EI86: Линии электропередачи | EJ86: 1 | EK86: 33001 | EL86: Линии электропередачи | EM86: ФЕР-33 | EQ86: 1024 | ER86: 0 | ES86: 0 | ET86: 0 | EU86: 0 | EV86: 0 | EW86: 0 | EX86: 0 | FQ86: 0 | FR86: 0 | FS86: 0 | FX86: 103 | FY86: 60 | GD86: 1 | GF86: -950997571 | GG86: 2 | GH86: 1 | GI86: -2 | GJ86: 0 | GK86: 0 | GL86: 0 | GM86: 0 | GN86: 0 | GO86: 0 | GP86: 0 | GR86: 0 | GS86: 0 | GT86: 0 | GV86: 0 | GW86: 1 | GX86: 0 | HA86: 0 | HB86: 0 | HC86: 0 | HN86: Пр/812-027.0-1 | HO86: Пр/774-027.0 | HP86: Линии электропередачи | HQ86: Линии электропередачи | HS86: 0 | IK86: 0
A87: 18 | B87: 1 | C87: 128 | F87: 22.2.01.04 | G87: Изоляторы штыревые | H87: ШТ | I87: =I72*J87 -> 0 | J87: 0 | K87: 0 | L87: 0 | M87: 0 | N87: 0 | O87: 0 | P87: 0 | Q87: 0 | R87: 0 | S87: 0 | T87: 0 | U87: 0 | V87: 0 | W87: 0 | X87: 0 | Y87: 0 | AA87: -1 | AB87: 0 | AC87: 0 | AD87: 0 | AE87: 0 | AF87: 0 | AG87: 0 | AH87: 0 | AI87: 0 | AJ87: 0 | AK87: 0 | AL87: 0 | AM87: 0 | AN87: 0 | AO87: 0 | AP87: 0 | AQ87: 0 | AR87: 0 | AS87: 0 | AT87: 103 | AU87: 60 | AV87: 1 | AW87: 1 | AZ87: 1 | BA87: 1 | BB87: 1 | BC87: 1 | BH87: 3 | BI87: 1 | BM87: 33001 | BN87: 0 | BP87: 0 | BQ87: 2 | BR87: 0 | BS87: 1 | BT87: 1 | BU87: 1 | BV87: 1 | BW87: 1 | BX87: 1 | BZ87: 103 | CA87: 60 | CE87: 0 | CF87: 0 | CG87: 0 | CH87: 0 | CI87: 0 | CJ87: 0 | CK87: 0 | CL87: 0 | CM87: 0 | CO87: 0 | CP87: 0 | CQ87: 0 | CR87: 0 | CS87: 0 | CT87: 0 | CU87: 0 | CV87: 0 | CW87: 0 | CX87: 0 | CY87: 0 | CZ87: 0 | DN87: 0 | DO87: 0 | DP87: 1 | DQ87: 1 | DU87: 1013 | DV87: ШТ | DW87: ШТ | DX87: 1 | EE87: 83666879 | EF87: 2 | EG87: Общестроительные работы | EH87: 27 | EI87: Линии электропередачи | EJ87: 1 | EK87: 33001 | EL87: Линии электропередачи | EM87: ФЕР-33 | EQ87: 1024 | ER87: 0 | ES87: 0 | ET87: 0 | EU87: 0 | EV87: 0 | EW87: 0 | EX87: 0 | FQ87: 0 | FR87: 0 | FS87: 0 | FX87: 103 | FY87: 60 | GD87: 1 | GF87: -950997571 | GG87: 2 | GH87: 1 | GI87: -2 | GJ87: 0 | GK87: 0 | GL87: 0 | GM87: 0 | GN87: 0 | GO87: 0 | GP87: 0 | GR87: 0 | GS87: 0 | GT87: 0 | GV87: 0 | GW87: 1 | GX87: 0 | HA87: 0 | HB87: 0 | HC87: 0 | HN87: Пр/812-027.0-1 | HO87: Пр/774-027.0 | HP87: Линии электропередачи | HQ87: Линии электропередачи | HS87: 0 | IK87: 0
A88: 18 | B88: 1 | C88: 110 | F88: 22.2.02.21 | G88: Штыри | H88: ШТ | I88: =I71*J88 -> 0 | J88: 0 | K88: 0 | L88: 0 | M88: 0 | N88: 0 | O88: 0 | P88: 0 | Q88: 0 | R88: 0 | S88: 0 | T88: 0 | U88: 0 | V88: 0 | W88: 0 | X88: 0 | Y88: 0 | AA88: -1 | AB88: 0 | AC88: 0 | AD88: 0 | AE88: 0 | AF88: 0 | AG88: 0 | AH88: 0 | AI88: 0 | AJ88: 0 | AK88: 0 | AL88: 0 | AM88: 0 | AN88: 0 | AO88: 0 | AP88: 0 | AQ88: 0 | AR88: 0 | AS88: 0 | AT88: 103 | AU88: 60 | AV88: 1 | AW88: 1 | AZ88: 1 | BA88: 1 | BB88: 1 | BC88: 1 | BH88: 3 | BI88: 1 | BM88: 33001 | BN88: 0 | BP88: 0 | BQ88: 2 | BR88: 0 | BS88: 1 | BT88: 1 | BU88: 1 | BV88: 1 | BW88: 1 | BX88: 1 | BZ88: 103 | CA88: 60 | CE88: 0 | CF88: 0 | CG88: 0 | CH88: 0 | CI88: 0 | CJ88: 0 | CK88: 0 | CL88: 0 | CM88: 0 | CO88: 0 | CP88: 0 | CQ88: 0 | CR88: 0 | CS88: 0 | CT88: 0 | CU88: 0 | CV88: 0 | CW88: 0 | CX88: 0 | CY88: 0 | CZ88: 0 | DN88: 0 | DO88: 0 | DP88: 1 | DQ88: 1 | DU88: 1013 | DV88: ШТ | DW88: ШТ | DX88: 1 | EE88: 83666879 | EF88: 2 | EG88: Общестроительные работы | EH88: 27 | EI88: Линии электропередачи | EJ88: 1 | EK88: 33001 | EL88: Линии электропередачи | EM88: ФЕР-33 | EQ88: 1024 | ER88: 0 | ES88: 0 | ET88: 0 | EU88: 0 | EV88: 0 | EW88: 0 | EX88: 0 | FQ88: 0 | FR88: 0 | FS88: 0 | FX88: 103 | FY88: 60 | GD88: 1 | GF88: -320198552 | GG88: 2 | GH88: 1 | GI88: -2 | GJ88: 0 | GK88: 0 | GL88: 0 | GM88: 0 | GN88: 0 | GO88: 0 | GP88: 0 | GR88: 0 | GS88: 0 | GT88: 0 | GV88: 0 | GW88: 1 | GX88: 0 | HA88: 0 | HB88: 0 | HC88: 0 | HN88: Пр/812-027.0-1 | HO88: Пр/774-027.0 | HP88: Линии электропередачи | HQ88: Линии электропередачи | HS88: 0 | IK88: 0
A89: 18 | B89: 1 | C89: 129 | F89: 22.2.02.21 | G89: Штыри | H89: ШТ | I89: =I72*J89 -> 0 | J89: 0 | K89: 0 | L89: 0 | M89: 0 | N89: 0 | O89: 0 | P89: 0 | Q89: 0 | R89: 0 | S89: 0 | T89: 0 | U89: 0 | V89: 0 | W89: 0 | X89: 0 | Y89: 0 | AA89: -1 | AB89: 0 | AC89: 0 | AD89: 0 | AE89: 0 | AF89: 0 | AG89: 0 | AH89: 0 | AI89: 0 | AJ89: 0 | AK89: 0 | AL89: 0 | AM89: 0 | AN89: 0 | AO89: 0 | AP89: 0 | AQ89: 0 | AR89: 0 | AS89: 0 | AT89: 103 | AU89: 60 | AV89: 1 | AW89: 1 | AZ89: 1 | BA89: 1 | BB89: 1 | BC89: 1 | BH89: 3 | BI89: 1 | BM89: 33001 | BN89: 0 | BP89: 0 | BQ89: 2 | BR89: 0 | BS89: 1 | BT89: 1 | BU89: 1 | BV89: 1 | BW89: 1 | BX89: 1 | BZ89: 103 | CA89: 60 | CE89: 0 | CF89: 0 | CG89: 0 | CH89: 0 | CI89: 0 | CJ89: 0 | CK89: 0 | CL89: 0 | CM89: 0 | CO89: 0 | CP89: 0 | CQ89: 0 | CR89: 0 | CS89: 0 | CT89: 0 | CU89: 0 | CV89: 0 | CW89: 0 | CX89: 0 | CY89: 0 | CZ89: 0 | DN89: 0 | DO89: 0 | DP89: 1 | DQ89: 1 | DU89: 1013 | DV89: ШТ | DW89: ШТ | DX89: 1 | EE89: 83666879 | EF89: 2 | EG89: Общестроительные работы | EH89: 27 | EI89: Линии электропередачи | EJ89: 1 | EK89: 33001 | EL89: Линии электропередачи | EM89: ФЕР-33 | EQ89: 1024 | ER89: 0 | ES89: 0 | ET89: 0 | EU89: 0 | EV89: 0 | EW89: 0 | EX89: 0 | FQ89: 0 | FR89: 0 | FS89: 0 | FX89: 103 | FY89: 60 | GD89: 1 | GF89: -320198552 | GG89: 2 | GH89: 1 | GI89: -2 | GJ89: 0 | GK89: 0 | GL89: 0 | GM89: 0 | GN89: 0 | GO89: 0 | GP89: 0 | GR89: 0 | GS89: 0 | GT89: 0 | GV89: 0 | GW89: 1 | GX89: 0 | HA89: 0 | HB89: 0 | HC89: 0 | HN89: Пр/812-027.0-1 | HO89: Пр/774-027.0 | HP89: Линии электропередачи | HQ89: Линии электропередачи | HS89: 0 | IK89: 0
A90: 18 | B90: 1 | C90: 111 | F90: 22.2.02.23 | G90: Металлические плакаты | H90: ШТ | I90: =I71*J90 -> 0 | J90: 0 | K90: 0 | L90: 0 | M90: 0 | N90: 0 | O90: 0 | P90: 0 | Q90: 0 | R90: 0 | S90: 0 | T90: 0 | U90: 0 | V90: 0 | W90: 0 | X90: 0 | Y90: 0 | AA90: -1 | AB90: 0 | AC90: 0 | AD90: 0 | AE90: 0 | AF90: 0 | AG90: 0 | AH90: 0 | AI90: 0 | AJ90: 0 | AK90: 0 | AL90: 0 | AM90: 0 | AN90: 0 | AO90: 0 | AP90: 0 | AQ90: 0 | AR90: 0 | AS90: 0 | AT90: 103 | AU90: 60 | AV90: 1 | AW90: 1 | AZ90: 1 | BA90: 1 | BB90: 1 | BC90: 1 | BH90: 3 | BI90: 1 | BM90: 33001 | BN90: 0 | BP90: 0 | BQ90: 2 | BR90: 0 | BS90: 1 | BT90: 1 | BU90: 1 | BV90: 1 | BW90: 1 | BX90: 1 | BZ90: 103 | CA90: 60 | CE90: 0 | CF90: 0 | CG90: 0 | CH90: 0 | CI90: 0 | CJ90: 0 | CK90: 0 | CL90: 0 | CM90: 0 | CO90: 0 | CP90: 0 | CQ90: 0 | CR90: 0 | CS90: 0 | CT90: 0 | CU90: 0 | CV90: 0 | CW90: 0 | CX90: 0 | CY90: 0 | CZ90: 0 | DN90: 0 | DO90: 0 | DP90: 1 | DQ90: 1 | DU90: 1013 | DV90: ШТ | DW90: ШТ | DX90: 1 | EE90: 83666879 | EF90: 2 | EG90: Общестроительные работы | EH90: 27 | EI90: Линии электропередачи | EJ90: 1 | EK90: 33001 | EL90: Линии электропередачи | EM90: ФЕР-33 | EQ90: 1024 | ER90: 0 | ES90: 0 | ET90: 0 | EU90: 0 | EV90: 0 | EW90: 0 | EX90: 0 | FQ90: 0 | FR90: 0 | FS90: 0 | FX90: 103 | FY90: 60 | GD90: 1 | GF90: 326010188 | GG90: 2 | GH90: 1 | GI90: -2 | GJ90: 0 | GK90: 0 | GL90: 0 | GM90: 0 | GN90: 0 | GO90: 0 | GP90: 0 | GR90: 0 | GS90: 0 | GT90: 0 | GV90: 0 | GW90: 1 | GX90: 0 | HA90: 0 | HB90: 0 | HC90: 0 | HN90: Пр/812-027.0-1 | HO90: Пр/774-027.0 | HP90: Линии электропередачи | HQ90: Линии электропередачи | HS90: 0 | IK90: 0
A91: 18 | B91: 1 | C91: 130 | F91: 22.2.02.23 | G91: Металлические плакаты | H91: ШТ | I91: =I72*J91 -> 0 | J91: 0 | K91: 0 | L91: 0 | M91: 0 | N91: 0 | O91: 0 | P91: 0 | Q91: 0 | R91: 0 | S91: 0 | T91: 0 | U91: 0 | V91: 0 | W91: 0 | X91: 0 | Y91: 0 | AA91: -1 | AB91: 0 | AC91: 0 | AD91: 0 | AE91: 0 | AF91: 0 | AG91: 0 | AH91: 0 | AI91: 0 | AJ91: 0 | AK91: 0 | AL91: 0 | AM91: 0 | AN91: 0 | AO91: 0 | AP91: 0 | AQ91: 0 | AR91: 0 | AS91: 0 | AT91: 103 | AU91: 60 | AV91: 1 | AW91: 1 | AZ91: 1 | BA91: 1 | BB91: 1 | BC91: 1 | BH91: 3 | BI91: 1 | BM91: 33001 | BN91: 0 | BP91: 0 | BQ91: 2 | BR91: 0 | BS91: 1 | BT91: 1 | BU91: 1 | BV91: 1 | BW91: 1 | BX91: 1 | BZ91: 103 | CA91: 60 | CE91: 0 | CF91: 0 | CG91: 0 | CH91: 0 | CI91: 0 | CJ91: 0 | CK91: 0 | CL91: 0 | CM91: 0 | CO91: 0 | CP91: 0 | CQ91: 0 | CR91: 0 | CS91: 0 | CT91: 0 | CU91: 0 | CV91: 0 | CW91: 0 | CX91: 0 | CY91: 0 | CZ91: 0 | DN91: 0 | DO91: 0 | DP91: 1 | DQ91: 1 | DU91: 1013 | DV91: ШТ | DW91: ШТ | DX91: 1 | EE91: 83666879 | EF91: 2 | EG91: Общестроительные работы | EH91: 27 | EI91: Линии электропередачи | EJ91: 1 | EK91: 33001 | EL91: Линии электропередачи | EM91: ФЕР-33 | EQ91: 1024 | ER91: 0 | ES91: 0 | ET91: 0 | EU91: 0 | EV91: 0 | EW91: 0 | EX91: 0 | FQ91: 0 | FR91: 0 | FS91: 0 | FX91: 103 | FY91: 60 | GD91: 1 | GF91: 326010188 | GG91: 2 | GH91: 1 | GI91: -2 | GJ91: 0 | GK91: 0 | GL91: 0 | GM91: 0 | GN91: 0 | GO91: 0 | GP91: 0 | GR91: 0 | GS91: 0 | GT91: 0 | GV91: 0 | GW91: 1 | GX91: 0 | HA91: 0 | HB91: 0 | HC91: 0 | HN91: Пр/812-027.0-1 | HO91: Пр/774-027.0 | HP91: Линии электропередачи | HQ91: Линии электропередачи | HS91: 0 | IK91: 0
A92: 17 | B92: 1 | C92: =ROW(SmtRes!A150) -> 150 | D92: =ROW(EtalonRes!A150) -> 150 | F92: 33-04-003-03 | G92: Установка железобетонных опор ВЛ 0,38; 6-10 кВ с траверсами без приставок: одностоечных с двумя подкосами | H92: ШТ | I92: 0 | J92: 0 | K92: 0 | L92: 1 | M92: 1 | N92: 0 | O92: 0 | P92: =SUMIF(SmtRes!AQ131:'SmtRes'!AQ150,"=1",SmtRes!DF131:'SmtRes'!DF150) -> 0 | Q92: =SUMIF(SmtRes!AQ131:'SmtRes'!AQ150,"=1",SmtRes!DG131:'SmtRes'!DG150) -> 0 | R92: =SUMIF(SmtRes!AQ131:'SmtRes'!AQ150,"=1",SmtRes!DH131:'SmtRes'!DH150) -> 0 | S92: =SUMIF(SmtRes!AQ131:'SmtRes'!AQ150,"=1",SmtRes!DI131:'SmtRes'!DI150) -> 0 | T92: 0 | U92: =SUMIF(SmtRes!AQ131:'SmtRes'!AQ150,"=1",SmtRes!CV131:'SmtRes'!CV150) -> 0 | V92: =SUMIF(SmtRes!AQ131:'SmtRes'!AQ150,"=1",SmtRes!CW131:'SmtRes'!CW150) -> 0 | W92: 0 | X92: 0 | Y92: 0 | AA92: -1 | AB92: 12590.57 | AC92: =ROUND((SUM(SmtRes!BQ131:'SmtRes'!BQ150)),2) -> 34.71 | AD92: =ROUND((((SUM(SmtRes!BR131:'SmtRes'!BR150))-(SUM(SmtRes!BS131:'SmtRes'!BS150)))+AE92),2) -> 5822.24 | AE92: =ROUND((SUM(SmtRes!BS131:'SmtRes'!BS150)),2) -> 2920.86 | AF92: =ROUND((SUM(SmtRes!BT131:'SmtRes'!BT150)),2) -> 6733.62 | AG92: 0 | AH92: =(SUM(SmtRes!BU131:'SmtRes'!BU150)) -> 9 | AI92: =(SUM(SmtRes!BV131:'SmtRes'!BV150)) -> 3.21 | AJ92: 0 | AK92: 15511.4301 | AL92: 34.709198 | AM92: 5822.239 | AN92: 2920.8619 | AO92: 6733.62 | AP92: 0 | AQ92: 9 | AR92: 3.21 | AS92: 0 | AT92: 103 | AU92: 60 | AV92: 1 | AW92: 1 | AZ92: 1 | BA92: 1 | BB92: 1 | BC92: 1 | BH92: 0 | BI92: 1 | BJ92: ГЭСН-2022 доп.11, 33-04-003-03, приказ Минстроя России от 09.08.2024 г. № 524/пр | BM92: 33001 | BN92: 0 | BP92: 0 | BQ92: 2 | BR92: 0 | BS92: 1 | BT92: 1 | BU92: 1 | BV92: 1 | BW92: 1 | BX92: 1 | BZ92: 103 | CA92: 60 | CE92: 0 | CF92: 0 | CG92: 0 | CH92: 0 | CI92: 0 | CJ92: 0 | CK92: 0 | CL92: 0 | CM92: 0 | CO92: 0 | CP92: 0 | CQ92: =SUMIF(SmtRes!AQ131:'SmtRes'!AQ150,"=1",SmtRes!AA131:'SmtRes'!AA150) -> 193362.11 | CR92: =SUMIF(SmtRes!AQ131:'SmtRes'!AQ150,"=1",SmtRes!AB131:'SmtRes'!AB150) -> 3377.99 | CS92: =SUMIF(SmtRes!AQ131:'SmtRes'!AQ150,"=1",SmtRes!AC131:'SmtRes'!AC150) -> 1744.74 | CT92: =SUMIF(SmtRes!AQ131:'SmtRes'!AQ150,"=1",SmtRes!AD131:'SmtRes'!AD150) -> 748.18 | CU92: =AG92 -> 0 | CV92: =SUMIF(SmtRes!AQ131:'SmtRes'!AQ150,"=1",SmtRes!BU131:'SmtRes'!BU150) -> 9 | CW92: =SUMIF(SmtRes!AQ131:'SmtRes'!AQ150,"=1",SmtRes!BV131:'SmtRes'!BV150) -> 3.21 | CX92: =AJ92 -> 0 | CY92: 0 | CZ92: 0 | DN92: 0 | DO92: 0 | DP92: 1 | DQ92: 1 | DU92: 1013 | DV92: ШТ | DW92: ШТ | DX92: 1 | EE92: 83666879 | EF92: 2 | EG92: Общестроительные работы | EH92: 27 | EI92: Линии электропередачи | EJ92: 1 | EK92: 33001 | EL92: Линии электропередачи | EM92: ФЕР-33 | EQ92: 132096 | ER92: 0 | ES92: 0 | ET92: 0 | EU92: 0 | EV92: 0 | EW92: 9 | EX92: 3.21 | EY92: 0 | FQ92: 0 | FR92: 0 | FS92: 0 | FX92: 103 | FY92: 60 | GD92: 1 | GF92: 1872065523 | GG92: 2 | GH92: 1 | GI92: -2 | GJ92: 0 | GK92: 0 | GL92: 0 | GM92: 0 | GN92: 0 | GO92: 0 | GP92: 0 | GR92: 0 | GS92: 0 | GT92: 0 | GV92: 0 | GW92: 1 | GX92: 0 | HA92: 0 | HB92: 0 | HC92: 0 | HN92: Пр/812-027.0-1 | HO92: Пр/774-027.0 | HP92: Линии электропередачи | HQ92: Линии электропередачи | HS92: 0 | IK92: 0
A93: 17 | B93: 1 | C93: =ROW(SmtRes!A170) -> 170 | D93: =ROW(EtalonRes!A170) -> 170 | F93: 33-04-003-03 | G93: Установка железобетонных опор ВЛ 0,38; 6-10 кВ с траверсами без приставок: одностоечных с двумя подкосами | H93: ШТ | I93: 0 | J93: 0 | K93: 0 | L93: 1 | M93: 1 | N93: 0 | O93: 0 | P93: =SUMIF(SmtRes!AQ151:'SmtRes'!AQ170,"=1",SmtRes!DF151:'SmtRes'!DF170) -> 0 | Q93: =SUMIF(SmtRes!AQ151:'SmtRes'!AQ170,"=1",SmtRes!DG151:'SmtRes'!DG170) -> 0 | R93: =SUMIF(SmtRes!AQ151:'SmtRes'!AQ170,"=1",SmtRes!DH151:'SmtRes'!DH170) -> 0 | S93: =SUMIF(SmtRes!AQ151:'SmtRes'!AQ170,"=1",SmtRes!DI151:'SmtRes'!DI170) -> 0 | T93: 0 | U93: =SUMIF(SmtRes!AQ151:'SmtRes'!AQ170,"=1",SmtRes!CV151:'SmtRes'!CV170) -> 0 | V93: =SUMIF(SmtRes!AQ151:'SmtRes'!AQ170,"=1",SmtRes!CW151:'SmtRes'!CW170) -> 0 | W93: 0 | X93: 0 | Y93: 0 | AA93: -1 | AB93: 12590.57 | AC93: =ROUND((SUM(SmtRes!BQ151:'SmtRes'!BQ170)),2) -> 34.71 | AD93: =ROUND((((SUM(SmtRes!BR151:'SmtRes'!BR170))-(SUM(SmtRes!BS151:'SmtRes'!BS170)))+AE93),2) -> 5822.24 | AE93: =ROUND((SUM(SmtRes!BS151:'SmtRes'!BS170)),2) -> 2920.86 | AF93: =ROUND((SUM(SmtRes!BT151:'SmtRes'!BT170)),2) -> 6733.62 | AG93: 0 | AH93: =(SUM(SmtRes!BU151:'SmtRes'!BU170)) -> 9 | AI93: =(SUM(SmtRes!BV151:'SmtRes'!BV170)) -> 3.21 | AJ93: 0 | AK93: 15511.4301 | AL93: 34.709198 | AM93: 5822.239 | AN93: 2920.8619 | AO93: 6733.62 | AP93: 0 | AQ93: 9 | AR93: 3.21 | AS93: 0 | AT93: 103 | AU93: 60 | AV93: 1 | AW93: 1 | AZ93: 1 | BA93: 1 | BB93: 1 | BC93: 1 | BH93: 0 | BI93: 1 | BJ93: ГЭСН-2022 доп.11, 33-04-003-03, приказ Минстроя России от 09.08.2024 г. № 524/пр | BM93: 33001 | BN93: 0 | BP93: 0 | BQ93: 2 | BR93: 0 | BS93: 1 | BT93: 1 | BU93: 1 | BV93: 1 | BW93: 1 | BX93: 1 | BZ93: 103 | CA93: 60 | CE93: 0 | CF93: 0 | CG93: 0 | CH93: 0 | CI93: 0 | CJ93: 0 | CK93: 0 | CL93: 0 | CM93: 0 | CO93: 0 | CP93: 0 | CQ93: =SUMIF(SmtRes!AQ151:'SmtRes'!AQ170,"=1",SmtRes!AA151:'SmtRes'!AA170) -> 193362.11 | CR93: =SUMIF(SmtRes!AQ151:'SmtRes'!AQ170,"=1",SmtRes!AB151:'SmtRes'!AB170) -> 3377.99 | CS93: =SUMIF(SmtRes!AQ151:'SmtRes'!AQ170,"=1",SmtRes!AC151:'SmtRes'!AC170) -> 1744.74 | CT93: =SUMIF(SmtRes!AQ151:'SmtRes'!AQ170,"=1",SmtRes!AD151:'SmtRes'!AD170) -> 748.18 | CU93: =AG93 -> 0 | CV93: =SUMIF(SmtRes!AQ151:'SmtRes'!AQ170,"=1",SmtRes!BU151:'SmtRes'!BU170) -> 9 | CW93: =SUMIF(SmtRes!AQ151:'SmtRes'!AQ170,"=1",SmtRes!BV151:'SmtRes'!BV170) -> 3.21 | CX93: =AJ93 -> 0 | CY93: 0 | CZ93: 0 | DN93: 0 | DO93: 0 | DP93: 1 | DQ93: 1 | DU93: 1013 | DV93: ШТ | DW93: ШТ | DX93: 1 | EE93: 83666879 | EF93: 2 | EG93: Общестроительные работы | EH93: 27 | EI93: Линии электропередачи | EJ93: 1 | EK93: 33001 | EL93: Линии электропередачи | EM93: ФЕР-33 | EQ93: 132096 | ER93: 0 | ES93: 0 | ET93: 0 | EU93: 0 | EV93: 0 | EW93: 9 | EX93: 3.21 | EY93: 0 | FQ93: 0 | FR93: 0 | FS93: 0 | FX93: 103 | FY93: 60 | GD93: 1 | GF93: 1872065523 | GG93: 2 | GH93: 1 | GI93: -2 | GJ93: 0 | GK93: 0 | GL93: 0 | GM93: 0 | GN93: 0 | GO93: 0 | GP93: 0 | GR93: 0 | GS93: 0 | GT93: 0 | GV93: 0 | GW93: 1 | GX93: 0 | HA93: 0 | HB93: 0 | HC93: 0 | HN93: Пр/812-027.0-1 | HO93: Пр/774-027.0 | HP93: Линии электропередачи | HQ93: Линии электропередачи | HS93: 0 | IK93: 0
A94: 19 | B94: 1 | G94: По ВОР "Устновка жб опор без приставок одностоечных с двумя подкосами" | AA94: 1 | IK94: 0
A95: 18 | B95: 1 | C95: 137 | F95: 01.7.15.03-0042 | G95: Болты с гайками и шайбами строительные | H95: кг | I95: =I92*J95 -> 0 | J95: 0 | K95: 0 | L95: 0 | M95: 0 | N95: =ROUND(L95-M95,4) -> 0 | O95: =ROUND(CP95,2) -> 0 | P95: =ROUND(CQ95*I95,2) -> 0 | Q95: =ROUND(CR95*I95,2) -> 0 | R95: =ROUND(CS95*I95,2) -> 0 | S95: =ROUND(CT95*I95,2) -> 0 | T95: =ROUND(CU95*I95,2) -> 0 | U95: =ROUND(CV95*I95,7) -> 0 | V95: =ROUND(CW95*I95,7) -> 0 | W95: =ROUND(CX95*I95,2) -> 0 | X95: =ROUND(CY95,2) -> 0 | Y95: =ROUND(CZ95,2) -> 0 | AA95: -1 | AB95: =ROUND((AC95+AD95+AF95),2) -> 174.93 | AC95: =ROUND((ES95),2) -> 174.93 | AD95: =ROUND((((ET95)-(EU95))+AE95),2) -> 0 | AE95: =ROUND((EU95),2) -> 0 | AF95: =ROUND((EV95),2) -> 0 | AG95: =ROUND((AP95),2) -> 0 | AH95: =(EW95) -> 0 | AI95: =(EX95) -> 0 | AJ95: =(AS95) -> 0 | AK95: 174.93 | AL95: 174.93 | AM95: 0 | AN95: 0 | AO95: 0 | AP95: 0 | AQ95: 0 | AR95: 0 | AS95: 0 | AT95: 103 | AU95: 60 | AV95: 1 | AW95: 1 | AZ95: 1 | BA95: 1 | BB95: 1 | BC95: 1.08 | BH95: 3 | BI95: 1 | BJ95: ФСБЦ-2022, 01.7.15.03-0042, приказ Минстроя России от 18.05.2022 г. № 378/пр | BM95: 33001 | BN95: 0 | BO95: 01.7.15.03-0042 | BP95: 1 | BQ95: 2 | BR95: 0 | BS95: 1 | BT95: 1 | BU95: 1 | BV95: 1 | BW95: 1 | BX95: 1 | BZ95: 103 | CA95: 60 | CE95: 0 | CF95: 0 | CG95: 0 | CH95: 0 | CI95: 0 | CJ95: 0 | CK95: 0 | CL95: 0 | CM95: 0 | CO95: 0 | CP95: =(P95+Q95+S95+R95) -> 0 | CQ95: =ROUND(AL95*BC95,2) -> 188.92 | CR95: =ROUND(AM95*BB95,2) -> 0 | CS95: =ROUND(AN95*BS95,2) -> 0 | CT95: =ROUND(AO95*BA95,2) -> 0 | CU95: =AG95 -> 0 | CV95: =AH95 -> 0 | CW95: =AI95 -> 0 | CX95: =AJ95 -> 0 | CY95: =(((S95+R95)*AT95)/100) -> 0 | CZ95: =(((S95+R95)*AU95)/100) -> 0 | DN95: 0 | DO95: 0 | DP95: 1 | DQ95: 1 | DU95: 1009 | DV95: кг | DW95: кг | DX95: 1 | EE95: 83666879 | EF95: 2 | EG95: Общестроительные работы | EH95: 27 | EI95: Линии электропередачи | EJ95: 1 | EK95: 33001 | EL95: Линии электропередачи | EM95: ФЕР-33 | EQ95: 1024 | ER95: 174.93 | ES95: 174.93 | ET95: 0 | EU95: 0 | EV95: 0 | EW95: 0 | EX95: 0 | FQ95: 0 | FR95: 0 | FS95: 0 | FX95: 103 | FY95: 60 | GD95: 1 | GF95: 1181962216 | GG95: 2 | GH95: 1 | GI95: 2 | GJ95: 0 | GK95: 0 | GL95: =ROUND(IF(AND(BH95=3,BI95=3,FS95<>0),P95,0),2) -> 0 | GM95: =ROUND(O95+X95+Y95,2)+GX95 -> 0 | GN95: =IF(OR(BI95=0,BI95=1),GM95-GX95,0) -> 0 | GO95: =IF(BI95=2,GM95-GX95,0) -> 0 | GP95: =IF(BI95=4,GM95-GX95,0) -> 0 | GR95: 0 | GS95: 0 | GT95: 0 | GV95: =ROUND((GT95),2) -> 0 | GW95: 1 | GX95: =ROUND(HC95*I95,2) -> 0 | HA95: 0 | HB95: 0 | HC95: =GV95*GW95 -> 0 | HN95: Пр/812-027.0-1 | HO95: Пр/774-027.0 | HP95: Линии электропередачи | HQ95: Линии электропередачи | HS95: 0 | IK95: 0
A96: 18 | B96: 1 | C96: 157 | F96: 01.7.15.03-0042 | G96: Болты с гайками и шайбами строительные | H96: кг | I96: =I93*J96 -> 0 | J96: 0 | K96: 0 | L96: 0 | M96: 0 | N96: 0 | O96: 0 | P96: 0 | Q96: 0 | R96: 0 | S96: 0 | T96: 0 | U96: 0 | V96: 0 | W96: 0 | X96: 0 | Y96: 0 | AA96: -1 | AB96: 174.93 | AC96: 174.93 | AD96: 0 | AE96: 0 | AF96: 0 | AG96: 0 | AH96: 0 | AI96: 0 | AJ96: 0 | AK96: 174.93 | AL96: 174.93 | AM96: 0 | AN96: 0 | AO96: 0 | AP96: 0 | AQ96: 0 | AR96: 0 | AS96: 0 | AT96: 103 | AU96: 60 | AV96: 1 | AW96: 1 | AZ96: 1 | BA96: 1 | BB96: 1 | BC96: 1.08 | BH96: 3 | BI96: 1 | BJ96: ФСБЦ-2022, 01.7.15.03-0042, приказ Минстроя России от 18.05.2022 г. № 378/пр | BM96: 33001 | BN96: 0 | BO96: 01.7.15.03-0042 | BP96: 1 | BQ96: 2 | BR96: 0 | BS96: 1 | BT96: 1 | BU96: 1 | BV96: 1 | BW96: 1 | BX96: 1 | BZ96: 103 | CA96: 60 | CE96: 0 | CF96: 0 | CG96: 0 | CH96: 0 | CI96: 0 | CJ96: 0 | CK96: 0 | CL96: 0 | CM96: 0 | CO96: 0 | CP96: 0 | CQ96: 188.92 | CR96: 0 | CS96: 0 | CT96: 0 | CU96: 0 | CV96: 0 | CW96: 0 | CX96: 0 | CY96: 0 | CZ96: 0 | DN96: 0 | DO96: 0 | DP96: 1 | DQ96: 1 | DU96: 1009 | DV96: кг | DW96: кг | DX96: 1 | EE96: 83666879 | EF96: 2 | EG96: Общестроительные работы | EH96: 27 | EI96: Линии электропередачи | EJ96: 1 | EK96: 33001 | EL96: Линии электропередачи | EM96: ФЕР-33 | EQ96: 1024 | ER96: 174.93 | ES96: 174.93 | ET96: 0 | EU96: 0 | EV96: 0 | EW96: 0 | EX96: 0 | FQ96: 0 | FR96: 0 | FS96: 0 | FX96: 103 | FY96: 60 | GD96: 1 | GF96: 1181962216 | GG96: 2 | GH96: 1 | GI96: 2 | GJ96: 0 | GK96: 0 | GL96: 0 | GM96: 0 | GN96: 0 | GO96: 0 | GP96: 0 | GR96: 0 | GS96: 0 | GT96: 0 | GV96: 0 | GW96: 1 | GX96: 0 | HA96: 0 | HB96: 0 | HC96: 0 | HN96: Пр/812-027.0-1 | HO96: Пр/774-027.0 | HP96: Линии электропередачи | HQ96: Линии электропередачи | HS96: 0 | IK96: 0
A97: 18 | B97: 1 | C97: 139 | F97: 05.1.02.07 | G97: Стойка железобетонная вибрированная для опор | H97: ШТ | I97: =I92*J97 -> 0 | J97: 0 | K97: 0 | L97: 0 | M97: 0 | N97: 0 | O97: 0 | P97: 0 | Q97: 0 | R97: 0 | S97: 0 | T97: 0 | U97: 0 | V97: 0 | W97: 0 | X97: 0 | Y97: 0 | AA97: -1 | AB97: 0 | AC97: 0 | AD97: 0 | AE97: 0 | AF97: 0 | AG97: 0 | AH97: 0 | AI97: 0 | AJ97: 0 | AK97: 0 | AL97: 0 | AM97: 0 | AN97: 0 | AO97: 0 | AP97: 0 | AQ97: 0 | AR97: 0 | AS97: 0 | AT97: 103 | AU97: 60 | AV97: 1 | AW97: 1 | AZ97: 1 | BA97: 1 | BB97: 1 | BC97: 1 | BH97: 3 | BI97: 1 | BM97: 33001 | BN97: 0 | BP97: 0 | BQ97: 2 | BR97: 0 | BS97: 1 | BT97: 1 | BU97: 1 | BV97: 1 | BW97: 1 | BX97: 1 | BZ97: 103 | CA97: 60 | CE97: 0 | CF97: 0 | CG97: 0 | CH97: 0 | CI97: 0 | CJ97: 0 | CK97: 0 | CL97: 0 | CM97: 0 | CO97: 0 | CP97: 0 | CQ97: 0 | CR97: 0 | CS97: 0 | CT97: 0 | CU97: 0 | CV97: 0 | CW97: 0 | CX97: 0 | CY97: 0 | CZ97: 0 | DN97: 0 | DO97: 0 | DP97: 1 | DQ97: 1 | DU97: 1013 | DV97: ШТ | DW97: ШТ | DX97: 1 | EE97: 83666879 | EF97: 2 | EG97: Общестроительные работы | EH97: 27 | EI97: Линии электропередачи | EJ97: 1 | EK97: 33001 | EL97: Линии электропередачи | EM97: ФЕР-33 | EQ97: 1024 | ER97: 0 | ES97: 0 | ET97: 0 | EU97: 0 | EV97: 0 | EW97: 0 | EX97: 0 | FQ97: 0 | FR97: 0 | FS97: 0 | FX97: 103 | FY97: 60 | GD97: 1 | GF97: 457934895 | GG97: 2 | GH97: 1 | GI97: -2 | GJ97: 0 | GK97: 0 | GL97: 0 | GM97: 0 | GN97: 0 | GO97: 0 | GP97: 0 | GR97: 0 | GS97: 0 | GT97: 0 | GV97: 0 | GW97: 1 | GX97: 0 | HA97: 0 | HB97: 0 | HC97: 0 | HN97: Пр/812-027.0-1 | HO97: Пр/774-027.0 | HP97: Линии электропередачи | HQ97: Линии электропередачи | HS97: 0 | IK97: 0
A98: 18 | B98: 1 | C98: 159 | F98: 05.1.02.07 | G98: Стойка железобетонная вибрированная для опор | H98: ШТ | I98: =I93*J98 -> 0 | J98: 0 | K98: 0 | L98: 0 | M98: 0 | N98: 0 | O98: 0 | P98: 0 | Q98: 0 | R98: 0 | S98: 0 | T98: 0 | U98: 0 | V98: 0 | W98: 0 | X98: 0 | Y98: 0 | AA98: -1 | AB98: 0 | AC98: 0 | AD98: 0 | AE98: 0 | AF98: 0 | AG98: 0 | AH98: 0 | AI98: 0 | AJ98: 0 | AK98: 0 | AL98: 0 | AM98: 0 | AN98: 0 | AO98: 0 | AP98: 0 | AQ98: 0 | AR98: 0 | AS98: 0 | AT98: 103 | AU98: 60 | AV98: 1 | AW98: 1 | AZ98: 1 | BA98: 1 | BB98: 1 | BC98: 1 | BH98: 3 | BI98: 1 | BM98: 33001 | BN98: 0 | BP98: 0 | BQ98: 2 | BR98: 0 | BS98: 1 | BT98: 1 | BU98: 1 | BV98: 1 | BW98: 1 | BX98: 1 | BZ98: 103 | CA98: 60 | CE98: 0 | CF98: 0 | CG98: 0 | CH98: 0 | CI98: 0 | CJ98: 0 | CK98: 0 | CL98: 0 | CM98: 0 | CO98: 0 | CP98: 0 | CQ98: 0 | CR98: 0 | CS98: 0 | CT98: 0 | CU98: 0 | CV98: 0 | CW98: 0 | CX98: 0 | CY98: 0 | CZ98: 0 | DN98: 0 | DO98: 0 | DP98: 1 | DQ98: 1 | DU98: 1013 | DV98: ШТ | DW98: ШТ | DX98: 1 | EE98: 83666879 | EF98: 2 | EG98: Общестроительные работы | EH98: 27 | EI98: Линии электропередачи | EJ98: 1 | EK98: 33001 | EL98: Линии электропередачи | EM98: ФЕР-33 | EQ98: 1024 | ER98: 0 | ES98: 0 | ET98: 0 | EU98: 0 | EV98: 0 | EW98: 0 | EX98: 0 | FQ98: 0 | FR98: 0 | FS98: 0 | FX98: 103 | FY98: 60 | GD98: 1 | GF98: 457934895 | GG98: 2 | GH98: 1 | GI98: -2 | GJ98: 0 | GK98: 0 | GL98: 0 | GM98: 0 | GN98: 0 | GO98: 0 | GP98: 0 | GR98: 0 | GS98: 0 | GT98: 0 | GV98: 0 | GW98: 1 | GX98: 0 | HA98: 0 | HB98: 0 | HC98: 0 | HN98: Пр/812-027.0-1 | HO98: Пр/774-027.0 | HP98: Линии электропередачи | HQ98: Линии электропередачи | HS98: 0 | IK98: 0
A99: 18 | B99: 1 | C99: 140 | F99: 07.2.02.05 | G99: Траверсы стальные | H99: т | I99: =I92*J99 -> 0 | J99: 0 | K99: 0 | L99: 0 | M99: 0 | N99: 0 | O99: 0 | P99: 0 | Q99: 0 | R99: 0 | S99: 0 | T99: 0 | U99: 0 | V99: 0 | W99: 0 | X99: 0 | Y99: 0 | AA99: -1 | AB99: 0 | AC99: 0 | AD99: 0 | AE99: 0 | AF99: 0 | AG99: 0 | AH99: 0 | AI99: 0 | AJ99: 0 | AK99: 0 | AL99: 0 | AM99: 0 | AN99: 0 | AO99: 0 | AP99: 0 | AQ99: 0 | AR99: 0 | AS99: 0 | AT99: 103 | AU99: 60 | AV99: 1 | AW99: 1 | AZ99: 1 | BA99: 1 | BB99: 1 | BC99: 1 | BH99: 3 | BI99: 1 | BM99: 33001 | BN99: 0 | BP99: 0 | BQ99: 2 | BR99: 0 | BS99: 1 | BT99: 1 | BU99: 1 | BV99: 1 | BW99: 1 | BX99: 1 | BZ99: 103 | CA99: 60 | CE99: 0 | CF99: 0 | CG99: 0 | CH99: 0 | CI99: 0 | CJ99: 0 | CK99: 0 | CL99: 0 | CM99: 0 | CO99: 0 | CP99: 0 | CQ99: 0 | CR99: 0 | CS99: 0 | CT99: 0 | CU99: 0 | CV99: 0 | CW99: 0 | CX99: 0 | CY99: 0 | CZ99: 0 | DN99: 0 | DO99: 0 | DP99: 1 | DQ99: 1 | DU99: 1009 | DV99: т | DW99: т | DX99: 1000 | EE99: 83666879 | EF99: 2 | EG99: Общестроительные работы | EH99: 27 | EI99: Линии электропередачи | EJ99: 1 | EK99: 33001 | EL99: Линии электропередачи | EM99: ФЕР-33 | EQ99: 1024 | ER99: 0 | ES99: 0 | ET99: 0 | EU99: 0 | EV99: 0 | EW99: 0 | EX99: 0 | FQ99: 0 | FR99: 0 | FS99: 0 | FX99: 103 | FY99: 60 | GD99: 1 | GF99: 1602794472 | GG99: 2 | GH99: 1 | GI99: -2 | GJ99: 0 | GK99: 0 | GL99: 0 | GM99: 0 | GN99: 0 | GO99: 0 | GP99: 0 | GR99: 0 | GS99: 0 | GT99: 0 | GV99: 0 | GW99: 1 | GX99: 0 | HA99: 0 | HB99: 0 | HC99: 0 | HN99: Пр/812-027.0-1 | HO99: Пр/774-027.0 | HP99: Линии электропередачи | HQ99: Линии электропередачи | HS99: 0 | IK99: 0
A100: 18 | B100: 1 | C100: 160 | F100: 07.2.02.05 | G100: Траверсы стальные | H100: т | I100: =I93*J100 -> 0 | J100: 0 | K100: 0 | L100: 0 | M100: 0 | N100: 0 | O100: 0 | P100: 0 | Q100: 0 | R100: 0 | S100: 0 | T100: 0 | U100: 0 | V100: 0 | W100: 0 | X100: 0 | Y100: 0 | AA100: -1 | AB100: 0 | AC100: 0 | AD100: 0 | AE100: 0 | AF100: 0 | AG100: 0 | AH100: 0 | AI100: 0 | AJ100: 0 | AK100: 0 | AL100: 0 | AM100: 0 | AN100: 0 | AO100: 0 | AP100: 0 | AQ100: 0 | AR100: 0 | AS100: 0 | AT100: 103 | AU100: 60 | AV100: 1 | AW100: 1 | AZ100: 1 | BA100: 1 | BB100: 1 | BC100: 1 | BH100: 3 | BI100: 1 | BM100: 33001 | BN100: 0 | BP100: 0 | BQ100: 2 | BR100: 0 | BS100: 1 | BT100: 1 | BU100: 1 | BV100: 1 | BW100: 1 | BX100: 1 | BZ100: 103 | CA100: 60 | CE100: 0 | CF100: 0 | CG100: 0 | CH100: 0 | CI100: 0 | CJ100: 0 | CK100: 0 | CL100: 0 | CM100: 0 | CO100: 0 | CP100: 0 | CQ100: 0 | CR100: 0 | CS100: 0 | CT100: 0 | CU100: 0 | CV100: 0 | CW100: 0 | CX100: 0 | CY100: 0 | CZ100: 0 | DN100: 0 | DO100: 0 | DP100: 1 | DQ100: 1 | DU100: 1009 | DV100: т | DW100: т | DX100: 1000 | EE100: 83666879 | EF100: 2 | EG100: Общестроительные работы | EH100: 27 | EI100: Линии электропередачи | EJ100: 1 | EK100: 33001 | EL100: Линии электропередачи | EM100: ФЕР-33 | EQ100: 1024 | ER100: 0 | ES100: 0 | ET100: 0 | EU100: 0 | EV100: 0 | EW100: 0 | EX100: 0 | FQ100: 0 | FR100: 0 | FS100: 0 | FX100: 103 | FY100: 60 | GD100: 1 | GF100: 1602794472 | GG100: 2 | GH100: 1 | GI100: -2 | GJ100: 0 | GK100: 0 | GL100: 0 | GM100: 0 | GN100: 0 | GO100: 0 | GP100: 0 | GR100: 0 | GS100: 0 | GT100: 0 | GV100: 0 | GW100: 1 | GX100: 0 | HA100: 0 | HB100: 0 | HC100: 0 | HN100: Пр/812-027.0-1 | HO100: Пр/774-027.0 | HP100: Линии электропередачи | HQ100: Линии электропередачи | HS100: 0 | IK100: 0
A101: 18 | B101: 1 | C101: 141 | F101: 07.2.07.13 | G101: Хомуты стальные | H101: кг | I101: =I92*J101 -> 0 | J101: 0 | K101: 0 | L101: 0 | M101: 0 | N101: 0 | O101: 0 | P101: 0 | Q101: 0 | R101: 0 | S101: 0 | T101: 0 | U101: 0 | V101: 0 | W101: 0 | X101: 0 | Y101: 0 | AA101: -1 | AB101: 0 | AC101: 0 | AD101: 0 | AE101: 0 | AF101: 0 | AG101: 0 | AH101: 0 | AI101: 0 | AJ101: 0 | AK101: 0 | AL101: 0 | AM101: 0 | AN101: 0 | AO101: 0 | AP101: 0 | AQ101: 0 | AR101: 0 | AS101: 0 | AT101: 103 | AU101: 60 | AV101: 1 | AW101: 1 | AZ101: 1 | BA101: 1 | BB101: 1 | BC101: 1 | BH101: 3 | BI101: 1 | BM101: 33001 | BN101: 0 | BP101: 0 | BQ101: 2 | BR101: 0 | BS101: 1 | BT101: 1 | BU101: 1 | BV101: 1 | BW101: 1 | BX101: 1 | BZ101: 103 | CA101: 60 | CE101: 0 | CF101: 0 | CG101: 0 | CH101: 0 | CI101: 0 | CJ101: 0 | CK101: 0 | CL101: 0 | CM101: 0 | CO101: 0 | CP101: 0 | CQ101: 0 | CR101: 0 | CS101: 0 | CT101: 0 | CU101: 0 | CV101: 0 | CW101: 0 | CX101: 0 | CY101: 0 | CZ101: 0 | DN101: 0 | DO101: 0 | DP101: 1 | DQ101: 1 | DU101: 1009 | DV101: кг | DW101: кг | DX101: 1 | EE101: 83666879 | EF101: 2 | EG101: Общестроительные работы | EH101: 27 | EI101: Линии электропередачи | EJ101: 1 | EK101: 33001 | EL101: Линии электропередачи | EM101: ФЕР-33 | EQ101: 1024 | ER101: 0 | ES101: 0 | ET101: 0 | EU101: 0 | EV101: 0 | EW101: 0 | EX101: 0 | FQ101: 0 | FR101: 0 | FS101: 0 | FX101: 103 | FY101: 60 | GD101: 1 | GF101: -1111733769 | GG101: 2 | GH101: 1 | GI101: -2 | GJ101: 0 | GK101: 0 | GL101: 0 | GM101: 0 | GN101: 0 | GO101: 0 | GP101: 0 | GR101: 0 | GS101: 0 | GT101: 0 | GV101: 0 | GW101: 1 | GX101: 0 | HA101: 0 | HB101: 0 | HC101: 0 | HN101: Пр/812-027.0-1 | HO101: Пр/774-027.0 | HP101: Линии электропередачи | HQ101: Линии электропередачи | HS101: 0 | IK101: 0
A102: 18 | B102: 1 | C102: 161 | F102: 07.2.07.13 | G102: Хомуты стальные | H102: кг | I102: =I93*J102 -> 0 | J102: 0 | K102: 0 | L102: 0 | M102: 0 | N102: 0 | O102: 0 | P102: 0 | Q102: 0 | R102: 0 | S102: 0 | T102: 0 | U102: 0 | V102: 0 | W102: 0 | X102: 0 | Y102: 0 | AA102: -1 | AB102: 0 | AC102: 0 | AD102: 0 | AE102: 0 | AF102: 0 | AG102: 0 | AH102: 0 | AI102: 0 | AJ102: 0 | AK102: 0 | AL102: 0 | AM102: 0 | AN102: 0 | AO102: 0 | AP102: 0 | AQ102: 0 | AR102: 0 | AS102: 0 | AT102: 103 | AU102: 60 | AV102: 1 | AW102: 1 | AZ102: 1 | BA102: 1 | BB102: 1 | BC102: 1 | BH102: 3 | BI102: 1 | BM102: 33001 | BN102: 0 | BP102: 0 | BQ102: 2 | BR102: 0 | BS102: 1 | BT102: 1 | BU102: 1 | BV102: 1 | BW102: 1 | BX102: 1 | BZ102: 103 | CA102: 60 | CE102: 0 | CF102: 0 | CG102: 0 | CH102: 0 | CI102: 0 | CJ102: 0 | CK102: 0 | CL102: 0 | CM102: 0 | CO102: 0 | CP102: 0 | CQ102: 0 | CR102: 0 | CS102: 0 | CT102: 0 | CU102: 0 | CV102: 0 | CW102: 0 | CX102: 0 | CY102: 0 | CZ102: 0 | DN102: 0 | DO102: 0 | DP102: 1 | DQ102: 1 | DU102: 1009 | DV102: кг | DW102: кг | DX102: 1 | EE102: 83666879 | EF102: 2 | EG102: Общестроительные работы | EH102: 27 | EI102: Линии электропередачи | EJ102: 1 | EK102: 33001 | EL102: Линии электропередачи | EM102: ФЕР-33 | EQ102: 1024 | ER102: 0 | ES102: 0 | ET102: 0 | EU102: 0 | EV102: 0 | EW102: 0 | EX102: 0 | FQ102: 0 | FR102: 0 | FS102: 0 | FX102: 103 | FY102: 60 | GD102: 1 | GF102: -1111733769 | GG102: 2 | GH102: 1 | GI102: -2 | GJ102: 0 | GK102: 0 | GL102: 0 | GM102: 0 | GN102: 0 | GO102: 0 | GP102: 0 | GR102: 0 | GS102: 0 | GT102: 0 | GV102: 0 | GW102: 1 | GX102: 0 | HA102: 0 | HB102: 0 | HC102: 0 | HN102: Пр/812-027.0-1 | HO102: Пр/774-027.0 | HP102: Линии электропередачи | HQ102: Линии электропередачи | HS102: 0 | IK102: 0
A103: 18 | B103: 1 | C103: 142 | F103: 08.3.04.02 | G103: Сталь стержневая диаметром до 10 мм | H103: т | I103: =I92*J103 -> 0 | J103: 0 | K103: 0 | L103: 0 | M103: 0 | N103: 0 | O103: 0 | P103: 0 | Q103: 0 | R103: 0 | S103: 0 | T103: 0 | U103: 0 | V103: 0 | W103: 0 | X103: 0 | Y103: 0 | AA103: -1 | AB103: 0 | AC103: 0 | AD103: 0 | AE103: 0 | AF103: 0 | AG103: 0 | AH103: 0 | AI103: 0 | AJ103: 0 | AK103: 0 | AL103: 0 | AM103: 0 | AN103: 0 | AO103: 0 | AP103: 0 | AQ103: 0 | AR103: 0 | AS103: 0 | AT103: 103 | AU103: 60 | AV103: 1 | AW103: 1 | AZ103: 1 | BA103: 1 | BB103: 1 | BC103: 1 | BH103: 3 | BI103: 1 | BM103: 33001 | BN103: 0 | BP103: 0 | BQ103: 2 | BR103: 0 | BS103: 1 | BT103: 1 | BU103: 1 | BV103: 1 | BW103: 1 | BX103: 1 | BZ103: 103 | CA103: 60 | CE103: 0 | CF103: 0 | CG103: 0 | CH103: 0 | CI103: 0 | CJ103: 0 | CK103: 0 | CL103: 0 | CM103: 0 | CO103: 0 | CP103: 0 | CQ103: 0 | CR103: 0 | CS103: 0 | CT103: 0 | CU103: 0 | CV103: 0 | CW103: 0 | CX103: 0 | CY103: 0 | CZ103: 0 | DN103: 0 | DO103: 0 | DP103: 1 | DQ103: 1 | DU103: 1009 | DV103: т | DW103: т | DX103: 1000 | EE103: 83666879 | EF103: 2 | EG103: Общестроительные работы | EH103: 27 | EI103: Линии электропередачи | EJ103: 1 | EK103: 33001 | EL103: Линии электропередачи | EM103: ФЕР-33 | EQ103: 1024 | ER103: 0 | ES103: 0 | ET103: 0 | EU103: 0 | EV103: 0 | EW103: 0 | EX103: 0 | FQ103: 0 | FR103: 0 | FS103: 0 | FX103: 103 | FY103: 60 | GD103: 1 | GF103: 1613753229 | GG103: 2 | GH103: 1 | GI103: -2 | GJ103: 0 | GK103: 0 | GL103: 0 | GM103: 0 | GN103: 0 | GO103: 0 | GP103: 0 | GR103: 0 | GS103: 0 | GT103: 0 | GV103: 0 | GW103: 1 | GX103: 0 | HA103: 0 | HB103: 0 | HC103: 0 | HN103: Пр/812-027.0-1 | HO103: Пр/774-027.0 | HP103: Линии электропередачи | HQ103: Линии электропередачи | HS103: 0 | IK103: 0
A104: 18 | B104: 1 | C104: 162 | F104: 08.3.04.02 | G104: Сталь стержневая диаметром до 10 мм | H104: т | I104: =I93*J104 -> 0 | J104: 0 | K104: 0 | L104: 0 | M104: 0 | N104: 0 | O104: 0 | P104: 0 | Q104: 0 | R104: 0 | S104: 0 | T104: 0 | U104: 0 | V104: 0 | W104: 0 | X104: 0 | Y104: 0 | AA104: -1 | AB104: 0 | AC104: 0 | AD104: 0 | AE104: 0 | AF104: 0 | AG104: 0 | AH104: 0 | AI104: 0 | AJ104: 0 | AK104: 0 | AL104: 0 | AM104: 0 | AN104: 0 | AO104: 0 | AP104: 0 | AQ104: 0 | AR104: 0 | AS104: 0 | AT104: 103 | AU104: 60 | AV104: 1 | AW104: 1 | AZ104: 1 | BA104: 1 | BB104: 1 | BC104: 1 | BH104: 3 | BI104: 1 | BM104: 33001 | BN104: 0 | BP104: 0 | BQ104: 2 | BR104: 0 | BS104: 1 | BT104: 1 | BU104: 1 | BV104: 1 | BW104: 1 | BX104: 1 | BZ104: 103 | CA104: 60 | CE104: 0 | CF104: 0 | CG104: 0 | CH104: 0 | CI104: 0 | CJ104: 0 | CK104: 0 | CL104: 0 | CM104: 0 | CO104: 0 | CP104: 0 | CQ104: 0 | CR104: 0 | CS104: 0 | CT104: 0 | CU104: 0 | CV104: 0 | CW104: 0 | CX104: 0 | CY104: 0 | CZ104: 0 | DN104: 0 | DO104: 0 | DP104: 1 | DQ104: 1 | DU104: 1009 | DV104: т | DW104: т | DX104: 1000 | EE104: 83666879 | EF104: 2 | EG104: Общестроительные работы | EH104: 27 | EI104: Линии электропередачи | EJ104: 1 | EK104: 33001 | EL104: Линии электропередачи | EM104: ФЕР-33 | EQ104: 1024 | ER104: 0 | ES104: 0 | ET104: 0 | EU104: 0 | EV104: 0 | EW104: 0 | EX104: 0 | FQ104: 0 | FR104: 0 | FS104: 0 | FX104: 103 | FY104: 60 | GD104: 1 | GF104: 1613753229 | GG104: 2 | GH104: 1 | GI104: -2 | GJ104: 0 | GK104: 0 | GL104: 0 | GM104: 0 | GN104: 0 | GO104: 0 | GP104: 0 | GR104: 0 | GS104: 0 | GT104: 0 | GV104: 0 | GW104: 1 | GX104: 0 | HA104: 0 | HB104: 0 | HC104: 0 | HN104: Пр/812-027.0-1 | HO104: Пр/774-027.0 | HP104: Линии электропередачи | HQ104: Линии электропередачи | HS104: 0 | IK104: 0
A105: 18 | B105: 1 | C105: 146 | F105: 22.2.01.04 | G105: Изоляторы штыревые | H105: ШТ | I105: =I92*J105 -> 0 | J105: 0 | K105: 0 | L105: 0 | M105: 0 | N105: 0 | O105: 0 | P105: 0 | Q105: 0 | R105: 0 | S105: 0 | T105: 0 | U105: 0 | V105: 0 | W105: 0 | X105: 0 | Y105: 0 | AA105: -1 | AB105: 0 | AC105: 0 | AD105: 0 | AE105: 0 | AF105: 0 | AG105: 0 | AH105: 0 | AI105: 0 | AJ105: 0 | AK105: 0 | AL105: 0 | AM105: 0 | AN105: 0 | AO105: 0 | AP105: 0 | AQ105: 0 | AR105: 0 | AS105: 0 | AT105: 103 | AU105: 60 | AV105: 1 | AW105: 1 | AZ105: 1 | BA105: 1 | BB105: 1 | BC105: 1 | BH105: 3 | BI105: 1 | BM105: 33001 | BN105: 0 | BP105: 0 | BQ105: 2 | BR105: 0 | BS105: 1 | BT105: 1 | BU105: 1 | BV105: 1 | BW105: 1 | BX105: 1 | BZ105: 103 | CA105: 60 | CE105: 0 | CF105: 0 | CG105: 0 | CH105: 0 | CI105: 0 | CJ105: 0 | CK105: 0 | CL105: 0 | CM105: 0 | CO105: 0 | CP105: 0 | CQ105: 0 | CR105: 0 | CS105: 0 | CT105: 0 | CU105: 0 | CV105: 0 | CW105: 0 | CX105: 0 | CY105: 0 | CZ105: 0 | DN105: 0 | DO105: 0 | DP105: 1 | DQ105: 1 | DU105: 1013 | DV105: ШТ | DW105: ШТ | DX105: 1 | EE105: 83666879 | EF105: 2 | EG105: Общестроительные работы | EH105: 27 | EI105: Линии электропередачи | EJ105: 1 | EK105: 33001 | EL105: Линии электропередачи | EM105: ФЕР-33 | EQ105: 1024 | ER105: 0 | ES105: 0 | ET105: 0 | EU105: 0 | EV105: 0 | EW105: 0 | EX105: 0 | FQ105: 0 | FR105: 0 | FS105: 0 | FX105: 103 | FY105: 60 | GD105: 1 | GF105: -950997571 | GG105: 2 | GH105: 1 | GI105: -2 | GJ105: 0 | GK105: 0 | GL105: 0 | GM105: 0 | GN105: 0 | GO105: 0 | GP105: 0 | GR105: 0 | GS105: 0 | GT105: 0 | GV105: 0 | GW105: 1 | GX105: 0 | HA105: 0 | HB105: 0 | HC105: 0 | HN105: Пр/812-027.0-1 | HO105: Пр/774-027.0 | HP105: Линии электропередачи | HQ105: Линии электропередачи | HS105: 0 | IK105: 0
A106: 18 | B106: 1 | C106: 166 | F106: 22.2.01.04 | G106: Изоляторы штыревые | H106: ШТ | I106: =I93*J106 -> 0 | J106: 0 | K106: 0 | L106: 0 | M106: 0 | N106: 0 | O106: 0 | P106: 0 | Q106: 0 | R106: 0 | S106: 0 | T106: 0 | U106: 0 | V106: 0 | W106: 0 | X106: 0 | Y106: 0 | AA106: -1 | AB106: 0 | AC106: 0 | AD106: 0 | AE106: 0 | AF106: 0 | AG106: 0 | AH106: 0 | AI106: 0 | AJ106: 0 | AK106: 0 | AL106: 0 | AM106: 0 | AN106: 0 | AO106: 0 | AP106: 0 | AQ106: 0 | AR106: 0 | AS106: 0 | AT106: 103 | AU106: 60 | AV106: 1 | AW106: 1 | AZ106: 1 | BA106: 1 | BB106: 1 | BC106: 1 | BH106: 3 | BI106: 1 | BM106: 33001 | BN106: 0 | BP106: 0 | BQ106: 2 | BR106: 0 | BS106: 1 | BT106: 1 | BU106: 1 | BV106: 1 | BW106: 1 | BX106: 1 | BZ106: 103 | CA106: 60 | CE106: 0 | CF106: 0 | CG106: 0 | CH106: 0 | CI106: 0 | CJ106: 0 | CK106: 0 | CL106: 0 | CM106: 0 | CO106: 0 | CP106: 0 | CQ106: 0 | CR106: 0 | CS106: 0 | CT106: 0 | CU106: 0 | CV106: 0 | CW106: 0 | CX106: 0 | CY106: 0 | CZ106: 0 | DN106: 0 | DO106: 0 | DP106: 1 | DQ106: 1 | DU106: 1013 | DV106: ШТ | DW106: ШТ | DX106: 1 | EE106: 83666879 | EF106: 2 | EG106: Общестроительные работы | EH106: 27 | EI106: Линии электропередачи | EJ106: 1 | EK106: 33001 | EL106: Линии электропередачи | EM106: ФЕР-33 | EQ106: 1024 | ER106: 0 | ES106: 0 | ET106: 0 | EU106: 0 | EV106: 0 | EW106: 0 | EX106: 0 | FQ106: 0 | FR106: 0 | FS106: 0 | FX106: 103 | FY106: 60 | GD106: 1 | GF106: -950997571 | GG106: 2 | GH106: 1 | GI106: -2 | GJ106: 0 | GK106: 0 | GL106: 0 | GM106: 0 | GN106: 0 | GO106: 0 | GP106: 0 | GR106: 0 | GS106: 0 | GT106: 0 | GV106: 0 | GW106: 1 | GX106: 0 | HA106: 0 | HB106: 0 | HC106: 0 | HN106: Пр/812-027.0-1 | HO106: Пр/774-027.0 | HP106: Линии электропередачи | HQ106: Линии электропередачи | HS106: 0 | IK106: 0
A107: 18 | B107: 1 | C107: 147 | F107: 22.2.02.07 | G107: Детали крепления стальные | H107: кг | I107: =I92*J107 -> 0 | J107: 0 | K107: 0 | L107: 0 | M107: 0 | N107: 0 | O107: 0 | P107: 0 | Q107: 0 | R107: 0 | S107: 0 | T107: 0 | U107: 0 | V107: 0 | W107: 0 | X107: 0 | Y107: 0 | AA107: -1 | AB107: 0 | AC107: 0 | AD107: 0 | AE107: 0 | AF107: 0 | AG107: 0 | AH107: 0 | AI107: 0 | AJ107: 0 | AK107: 0 | AL107: 0 | AM107: 0 | AN107: 0 | AO107: 0 | AP107: 0 | AQ107: 0 | AR107: 0 | AS107: 0 | AT107: 103 | AU107: 60 | AV107: 1 | AW107: 1 | AZ107: 1 | BA107: 1 | BB107: 1 | BC107: 1 | BH107: 3 | BI107: 1 | BM107: 33001 | BN107: 0 | BP107: 0 | BQ107: 2 | BR107: 0 | BS107: 1 | BT107: 1 | BU107: 1 | BV107: 1 | BW107: 1 | BX107: 1 | BZ107: 103 | CA107: 60 | CE107: 0 | CF107: 0 | CG107: 0 | CH107: 0 | CI107: 0 | CJ107: 0 | CK107: 0 | CL107: 0 | CM107: 0 | CO107: 0 | CP107: 0 | CQ107: 0 | CR107: 0 | CS107: 0 | CT107: 0 | CU107: 0 | CV107: 0 | CW107: 0 | CX107: 0 | CY107: 0 | CZ107: 0 | DN107: 0 | DO107: 0 | DP107: 1 | DQ107: 1 | DU107: 1009 | DV107: кг | DW107: кг | DX107: 1 | EE107: 83666879 | EF107: 2 | EG107: Общестроительные работы | EH107: 27 | EI107: Линии электропередачи | EJ107: 1 | EK107: 33001 | EL107: Линии электропередачи | EM107: ФЕР-33 | EQ107: 1024 | ER107: 0 | ES107: 0 | ET107: 0 | EU107: 0 | EV107: 0 | EW107: 0 | EX107: 0 | FQ107: 0 | FR107: 0 | FS107: 0 | FX107: 103 | FY107: 60 | GD107: 1 | GF107: -1307724210 | GG107: 2 | GH107: 1 | GI107: -2 | GJ107: 0 | GK107: 0 | GL107: 0 | GM107: 0 | GN107: 0 | GO107: 0 | GP107: 0 | GR107: 0 | GS107: 0 | GT107: 0 | GV107: 0 | GW107: 1 | GX107: 0 | HA107: 0 | HB107: 0 | HC107: 0 | HN107: Пр/812-027.0-1 | HO107: Пр/774-027.0 | HP107: Линии электропередачи | HQ107: Линии электропередачи | HS107: 0 | IK107: 0
A108: 18 | B108: 1 | C108: 167 | F108: 22.2.02.07 | G108: Детали крепления стальные | H108: кг | I108: =I93*J108 -> 0 | J108: 0 | K108: 0 | L108: 0 | M108: 0 | N108: 0 | O108: 0 | P108: 0 | Q108: 0 | R108: 0 | S108: 0 | T108: 0 | U108: 0 | V108: 0 | W108: 0 | X108: 0 | Y108: 0 | AA108: -1 | AB108: 0 | AC108: 0 | AD108: 0 | AE108: 0 | AF108: 0 | AG108: 0 | AH108: 0 | AI108: 0 | AJ108: 0 | AK108: 0 | AL108: 0 | AM108: 0 | AN108: 0 | AO108: 0 | AP108: 0 | AQ108: 0 | AR108: 0 | AS108: 0 | AT108: 103 | AU108: 60 | AV108: 1 | AW108: 1 | AZ108: 1 | BA108: 1 | BB108: 1 | BC108: 1 | BH108: 3 | BI108: 1 | BM108: 33001 | BN108: 0 | BP108: 0 | BQ108: 2 | BR108: 0 | BS108: 1 | BT108: 1 | BU108: 1 | BV108: 1 | BW108: 1 | BX108: 1 | BZ108: 103 | CA108: 60 | CE108: 0 | CF108: 0 | CG108: 0 | CH108: 0 | CI108: 0 | CJ108: 0 | CK108: 0 | CL108: 0 | CM108: 0 | CO108: 0 | CP108: 0 | CQ108: 0 | CR108: 0 | CS108: 0 | CT108: 0 | CU108: 0 | CV108: 0 | CW108: 0 | CX108: 0 | CY108: 0 | CZ108: 0 | DN108: 0 | DO108: 0 | DP108: 1 | DQ108: 1 | DU108: 1009 | DV108: кг | DW108: кг | DX108: 1 | EE108: 83666879 | EF108: 2 | EG108: Общестроительные работы | EH108: 27 | EI108: Линии электропередачи | EJ108: 1 | EK108: 33001 | EL108: Линии электропередачи | EM108: ФЕР-33 | EQ108: 1024 | ER108: 0 | ES108: 0 | ET108: 0 | EU108: 0 | EV108: 0 | EW108: 0 | EX108: 0 | FQ108: 0 | FR108: 0 | FS108: 0 | FX108: 103 | FY108: 60 | GD108: 1 | GF108: -1307724210 | GG108: 2 | GH108: 1 | GI108: -2 | GJ108: 0 | GK108: 0 | GL108: 0 | GM108: 0 | GN108: 0 | GO108: 0 | GP108: 0 | GR108: 0 | GS108: 0 | GT108: 0 | GV108: 0 | GW108: 1 | GX108: 0 | HA108: 0 | HB108: 0 | HC108: 0 | HN108: Пр/812-027.0-1 | HO108: Пр/774-027.0 | HP108: Линии электропередачи | HQ108: Линии электропередачи | HS108: 0 | IK108: 0
A109: 18 | B109: 1 | C109: 148 | F109: 22.2.02.09 | G109: Детали крепления стальные | H109: кг | I109: =I92*J109 -> 0 | J109: 0 | K109: 0 | L109: 0 | M109: 0 | N109: 0 | O109: 0 | P109: 0 | Q109: 0 | R109: 0 | S109: 0 | T109: 0 | U109: 0 | V109: 0 | W109: 0 | X109: 0 | Y109: 0 | AA109: -1 | AB109: 0 | AC109: 0 | AD109: 0 | AE109: 0 | AF109: 0 | AG109: 0 | AH109: 0 | AI109: 0 | AJ109: 0 | AK109: 0 | AL109: 0 | AM109: 0 | AN109: 0 | AO109: 0 | AP109: 0 | AQ109: 0 | AR109: 0 | AS109: 0 | AT109: 103 | AU109: 60 | AV109: 1 | AW109: 1 | AZ109: 1 | BA109: 1 | BB109: 1 | BC109: 1 | BH109: 3 | BI109: 1 | BM109: 33001 | BN109: 0 | BP109: 0 | BQ109: 2 | BR109: 0 | BS109: 1 | BT109: 1 | BU109: 1 | BV109: 1 | BW109: 1 | BX109: 1 | BZ109: 103 | CA109: 60 | CE109: 0 | CF109: 0 | CG109: 0 | CH109: 0 | CI109: 0 | CJ109: 0 | CK109: 0 | CL109: 0 | CM109: 0 | CO109: 0 | CP109: 0 | CQ109: 0 | CR109: 0 | CS109: 0 | CT109: 0 | CU109: 0 | CV109: 0 | CW109: 0 | CX109: 0 | CY109: 0 | CZ109: 0 | DN109: 0 | DO109: 0 | DP109: 1 | DQ109: 1 | DU109: 1009 | DV109: кг | DW109: кг | DX109: 1 | EE109: 83666879 | EF109: 2 | EG109: Общестроительные работы | EH109: 27 | EI109: Линии электропередачи | EJ109: 1 | EK109: 33001 | EL109: Линии электропередачи | EM109: ФЕР-33 | EQ109: 1024 | ER109: 0 | ES109: 0 | ET109: 0 | EU109: 0 | EV109: 0 | EW109: 0 | EX109: 0 | FQ109: 0 | FR109: 0 | FS109: 0 | FX109: 103 | FY109: 60 | GD109: 1 | GF109: 644915416 | GG109: 2 | GH109: 1 | GI109: -2 | GJ109: 0 | GK109: 0 | GL109: 0 | GM109: 0 | GN109: 0 | GO109: 0 | GP109: 0 | GR109: 0 | GS109: 0 | GT109: 0 | GV109: 0 | GW109: 1 | GX109: 0 | HA109: 0 | HB109: 0 | HC109: 0 | HN109: Пр/812-027.0-1 | HO109: Пр/774-027.0 | HP109: Линии электропередачи | HQ109: Линии электропередачи | HS109: 0 | IK109: 0
A110: 18 | B110: 1 | C110: 168 | F110: 22.2.02.09 | G110: Детали крепления стальные | H110: кг | I110: =I93*J110 -> 0 | J110: 0 | K110: 0 | L110: 0 | M110: 0 | N110: 0 | O110: 0 | P110: 0 | Q110: 0 | R110: 0 | S110: 0 | T110: 0 | U110: 0 | V110: 0 | W110: 0 | X110: 0 | Y110: 0 | AA110: -1 | AB110: 0 | AC110: 0 | AD110: 0 | AE110: 0 | AF110: 0 | AG110: 0 | AH110: 0 | AI110: 0 | AJ110: 0 | AK110: 0 | AL110: 0 | AM110: 0 | AN110: 0 | AO110: 0 | AP110: 0 | AQ110: 0 | AR110: 0 | AS110: 0 | AT110: 103 | AU110: 60 | AV110: 1 | AW110: 1 | AZ110: 1 | BA110: 1 | BB110: 1 | BC110: 1 | BH110: 3 | BI110: 1 | BM110: 33001 | BN110: 0 | BP110: 0 | BQ110: 2 | BR110: 0 | BS110: 1 | BT110: 1 | BU110: 1 | BV110: 1 | BW110: 1 | BX110: 1 | BZ110: 103 | CA110: 60 | CE110: 0 | CF110: 0 | CG110: 0 | CH110: 0 | CI110: 0 | CJ110: 0 | CK110: 0 | CL110: 0 | CM110: 0 | CO110: 0 | CP110: 0 | CQ110: 0 | CR110: 0 | CS110: 0 | CT110: 0 | CU110: 0 | CV110: 0 | CW110: 0 | CX110: 0 | CY110: 0 | CZ110: 0 | DN110: 0 | DO110: 0 | DP110: 1 | DQ110: 1 | DU110: 1009 | DV110: кг | DW110: кг | DX110: 1 | EE110: 83666879 | EF110: 2 | EG110: Общестроительные работы | EH110: 27 | EI110: Линии электропередачи | EJ110: 1 | EK110: 33001 | EL110: Линии электропередачи | EM110: ФЕР-33 | EQ110: 1024 | ER110: 0 | ES110: 0 | ET110: 0 | EU110: 0 | EV110: 0 | EW110: 0 | EX110: 0 | FQ110: 0 | FR110: 0 | FS110: 0 | FX110: 103 | FY110: 60 | GD110: 1 | GF110: 644915416 | GG110: 2 | GH110: 1 | GI110: -2 | GJ110: 0 | GK110: 0 | GL110: 0 | GM110: 0 | GN110: 0 | GO110: 0 | GP110: 0 | GR110: 0 | GS110: 0 | GT110: 0 | GV110: 0 | GW110: 1 | GX110: 0 | HA110: 0 | HB110: 0 | HC110: 0 | HN110: Пр/812-027.0-1 | HO110: Пр/774-027.0 | HP110: Линии электропередачи | HQ110: Линии электропередачи | HS110: 0 | IK110: 0
A111: 18 | B111: 1 | C111: 149 | F111: 22.2.02.21 | G111: Штыри | H111: ШТ | I111: =I92*J111 -> 0 | J111: 0 | K111: 0 | L111: 0 | M111: 0 | N111: 0 | O111: 0 | P111: 0 | Q111: 0 | R111: 0 | S111: 0 | T111: 0 | U111: 0 | V111: 0 | W111: 0 | X111: 0 | Y111: 0 | AA111: -1 | AB111: 0 | AC111: 0 | AD111: 0 | AE111: 0 | AF111: 0 | AG111: 0 | AH111: 0 | AI111: 0 | AJ111: 0 | AK111: 0 | AL111: 0 | AM111: 0 | AN111: 0 | AO111: 0 | AP111: 0 | AQ111: 0 | AR111: 0 | AS111: 0 | AT111: 103 | AU111: 60 | AV111: 1 | AW111: 1 | AZ111: 1 | BA111: 1 | BB111: 1 | BC111: 1 | BH111: 3 | BI111: 1 | BM111: 33001 | BN111: 0 | BP111: 0 | BQ111: 2 | BR111: 0 | BS111: 1 | BT111: 1 | BU111: 1 | BV111: 1 | BW111: 1 | BX111: 1 | BZ111: 103 | CA111: 60 | CE111: 0 | CF111: 0 | CG111: 0 | CH111: 0 | CI111: 0 | CJ111: 0 | CK111: 0 | CL111: 0 | CM111: 0 | CO111: 0 | CP111: 0 | CQ111: 0 | CR111: 0 | CS111: 0 | CT111: 0 | CU111: 0 | CV111: 0 | CW111: 0 | CX111: 0 | CY111: 0 | CZ111: 0 | DN111: 0 | DO111: 0 | DP111: 1 | DQ111: 1 | DU111: 1013 | DV111: ШТ | DW111: ШТ | DX111: 1 | EE111: 83666879 | EF111: 2 | EG111: Общестроительные работы | EH111: 27 | EI111: Линии электропередачи | EJ111: 1 | EK111: 33001 | EL111: Линии электропередачи | EM111: ФЕР-33 | EQ111: 1024 | ER111: 0 | ES111: 0 | ET111: 0 | EU111: 0 | EV111: 0 | EW111: 0 | EX111: 0 | FQ111: 0 | FR111: 0 | FS111: 0 | FX111: 103 | FY111: 60 | GD111: 1 | GF111: -320198552 | GG111: 2 | GH111: 1 | GI111: -2 | GJ111: 0 | GK111: 0 | GL111: 0 | GM111: 0 | GN111: 0 | GO111: 0 | GP111: 0 | GR111: 0 | GS111: 0 | GT111: 0 | GV111: 0 | GW111: 1 | GX111: 0 | HA111: 0 | HB111: 0 | HC111: 0 | HN111: Пр/812-027.0-1 | HO111: Пр/774-027.0 | HP111: Линии электропередачи | HQ111: Линии электропередачи | HS111: 0 | IK111: 0
A112: 18 | B112: 1 | C112: 169 | F112: 22.2.02.21 | G112: Штыри | H112: ШТ | I112: =I93*J112 -> 0 | J112: 0 | K112: 0 | L112: 0 | M112: 0 | N112: 0 | O112: 0 | P112: 0 | Q112: 0 | R112: 0 | S112: 0 | T112: 0 | U112: 0 | V112: 0 | W112: 0 | X112: 0 | Y112: 0 | AA112: -1 | AB112: 0 | AC112: 0 | AD112: 0 | AE112: 0 | AF112: 0 | AG112: 0 | AH112: 0 | AI112: 0 | AJ112: 0 | AK112: 0 | AL112: 0 | AM112: 0 | AN112: 0 | AO112: 0 | AP112: 0 | AQ112: 0 | AR112: 0 | AS112: 0 | AT112: 103 | AU112: 60 | AV112: 1 | AW112: 1 | AZ112: 1 | BA112: 1 | BB112: 1 | BC112: 1 | BH112: 3 | BI112: 1 | BM112: 33001 | BN112: 0 | BP112: 0 | BQ112: 2 | BR112: 0 | BS112: 1 | BT112: 1 | BU112: 1 | BV112: 1 | BW112: 1 | BX112: 1 | BZ112: 103 | CA112: 60 | CE112: 0 | CF112: 0 | CG112: 0 | CH112: 0 | CI112: 0 | CJ112: 0 | CK112: 0 | CL112: 0 | CM112: 0 | CO112: 0 | CP112: 0 | CQ112: 0 | CR112: 0 | CS112: 0 | CT112: 0 | CU112: 0 | CV112: 0 | CW112: 0 | CX112: 0 | CY112: 0 | CZ112: 0 | DN112: 0 | DO112: 0 | DP112: 1 | DQ112: 1 | DU112: 1013 | DV112: ШТ | DW112: ШТ | DX112: 1 | EE112: 83666879 | EF112: 2 | EG112: Общестроительные работы | EH112: 27 | EI112: Линии электропередачи | EJ112: 1 | EK112: 33001 | EL112: Линии электропередачи | EM112: ФЕР-33 | EQ112: 1024 | ER112: 0 | ES112: 0 | ET112: 0 | EU112: 0 | EV112: 0 | EW112: 0 | EX112: 0 | FQ112: 0 | FR112: 0 | FS112: 0 | FX112: 103 | FY112: 60 | GD112: 1 | GF112: -320198552 | GG112: 2 | GH112: 1 | GI112: -2 | GJ112: 0 | GK112: 0 | GL112: 0 | GM112: 0 | GN112: 0 | GO112: 0 | GP112: 0 | GR112: 0 | GS112: 0 | GT112: 0 | GV112: 0 | GW112: 1 | GX112: 0 | HA112: 0 | HB112: 0 | HC112: 0 | HN112: Пр/812-027.0-1 | HO112: Пр/774-027.0 | HP112: Линии электропередачи | HQ112: Линии электропередачи | HS112: 0 | IK112: 0
A113: 18 | B113: 1 | C113: 150 | F113: 22.2.02.23 | G113: Металлические плакаты | H113: ШТ | I113: =I92*J113 -> 0 | J113: 0 | K113: 0 | L113: 0 | M113: 0 | N113: 0 | O113: 0 | P113: 0 | Q113: 0 | R113: 0 | S113: 0 | T113: 0 | U113: 0 | V113: 0 | W113: 0 | X113: 0 | Y113: 0 | AA113: -1 | AB113: 0 | AC113: 0 | AD113: 0 | AE113: 0 | AF113: 0 | AG113: 0 | AH113: 0 | AI113: 0 | AJ113: 0 | AK113: 0 | AL113: 0 | AM113: 0 | AN113: 0 | AO113: 0 | AP113: 0 | AQ113: 0 | AR113: 0 | AS113: 0 | AT113: 103 | AU113: 60 | AV113: 1 | AW113: 1 | AZ113: 1 | BA113: 1 | BB113: 1 | BC113: 1 | BH113: 3 | BI113: 1 | BM113: 33001 | BN113: 0 | BP113: 0 | BQ113: 2 | BR113: 0 | BS113: 1 | BT113: 1 | BU113: 1 | BV113: 1 | BW113: 1 | BX113: 1 | BZ113: 103 | CA113: 60 | CE113: 0 | CF113: 0 | CG113: 0 | CH113: 0 | CI113: 0 | CJ113: 0 | CK113: 0 | CL113: 0 | CM113: 0 | CO113: 0 | CP113: 0 | CQ113: 0 | CR113: 0 | CS113: 0 | CT113: 0 | CU113: 0 | CV113: 0 | CW113: 0 | CX113: 0 | CY113: 0 | CZ113: 0 | DN113: 0 | DO113: 0 | DP113: 1 | DQ113: 1 | DU113: 1013 | DV113: ШТ | DW113: ШТ | DX113: 1 | EE113: 83666879 | EF113: 2 | EG113: Общестроительные работы | EH113: 27 | EI113: Линии электропередачи | EJ113: 1 | EK113: 33001 | EL113: Линии электропередачи | EM113: ФЕР-33 | EQ113: 1024 | ER113: 0 | ES113: 0 | ET113: 0 | EU113: 0 | EV113: 0 | EW113: 0 | EX113: 0 | FQ113: 0 | FR113: 0 | FS113: 0 | FX113: 103 | FY113: 60 | GD113: 1 | GF113: 326010188 | GG113: 2 | GH113: 1 | GI113: -2 | GJ113: 0 | GK113: 0 | GL113: 0 | GM113: 0 | GN113: 0 | GO113: 0 | GP113: 0 | GR113: 0 | GS113: 0 | GT113: 0 | GV113: 0 | GW113: 1 | GX113: 0 | HA113: 0 | HB113: 0 | HC113: 0 | HN113: Пр/812-027.0-1 | HO113: Пр/774-027.0 | HP113: Линии электропередачи | HQ113: Линии электропередачи | HS113: 0 | IK113: 0
A114: 18 | B114: 1 | C114: 170 | F114: 22.2.02.23 | G114: Металлические плакаты | H114: ШТ | I114: =I93*J114 -> 0 | J114: 0 | K114: 0 | L114: 0 | M114: 0 | N114: 0 | O114: 0 | P114: 0 | Q114: 0 | R114: 0 | S114: 0 | T114: 0 | U114: 0 | V114: 0 | W114: 0 | X114: 0 | Y114: 0 | AA114: -1 | AB114: 0 | AC114: 0 | AD114: 0 | AE114: 0 | AF114: 0 | AG114: 0 | AH114: 0 | AI114: 0 | AJ114: 0 | AK114: 0 | AL114: 0 | AM114: 0 | AN114: 0 | AO114: 0 | AP114: 0 | AQ114: 0 | AR114: 0 | AS114: 0 | AT114: 103 | AU114: 60 | AV114: 1 | AW114: 1 | AZ114: 1 | BA114: 1 | BB114: 1 | BC114: 1 | BH114: 3 | BI114: 1 | BM114: 33001 | BN114: 0 | BP114: 0 | BQ114: 2 | BR114: 0 | BS114: 1 | BT114: 1 | BU114: 1 | BV114: 1 | BW114: 1 | BX114: 1 | BZ114: 103 | CA114: 60 | CE114: 0 | CF114: 0 | CG114: 0 | CH114: 0 | CI114: 0 | CJ114: 0 | CK114: 0 | CL114: 0 | CM114: 0 | CO114: 0 | CP114: 0 | CQ114: 0 | CR114: 0 | CS114: 0 | CT114: 0 | CU114: 0 | CV114: 0 | CW114: 0 | CX114: 0 | CY114: 0 | CZ114: 0 | DN114: 0 | DO114: 0 | DP114: 1 | DQ114: 1 | DU114: 1013 | DV114: ШТ | DW114: ШТ | DX114: 1 | EE114: 83666879 | EF114: 2 | EG114: Общестроительные работы | EH114: 27 | EI114: Линии электропередачи | EJ114: 1 | EK114: 33001 | EL114: Линии электропередачи | EM114: ФЕР-33 | EQ114: 1024 | ER114: 0 | ES114: 0 | ET114: 0 | EU114: 0 | EV114: 0 | EW114: 0 | EX114: 0 | FQ114: 0 | FR114: 0 | FS114: 0 | FX114: 103 | FY114: 60 | GD114: 1 | GF114: 326010188 | GG114: 2 | GH114: 1 | GI114: -2 | GJ114: 0 | GK114: 0 | GL114: 0 | GM114: 0 | GN114: 0 | GO114: 0 | GP114: 0 | GR114: 0 | GS114: 0 | GT114: 0 | GV114: 0 | GW114: 1 | GX114: 0 | HA114: 0 | HB114: 0 | HC114: 0 | HN114: Пр/812-027.0-1 | HO114: Пр/774-027.0 | HP114: Линии электропередачи | HQ114: Линии электропередачи | HS114: 0 | IK114: 0
A115: 17 | B115: 1 | C115: =ROW(SmtRes!A189) -> 189 | D115: =ROW(EtalonRes!A189) -> 189 | E115: 5 | F115: 33-04-003-02 | G115: Установка железобетонных опор ВЛ 0,38; 6-10 кВ с траверсами без приставок: одностоечных с одним подкосом | H115: ШТ | I115: 0 | J115: 0 | K115: 0 | L115: 4 | M115: 4 | N115: 0 | O115: 0 | P115: =SUMIF(SmtRes!AQ171:'SmtRes'!AQ189,"=1",SmtRes!DF171:'SmtRes'!DF189) -> 0 | Q115: =SUMIF(SmtRes!AQ171:'SmtRes'!AQ189,"=1",SmtRes!DG171:'SmtRes'!DG189) -> 0 | R115: =SUMIF(SmtRes!AQ171:'SmtRes'!AQ189,"=1",SmtRes!DH171:'SmtRes'!DH189) -> 0 | S115: =SUMIF(SmtRes!AQ171:'SmtRes'!AQ189,"=1",SmtRes!DI171:'SmtRes'!DI189) -> 0 | T115: 0 | U115: =SUMIF(SmtRes!AQ171:'SmtRes'!AQ189,"=1",SmtRes!CV171:'SmtRes'!CV189) -> 0 | V115: =SUMIF(SmtRes!AQ171:'SmtRes'!AQ189,"=1",SmtRes!CW171:'SmtRes'!CW189) -> 0 | W115: 0 | X115: 0 | Y115: 0 | AA115: 85312357 | AB115: 9803.23 | AC115: =ROUND((SUM(SmtRes!BQ171:'SmtRes'!BQ189)),2) -> 115.84 | AD115: =ROUND((((SUM(SmtRes!BR171:'SmtRes'!BR189))-(SUM(SmtRes!BS171:'SmtRes'!BS189)))+AE115),2) -> 4318.45 | AE115: =ROUND((SUM(SmtRes!BS171:'SmtRes'!BS189)),2) -> 2180.92 | AF115: =ROUND((SUM(SmtRes!BT171:'SmtRes'!BT189)),2) -> 5368.94 | AG115: 0 | AH115: =(SUM(SmtRes!BU171:'SmtRes'!BU189)) -> 7.176 | AI115: =(SUM(SmtRes!BV171:'SmtRes'!BV189)) -> 2.4 | AJ115: 0 | AK115: 10006.1034 | AL115: 115.838998 | AM115: 3598.712 | AN115: 1817.436 | AO115: 4474.1164 | AP115: 0 | AQ115: 5.98 | AR115: 2 | AS115: 0 | AT115: 103 | AU115: 60 | AV115: 1 | AW115: 1 | AZ115: 1 | BA115: 1 | BB115: 1 | BC115: 1 | BH115: 0 | BI115: 1 | BJ115: ГЭСН-2022 доп.17, 33-04-003-02, приказ Минстроя России от 17.02.2026 г. № 91/пр | BM115: 33001 | BN115: 0 | BP115: 0 | BQ115: 2 | BR115: 0 | BS115: 1 | BT115: 1 | BU115: 1 | BV115: 1 | BW115: 1 | BX115: 1 | BZ115: 103 | CA115: 60 | CE115: 0 | CF115: 0 | CG115: 0 | CH115: 5 | CI115: 0 | CJ115: 0 | CK115: 0 | CL115: 0 | CM115: 0 | CN115: Поправка: 421/пр_2020_прил.10_т.1_п.4_гр.5 Наименование: Производство работ осуществляется в охранной зоне действующей воздушной линии электропередачи, вблизи объектов, находящихся под напряжением, внутри объектов капитального строительства, внутренняя проводка в которых не обесточена, если это приведет к ограничению действий рабочих в соответствии с требованиями техники безопасности | CO115: 0 | CP115: 0 | CQ115: =SUMIF(SmtRes!AQ171:'SmtRes'!AQ189,"=1",SmtRes!AA171:'SmtRes'!AA189) -> 105143.62 | CR115: =SUMIF(SmtRes!AQ171:'SmtRes'!AQ189,"=1",SmtRes!AB171:'SmtRes'!AB189) -> 3377.99 | CS115: =SUMIF(SmtRes!AQ171:'SmtRes'!AQ189,"=1",SmtRes!AC171:'SmtRes'!AC189) -> 1744.74 | CT115: =SUMIF(SmtRes!AQ171:'SmtRes'!AQ189,"=1",SmtRes!AD171:'SmtRes'!AD189) -> 748.18 | CU115: =AG115 -> 0 | CV115: =SUMIF(SmtRes!AQ171:'SmtRes'!AQ189,"=1",SmtRes!BU171:'SmtRes'!BU189) -> 7.176 | CW115: =SUMIF(SmtRes!AQ171:'SmtRes'!AQ189,"=1",SmtRes!BV171:'SmtRes'!BV189) -> 2.4 | CX115: =AJ115 -> 0 | CY115: 0 | CZ115: 0 | DB115: 9 | DE115: *(0,2+1) | DF115: *(0,2+1) | DG115: *(0,2+1) | DI115: *(0,2+1) | DJ115: *(0,2+1) | DN115: 0 | DO115: 0 | DP115: 1 | DQ115: 1 | DU115: 1013 | DV115: ШТ | DW115: ШТ | DX115: 1 | EE115: 83666879 | EF115: 2 | EG115: Общестроительные работы | EH115: 27 | EI115: Линии электропередачи | EJ115: 1 | EK115: 33001 | EL115: Линии электропередачи | EM115: ФЕР-33 | EO115: Поправка: 421/пр_2020_прил.10_т.1_п.4_гр.5 | EQ115: 131072 | ER115: 0 | ES115: 0 | ET115: 0 | EU115: 0 | EV115: 0 | EW115: 5.98 | EX115: 2 | EY115: 0 | FQ115: 0 | FR115: 0 | FS115: 0 | FX115: 103 | FY115: 60 | GD115: 1 | GF115: -307086544 | GG115: 2 | GH115: 1 | GI115: -2 | GJ115: 0 | GK115: 0 | GL115: 0 | GM115: 0 | GN115: 0 | GO115: 0 | GP115: 0 | GR115: 0 | GS115: 3 | GT115: 0 | GV115: 0 | GW115: 1 | GX115: 0 | HA115: 0 | HB115: 0 | HC115: 0 | HN115: Пр/812-027.0-1 | HO115: Пр/774-027.0 | HP115: Линии электропередачи | HQ115: Линии электропередачи | HS115: 0 | IK115: 0
A116: 17 | B116: 1 | C116: =ROW(SmtRes!A208) -> 208 | D116: =ROW(EtalonRes!A208) -> 208 | E116: 5 | F116: 33-04-003-02 | G116: Установка железобетонных опор ВЛ 0,38; 6-10 кВ с траверсами без приставок: одностоечных с одним подкосом | H116: ШТ | I116: 0 | J116: 0 | K116: 0 | L116: 4 | M116: 4 | N116: 0 | O116: 0 | P116: =SUMIF(SmtRes!AQ190:'SmtRes'!AQ208,"=1",SmtRes!DF190:'SmtRes'!DF208) -> 0 | Q116: =SUMIF(SmtRes!AQ190:'SmtRes'!AQ208,"=1",SmtRes!DG190:'SmtRes'!DG208) -> 0 | R116: =SUMIF(SmtRes!AQ190:'SmtRes'!AQ208,"=1",SmtRes!DH190:'SmtRes'!DH208) -> 0 | S116: =SUMIF(SmtRes!AQ190:'SmtRes'!AQ208,"=1",SmtRes!DI190:'SmtRes'!DI208) -> 0 | T116: 0 | U116: =SUMIF(SmtRes!AQ190:'SmtRes'!AQ208,"=1",SmtRes!CV190:'SmtRes'!CV208) -> 0 | V116: =SUMIF(SmtRes!AQ190:'SmtRes'!AQ208,"=1",SmtRes!CW190:'SmtRes'!CW208) -> 0 | W116: 0 | X116: 0 | Y116: 0 | AA116: 85312298 | AB116: 9803.23 | AC116: =ROUND((SUM(SmtRes!BQ190:'SmtRes'!BQ208)),2) -> 115.84 | AD116: =ROUND((((SUM(SmtRes!BR190:'SmtRes'!BR208))-(SUM(SmtRes!BS190:'SmtRes'!BS208)))+AE116),2) -> 4318.45 | AE116: =ROUND((SUM(SmtRes!BS190:'SmtRes'!BS208)),2) -> 2180.92 | AF116: =ROUND((SUM(SmtRes!BT190:'SmtRes'!BT208)),2) -> 5368.94 | AG116: 0 | AH116: =(SUM(SmtRes!BU190:'SmtRes'!BU208)) -> 7.176 | AI116: =(SUM(SmtRes!BV190:'SmtRes'!BV208)) -> 2.4 | AJ116: 0 | AK116: 10006.1034 | AL116: 115.838998 | AM116: 3598.712 | AN116: 1817.436 | AO116: 4474.1164 | AP116: 0 | AQ116: 5.98 | AR116: 2 | AS116: 0 | AT116: 103 | AU116: 60 | AV116: 1 | AW116: 1 | AZ116: 1 | BA116: 1 | BB116: 1 | BC116: 1 | BH116: 0 | BI116: 1 | BJ116: ГЭСН-2022 доп.17, 33-04-003-02, приказ Минстроя России от 17.02.2026 г. № 91/пр | BM116: 33001 | BN116: 0 | BP116: 0 | BQ116: 2 | BR116: 0 | BS116: 1 | BT116: 1 | BU116: 1 | BV116: 1 | BW116: 1 | BX116: 1 | BZ116: 103 | CA116: 60 | CE116: 0 | CF116: 0 | CG116: 0 | CH116: 5 | CI116: 0 | CJ116: 0 | CK116: 0 | CL116: 0 | CM116: 0 | CN116: Поправка: 421/пр_2020_прил.10_т.1_п.4_гр.5 Наименование: Производство работ осуществляется в охранной зоне действующей воздушной линии электропередачи, вблизи объектов, находящихся под напряжением, внутри объектов капитального строительства, внутренняя проводка в которых не обесточена, если это приведет к ограничению действий рабочих в соответствии с требованиями техники безопасности | CO116: 0 | CP116: 0 | CQ116: =SUMIF(SmtRes!AQ190:'SmtRes'!AQ208,"=1",SmtRes!AA190:'SmtRes'!AA208) -> 105143.62 | CR116: =SUMIF(SmtRes!AQ190:'SmtRes'!AQ208,"=1",SmtRes!AB190:'SmtRes'!AB208) -> 3377.99 | CS116: =SUMIF(SmtRes!AQ190:'SmtRes'!AQ208,"=1",SmtRes!AC190:'SmtRes'!AC208) -> 1744.74 | CT116: =SUMIF(SmtRes!AQ190:'SmtRes'!AQ208,"=1",SmtRes!AD190:'SmtRes'!AD208) -> 748.18 | CU116: =AG116 -> 0 | CV116: =SUMIF(SmtRes!AQ190:'SmtRes'!AQ208,"=1",SmtRes!BU190:'SmtRes'!BU208) -> 7.176 | CW116: =SUMIF(SmtRes!AQ190:'SmtRes'!AQ208,"=1",SmtRes!BV190:'SmtRes'!BV208) -> 2.4 | CX116: =AJ116 -> 0 | CY116: 0 | CZ116: 0 | DB116: 10 | DE116: *(0,2+1) | DF116: *(0,2+1) | DG116: *(0,2+1) | DI116: *(0,2+1) | DJ116: *(0,2+1) | DN116: 0 | DO116: 0 | DP116: 1 | DQ116: 1 | DU116: 1013 | DV116: ШТ | DW116: ШТ | DX116: 1 | EE116: 83666879 | EF116: 2 | EG116: Общестроительные работы | EH116: 27 | EI116: Линии электропередачи | EJ116: 1 | EK116: 33001 | EL116: Линии электропередачи | EM116: ФЕР-33 | EO116: Поправка: 421/пр_2020_прил.10_т.1_п.4_гр.5 | EQ116: 131072 | ER116: 0 | ES116: 0 | ET116: 0 | EU116: 0 | EV116: 0 | EW116: 5.98 | EX116: 2 | EY116: 0 | FQ116: 0 | FR116: 0 | FS116: 0 | FX116: 103 | FY116: 60 | GD116: 1 | GF116: -307086544 | GG116: 2 | GH116: 1 | GI116: -2 | GJ116: 0 | GK116: 0 | GL116: 0 | GM116: 0 | GN116: 0 | GO116: 0 | GP116: 0 | GR116: 0 | GS116: 3 | GT116: 0 | GV116: 0 | GW116: 1 | GX116: 0 | HA116: 0 | HB116: 0 | HC116: 0 | HN116: Пр/812-027.0-1 | HO116: Пр/774-027.0 | HP116: Линии электропередачи | HQ116: Линии электропередачи | HS116: 0 | IK116: 0
A117: 19 | B117: 1 | G117: По ВОР "Установка ЖБ опор без приставок одностоечных с одним подкосом" | AA117: 1 | IK117: 0
A118: 18 | B118: 1 | C118: 177 | E118: 5,1 | F118: 01.7.15.03-0042 | G118: Болты с гайками и шайбами строительные | H118: кг | I118: =I115*J118 -> 0 | J118: 0 | K118: 0 | L118: 0 | M118: 0 | N118: =ROUND(L118-M118,4) -> 0 | O118: =ROUND(CP118,2) -> 0 | P118: =ROUND(CQ118*I118,2) -> 0 | Q118: =ROUND(CR118*I118,2) -> 0 | R118: =ROUND(CS118*I118,2) -> 0 | S118: =ROUND(CT118*I118,2) -> 0 | T118: =ROUND(CU118*I118,2) -> 0 | U118: =ROUND(CV118*I118,7) -> 0 | V118: =ROUND(CW118*I118,7) -> 0 | W118: =ROUND(CX118*I118,2) -> 0 | X118: =ROUND(CY118,2) -> 0 | Y118: =ROUND(CZ118,2) -> 0 | AA118: 85312357 | AB118: =ROUND((AC118+AD118+AF118),2) -> 174.93 | AC118: =ROUND((ES118),2) -> 174.93 | AD118: =ROUND((((ET118)-(EU118))+AE118),2) -> 0 | AE118: =ROUND((EU118),2) -> 0 | AF118: =ROUND((EV118),2) -> 0 | AG118: =ROUND((AP118),2) -> 0 | AH118: =(EW118) -> 0 | AI118: =(EX118) -> 0 | AJ118: =(AS118) -> 0 | AK118: 174.93 | AL118: 174.93 | AM118: 0 | AN118: 0 | AO118: 0 | AP118: 0 | AQ118: 0 | AR118: 0 | AS118: 0 | AT118: 103 | AU118: 60 | AV118: 1 | AW118: 1 | AZ118: 1 | BA118: 1 | BB118: 1 | BC118: 1.08 | BH118: 3 | BI118: 1 | BJ118: ФСБЦ-2022, 01.7.15.03-0042, приказ Минстроя России от 18.05.2022 г. № 378/пр | BM118: 33001 | BN118: 0 | BO118: 01.7.15.03-0042 | BP118: 1 | BQ118: 2 | BR118: 0 | BS118: 1 | BT118: 1 | BU118: 1 | BV118: 1 | BW118: 1 | BX118: 1 | BZ118: 103 | CA118: 60 | CE118: 0 | CF118: 0 | CG118: 0 | CH118: 5 | CI118: 1 | CJ118: 0 | CK118: 0 | CL118: 0 | CM118: 0 | CO118: 0 | CP118: =(P118+Q118+S118+R118) -> 0 | CQ118: =ROUND(AL118*BC118,2) -> 188.92 | CR118: =ROUND(AM118*BB118,2) -> 0 | CS118: =ROUND(AN118*BS118,2) -> 0 | CT118: =ROUND(AO118*BA118,2) -> 0 | CU118: =AG118 -> 0 | CV118: =AH118 -> 0 | CW118: =AI118 -> 0 | CX118: =AJ118 -> 0 | CY118: =(((S118+R118)*AT118)/100) -> 0 | CZ118: =(((S118+R118)*AU118)/100) -> 0 | DN118: 0 | DO118: 0 | DP118: 1 | DQ118: 1 | DU118: 1009 | DV118: кг | DW118: кг | DX118: 1 | EE118: 83666879 | EF118: 2 | EG118: Общестроительные работы | EH118: 27 | EI118: Линии электропередачи | EJ118: 1 | EK118: 33001 | EL118: Линии электропередачи | EM118: ФЕР-33 | EQ118: 0 | ER118: 174.93 | ES118: 174.93 | ET118: 0 | EU118: 0 | EV118: 0 | EW118: 0 | EX118: 0 | FQ118: 0 | FR118: 0 | FS118: 0 | FX118: 103 | FY118: 60 | GD118: 1 | GF118: -1131385474 | GG118: 2 | GH118: 1 | GI118: 2 | GJ118: 0 | GK118: 0 | GL118: =ROUND(IF(AND(BH118=3,BI118=3,FS118<>0),P118,0),2) -> 0 | GM118: =ROUND(O118+X118+Y118,2)+GX118 -> 0 | GN118: =IF(OR(BI118=0,BI118=1),GM118-GX118,0) -> 0 | GO118: =IF(BI118=2,GM118-GX118,0) -> 0 | GP118: =IF(BI118=4,GM118-GX118,0) -> 0 | GR118: 0 | GS118: 3 | GT118: 0 | GV118: =ROUND((GT118),2) -> 0 | GW118: 1 | GX118: =ROUND(HC118*I118,2) -> 0 | HA118: 0 | HB118: 0 | HC118: =GV118*GW118 -> 0 | HN118: Пр/812-027.0-1 | HO118: Пр/774-027.0 | HP118: Линии электропередачи | HQ118: Линии электропередачи | HS118: 0 | IK118: 0
A119: 18 | B119: 1 | C119: 196 | E119: 5,1 | F119: 01.7.15.03-0042 | G119: Болты с гайками и шайбами строительные | H119: кг | I119: =I116*J119 -> 0 | J119: 0 | K119: 0 | L119: 0 | M119: 0 | N119: 0 | O119: 0 | P119: 0 | Q119: 0 | R119: 0 | S119: 0 | T119: 0 | U119: 0 | V119: 0 | W119: 0 | X119: 0 | Y119: 0 | AA119: 85312298 | AB119: 174.93 | AC119: 174.93 | AD119: 0 | AE119: 0 | AF119: 0 | AG119: 0 | AH119: 0 | AI119: 0 | AJ119: 0 | AK119: 174.93 | AL119: 174.93 | AM119: 0 | AN119: 0 | AO119: 0 | AP119: 0 | AQ119: 0 | AR119: 0 | AS119: 0 | AT119: 103 | AU119: 60 | AV119: 1 | AW119: 1 | AZ119: 1 | BA119: 1 | BB119: 1 | BC119: 1.08 | BH119: 3 | BI119: 1 | BJ119: ФСБЦ-2022, 01.7.15.03-0042, приказ Минстроя России от 18.05.2022 г. № 378/пр | BM119: 33001 | BN119: 0 | BO119: 01.7.15.03-0042 | BP119: 1 | BQ119: 2 | BR119: 0 | BS119: 1 | BT119: 1 | BU119: 1 | BV119: 1 | BW119: 1 | BX119: 1 | BZ119: 103 | CA119: 60 | CE119: 0 | CF119: 0 | CG119: 0 | CH119: 5 | CI119: 1 | CJ119: 0 | CK119: 0 | CL119: 0 | CM119: 0 | CO119: 0 | CP119: 0 | CQ119: 188.92 | CR119: 0 | CS119: 0 | CT119: 0 | CU119: 0 | CV119: 0 | CW119: 0 | CX119: 0 | CY119: 0 | CZ119: 0 | DN119: 0 | DO119: 0 | DP119: 1 | DQ119: 1 | DU119: 1009 | DV119: кг | DW119: кг | DX119: 1 | EE119: 83666879 | EF119: 2 | EG119: Общестроительные работы | EH119: 27 | EI119: Линии электропередачи | EJ119: 1 | EK119: 33001 | EL119: Линии электропередачи | EM119: ФЕР-33 | EQ119: 0 | ER119: 174.93 | ES119: 174.93 | ET119: 0 | EU119: 0 | EV119: 0 | EW119: 0 | EX119: 0 | FQ119: 0 | FR119: 0 | FS119: 0 | FX119: 103 | FY119: 60 | GD119: 1 | GF119: -1131385474 | GG119: 2 | GH119: 1 | GI119: 2 | GJ119: 0 | GK119: 0 | GL119: 0 | GM119: 0 | GN119: 0 | GO119: 0 | GP119: 0 | GR119: 0 | GS119: 3 | GT119: 0 | GV119: 0 | GW119: 1 | GX119: 0 | HA119: 0 | HB119: 0 | HC119: 0 | HN119: Пр/812-027.0-1 | HO119: Пр/774-027.0 | HP119: Линии электропередачи | HQ119: Линии электропередачи | HS119: 0 | IK119: 0
A120: 18 | B120: 1 | C120: 179 | E120: 5,2 | F120: 05.1.02.07 | G120: Стойка железобетонная вибрированная для опор | H120: ШТ | I120: =I115*J120 -> 0 | J120: 0 | K120: 0 | L120: 0 | M120: 0 | N120: 0 | O120: 0 | P120: 0 | Q120: 0 | R120: 0 | S120: 0 | T120: 0 | U120: 0 | V120: 0 | W120: 0 | X120: 0 | Y120: 0 | AA120: 85312357 | AB120: 0 | AC120: 0 | AD120: 0 | AE120: 0 | AF120: 0 | AG120: 0 | AH120: 0 | AI120: 0 | AJ120: 0 | AK120: 0 | AL120: 0 | AM120: 0 | AN120: 0 | AO120: 0 | AP120: 0 | AQ120: 0 | AR120: 0 | AS120: 0 | AT120: 103 | AU120: 60 | AV120: 1 | AW120: 1 | AZ120: 1 | BA120: 1 | BB120: 1 | BC120: 1 | BH120: 3 | BI120: 1 | BM120: 33001 | BN120: 0 | BP120: 0 | BQ120: 2 | BR120: 0 | BS120: 1 | BT120: 1 | BU120: 1 | BV120: 1 | BW120: 1 | BX120: 1 | BZ120: 103 | CA120: 60 | CE120: 0 | CF120: 0 | CG120: 0 | CH120: 5 | CI120: 2 | CJ120: 0 | CK120: 0 | CL120: 0 | CM120: 0 | CO120: 0 | CP120: 0 | CQ120: 0 | CR120: 0 | CS120: 0 | CT120: 0 | CU120: 0 | CV120: 0 | CW120: 0 | CX120: 0 | CY120: 0 | CZ120: 0 | DN120: 0 | DO120: 0 | DP120: 1 | DQ120: 1 | DU120: 1013 | DV120: ШТ | DW120: ШТ | DX120: 1 | EE120: 83666879 | EF120: 2 | EG120: Общестроительные работы | EH120: 27 | EI120: Линии электропередачи | EJ120: 1 | EK120: 33001 | EL120: Линии электропередачи | EM120: ФЕР-33 | EQ120: 0 | ER120: 0 | ES120: 0 | ET120: 0 | EU120: 0 | EV120: 0 | EW120: 0 | EX120: 0 | FQ120: 0 | FR120: 0 | FS120: 0 | FX120: 103 | FY120: 60 | GD120: 1 | GF120: 457934895 | GG120: 2 | GH120: 1 | GI120: -2 | GJ120: 0 | GK120: 0 | GL120: 0 | GM120: 0 | GN120: 0 | GO120: 0 | GP120: 0 | GR120: 0 | GS120: 3 | GT120: 0 | GV120: 0 | GW120: 1 | GX120: 0 | HA120: 0 | HB120: 0 | HC120: 0 | HN120: Пр/812-027.0-1 | HO120: Пр/774-027.0 | HP120: Линии электропередачи | HQ120: Линии электропередачи | HS120: 0 | IK120: 0
A121: 18 | B121: 1 | C121: 198 | E121: 5,2 | F121: 05.1.02.07 | G121: Стойка железобетонная вибрированная для опор | H121: ШТ | I121: =I116*J121 -> 0 | J121: 0 | K121: 0 | L121: 0 | M121: 0 | N121: 0 | O121: 0 | P121: 0 | Q121: 0 | R121: 0 | S121: 0 | T121: 0 | U121: 0 | V121: 0 | W121: 0 | X121: 0 | Y121: 0 | AA121: 85312298 | AB121: 0 | AC121: 0 | AD121: 0 | AE121: 0 | AF121: 0 | AG121: 0 | AH121: 0 | AI121: 0 | AJ121: 0 | AK121: 0 | AL121: 0 | AM121: 0 | AN121: 0 | AO121: 0 | AP121: 0 | AQ121: 0 | AR121: 0 | AS121: 0 | AT121: 103 | AU121: 60 | AV121: 1 | AW121: 1 | AZ121: 1 | BA121: 1 | BB121: 1 | BC121: 1 | BH121: 3 | BI121: 1 | BM121: 33001 | BN121: 0 | BP121: 0 | BQ121: 2 | BR121: 0 | BS121: 1 | BT121: 1 | BU121: 1 | BV121: 1 | BW121: 1 | BX121: 1 | BZ121: 103 | CA121: 60 | CE121: 0 | CF121: 0 | CG121: 0 | CH121: 5 | CI121: 2 | CJ121: 0 | CK121: 0 | CL121: 0 | CM121: 0 | CO121: 0 | CP121: 0 | CQ121: 0 | CR121: 0 | CS121: 0 | CT121: 0 | CU121: 0 | CV121: 0 | CW121: 0 | CX121: 0 | CY121: 0 | CZ121: 0 | DN121: 0 | DO121: 0 | DP121: 1 | DQ121: 1 | DU121: 1013 | DV121: ШТ | DW121: ШТ | DX121: 1 | EE121: 83666879 | EF121: 2 | EG121: Общестроительные работы | EH121: 27 | EI121: Линии электропередачи | EJ121: 1 | EK121: 33001 | EL121: Линии электропередачи | EM121: ФЕР-33 | EQ121: 0 | ER121: 0 | ES121: 0 | ET121: 0 | EU121: 0 | EV121: 0 | EW121: 0 | EX121: 0 | FQ121: 0 | FR121: 0 | FS121: 0 | FX121: 103 | FY121: 60 | GD121: 1 | GF121: 457934895 | GG121: 2 | GH121: 1 | GI121: -2 | GJ121: 0 | GK121: 0 | GL121: 0 | GM121: 0 | GN121: 0 | GO121: 0 | GP121: 0 | GR121: 0 | GS121: 3 | GT121: 0 | GV121: 0 | GW121: 1 | GX121: 0 | HA121: 0 | HB121: 0 | HC121: 0 | HN121: Пр/812-027.0-1 | HO121: Пр/774-027.0 | HP121: Линии электропередачи | HQ121: Линии электропередачи | HS121: 0 | IK121: 0
A122: 18 | B122: 1 | C122: 180 | E122: 5,3 | F122: 07.2.02.05 | G122: Траверсы стальные | H122: т | I122: =I115*J122 -> 0 | J122: 0 | K122: 0 | L122: 0 | M122: 0 | N122: 0 | O122: 0 | P122: 0 | Q122: 0 | R122: 0 | S122: 0 | T122: 0 | U122: 0 | V122: 0 | W122: 0 | X122: 0 | Y122: 0 | AA122: 85312357 | AB122: 0 | AC122: 0 | AD122: 0 | AE122: 0 | AF122: 0 | AG122: 0 | AH122: 0 | AI122: 0 | AJ122: 0 | AK122: 0 | AL122: 0 | AM122: 0 | AN122: 0 | AO122: 0 | AP122: 0 | AQ122: 0 | AR122: 0 | AS122: 0 | AT122: 103 | AU122: 60 | AV122: 1 | AW122: 1 | AZ122: 1 | BA122: 1 | BB122: 1 | BC122: 1 | BH122: 3 | BI122: 1 | BM122: 33001 | BN122: 0 | BP122: 0 | BQ122: 2 | BR122: 0 | BS122: 1 | BT122: 1 | BU122: 1 | BV122: 1 | BW122: 1 | BX122: 1 | BZ122: 103 | CA122: 60 | CE122: 0 | CF122: 0 | CG122: 0 | CH122: 5 | CI122: 3 | CJ122: 0 | CK122: 0 | CL122: 0 | CM122: 0 | CO122: 0 | CP122: 0 | CQ122: 0 | CR122: 0 | CS122: 0 | CT122: 0 | CU122: 0 | CV122: 0 | CW122: 0 | CX122: 0 | CY122: 0 | CZ122: 0 | DN122: 0 | DO122: 0 | DP122: 1 | DQ122: 1 | DU122: 1009 | DV122: т | DW122: т | DX122: 1000 | EE122: 83666879 | EF122: 2 | EG122: Общестроительные работы | EH122: 27 | EI122: Линии электропередачи | EJ122: 1 | EK122: 33001 | EL122: Линии электропередачи | EM122: ФЕР-33 | EQ122: 0 | ER122: 0 | ES122: 0 | ET122: 0 | EU122: 0 | EV122: 0 | EW122: 0 | EX122: 0 | FQ122: 0 | FR122: 0 | FS122: 0 | FX122: 103 | FY122: 60 | GD122: 1 | GF122: 1602794472 | GG122: 2 | GH122: 1 | GI122: -2 | GJ122: 0 | GK122: 0 | GL122: 0 | GM122: 0 | GN122: 0 | GO122: 0 | GP122: 0 | GR122: 0 | GS122: 3 | GT122: 0 | GV122: 0 | GW122: 1 | GX122: 0 | HA122: 0 | HB122: 0 | HC122: 0 | HN122: Пр/812-027.0-1 | HO122: Пр/774-027.0 | HP122: Линии электропередачи | HQ122: Линии электропередачи | HS122: 0 | IK122: 0
A123: 18 | B123: 1 | C123: 199 | E123: 5,3 | F123: 07.2.02.05 | G123: Траверсы стальные | H123: т | I123: =I116*J123 -> 0 | J123: 0 | K123: 0 | L123: 0 | M123: 0 | N123: 0 | O123: 0 | P123: 0 | Q123: 0 | R123: 0 | S123: 0 | T123: 0 | U123: 0 | V123: 0 | W123: 0 | X123: 0 | Y123: 0 | AA123: 85312298 | AB123: 0 | AC123: 0 | AD123: 0 | AE123: 0 | AF123: 0 | AG123: 0 | AH123: 0 | AI123: 0 | AJ123: 0 | AK123: 0 | AL123: 0 | AM123: 0 | AN123: 0 | AO123: 0 | AP123: 0 | AQ123: 0 | AR123: 0 | AS123: 0 | AT123: 103 | AU123: 60 | AV123: 1 | AW123: 1 | AZ123: 1 | BA123: 1 | BB123: 1 | BC123: 1 | BH123: 3 | BI123: 1 | BM123: 33001 | BN123: 0 | BP123: 0 | BQ123: 2 | BR123: 0 | BS123: 1 | BT123: 1 | BU123: 1 | BV123: 1 | BW123: 1 | BX123: 1 | BZ123: 103 | CA123: 60 | CE123: 0 | CF123: 0 | CG123: 0 | CH123: 5 | CI123: 3 | CJ123: 0 | CK123: 0 | CL123: 0 | CM123: 0 | CO123: 0 | CP123: 0 | CQ123: 0 | CR123: 0 | CS123: 0 | CT123: 0 | CU123: 0 | CV123: 0 | CW123: 0 | CX123: 0 | CY123: 0 | CZ123: 0 | DN123: 0 | DO123: 0 | DP123: 1 | DQ123: 1 | DU123: 1009 | DV123: т | DW123: т | DX123: 1000 | EE123: 83666879 | EF123: 2 | EG123: Общестроительные работы | EH123: 27 | EI123: Линии электропередачи | EJ123: 1 | EK123: 33001 | EL123: Линии электропередачи | EM123: ФЕР-33 | EQ123: 0 | ER123: 0 | ES123: 0 | ET123: 0 | EU123: 0 | EV123: 0 | EW123: 0 | EX123: 0 | FQ123: 0 | FR123: 0 | FS123: 0 | FX123: 103 | FY123: 60 | GD123: 1 | GF123: 1602794472 | GG123: 2 | GH123: 1 | GI123: -2 | GJ123: 0 | GK123: 0 | GL123: 0 | GM123: 0 | GN123: 0 | GO123: 0 | GP123: 0 | GR123: 0 | GS123: 3 | GT123: 0 | GV123: 0 | GW123: 1 | GX123: 0 | HA123: 0 | HB123: 0 | HC123: 0 | HN123: Пр/812-027.0-1 | HO123: Пр/774-027.0 | HP123: Линии электропередачи | HQ123: Линии электропередачи | HS123: 0 | IK123: 0
A124: 18 | B124: 1 | C124: 181 | E124: 5,4 | F124: 07.2.07.13 | G124: Хомуты стальные | H124: кг | I124: =I115*J124 -> 0 | J124: 0 | K124: 0 | L124: 0 | M124: 0 | N124: 0 | O124: 0 | P124: 0 | Q124: 0 | R124: 0 | S124: 0 | T124: 0 | U124: 0 | V124: 0 | W124: 0 | X124: 0 | Y124: 0 | AA124: 85312357 | AB124: 0 | AC124: 0 | AD124: 0 | AE124: 0 | AF124: 0 | AG124: 0 | AH124: 0 | AI124: 0 | AJ124: 0 | AK124: 0 | AL124: 0 | AM124: 0 | AN124: 0 | AO124: 0 | AP124: 0 | AQ124: 0 | AR124: 0 | AS124: 0 | AT124: 103 | AU124: 60 | AV124: 1 | AW124: 1 | AZ124: 1 | BA124: 1 | BB124: 1 | BC124: 1 | BH124: 3 | BI124: 1 | BM124: 33001 | BN124: 0 | BP124: 0 | BQ124: 2 | BR124: 0 | BS124: 1 | BT124: 1 | BU124: 1 | BV124: 1 | BW124: 1 | BX124: 1 | BZ124: 103 | CA124: 60 | CE124: 0 | CF124: 0 | CG124: 0 | CH124: 5 | CI124: 4 | CJ124: 0 | CK124: 0 | CL124: 0 | CM124: 0 | CO124: 0 | CP124: 0 | CQ124: 0 | CR124: 0 | CS124: 0 | CT124: 0 | CU124: 0 | CV124: 0 | CW124: 0 | CX124: 0 | CY124: 0 | CZ124: 0 | DN124: 0 | DO124: 0 | DP124: 1 | DQ124: 1 | DU124: 1009 | DV124: кг | DW124: кг | DX124: 1 | EE124: 83666879 | EF124: 2 | EG124: Общестроительные работы | EH124: 27 | EI124: Линии электропередачи | EJ124: 1 | EK124: 33001 | EL124: Линии электропередачи | EM124: ФЕР-33 | EQ124: 0 | ER124: 0 | ES124: 0 | ET124: 0 | EU124: 0 | EV124: 0 | EW124: 0 | EX124: 0 | FQ124: 0 | FR124: 0 | FS124: 0 | FX124: 103 | FY124: 60 | GD124: 1 | GF124: -1111733769 | GG124: 2 | GH124: 1 | GI124: -2 | GJ124: 0 | GK124: 0 | GL124: 0 | GM124: 0 | GN124: 0 | GO124: 0 | GP124: 0 | GR124: 0 | GS124: 3 | GT124: 0 | GV124: 0 | GW124: 1 | GX124: 0 | HA124: 0 | HB124: 0 | HC124: 0 | HN124: Пр/812-027.0-1 | HO124: Пр/774-027.0 | HP124: Линии электропередачи | HQ124: Линии электропередачи | HS124: 0 | IK124: 0
A125: 18 | B125: 1 | C125: 200 | E125: 5,4 | F125: 07.2.07.13 | G125: Хомуты стальные | H125: кг | I125: =I116*J125 -> 0 | J125: 0 | K125: 0 | L125: 0 | M125: 0 | N125: 0 | O125: 0 | P125: 0 | Q125: 0 | R125: 0 | S125: 0 | T125: 0 | U125: 0 | V125: 0 | W125: 0 | X125: 0 | Y125: 0 | AA125: 85312298 | AB125: 0 | AC125: 0 | AD125: 0 | AE125: 0 | AF125: 0 | AG125: 0 | AH125: 0 | AI125: 0 | AJ125: 0 | AK125: 0 | AL125: 0 | AM125: 0 | AN125: 0 | AO125: 0 | AP125: 0 | AQ125: 0 | AR125: 0 | AS125: 0 | AT125: 103 | AU125: 60 | AV125: 1 | AW125: 1 | AZ125: 1 | BA125: 1 | BB125: 1 | BC125: 1 | BH125: 3 | BI125: 1 | BM125: 33001 | BN125: 0 | BP125: 0 | BQ125: 2 | BR125: 0 | BS125: 1 | BT125: 1 | BU125: 1 | BV125: 1 | BW125: 1 | BX125: 1 | BZ125: 103 | CA125: 60 | CE125: 0 | CF125: 0 | CG125: 0 | CH125: 5 | CI125: 4 | CJ125: 0 | CK125: 0 | CL125: 0 | CM125: 0 | CO125: 0 | CP125: 0 | CQ125: 0 | CR125: 0 | CS125: 0 | CT125: 0 | CU125: 0 | CV125: 0 | CW125: 0 | CX125: 0 | CY125: 0 | CZ125: 0 | DN125: 0 | DO125: 0 | DP125: 1 | DQ125: 1 | DU125: 1009 | DV125: кг | DW125: кг | DX125: 1 | EE125: 83666879 | EF125: 2 | EG125: Общестроительные работы | EH125: 27 | EI125: Линии электропередачи | EJ125: 1 | EK125: 33001 | EL125: Линии электропередачи | EM125: ФЕР-33 | EQ125: 0 | ER125: 0 | ES125: 0 | ET125: 0 | EU125: 0 | EV125: 0 | EW125: 0 | EX125: 0 | FQ125: 0 | FR125: 0 | FS125: 0 | FX125: 103 | FY125: 60 | GD125: 1 | GF125: -1111733769 | GG125: 2 | GH125: 1 | GI125: -2 | GJ125: 0 | GK125: 0 | GL125: 0 | GM125: 0 | GN125: 0 | GO125: 0 | GP125: 0 | GR125: 0 | GS125: 3 | GT125: 0 | GV125: 0 | GW125: 1 | GX125: 0 | HA125: 0 | HB125: 0 | HC125: 0 | HN125: Пр/812-027.0-1 | HO125: Пр/774-027.0 | HP125: Линии электропередачи | HQ125: Линии электропередачи | HS125: 0 | IK125: 0
A126: 18 | B126: 1 | C126: 182 | E126: 5,5 | F126: 08.3.04.02 | G126: Сталь стержневая диаметром до 10 мм | H126: т | I126: =I115*J126 -> 0 | J126: 0 | K126: 0 | L126: 0 | M126: 0 | N126: 0 | O126: 0 | P126: 0 | Q126: 0 | R126: 0 | S126: 0 | T126: 0 | U126: 0 | V126: 0 | W126: 0 | X126: 0 | Y126: 0 | AA126: 85312357 | AB126: 0 | AC126: 0 | AD126: 0 | AE126: 0 | AF126: 0 | AG126: 0 | AH126: 0 | AI126: 0 | AJ126: 0 | AK126: 0 | AL126: 0 | AM126: 0 | AN126: 0 | AO126: 0 | AP126: 0 | AQ126: 0 | AR126: 0 | AS126: 0 | AT126: 103 | AU126: 60 | AV126: 1 | AW126: 1 | AZ126: 1 | BA126: 1 | BB126: 1 | BC126: 1 | BH126: 3 | BI126: 1 | BM126: 33001 | BN126: 0 | BP126: 0 | BQ126: 2 | BR126: 0 | BS126: 1 | BT126: 1 | BU126: 1 | BV126: 1 | BW126: 1 | BX126: 1 | BZ126: 103 | CA126: 60 | CE126: 0 | CF126: 0 | CG126: 0 | CH126: 5 | CI126: 5 | CJ126: 0 | CK126: 0 | CL126: 0 | CM126: 0 | CO126: 0 | CP126: 0 | CQ126: 0 | CR126: 0 | CS126: 0 | CT126: 0 | CU126: 0 | CV126: 0 | CW126: 0 | CX126: 0 | CY126: 0 | CZ126: 0 | DN126: 0 | DO126: 0 | DP126: 1 | DQ126: 1 | DU126: 1009 | DV126: т | DW126: т | DX126: 1000 | EE126: 83666879 | EF126: 2 | EG126: Общестроительные работы | EH126: 27 | EI126: Линии электропередачи | EJ126: 1 | EK126: 33001 | EL126: Линии электропередачи | EM126: ФЕР-33 | EQ126: 0 | ER126: 0 | ES126: 0 | ET126: 0 | EU126: 0 | EV126: 0 | EW126: 0 | EX126: 0 | FQ126: 0 | FR126: 0 | FS126: 0 | FX126: 103 | FY126: 60 | GD126: 1 | GF126: 1613753229 | GG126: 2 | GH126: 1 | GI126: -2 | GJ126: 0 | GK126: 0 | GL126: 0 | GM126: 0 | GN126: 0 | GO126: 0 | GP126: 0 | GR126: 0 | GS126: 3 | GT126: 0 | GV126: 0 | GW126: 1 | GX126: 0 | HA126: 0 | HB126: 0 | HC126: 0 | HN126: Пр/812-027.0-1 | HO126: Пр/774-027.0 | HP126: Линии электропередачи | HQ126: Линии электропередачи | HS126: 0 | IK126: 0
A127: 18 | B127: 1 | C127: 201 | E127: 5,5 | F127: 08.3.04.02 | G127: Сталь стержневая диаметром до 10 мм | H127: т | I127: =I116*J127 -> 0 | J127: 0 | K127: 0 | L127: 0 | M127: 0 | N127: 0 | O127: 0 | P127: 0 | Q127: 0 | R127: 0 | S127: 0 | T127: 0 | U127: 0 | V127: 0 | W127: 0 | X127: 0 | Y127: 0 | AA127: 85312298 | AB127: 0 | AC127: 0 | AD127: 0 | AE127: 0 | AF127: 0 | AG127: 0 | AH127: 0 | AI127: 0 | AJ127: 0 | AK127: 0 | AL127: 0 | AM127: 0 | AN127: 0 | AO127: 0 | AP127: 0 | AQ127: 0 | AR127: 0 | AS127: 0 | AT127: 103 | AU127: 60 | AV127: 1 | AW127: 1 | AZ127: 1 | BA127: 1 | BB127: 1 | BC127: 1 | BH127: 3 | BI127: 1 | BM127: 33001 | BN127: 0 | BP127: 0 | BQ127: 2 | BR127: 0 | BS127: 1 | BT127: 1 | BU127: 1 | BV127: 1 | BW127: 1 | BX127: 1 | BZ127: 103 | CA127: 60 | CE127: 0 | CF127: 0 | CG127: 0 | CH127: 5 | CI127: 5 | CJ127: 0 | CK127: 0 | CL127: 0 | CM127: 0 | CO127: 0 | CP127: 0 | CQ127: 0 | CR127: 0 | CS127: 0 | CT127: 0 | CU127: 0 | CV127: 0 | CW127: 0 | CX127: 0 | CY127: 0 | CZ127: 0 | DN127: 0 | DO127: 0 | DP127: 1 | DQ127: 1 | DU127: 1009 | DV127: т | DW127: т | DX127: 1000 | EE127: 83666879 | EF127: 2 | EG127: Общестроительные работы | EH127: 27 | EI127: Линии электропередачи | EJ127: 1 | EK127: 33001 | EL127: Линии электропередачи | EM127: ФЕР-33 | EQ127: 0 | ER127: 0 | ES127: 0 | ET127: 0 | EU127: 0 | EV127: 0 | EW127: 0 | EX127: 0 | FQ127: 0 | FR127: 0 | FS127: 0 | FX127: 103 | FY127: 60 | GD127: 1 | GF127: 1613753229 | GG127: 2 | GH127: 1 | GI127: -2 | GJ127: 0 | GK127: 0 | GL127: 0 | GM127: 0 | GN127: 0 | GO127: 0 | GP127: 0 | GR127: 0 | GS127: 3 | GT127: 0 | GV127: 0 | GW127: 1 | GX127: 0 | HA127: 0 | HB127: 0 | HC127: 0 | HN127: Пр/812-027.0-1 | HO127: Пр/774-027.0 | HP127: Линии электропередачи | HQ127: Линии электропередачи | HS127: 0 | IK127: 0
A128: 18 | B128: 1 | C128: 186 | E128: 5,6 | F128: 22.2.01.04 | G128: Изоляторы штыревые | H128: ШТ | I128: =I115*J128 -> 0 | J128: 0 | K128: 0 | L128: 0 | M128: 0 | N128: 0 | O128: 0 | P128: 0 | Q128: 0 | R128: 0 | S128: 0 | T128: 0 | U128: 0 | V128: 0 | W128: 0 | X128: 0 | Y128: 0 | AA128: 85312357 | AB128: 0 | AC128: 0 | AD128: 0 | AE128: 0 | AF128: 0 | AG128: 0 | AH128: 0 | AI128: 0 | AJ128: 0 | AK128: 0 | AL128: 0 | AM128: 0 | AN128: 0 | AO128: 0 | AP128: 0 | AQ128: 0 | AR128: 0 | AS128: 0 | AT128: 103 | AU128: 60 | AV128: 1 | AW128: 1 | AZ128: 1 | BA128: 1 | BB128: 1 | BC128: 1 | BH128: 3 | BI128: 1 | BM128: 33001 | BN128: 0 | BP128: 0 | BQ128: 2 | BR128: 0 | BS128: 1 | BT128: 1 | BU128: 1 | BV128: 1 | BW128: 1 | BX128: 1 | BZ128: 103 | CA128: 60 | CE128: 0 | CF128: 0 | CG128: 0 | CH128: 5 | CI128: 6 | CJ128: 0 | CK128: 0 | CL128: 0 | CM128: 0 | CO128: 0 | CP128: 0 | CQ128: 0 | CR128: 0 | CS128: 0 | CT128: 0 | CU128: 0 | CV128: 0 | CW128: 0 | CX128: 0 | CY128: 0 | CZ128: 0 | DN128: 0 | DO128: 0 | DP128: 1 | DQ128: 1 | DU128: 1013 | DV128: ШТ | DW128: ШТ | DX128: 1 | EE128: 83666879 | EF128: 2 | EG128: Общестроительные работы | EH128: 27 | EI128: Линии электропередачи | EJ128: 1 | EK128: 33001 | EL128: Линии электропередачи | EM128: ФЕР-33 | EQ128: 0 | ER128: 0 | ES128: 0 | ET128: 0 | EU128: 0 | EV128: 0 | EW128: 0 | EX128: 0 | FQ128: 0 | FR128: 0 | FS128: 0 | FX128: 103 | FY128: 60 | GD128: 1 | GF128: -950997571 | GG128: 2 | GH128: 1 | GI128: -2 | GJ128: 0 | GK128: 0 | GL128: 0 | GM128: 0 | GN128: 0 | GO128: 0 | GP128: 0 | GR128: 0 | GS128: 3 | GT128: 0 | GV128: 0 | GW128: 1 | GX128: 0 | HA128: 0 | HB128: 0 | HC128: 0 | HN128: Пр/812-027.0-1 | HO128: Пр/774-027.0 | HP128: Линии электропередачи | HQ128: Линии электропередачи | HS128: 0 | IK128: 0
A129: 18 | B129: 1 | C129: 205 | E129: 5,6 | F129: 22.2.01.04 | G129: Изоляторы штыревые | H129: ШТ | I129: =I116*J129 -> 0 | J129: 0 | K129: 0 | L129: 0 | M129: 0 | N129: 0 | O129: 0 | P129: 0 | Q129: 0 | R129: 0 | S129: 0 | T129: 0 | U129: 0 | V129: 0 | W129: 0 | X129: 0 | Y129: 0 | AA129: 85312298 | AB129: 0 | AC129: 0 | AD129: 0 | AE129: 0 | AF129: 0 | AG129: 0 | AH129: 0 | AI129: 0 | AJ129: 0 | AK129: 0 | AL129: 0 | AM129: 0 | AN129: 0 | AO129: 0 | AP129: 0 | AQ129: 0 | AR129: 0 | AS129: 0 | AT129: 103 | AU129: 60 | AV129: 1 | AW129: 1 | AZ129: 1 | BA129: 1 | BB129: 1 | BC129: 1 | BH129: 3 | BI129: 1 | BM129: 33001 | BN129: 0 | BP129: 0 | BQ129: 2 | BR129: 0 | BS129: 1 | BT129: 1 | BU129: 1 | BV129: 1 | BW129: 1 | BX129: 1 | BZ129: 103 | CA129: 60 | CE129: 0 | CF129: 0 | CG129: 0 | CH129: 5 | CI129: 6 | CJ129: 0 | CK129: 0 | CL129: 0 | CM129: 0 | CO129: 0 | CP129: 0 | CQ129: 0 | CR129: 0 | CS129: 0 | CT129: 0 | CU129: 0 | CV129: 0 | CW129: 0 | CX129: 0 | CY129: 0 | CZ129: 0 | DN129: 0 | DO129: 0 | DP129: 1 | DQ129: 1 | DU129: 1013 | DV129: ШТ | DW129: ШТ | DX129: 1 | EE129: 83666879 | EF129: 2 | EG129: Общестроительные работы | EH129: 27 | EI129: Линии электропередачи | EJ129: 1 | EK129: 33001 | EL129: Линии электропередачи | EM129: ФЕР-33 | EQ129: 0 | ER129: 0 | ES129: 0 | ET129: 0 | EU129: 0 | EV129: 0 | EW129: 0 | EX129: 0 | FQ129: 0 | FR129: 0 | FS129: 0 | FX129: 103 | FY129: 60 | GD129: 1 | GF129: -950997571 | GG129: 2 | GH129: 1 | GI129: -2 | GJ129: 0 | GK129: 0 | GL129: 0 | GM129: 0 | GN129: 0 | GO129: 0 | GP129: 0 | GR129: 0 | GS129: 3 | GT129: 0 | GV129: 0 | GW129: 1 | GX129: 0 | HA129: 0 | HB129: 0 | HC129: 0 | HN129: Пр/812-027.0-1 | HO129: Пр/774-027.0 | HP129: Линии электропередачи | HQ129: Линии электропередачи | HS129: 0 | IK129: 0
A130: 18 | B130: 1 | C130: 187 | E130: 5,7 | F130: 22.2.02.07 | G130: Детали крепления | H130: кг | I130: =I115*J130 -> 0 | J130: 0 | K130: 0 | L130: 0 | M130: 0 | N130: 0 | O130: 0 | P130: 0 | Q130: 0 | R130: 0 | S130: 0 | T130: 0 | U130: 0 | V130: 0 | W130: 0 | X130: 0 | Y130: 0 | AA130: 85312357 | AB130: 0 | AC130: 0 | AD130: 0 | AE130: 0 | AF130: 0 | AG130: 0 | AH130: 0 | AI130: 0 | AJ130: 0 | AK130: 0 | AL130: 0 | AM130: 0 | AN130: 0 | AO130: 0 | AP130: 0 | AQ130: 0 | AR130: 0 | AS130: 0 | AT130: 103 | AU130: 60 | AV130: 1 | AW130: 1 | AZ130: 1 | BA130: 1 | BB130: 1 | BC130: 1 | BH130: 3 | BI130: 1 | BM130: 33001 | BN130: 0 | BP130: 0 | BQ130: 2 | BR130: 0 | BS130: 1 | BT130: 1 | BU130: 1 | BV130: 1 | BW130: 1 | BX130: 1 | BZ130: 103 | CA130: 60 | CE130: 0 | CF130: 0 | CG130: 0 | CH130: 5 | CI130: 7 | CJ130: 0 | CK130: 0 | CL130: 0 | CM130: 0 | CO130: 0 | CP130: 0 | CQ130: 0 | CR130: 0 | CS130: 0 | CT130: 0 | CU130: 0 | CV130: 0 | CW130: 0 | CX130: 0 | CY130: 0 | CZ130: 0 | DN130: 0 | DO130: 0 | DP130: 1 | DQ130: 1 | DU130: 1009 | DV130: кг | DW130: кг | DX130: 1 | EE130: 83666879 | EF130: 2 | EG130: Общестроительные работы | EH130: 27 | EI130: Линии электропередачи | EJ130: 1 | EK130: 33001 | EL130: Линии электропередачи | EM130: ФЕР-33 | EQ130: 0 | ER130: 0 | ES130: 0 | ET130: 0 | EU130: 0 | EV130: 0 | EW130: 0 | EX130: 0 | FQ130: 0 | FR130: 0 | FS130: 0 | FX130: 103 | FY130: 60 | GD130: 1 | GF130: -1204247626 | GG130: 2 | GH130: 1 | GI130: -2 | GJ130: 0 | GK130: 0 | GL130: 0 | GM130: 0 | GN130: 0 | GO130: 0 | GP130: 0 | GR130: 0 | GS130: 3 | GT130: 0 | GV130: 0 | GW130: 1 | GX130: 0 | HA130: 0 | HB130: 0 | HC130: 0 | HN130: Пр/812-027.0-1 | HO130: Пр/774-027.0 | HP130: Линии электропередачи | HQ130: Линии электропередачи | HS130: 0 | IK130: 0
A131: 18 | B131: 1 | C131: 206 | E131: 5,7 | F131: 22.2.02.07 | G131: Детали крепления | H131: кг | I131: =I116*J131 -> 0 | J131: 0 | K131: 0 | L131: 0 | M131: 0 | N131: 0 | O131: 0 | P131: 0 | Q131: 0 | R131: 0 | S131: 0 | T131: 0 | U131: 0 | V131: 0 | W131: 0 | X131: 0 | Y131: 0 | AA131: 85312298 | AB131: 0 | AC131: 0 | AD131: 0 | AE131: 0 | AF131: 0 | AG131: 0 | AH131: 0 | AI131: 0 | AJ131: 0 | AK131: 0 | AL131: 0 | AM131: 0 | AN131: 0 | AO131: 0 | AP131: 0 | AQ131: 0 | AR131: 0 | AS131: 0 | AT131: 103 | AU131: 60 | AV131: 1 | AW131: 1 | AZ131: 1 | BA131: 1 | BB131: 1 | BC131: 1 | BH131: 3 | BI131: 1 | BM131: 33001 | BN131: 0 | BP131: 0 | BQ131: 2 | BR131: 0 | BS131: 1 | BT131: 1 | BU131: 1 | BV131: 1 | BW131: 1 | BX131: 1 | BZ131: 103 | CA131: 60 | CE131: 0 | CF131: 0 | CG131: 0 | CH131: 5 | CI131: 7 | CJ131: 0 | CK131: 0 | CL131: 0 | CM131: 0 | CO131: 0 | CP131: 0 | CQ131: 0 | CR131: 0 | CS131: 0 | CT131: 0 | CU131: 0 | CV131: 0 | CW131: 0 | CX131: 0 | CY131: 0 | CZ131: 0 | DN131: 0 | DO131: 0 | DP131: 1 | DQ131: 1 | DU131: 1009 | DV131: кг | DW131: кг | DX131: 1 | EE131: 83666879 | EF131: 2 | EG131: Общестроительные работы | EH131: 27 | EI131: Линии электропередачи | EJ131: 1 | EK131: 33001 | EL131: Линии электропередачи | EM131: ФЕР-33 | EQ131: 0 | ER131: 0 | ES131: 0 | ET131: 0 | EU131: 0 | EV131: 0 | EW131: 0 | EX131: 0 | FQ131: 0 | FR131: 0 | FS131: 0 | FX131: 103 | FY131: 60 | GD131: 1 | GF131: -1204247626 | GG131: 2 | GH131: 1 | GI131: -2 | GJ131: 0 | GK131: 0 | GL131: 0 | GM131: 0 | GN131: 0 | GO131: 0 | GP131: 0 | GR131: 0 | GS131: 3 | GT131: 0 | GV131: 0 | GW131: 1 | GX131: 0 | HA131: 0 | HB131: 0 | HC131: 0 | HN131: Пр/812-027.0-1 | HO131: Пр/774-027.0 | HP131: Линии электропередачи | HQ131: Линии электропередачи | HS131: 0 | IK131: 0
A132: 18 | B132: 1 | C132: 188 | E132: 5,8 | F132: 22.2.02.21 | G132: Штыри | H132: ШТ | I132: =I115*J132 -> 0 | J132: 0 | K132: 0 | L132: 0 | M132: 0 | N132: 0 | O132: 0 | P132: 0 | Q132: 0 | R132: 0 | S132: 0 | T132: 0 | U132: 0 | V132: 0 | W132: 0 | X132: 0 | Y132: 0 | AA132: 85312357 | AB132: 0 | AC132: 0 | AD132: 0 | AE132: 0 | AF132: 0 | AG132: 0 | AH132: 0 | AI132: 0 | AJ132: 0 | AK132: 0 | AL132: 0 | AM132: 0 | AN132: 0 | AO132: 0 | AP132: 0 | AQ132: 0 | AR132: 0 | AS132: 0 | AT132: 103 | AU132: 60 | AV132: 1 | AW132: 1 | AZ132: 1 | BA132: 1 | BB132: 1 | BC132: 1 | BH132: 3 | BI132: 1 | BM132: 33001 | BN132: 0 | BP132: 0 | BQ132: 2 | BR132: 0 | BS132: 1 | BT132: 1 | BU132: 1 | BV132: 1 | BW132: 1 | BX132: 1 | BZ132: 103 | CA132: 60 | CE132: 0 | CF132: 0 | CG132: 0 | CH132: 5 | CI132: 8 | CJ132: 0 | CK132: 0 | CL132: 0 | CM132: 0 | CO132: 0 | CP132: 0 | CQ132: 0 | CR132: 0 | CS132: 0 | CT132: 0 | CU132: 0 | CV132: 0 | CW132: 0 | CX132: 0 | CY132: 0 | CZ132: 0 | DN132: 0 | DO132: 0 | DP132: 1 | DQ132: 1 | DU132: 1013 | DV132: ШТ | DW132: ШТ | DX132: 1 | EE132: 83666879 | EF132: 2 | EG132: Общестроительные работы | EH132: 27 | EI132: Линии электропередачи | EJ132: 1 | EK132: 33001 | EL132: Линии электропередачи | EM132: ФЕР-33 | EQ132: 0 | ER132: 0 | ES132: 0 | ET132: 0 | EU132: 0 | EV132: 0 | EW132: 0 | EX132: 0 | FQ132: 0 | FR132: 0 | FS132: 0 | FX132: 103 | FY132: 60 | GD132: 1 | GF132: -320198552 | GG132: 2 | GH132: 1 | GI132: -2 | GJ132: 0 | GK132: 0 | GL132: 0 | GM132: 0 | GN132: 0 | GO132: 0 | GP132: 0 | GR132: 0 | GS132: 3 | GT132: 0 | GV132: 0 | GW132: 1 | GX132: 0 | HA132: 0 | HB132: 0 | HC132: 0 | HN132: Пр/812-027.0-1 | HO132: Пр/774-027.0 | HP132: Линии электропередачи | HQ132: Линии электропередачи | HS132: 0 | IK132: 0
A133: 18 | B133: 1 | C133: 207 | E133: 5,8 | F133: 22.2.02.21 | G133: Штыри | H133: ШТ | I133: =I116*J133 -> 0 | J133: 0 | K133: 0 | L133: 0 | M133: 0 | N133: 0 | O133: 0 | P133: 0 | Q133: 0 | R133: 0 | S133: 0 | T133: 0 | U133: 0 | V133: 0 | W133: 0 | X133: 0 | Y133: 0 | AA133: 85312298 | AB133: 0 | AC133: 0 | AD133: 0 | AE133: 0 | AF133: 0 | AG133: 0 | AH133: 0 | AI133: 0 | AJ133: 0 | AK133: 0 | AL133: 0 | AM133: 0 | AN133: 0 | AO133: 0 | AP133: 0 | AQ133: 0 | AR133: 0 | AS133: 0 | AT133: 103 | AU133: 60 | AV133: 1 | AW133: 1 | AZ133: 1 | BA133: 1 | BB133: 1 | BC133: 1 | BH133: 3 | BI133: 1 | BM133: 33001 | BN133: 0 | BP133: 0 | BQ133: 2 | BR133: 0 | BS133: 1 | BT133: 1 | BU133: 1 | BV133: 1 | BW133: 1 | BX133: 1 | BZ133: 103 | CA133: 60 | CE133: 0 | CF133: 0 | CG133: 0 | CH133: 5 | CI133: 8 | CJ133: 0 | CK133: 0 | CL133: 0 | CM133: 0 | CO133: 0 | CP133: 0 | CQ133: 0 | CR133: 0 | CS133: 0 | CT133: 0 | CU133: 0 | CV133: 0 | CW133: 0 | CX133: 0 | CY133: 0 | CZ133: 0 | DN133: 0 | DO133: 0 | DP133: 1 | DQ133: 1 | DU133: 1013 | DV133: ШТ | DW133: ШТ | DX133: 1 | EE133: 83666879 | EF133: 2 | EG133: Общестроительные работы | EH133: 27 | EI133: Линии электропередачи | EJ133: 1 | EK133: 33001 | EL133: Линии электропередачи | EM133: ФЕР-33 | EQ133: 0 | ER133: 0 | ES133: 0 | ET133: 0 | EU133: 0 | EV133: 0 | EW133: 0 | EX133: 0 | FQ133: 0 | FR133: 0 | FS133: 0 | FX133: 103 | FY133: 60 | GD133: 1 | GF133: -320198552 | GG133: 2 | GH133: 1 | GI133: -2 | GJ133: 0 | GK133: 0 | GL133: 0 | GM133: 0 | GN133: 0 | GO133: 0 | GP133: 0 | GR133: 0 | GS133: 3 | GT133: 0 | GV133: 0 | GW133: 1 | GX133: 0 | HA133: 0 | HB133: 0 | HC133: 0 | HN133: Пр/812-027.0-1 | HO133: Пр/774-027.0 | HP133: Линии электропередачи | HQ133: Линии электропередачи | HS133: 0 | IK133: 0
A134: 18 | B134: 1 | C134: 189 | E134: 5,9 | F134: 22.2.02.23 | G134: Металлические плакаты | H134: ШТ | I134: =I115*J134 -> 0 | J134: 0 | K134: 0 | L134: 0 | M134: 0 | N134: 0 | O134: 0 | P134: 0 | Q134: 0 | R134: 0 | S134: 0 | T134: 0 | U134: 0 | V134: 0 | W134: 0 | X134: 0 | Y134: 0 | AA134: 85312357 | AB134: 0 | AC134: 0 | AD134: 0 | AE134: 0 | AF134: 0 | AG134: 0 | AH134: 0 | AI134: 0 | AJ134: 0 | AK134: 0 | AL134: 0 | AM134: 0 | AN134: 0 | AO134: 0 | AP134: 0 | AQ134: 0 | AR134: 0 | AS134: 0 | AT134: 103 | AU134: 60 | AV134: 1 | AW134: 1 | AZ134: 1 | BA134: 1 | BB134: 1 | BC134: 1 | BH134: 3 | BI134: 1 | BM134: 33001 | BN134: 0 | BP134: 0 | BQ134: 2 | BR134: 0 | BS134: 1 | BT134: 1 | BU134: 1 | BV134: 1 | BW134: 1 | BX134: 1 | BZ134: 103 | CA134: 60 | CE134: 0 | CF134: 0 | CG134: 0 | CH134: 5 | CI134: 9 | CJ134: 0 | CK134: 0 | CL134: 0 | CM134: 0 | CO134: 0 | CP134: 0 | CQ134: 0 | CR134: 0 | CS134: 0 | CT134: 0 | CU134: 0 | CV134: 0 | CW134: 0 | CX134: 0 | CY134: 0 | CZ134: 0 | DN134: 0 | DO134: 0 | DP134: 1 | DQ134: 1 | DU134: 1013 | DV134: ШТ | DW134: ШТ | DX134: 1 | EE134: 83666879 | EF134: 2 | EG134: Общестроительные работы | EH134: 27 | EI134: Линии электропередачи | EJ134: 1 | EK134: 33001 | EL134: Линии электропередачи | EM134: ФЕР-33 | EQ134: 0 | ER134: 0 | ES134: 0 | ET134: 0 | EU134: 0 | EV134: 0 | EW134: 0 | EX134: 0 | FQ134: 0 | FR134: 0 | FS134: 0 | FX134: 103 | FY134: 60 | GD134: 1 | GF134: 326010188 | GG134: 2 | GH134: 1 | GI134: -2 | GJ134: 0 | GK134: 0 | GL134: 0 | GM134: 0 | GN134: 0 | GO134: 0 | GP134: 0 | GR134: 0 | GS134: 3 | GT134: 0 | GV134: 0 | GW134: 1 | GX134: 0 | HA134: 0 | HB134: 0 | HC134: 0 | HN134: Пр/812-027.0-1 | HO134: Пр/774-027.0 | HP134: Линии электропередачи | HQ134: Линии электропередачи | HS134: 0 | IK134: 0
A135: 18 | B135: 1 | C135: 208 | E135: 5,9 | F135: 22.2.02.23 | G135: Металлические плакаты | H135: ШТ | I135: =I116*J135 -> 0 | J135: 0 | K135: 0 | L135: 0 | M135: 0 | N135: 0 | O135: 0 | P135: 0 | Q135: 0 | R135: 0 | S135: 0 | T135: 0 | U135: 0 | V135: 0 | W135: 0 | X135: 0 | Y135: 0 | AA135: 85312298 | AB135: 0 | AC135: 0 | AD135: 0 | AE135: 0 | AF135: 0 | AG135: 0 | AH135: 0 | AI135: 0 | AJ135: 0 | AK135: 0 | AL135: 0 | AM135: 0 | AN135: 0 | AO135: 0 | AP135: 0 | AQ135: 0 | AR135: 0 | AS135: 0 | AT135: 103 | AU135: 60 | AV135: 1 | AW135: 1 | AZ135: 1 | BA135: 1 | BB135: 1 | BC135: 1 | BH135: 3 | BI135: 1 | BM135: 33001 | BN135: 0 | BP135: 0 | BQ135: 2 | BR135: 0 | BS135: 1 | BT135: 1 | BU135: 1 | BV135: 1 | BW135: 1 | BX135: 1 | BZ135: 103 | CA135: 60 | CE135: 0 | CF135: 0 | CG135: 0 | CH135: 5 | CI135: 9 | CJ135: 0 | CK135: 0 | CL135: 0 | CM135: 0 | CO135: 0 | CP135: 0 | CQ135: 0 | CR135: 0 | CS135: 0 | CT135: 0 | CU135: 0 | CV135: 0 | CW135: 0 | CX135: 0 | CY135: 0 | CZ135: 0 | DN135: 0 | DO135: 0 | DP135: 1 | DQ135: 1 | DU135: 1013 | DV135: ШТ | DW135: ШТ | DX135: 1 | EE135: 83666879 | EF135: 2 | EG135: Общестроительные работы | EH135: 27 | EI135: Линии электропередачи | EJ135: 1 | EK135: 33001 | EL135: Линии электропередачи | EM135: ФЕР-33 | EQ135: 0 | ER135: 0 | ES135: 0 | ET135: 0 | EU135: 0 | EV135: 0 | EW135: 0 | EX135: 0 | FQ135: 0 | FR135: 0 | FS135: 0 | FX135: 103 | FY135: 60 | GD135: 1 | GF135: 326010188 | GG135: 2 | GH135: 1 | GI135: -2 | GJ135: 0 | GK135: 0 | GL135: 0 | GM135: 0 | GN135: 0 | GO135: 0 | GP135: 0 | GR135: 0 | GS135: 3 | GT135: 0 | GV135: 0 | GW135: 1 | GX135: 0 | HA135: 0 | HB135: 0 | HC135: 0 | HN135: Пр/812-027.0-1 | HO135: Пр/774-027.0 | HP135: Линии электропередачи | HQ135: Линии электропередачи | HS135: 0 | IK135: 0
